Workbook

Sheet notes (hidden)
A1: FY26 Chapter 70 Prelim
A3: Tabs | B3: What happens on this sheet | C3: Data source (if any) | D3: Notes
A4: Parameters | B4: Allows the user to adjust all of the policy levers in Chapter 70, except for changes to foundation. Foundation budget scenarios can be changed, but they must 1st be run separately and dropped into localcont (all the way to the right). Up to 11 alternatives can be included. | D4: Updated
A5: Index | B5: Controls the district being viewed for all reports except regional dist members | C5: Dropdown box reads LEAs
A6: Rates | B6: CY and PY foundation budget rates Used to calculate foundation budget report | C6: Copied in from found file | D6: Updated
A7: Foundation Budget | B7: 1 district report showing build-up of foundation budget | C7: Rates, dist435
A8: Municipal Contribution | B8: 1 city/town report showing build-up of required local contribution (municipal level) | C8: townwide contributions
A9: Regional Allocation | B9: 1 city/town report showing allocation of total municipal required local contribution based on proportion of foundation budget at each district to which it belongs | C9: localcont
A10: Summary | B10: 1 district report summarizing C70 calculation and comparison to PY | C10: aid436, disthist
A11: Regional Dist Members | B11: 1 regional district report summarizing enrollment and local contribution for each member town Changed in FY18 to vlookup on localcont | C11: localcont, leas
A12: LocalCont | B12: Results from distfrac get copied into the far right (up to 11 versions of foundation budget can be entered). Toggle is on parameters sheet. Data is organized in 5 row format for each city/town (municipality and its districts, blanks are 998 and total is 999). Used to calculate each municipal-district combination's RLC. | C12: found file, distfrac (allocate sheet) | D12: Updated
A14: Comparison to FY25 | B14: 2 year comparison for operating districts | C14: aid436, disthist, localcont | D14: Updated
A15: Townwide Contributions | B15: Calculates municipal required local contributions | C15: DOR (EQV, Income, MRGFs), PY file (RLCs), parameters | D15: Updated
A16: Aid436 | B16: Calculates district Ch 70 aid | C16: disthist, localcont, frac, parameters Starting w/ LEA 406, in col J (target aid %), formula changes to pull from frac tab. | D16: min aid adjustment only applied to operating districts; adjusted base aid for Southwick, Tolland, Granville, and Southwick-Tolland-Granville
A17: Frac | B17: Calculates target aid percentage for regional districts | D17: Updated
A18: DistHist | B18: ***Don't forget to copy in target aid %s from PY Historical C70 data used in summary report, and other places | D18: Updated
A19: Dist435 | B19: Data source for foundation budget report, shows detailed enrollment and budget columns | C19: found26prelim | D19: Updated

Sheet Index
A1: Massachusetts Department of Elementary and Secondary Education
A2: =parameters!B1& " Chapter 70 and Net School Spending Formula Spreadsheet" -> FY27 Chapter 70 and Net School Spending Formula Spreadsheet
B3: Select or type full district name below | C3: LEA code
A4: =C4 -> 999 | B4: Select a district | C4: =VLOOKUP(B4,leas!$E$4:$F$445,2,FALSE) -> 999
B6: Use the drop-down menu to select a municipal or regional district and then go to any of the first four links below.
B7: Only municipal district selections will activate the Municipal Contribution Requirement and Regional Allocation reports.
B8: A list of LEAs by code begins on row 26 of this sheet.
B10: We recommend that you save this workbook to your computer before proceeding, then leave this browser, and open the workbook using Excel or My Computer.
B12: Summary
B13: Foundation Budget
B14: Municipal Contribution Requirement
B15: Regional Allocation
B17: Regional District Detail | D17: (go to this sheet to see any particular regional district's comparison of enrollment and minimum contributions to the prior year)
B19: There are also a number of "hidden" sheets which contain the underlying spreadsheet calculations.
B20: They can be accessed by right-clicking on any of the tabs below and choosing a sheet to unhide.
B22: Questions or comments about Chapter 70 may be directed to:
B24: Meghan Ryan | D24: Meghan.Ryan2@mass.gov | G24: 781-338-6507
B25: Rob O'Donnell | D25: Robert.F.O'Donnell@mass.gov | G25: 781-338-6512
B27: District | D27: LEA Number
B28: Abington | D28: 1
B29: Acton | D29: 2
B30: Acton Boxborough | D30: 600
B31: Acushnet | D31: 3
B32: Adams | D32: 4
B33: Agawam | D33: 5
B34: Alford | D34: 6
B35: Amesbury | D35: 7
B36: Amherst | D36: 8
B37: Amherst Pelham | D37: 605
B38: Andover | D38: 9
B39: Aquinnah | D39: 104
B40: Arlington | D40: 10
B41: Ashburnham | D41: 11
B42: Ashburnham Westminster | D42: 610
B43: Ashby | D43: 12
B44: Ashfield | D44: 13
B45: Ashland | D45: 14
B46: Assabet Valley | D46: 801
B47: Athol | D47: 15
B48: Athol Royalston | D48: 615
B49: Attleboro | D49: 16
B50: Auburn | D50: 17
B51: Avon | D51: 18
B52: Ayer | D52: 19
B53: Ayer Shirley | D53: 616
B54: Barnstable | D54: 20
B55: Barre | D55: 21
B56: Becket | D56: 22
B57: Bedford | D57: 23
B58: Belchertown | D58: 24
B59: Bellingham | D59: 25
B60: Belmont | D60: 26
B61: Berkley | D61: 27
B62: Berkshire Hills | D62: 618
B63: Berlin | D63: 28
B64: Berlin Boylston | D64: 620
B65: Bernardston | D65: 29
B66: Beverly | D66: 30
B67: Billerica | D67: 31
B68: Blackstone | D68: 32
B69: Blackstone Millville | D69: 622
B70: Blackstone Valley | D70: 805
B71: Blandford | D71: 33
B72: Blue Hills | D72: 806
B73: Bolton | D73: 34
B74: Boston | D74: 35
B75: Bourne | D75: 36
B76: Boxborough | D76: 37
B77: Boxford | D77: 38
B78: Boylston | D78: 39
B79: Braintree | D79: 40
B80: Brewster | D80: 41
B81: Bridgewater | D81: 42
B82: Bridgewater Raynham | D82: 625
B83: Brimfield | D83: 43
B84: Bristol County | D84: 910
B85: Bristol Plymouth | D85: 810
B86: Brockton | D86: 44
B87: Brookfield | D87: 45
B88: Brookline | D88: 46
B89: Buckland | D89: 47
B90: Burlington | D90: 48
B91: Cambridge | D91: 49
B92: Canton | D92: 50
B93: Cape Cod | D93: 815
B94: Carlisle | D94: 51
B95: Carver | D95: 52
B96: Central Berkshire | D96: 635
B97: Charlemont | D97: 53
B98: Charlton | D98: 54
B99: Chatham | D99: 55
B100: Chelmsford | D100: 56
B101: Chelsea | D101: 57
B102: Cheshire | D102: 58
B103: Chester | D103: 59
B104: Chesterfield | D104: 60
B105: Chesterfield Goshen | D105: 632
B106: Chicopee | D106: 61
B107: Chilmark | D107: 62
B108: Clarksburg | D108: 63
B109: Clinton | D109: 64
B110: Cohasset | D110: 65
B111: Colrain | D111: 66
B112: Concord | D112: 67
B113: Concord Carlisle | D113: 640
B114: Conway | D114: 68
B115: Cummington | D115: 69
B116: Dalton | D116: 70
B117: Danvers | D117: 71
B118: Dartmouth | D118: 72
B119: Dedham | D119: 73
B120: Deerfield | D120: 74
B121: Dennis | D121: 75
B122: Dennis Yarmouth | D122: 645
B123: Dighton | D123: 76
B124: Dighton Rehoboth | D124: 650
B125: Douglas | D125: 77
B126: Dover | D126: 78
B127: Dover Sherborn | D127: 655
B128: Dracut | D128: 79
B129: Dudley | D129: 80
B130: Dudley Charlton | D130: 658
B131: Dunstable | D131: 81
B132: Duxbury | D132: 82
B133: East Bridgewater | D133: 83
B134: East Brookfield | D134: 84
B135: East Longmeadow | D135: 87
B136: Eastham | D136: 85
B137: Easthampton | D137: 86
B138: Easton | D138: 88
B139: Edgartown | D139: 89
B140: Egremont | D140: 90
B141: Erving | D141: 91
B142: Essex | D142: 92
B143: Essex North Shore | D143: 817
B144: Everett | D144: 93
B145: Fairhaven | D145: 94
B146: Fall River | D146: 95
B147: Falmouth | D147: 96
B148: Farmington River | D148: 662
B149: Fitchburg | D149: 97
B150: Florida | D150: 98
B151: Foxborough | D151: 99
B152: Framingham | D152: 100
B153: Franklin | D153: 101
B154: Franklin County | D154: 818
B155: Freetown | D155: 102
B156: Freetown Lakeville | D156: 665
B157: Frontier | D157: 670
B158: Gardner | D158: 103
B159: Gateway | D159: 672
B160: Georgetown | D160: 105
B161: Gill | D161: 106
B162: Gill Montague | D162: 674
B163: Gloucester | D163: 107
B164: Goshen | D164: 108
B165: Gosnold | D165: 109
B166: Grafton | D166: 110
B167: Granby | D167: 111
B168: Granville | D168: 112
B169: Great Barrington | D169: 113
B170: Greater Fall River | D170: 821
B171: Greater Lawrence | D171: 823
B172: Greater Lowell | D172: 828
B173: Greater New Bedford | D173: 825
B174: Greenfield | D174: 114
B175: Groton | D175: 115
B176: Groton Dunstable | D176: 673
B177: Groveland | D177: 116
B178: Hadley | D178: 117
B179: Halifax | D179: 118
B180: Hamilton | D180: 119
B181: Hamilton Wenham | D181: 675
B182: Hampden | D182: 120
B183: Hampden Wilbraham | D183: 680
B184: Hampshire | D184: 683
B185: Hancock | D185: 121
B186: Hanover | D186: 122
B187: Hanson | D187: 123
B188: Hardwick | D188: 124
B189: Harvard | D189: 125
B190: Harwich | D190: 126
B191: Hatfield | D191: 127
B192: Haverhill | D192: 128
B193: Hawlemont | D193: 685
B194: Hawley | D194: 129
B195: Heath | D195: 130
B196: Hingham | D196: 131
B197: Hinsdale | D197: 132
B198: Holbrook | D198: 133
B199: Holden | D199: 134
B200: Holland | D200: 135
B201: Holliston | D201: 136
B202: Holyoke | D202: 137
B203: Hoosac Valley | D203: 603
B204: Hopedale | D204: 138
B205: Hopkinton | D205: 139
B206: Hubbardston | D206: 140
B207: Hudson | D207: 141
B208: Hull | D208: 142
... 257 more rows

Sheet localcont (hidden)
I1: c70fy26 | J1: c70fy26 | O1: c70fy26 | R1: c70fy26 | CM1: Lookup table for foundation budget scenarios | CN1: 1 | CO1: 2
CN2: 2 | CO2: 8
D3: 1 | E3: 2 | F3: 3 | G3: 4 | H3: 5 | I3: 6 | J3: 7 | K3: 8 | L3: 9 | M3: 10 | N3: 11 | O3: 12 | P3: 13 | Q3: 14 | R3: 15 | S3: 16 | T3: 17 | U3: 18 | V3: 19 | W3: 20 | X3: 21 | CN3: 3 | CO3: 14
G4: lea1755 | K4: found1755 | N4: prelcont1755 | O4: pynetmin | R4: pyenro | W4: enro1755 | CN4: 4 | CO4: 20
Z5: 1 | AF5: 2 | AL5: 3 | AR5: 4 | AX5: 5 | BD5: 6 | BJ5: 7 | BP5: 8 | BV5: 9 | CB5: 10 | CH5: 11 | CN5: 5 | CO5: 26
T6: =parameters!$C$6 -> 1 | Z6: 2.76% Inflation | CN6: 6 | CO6: 32
I7: =PYr -> FY26 | J7: =PYr -> FY26 | K7: =CYr -> FY27 | L7: =CYr -> FY27 | M7: =CYr -> FY27 | N7: =CYr -> FY27 | O7: =PYr -> FY26 | CN7: 7 | CO7: 38
I8: Foundation | J8: Share of Total | K8: Foundation | L8: Share of Total | M8: Townwide | N8: Net Minimum | O8: Net Minimum | P8: =PYr&" to "&CYr -> FY26 to FY27 | Q8: Percent | R8: =PYr -> FY26 | S8: =CYr -> FY27 | W8: final | X8: foundation | BG8: final | BH8: foundation | BM8: final | BN8: foundation | BS8: final | BT8: foundation | BY8: final | BZ8: foundation | CE8: final | CF8: foundation | CK8: final | CL8: foundation | CN8: 8 | CO8: 44
A9: TownLEA | B9: Town | C9: LEA | D9: Order | E9: Town | F9: City or Town | G9: LEA | H9: School District | I9: Budget26 | J9: Foundation26 | K9: Budget27 | L9: Foundation27 | M9: Contribution27 | N9: Contribution27 | O9: Contribution26 | P9: Change | Q9: Change | R9: Enrollment26 | S9: Enrollment27 | T9: Town | U9: LEA | V9: Order | W9: enrollment | X9: budget | Z9: Town | AA9: LEA | AB9: Order | AC9: Foundation Enrollment | AD9: Foundation Budget | AF9: Town | AG9: LEA | AH9: Order | AI9: Foundation Enrollment | AJ9: Foundation Budget | AL9: Town | AM9: LEA | AN9: Order | AO9: Foundation Enrollment | AP9: Foundation Budget | AR9: Town | AS9: LEA | AT9: Order | AU9: Foundation Enrollment | AV9: Foundation Budget | AX9: Town | AY9: LEA | AZ9: Order | BA9: Foundation Enrollment | BB9: Foundation Budget | BD9: Town | BE9: LEA | BF9: Order | BG9: enrollment | BH9: budget | BJ9: Town | BK9: LEA | BL9: Order | BM9: Foundation Enrollment | BN9: Foundation Budget | BP9: Town | BQ9: LEA | BR9: Order | BS9: enrollment | BT9: budget | BV9: Town | BW9: LEA | BX9: Order | BY9: enrollment | BZ9: budget | CB9: Town | CC9: LEA | CD9: Order | CE9: enrollment | CF9: budget | CH9: Town | CI9: LEA | CJ9: Order | CK9: enrollment | CL9: budget | CN9: 9 | CO9: 50
A10: =B10&C10 -> 00010001 | B10: 0001 | C10: 0001 | D10: 1 | E10: 1 | F10: Abington | G10: 1 | H10: Abington | I10: 33501030.56 | J10: 0.9368844606 | K10: =X10 -> 34347724.26 | L10: =IF(K14>0, K10/K14, 0) -> 0.9435898943 | N10: =ROUND(M14*L10,0) -> 19908440 | O10: 18800612 | P10: =N10-O10 -> 1107828 | Q10: =IF(O10>0,P10*100/O10,IF(P10>0,100,0)) -> 5.892510308 | R10: 2200 | S10: =W10 -> 2199 | T10: =VLOOKUP($D10, foundoptions, VLOOKUP($T$6, foundoptcell, 2, FALSE), FALSE) -> 1 | U10: =VLOOKUP($D10, foundoptions, VLOOKUP($T$6, foundoptcell, 2, FALSE)+1, FALSE) -> 1 | V10: =VLOOKUP($D10, foundoptions, VLOOKUP($T$6, foundoptcell, 2, FALSE)+2, FALSE) -> 1 | W10: =VLOOKUP($D10, foundoptions, VLOOKUP($T$6, foundoptcell, 2, FALSE)+3, FALSE) -> 2199 | X10: =VLOOKUP($D10, foundoptions, VLOOKUP($T$6, foundoptcell, 2, FALSE)+4, FALSE) -> 34347724.26 | Y10: =D10 -> 1 | Z10: 1 | AA10: 1 | AB10: 1 | AC10: 2199 | AD10: 34347724.26 | CN10: 10 | CO10: 56
A11: 00010873 | B11: 0001 | C11: 0873 | D11: 2 | E11: 1 | F11: Abington | G11: 873 | H11: South Shore | I11: 2256879.8 | J11: 0.0631155394 | K11: =X11 -> 2053390.744 | L11: =IF(K14>0, K11/K14, 0) -> 0.05641010568 | N11: =ROUND(M14*L11,0) -> 1190175 | O11: 1266550 | P11: =N11-O11 -> -76375 | Q11: -6.030160673 | R11: 105 | S11: =W11 -> 94 | T11: =VLOOKUP($D11, foundoptions, VLOOKUP($T$6, foundoptcell, 2, FALSE), FALSE) -> 1 | U11: 873 | V11: 2 | W11: 94 | X11: 2053390.744 | Y11: =D11 -> 2 | Z11: 1 | AA11: 873 | AB11: 2 | AC11: 94 | AD11: 2053390.744 | CN11: 11 | CO11: 62
A12: 00010998 | B12: 0001 | C12: 0998 | D12: 3 | E12: 1 | G12: 998 | I12: 0 | J12: 0 | K12: =X12 -> 0 | L12: =IF(K14>0, K12/K14, 0) -> 0 | N12: =ROUND(M14*L12,0) -> 0 | O12: 0 | P12: =N12-O12 -> 0 | Q12: 0 | R12: 0 | S12: 0 | T12: 1 | U12: 998 | V12: 3 | W12: 0 | X12: 0 | Y12: 3 | Z12: 1 | AA12: 998 | AB12: 3 | AC12: 0 | AD12: 0
A13: 00010998 | B13: 0001 | C13: 0998 | D13: 4 | E13: 1 | G13: 998 | I13: 0 | J13: 0 | K13: =X13 -> 0 | L13: =IF(K14>0, K13/K14, 0) -> 0 | N13: =ROUND(M14*L13,0) -> 0 | O13: 0 | P13: =N13-O13 -> 0 | Q13: 0 | R13: 0 | S13: 0 | T13: 1 | U13: 998 | V13: 4 | W13: 0 | X13: 0 | Y13: 4 | Z13: 1 | AA13: 998 | AB13: 4 | AC13: 0 | AD13: 0
A14: 00010999 | B14: 0001 | C14: 0999 | D14: 5 | E14: 1 | F14: Abington | G14: 999 | H14: Total | I14: 35757910.36 | J14: 1 | K14: =SUM(K10:K13) -> 36401115 | L14: =SUM(L10:L13) -> 1 | M14: =VLOOKUP(E14,town351,24) -> 21098615 | N14: =SUM(N10:N13) -> 21098615 | O14: 20067162 | P14: =SUM(P10:P13) -> 1031453 | Q14: 5.140004351 | R14: 2305 | S14: 2293 | T14: 1 | U14: 999 | V14: 5 | W14: 2293 | X14: 36401115 | Y14: 5 | Z14: 1 | AA14: 999 | AB14: 5 | AC14: 2293 | AD14: 36401115
A15: 00020002 | B15: 0002 | C15: 0002 | D15: 6 | E15: 2 | F15: Acton | G15: 2 | H15: Acton | I15: 0 | J15: 0 | K15: =X15 -> 0 | L15: =IF(K19>0, K15/K19, 0) -> 0 | N15: =ROUND(M19*L15,0) -> 0 | O15: 0 | P15: =N15-O15 -> 0 | Q15: 0 | R15: 0 | S15: 0 | T15: 2 | U15: 2 | V15: 6 | W15: 0 | X15: 0 | Y15: 6 | Z15: 2 | AA15: 2 | AB15: 6 | AC15: 0 | AD15: 0
A16: 00020600 | B16: 0002 | C16: 0600 | D16: 7 | E16: 2 | F16: Acton | G16: 600 | H16: Acton Boxborough | I16: 56088694.26 | J16: 0.9681678326 | K16: 57509134.07 | L16: =IF(K19>0, K16/K19, 0) -> 0.9728173281 | N16: =ROUND(M19*L16,0) -> 47303894 | O16: 45393703 | P16: =N16-O16 -> 1910191 | Q16: 4.208052822 | R16: 4082.22284 | S16: 4002.968162 | T16: 2 | U16: 600 | V16: 7 | W16: 4002.968162 | X16: 57509134.07 | Y16: 7 | Z16: 2 | AA16: 600 | AB16: 7 | AC16: 4002.968162 | AD16: 57509134.07
A17: 00020830 | B17: 0002 | C17: 0830 | D17: 8 | E17: 2 | F17: Acton | G17: 830 | H17: Minuteman | I17: 1844127.27 | J17: 0.03183216735 | K17: 1606932.647 | L17: =IF(K19>0, K17/K19, 0) -> 0.02718267192 | N17: =ROUND(M19*L17,0) -> 1321776 | O17: 1492489 | P17: =N17-O17 -> -170713 | Q17: -11.43814125 | R17: 85 | S17: 71 | T17: 2 | U17: 830 | V17: 8 | W17: 71 | X17: 1606932.647 | Y17: 8 | Z17: 2 | AA17: 830 | AB17: 8 | AC17: 71 | AD17: 1606932.647
A18: 00020998 | B18: 0002 | C18: 0998 | D18: 9 | E18: 2 | G18: 998 | I18: 0 | J18: 0 | K18: 0 | L18: =IF(K19>0, K18/K19, 0) -> 0 | N18: =ROUND(M19*L18,0) -> 0 | O18: 0 | P18: =N18-O18 -> 0 | Q18: 0 | R18: 0 | S18: 0 | T18: 2 | U18: 998 | V18: 9 | W18: 0 | X18: 0 | Y18: 9 | Z18: 2 | AA18: 998 | AB18: 9 | AC18: 0 | AD18: 0
A19: 00020999 | B19: 0002 | C19: 0999 | D19: 10 | E19: 2 | F19: Acton | G19: 999 | H19: Total | I19: 57932821.53 | J19: 1 | K19: =SUM(K15:K18) -> 59116066.72 | L19: =SUM(L15:L18) -> 1 | M19: =VLOOKUP(E19,town351,24) -> 48625670 | N19: =SUM(N15:N18) -> 48625670 | O19: 46886192 | P19: =SUM(P15:P18) -> 1739478 | Q19: =IF(O19>0,P19*100/O19,IF(P19>0,100,0)) -> 3.71000059 | R19: 4167.22284 | S19: 4073.968162 | T19: 2 | U19: 999 | V19: 10 | W19: 4073.968162 | X19: 59116066.72 | Y19: 10 | Z19: 2 | AA19: 999 | AB19: 10 | AC19: 4073.968162 | AD19: 59116066.72
A20: 00030003 | B20: 0003 | C20: 0003 | D20: 11 | E20: 3 | F20: Acushnet | G20: 3 | H20: Acushnet | I20: 15639642.75 | J20: 0.781461807 | K20: =X20 -> 15971692.03 | L20: =IF(K24>0, K20/K24, 0) -> 0.7667979207 | N20: =ROUND(M24*L20,0) -> 9654882 | O20: 9288698 | P20: =N20-O20 -> 366184 | Q20: 3.942253263 | R20: 1131 | S20: 1118 | T20: 3 | U20: 3 | V20: 11 | W20: 1118 | X20: 15971692.03 | Y20: 11 | Z20: 3 | AA20: 3 | AB20: 11 | AC20: 1118 | AD20: 15971692.03
A21: 00030855 | B21: 0003 | C21: 0855 | D21: 12 | E21: 3 | F21: Acushnet | G21: 855 | H21: Old Colony | I21: 3929419.546 | J21: 0.1963402456 | K21: 4353163.641 | L21: =IF(K24>0, K21/K24, 0) -> 0.208994565 | N21: =ROUND(M24*L21,0) -> 2631486 | O21: 2333761 | P21: =N21-O21 -> 297725 | Q21: 12.75730463 | R21: 194 | S21: 207 | T21: 3 | U21: 855 | V21: 12 | W21: 207 | X21: 4353163.641 | Y21: 12 | Z21: 3 | AA21: 855 | AB21: 12 | AC21: 207 | AD21: 4353163.641
A22: 00030910 | B22: 0003 | C22: 0910 | D22: 13 | E22: 3 | F22: Acushnet | G22: 910 | H22: Bristol County | I22: 444254.5537 | J22: 0.02219794735 | K22: 504220.1496 | L22: =IF(K24>0, K22/K24, 0) -> 0.02420751424 | N22: =ROUND(M24*L22,0) -> 304801 | O22: 263852 | P22: =N22-O22 -> 40949 | Q22: 15.51968528 | R22: 21 | S22: 23 | T22: 3 | U22: 910 | V22: 13 | W22: 23 | X22: 504220.1496 | Y22: 13 | Z22: 3 | AA22: 910 | AB22: 13 | AC22: 23 | AD22: 504220.1496
A23: 00030998 | B23: 0003 | C23: 0998 | D23: 14 | E23: 3 | G23: 998 | I23: 0 | J23: 0 | K23: 0 | L23: =IF(K24>0, K23/K24, 0) -> 0 | N23: =ROUND(M24*L23,0) -> 0 | O23: 0 | P23: =N23-O23 -> 0 | Q23: 0 | R23: 0 | S23: 0 | T23: 3 | U23: 998 | V23: 14 | W23: 0 | X23: 0 | Y23: 14 | Z23: 3 | AA23: 998 | AB23: 14 | AC23: 0 | AD23: 0
A24: 00030999 | B24: 0003 | C24: 0999 | D24: 15 | E24: 3 | F24: Acushnet | G24: 999 | H24: Total | I24: 20013316.85 | J24: 1 | K24: =SUM(K20:K23) -> 20829075.82 | L24: =SUM(L20:L23) -> 1 | M24: =VLOOKUP(E24,town351,24) -> 12591169 | N24: =SUM(N20:N23) -> 12591169 | O24: 11886311 | P24: =SUM(P20:P23) -> 704858 | Q24: 5.929997962 | R24: 1346 | S24: 1348 | T24: 3 | U24: 999 | V24: 15 | W24: 1348 | X24: 20829075.82 | Y24: 15 | Z24: 3 | AA24: 999 | AB24: 15 | AC24: 1348 | AD24: 20829075.82
A25: 00040004 | B25: 0004 | C25: 0004 | D25: 16 | E25: 4 | F25: Adams | G25: 4 | H25: Adams | I25: 0 | J25: 0 | K25: =X25 -> 18046.96 | L25: =IF(K29>0, K25/K29, 0) -> 0.001026033768 | N25: =ROUND(M29*L25,0) -> 5654 | O25: 0 | P25: =N25-O25 -> 5654 | Q25: 100 | R25: 0 | S25: 1 | T25: 4 | U25: 4 | V25: 16 | W25: 1 | X25: 18046.96 | Y25: 16 | Z25: 4 | AA25: 4 | AB25: 16 | AC25: 1 | AD25: 18046.96
A26: 00040603 | B26: 0004 | C26: 0603 | D26: 17 | E26: 4 | F26: Adams | G26: 603 | H26: Hoosac Valley | I26: 14076200.33 | J26: 0.8240066003 | K26: 14354337.04 | L26: =IF(K29>0, K26/K29, 0) -> 0.8160950386 | N26: =ROUND(M29*L26,0) -> 4497272 | O26: 4301696 | P26: =N26-O26 -> 195576 | Q26: 4.546485851 | R26: 847.358171 | S26: 815.2727273 | T26: 4 | U26: 603 | V26: 17 | W26: 815.2727273 | X26: 14354337.04 | Y26: 17 | Z26: 4 | AA26: 603 | AB26: 17 | AC26: 815.2727273 | AD26: 14354337.04
A27: 00040851 | B27: 0004 | C27: 0851 | D27: 18 | E27: 4 | F27: Adams | G27: 851 | H27: Northern Berkshire | I27: 3006430.229 | J27: 0.1759933997 | K27: 3216666.737 | L27: =IF(K29>0, K27/K29, 0) -> 0.1828789276 | N27: =ROUND(M29*L27,0) -> 1007795 | O27: 918767 | P27: =N27-O27 -> 89028 | Q27: 9.689943152 | R27: 132 | S27: 136 | T27: 4 | U27: 851 | V27: 18 | W27: 136 | X27: 3216666.737 | Y27: 18 | Z27: 4 | AA27: 851 | AB27: 18 | AC27: 136 | AD27: 3216666.737
A28: 00040998 | B28: 0004 | C28: 0998 | D28: 19 | E28: 4 | G28: 998 | I28: 0 | J28: 0 | K28: 0 | L28: =IF(K29>0, K28/K29, 0) -> 0 | N28: =ROUND(M29*L28,0) -> 0 | O28: 0 | P28: =N28-O28 -> 0 | Q28: 0 | R28: 0 | S28: 0 | T28: 4 | U28: 998 | V28: 19 | W28: 0 | X28: 0 | Y28: 19 | Z28: 4 | AA28: 998 | AB28: 19 | AC28: 0 | AD28: 0
A29: 00040999 | B29: 0004 | C29: 0999 | D29: 20 | E29: 4 | F29: Adams | G29: 999 | H29: Total | I29: 17082630.56 | J29: 1 | K29: =SUM(K25:K28) -> 17589050.74 | L29: =SUM(L25:L28) -> 1 | M29: =VLOOKUP(E29,town351,24) -> 5510721 | N29: =SUM(N25:N28) -> 5510721 | O29: 5220463 | P29: =SUM(P25:P28) -> 290258 | Q29: 5.560004927 | R29: 979.358171 | S29: 952.2727273 | T29: 4 | U29: 999 | V29: 20 | W29: 952.2727273 | X29: 17589050.74 | Y29: 20 | Z29: 4 | AA29: 999 | AB29: 20 | AC29: 952.2727273 | AD29: 17589050.74
A30: 00050005 | B30: 0005 | C30: 0005 | D30: 21 | E30: 5 | F30: Agawam | G30: 5 | H30: Agawam | I30: 55345476.31 | J30: 1 | K30: =X30 -> 57507213.81 | L30: =IF(K34>0, K30/K34, 0) -> 1 | N30: =ROUND(M34*L30,0) -> 29862697 | O30: 28135196 | P30: =N30-O30 -> 1727501 | Q30: 6.139999878 | R30: 3463 | S30: 3437 | T30: 5 | U30: 5 | V30: 21 | W30: 3437 | X30: 57507213.81 | Y30: 21 | Z30: 5 | AA30: 5 | AB30: 21 | AC30: 3437 | AD30: 57507213.81
A31: 00050998 | B31: 0005 | C31: 0998 | D31: 22 | E31: 5 | G31: 998 | I31: 0 | J31: 0 | K31: 0 | L31: =IF(K34>0, K31/K34, 0) -> 0 | N31: =ROUND(M34*L31,0) -> 0 | O31: 0 | P31: =N31-O31 -> 0 | Q31: 0 | R31: 0 | S31: 0 | T31: 5 | U31: 998 | V31: 22 | W31: 0 | X31: 0 | Y31: 22 | Z31: 5 | AA31: 998 | AB31: 22 | AC31: 0 | AD31: 0
A32: 00050998 | B32: 0005 | C32: 0998 | D32: 23 | E32: 5 | G32: 998 | I32: 0 | J32: 0 | K32: 0 | L32: =IF(K34>0, K32/K34, 0) -> 0 | N32: =ROUND(M34*L32,0) -> 0 | O32: 0 | P32: =N32-O32 -> 0 | Q32: 0 | R32: 0 | S32: 0 | T32: 5 | U32: 998 | V32: 23 | W32: 0 | X32: 0 | Y32: 23 | Z32: 5 | AA32: 998 | AB32: 23 | AC32: 0 | AD32: 0
A33: 00050998 | B33: 0005 | C33: 0998 | D33: 24 | E33: 5 | G33: 998 | I33: 0 | J33: 0 | K33: 0 | L33: =IF(K34>0, K33/K34, 0) -> 0 | N33: =ROUND(M34*L33,0) -> 0 | O33: 0 | P33: =N33-O33 -> 0 | Q33: 0 | R33: 0 | S33: 0 | T33: 5 | U33: 998 | V33: 24 | W33: 0 | X33: 0 | Y33: 24 | Z33: 5 | AA33: 998 | AB33: 24 | AC33: 0 | AD33: 0
A34: 00050999 | B34: 0005 | C34: 0999 | D34: 25 | E34: 5 | F34: Agawam | G34: 999 | H34: Total | I34: 55345476.31 | J34: 1 | K34: =SUM(K30:K33) -> 57507213.81 | L34: =SUM(L30:L33) -> 1 | M34: =VLOOKUP(E34,town351,24) -> 29862697 | N34: =SUM(N30:N33) -> 29862697 | O34: 28135196 | P34: =SUM(P30:P33) -> 1727501 | Q34: 6.139999878 | R34: 3463 | S34: 3437 | T34: 5 | U34: 999 | V34: 25 | W34: 3437 | X34: 57507213.81 | Y34: 25 | Z34: 5 | AA34: 999 | AB34: 25 | AC34: 3437 | AD34: 57507213.81
A35: 00060006 | B35: 0006 | C35: 0006 | D35: 26 | E35: 6 | F35: Alford | G35: 6 | H35: Alford | I35: 0 | J35: 0 | K35: =X35 -> 0 | L35: =IF(K39>0, K35/K39, 0) -> 0 | N35: =ROUND(M39*L35,0) -> 0 | O35: 0 | P35: =N35-O35 -> 0 | Q35: 0 | R35: 0 | S35: 0 | T35: 6 | U35: 6 | V35: 26 | W35: 0 | X35: 0 | Y35: 26 | Z35: 6 | AA35: 6 | AB35: 26 | AC35: 0 | AD35: 0
A36: 00060765 | B36: 0006 | C36: 0765 | D36: 27 | E36: 6 | F36: Alford | G36: 765 | H36: Southern Berkshire | I36: 307313.0163 | J36: 1 | K36: 290012.7282 | L36: =IF(K39>0, K36/K39, 0) -> 1 | N36: =ROUND(M39*L36,0) -> 239261 | O36: 253533 | P36: =N36-O36 -> -14272 | Q36: -5.629247475 | R36: 20.3498452 | S36: 18.30414013 | T36: 6 | U36: 765 | V36: 27 | W36: 18.30414013 | X36: 290012.7282 | Y36: 27 | Z36: 6 | AA36: 765 | AB36: 27 | AC36: 18.30414013 | AD36: 290012.7282
A37: 00060998 | B37: 0006 | C37: 0998 | D37: 28 | E37: 6 | G37: 998 | I37: 0 | J37: 0 | K37: 0 | L37: =IF(K39>0, K37/K39, 0) -> 0 | N37: =ROUND(M39*L37,0) -> 0 | O37: 0 | P37: =N37-O37 -> 0 | Q37: 0 | R37: 0 | S37: 0 | T37: 6 | U37: 998 | V37: 28 | W37: 0 | X37: 0 | Y37: 28 | Z37: 6 | AA37: 998 | AB37: 28 | AC37: 0 | AD37: 0
A38: 00060998 | B38: 0006 | C38: 0998 | D38: 29 | E38: 6 | G38: 998 | I38: 0 | J38: 0 | K38: 0 | L38: =IF(K39>0, K38/K39, 0) -> 0 | N38: =ROUND(M39*L38,0) -> 0 | O38: 0 | P38: =N38-O38 -> 0 | Q38: 0 | R38: 0 | S38: 0 | T38: 6 | U38: 998 | V38: 29 | W38: 0 | X38: 0 | Y38: 29 | Z38: 6 | AA38: 998 | AB38: 29 | AC38: 0 | AD38: 0
A39: 00060999 | B39: 0006 | C39: 0999 | D39: 30 | E39: 6 | F39: Alford | G39: 999 | H39: Total | I39: 307313.0163 | J39: 1 | K39: =SUM(K35:K38) -> 290012.7282 | L39: =SUM(L35:L38) -> 1 | M39: =VLOOKUP(E39,town351,24) -> 239261 | N39: =SUM(N35:N38) -> 239261 | O39: 253533 | P39: =SUM(P35:P38) -> -14272 | Q39: -5.629247475 | R39: 20.3498452 | S39: 18.30414013 | T39: 6 | U39: 999 | V39: 30 | W39: 18.30414013 | X39: 290012.7282 | Y39: 30 | Z39: 6 | AA39: 999 | AB39: 30 | AC39: 18.30414013 | AD39: 290012.7282
A40: 00070007 | B40: 0007 | C40: 0007 | D40: 31 | E40: 7 | F40: Amesbury | G40: 7 | H40: Amesbury | I40: 28109289.03 | J40: 0.9160759897 | K40: =X40 -> 29502412.49 | L40: =IF(K44>0, K40/K44, 0) -> 0.9238767217 | N40: =ROUND(M44*L40,0) -> 21809838 | O40: 20286760 | P40: =N40-O40 -> 1523078 | Q40: 7.507743967 | R40: 1919 | S40: 1953 | T40: 7 | U40: 7 | V40: 31 | W40: 1953 | X40: 29502412.49 | Y40: 31 | Z40: 7 | AA40: 7 | AB40: 31 | AC40: 1953 | AD40: 29502412.49
A41: 00070885 | B41: 0007 | C41: 0885 | D41: 32 | E41: 7 | F41: Amesbury | G41: 885 | H41: Whittier | I41: 2575162.201 | J41: 0.0839240103 | K41: 2430865.833 | L41: =IF(K44>0, K41/K44, 0) -> 0.07612327831 | N41: =ROUND(M44*L41,0) -> 1797032 | O41: 1858521 | P41: =N41-O41 -> -61489 | Q41: -3.308490999 | R41: 117 | S41: 108 | T41: 7 | U41: 885 | V41: 32 | W41: 108 | X41: 2430865.833 | Y41: 32 | Z41: 7 | AA41: 885 | AB41: 32 | AC41: 108 | AD41: 2430865.833
A42: 00070998 | B42: 0007 | C42: 0998 | D42: 33 | E42: 7 | G42: 998 | I42: 0 | J42: 0 | K42: 0 | L42: =IF(K44>0, K42/K44, 0) -> 0 | N42: =ROUND(M44*L42,0) -> 0 | O42: 0 | P42: =N42-O42 -> 0 | Q42: 0 | R42: 0 | S42: 0 | T42: 7 | U42: 998 | V42: 33 | W42: 0 | X42: 0 | Y42: 33 | Z42: 7 | AA42: 998 | AB42: 33 | AC42: 0 | AD42: 0
A43: 00070998 | B43: 0007 | C43: 0998 | D43: 34 | E43: 7 | G43: 998 | I43: 0 | J43: 0 | K43: 0 | L43: =IF(K44>0, K43/K44, 0) -> 0 | N43: =ROUND(M44*L43,0) -> 0 | O43: 0 | P43: =N43-O43 -> 0 | Q43: 0 | R43: 0 | S43: 0 | T43: 7 | U43: 998 | V43: 34 | W43: 0 | X43: 0 | Y43: 34 | Z43: 7 | AA43: 998 | AB43: 34 | AC43: 0 | AD43: 0
A44: 00070999 | B44: 0007 | C44: 0999 | D44: 35 | E44: 7 | F44: Amesbury | G44: 999 | H44: Total | I44: 30684451.23 | J44: 1 | K44: =SUM(K40:K43) -> 31933278.32 | L44: =SUM(L40:L43) -> 1 | M44: =VLOOKUP(E44,town351,24) -> 23606870 | N44: =SUM(N40:N43) -> 23606870 | O44: 22145281 | P44: =SUM(P40:P43) -> 1461589 | Q44: 6.60000205 | R44: 2036 | S44: 2061 | T44: 7 | U44: 999 | V44: 35 | W44: 2061 | X44: 31933278.32 | Y44: 35 | Z44: 7 | AA44: 999 | AB44: 35 | AC44: 2061 | AD44: 31933278.32
A45: 00080008 | B45: 0008 | C45: 0008 | D45: 36 | E45: 8 | F45: Amherst | G45: 8 | H45: Amherst | I45: 14981907.18 | J45: 0.5013028915 | K45: =X45 -> 15814005.69 | L45: =IF(K49>0, K45/K49, 0) -> 0.4978909513 | N45: =ROUND(M49*L45,0) -> 12488880 | O45: 11896370 | P45: =N45-O45 -> 592510 | Q45: 4.980594921 | R45: 1037 | S45: 1033 | T45: 8 | U45: 8 | V45: 36 | W45: 1033 | X45: 15814005.69 | Y45: 36 | Z45: 8 | AA45: 8 | AB45: 36 | AC45: 1033 | AD45: 15814005.69
A46: 00080605 | B46: 0008 | C46: 0605 | D46: 37 | E46: 8 | F46: Amherst | G46: 605 | H46: Amherst Pelham | I46: 14904030.91 | J46: 0.4986971085 | K46: 15947980.84 | L46: =IF(K49>0, K46/K49, 0) -> 0.5021090487 | N46: =ROUND(M49*L46,0) -> 12594684 | O46: 11834533 | P46: =N46-O46 -> 760151 | Q46: 6.423160086 | R46: 987.5813954 | S46: 1009 | T46: 8 | U46: 605 | V46: 37 | W46: 1009 | X46: 15947980.84 | Y46: 37 | Z46: 8 | AA46: 605 | AB46: 37 | AC46: 1009 | AD46: 15947980.84
A47: 00080998 | B47: 0008 | C47: 0998 | D47: 38 | E47: 8 | G47: 998 | I47: 0 | J47: 0 | K47: 0 | L47: =IF(K49>0, K47/K49, 0) -> 0 | N47: =ROUND(M49*L47,0) -> 0 | O47: 0 | P47: =N47-O47 -> 0 | Q47: 0 | R47: 0 | S47: 0 | T47: 8 | U47: 998 | V47: 38 | W47: 0 | X47: 0 | Y47: 38 | Z47: 8 | AA47: 998 | AB47: 38 | AC47: 0 | AD47: 0
A48: 00080998 | B48: 0008 | C48: 0998 | D48: 39 | E48: 8 | G48: 998 | I48: 0 | J48: 0 | K48: 0 | L48: =IF(K49>0, K48/K49, 0) -> 0 | N48: =ROUND(M49*L48,0) -> 0 | O48: 0 | P48: =N48-O48 -> 0 | Q48: 0 | R48: 0 | S48: 0 | T48: 8 | U48: 998 | V48: 39 | W48: 0 | X48: 0 | Y48: 39 | Z48: 8 | AA48: 998 | AB48: 39 | AC48: 0 | AD48: 0
A49: 00080999 | B49: 0008 | C49: 0999 | D49: 40 | E49: 8 | F49: Amherst | G49: 999 | H49: Total | I49: 29885938.09 | J49: 1 | K49: =SUM(K45:K48) -> 31761986.53 | L49: =SUM(L45:L48) -> 1 | M49: =VLOOKUP(E49,town351,24) -> 25083564 | N49: =SUM(N45:N48) -> 25083564 | O49: 23730903 | P49: =SUM(P45:P48) -> 1352661 | Q49: 5.699998015 | R49: 2024.581395 | S49: 2042 | T49: 8 | U49: 999 | V49: 40 | W49: 2042 | X49: 31761986.53 | Y49: 40 | Z49: 8 | AA49: 999 | AB49: 40 | AC49: 2042 | AD49: 31761986.53
A50: 00090009 | B50: 0009 | C50: 0009 | D50: 41 | E50: 9 | F50: Andover | G50: 9 | H50: Andover | I50: 75901319.69 | J50: 0.9830188447 | K50: =X50 -> 77328687.06 | L50: =IF(K54>0, K50/K54, 0) -> 0.9827849229 | N50: =ROUND(M54*L50,0) -> 63796166 | O50: 62087646 | P50: =N50-O50 -> 1708520 | Q50: 2.751787368 | R50: 5464 | S50: 5370 | T50: 9 | U50: 9 | V50: 41 | W50: 5370 | X50: 77328687.06 | Y50: 41 | Z50: 9 | AA50: 9 | AB50: 41 | AC50: 5370 | AD50: 77328687.06
A51: 00090823 | B51: 0009 | C51: 0823 | D51: 42 | E51: 9 | F51: Andover | G51: 823 | H51: Greater Lawrence | I51: 1311157.057 | J51: 0.01698115528 | K51: 1354537.78 | L51: =IF(K54>0, K51/K54, 0) -> 0.01721507707 | N51: =ROUND(M54*L51,0) -> 1117494 | O51: 1072533 | P51: =N51-O51 -> 44961 | Q51: 4.192038846 | R51: 48 | S51: 49.00000001 | T51: 9 | U51: 823 | V51: 42 | W51: 49.00000001 | X51: 1354537.78 | Y51: 42 | Z51: 9 | AA51: 823 | AB51: 42 | AC51: 49.00000001 | AD51: 1354537.78
A52: 00090998 | B52: 0009 | C52: 0998 | D52: 43 | E52: 9 | G52: 998 | I52: 0 | J52: 0 | K52: 0 | L52: =IF(K54>0, K52/K54, 0) -> 0 | N52: =ROUND(M54*L52,0) -> 0 | O52: 0 | P52: =N52-O52 -> 0 | Q52: 0 | R52: 0 | S52: 0 | T52: 9 | U52: 998 | V52: 43 | W52: 0 | X52: 0 | Y52: 43 | Z52: 9 | AA52: 998 | AB52: 43 | AC52: 0 | AD52: 0
A53: 00090998 | B53: 0009 | C53: 0998 | D53: 44 | E53: 9 | G53: 998 | I53: 0 | J53: 0 | K53: 0 | L53: =IF(K54>0, K53/K54, 0) -> 0 | N53: =ROUND(M54*L53,0) -> 0 | O53: 0 | P53: =N53-O53 -> 0 | Q53: 0 | R53: 0 | S53: 0 | T53: 9 | U53: 998 | V53: 44 | W53: 0 | X53: 0 | Y53: 44 | Z53: 9 | AA53: 998 | AB53: 44 | AC53: 0 | AD53: 0
A54: 00090999 | B54: 0009 | C54: 0999 | D54: 45 | E54: 9 | F54: Andover | G54: 999 | H54: Total | I54: 77212476.74 | J54: 1 | K54: =SUM(K50:K53) -> 78683224.84 | L54: =SUM(L50:L53) -> 1 | M54: =VLOOKUP(E54,town351,24) -> 64913660 | N54: =SUM(N50:N53) -> 64913660 | O54: 63160179 | P54: =SUM(P50:P53) -> 1753481 | Q54: 2.776244507 | R54: 5512 | S54: 5419 | T54: 9 | U54: 999 | V54: 45 | W54: 5419 | X54: 78683224.84 | Y54: 45 | Z54: 9 | AA54: 999 | AB54: 45 | AC54: 5419 | AD54: 78683224.84
A55: 00100010 | B55: 0010 | C55: 0010 | D55: 46 | E55: 10 | F55: Arlington | G55: 10 | H55: Arlington | I55: 81515548.27 | J55: 0.9496996656 | K55: =X55 -> 85724971.74 | L55: =IF(K59>0, K55/K59, 0) -> 0.9522329123 | N55: =ROUND(M59*L55,0) -> 65397888 | O55: 61905761 | P55: =N55-O55 -> 3492127 | Q55: 5.641037189 | R55: 6114 | S55: 6123 | T55: 10 | U55: 10 | V55: 46 | W55: 6123 | X55: 85724971.74 | Y55: 46 | Z55: 10 | AA55: 10 | AB55: 46 | AC55: 6123 | AD55: 85724971.74
A56: 00100830 | B56: 0010 | C56: 0830 | D56: 47 | E56: 10 | F56: Arlington | G56: 830 | H56: Minuteman | I56: 4317427.374 | J56: 0.05030033436 | K56: 4300242.294 | L56: =IF(K59>0, K56/K59, 0) -> 0.0477670877 | N56: =ROUND(M59*L56,0) -> 3280570 | O56: 3278805 | P56: =N56-O56 -> 1765 | Q56: 0.05383058767 | R56: 199 | S56: 190 | T56: 10 | U56: 830 | V56: 47 | W56: 190 | X56: 4300242.294 | Y56: 47 | Z56: 10 | AA56: 830 | AB56: 47 | AC56: 190 | AD56: 4300242.294
A57: 00100998 | B57: 0010 | C57: 0998 | D57: 48 | E57: 10 | G57: 998 | I57: 0 | J57: 0 | K57: 0 | L57: =IF(K59>0, K57/K59, 0) -> 0 | N57: =ROUND(M59*L57,0) -> 0 | O57: 0 | P57: =N57-O57 -> 0 | Q57: 0 | R57: 0 | S57: 0 | T57: 10 | U57: 998 | V57: 48 | W57: 0 | X57: 0 | Y57: 48 | Z57: 10 | AA57: 998 | AB57: 48 | AC57: 0 | AD57: 0
A58: 00100998 | B58: 0010 | C58: 0998 | D58: 49 | E58: 10 | G58: 998 | I58: 0 | J58: 0 | K58: 0 | L58: =IF(K59>0, K58/K59, 0) -> 0 | N58: =ROUND(M59*L58,0) -> 0 | O58: 0 | P58: =N58-O58 -> 0 | Q58: 0 | R58: 0 | S58: 0 | T58: 10 | U58: 998 | V58: 49 | W58: 0 | X58: 0 | Y58: 49 | Z58: 10 | AA58: 998 | AB58: 49 | AC58: 0 | AD58: 0
A59: 00100999 | B59: 0010 | C59: 0999 | D59: 50 | E59: 10 | F59: Arlington | G59: 999 | H59: Total | I59: 85832975.65 | J59: 1 | K59: =SUM(K55:K58) -> 90025214.04 | L59: =SUM(L55:L58) -> 1 | M59: =VLOOKUP(E59,town351,24) -> 68678458 | N59: =SUM(N55:N58) -> 68678458 | O59: 65184566 | P59: =SUM(P55:P58) -> 3493892 | Q59: 5.359998868 | R59: 6313 | S59: 6313 | T59: 10 | U59: 999 | V59: 50 | W59: 6313 | X59: 90025214.04 | Y59: 50 | Z59: 10 | AA59: 999 | AB59: 50 | AC59: 6313 | AD59: 90025214.04
A60: 00110011 | B60: 0011 | C60: 0011 | D60: 51 | E60: 11 | F60: Ashburnham | G60: 11 | H60: Ashburnham | I60: 0 | J60: 0 | K60: =X60 -> 0 | L60: =IF(K64>0, K60/K64, 0) -> 0 | N60: =ROUND(M64*L60,0) -> 0 | O60: 0 | P60: =N60-O60 -> 0 | Q60: 0 | R60: 0 | S60: 0 | T60: 11 | U60: 11 | V60: 51 | W60: 0 | X60: 0 | Y60: 51 | Z60: 11 | AA60: 11 | AB60: 51 | AC60: 0 | AD60: 0
A61: 00110610 | B61: 0011 | C61: 0610 | D61: 52 | E61: 11 | F61: Ashburnham | G61: 610 | H61: Ashburnham Westminster | I61: 13604805.48 | J61: 0.9107681447 | K61: 14044455.83 | L61: =IF(K64>0, K61/K64, 0) -> 0.9127778382 | N61: =ROUND(M64*L61,0) -> 6566149 | O61: 6245654 | P61: =N61-O61 -> 320495 | Q61: 5.131488232 | R61: 989.8699294 | S61: 982.1132075 | T61: 11 | U61: 610 | V61: 52 | W61: 982.1132075 | X61: 14044455.83 | Y61: 52 | Z61: 11 | AA61: 610 | AB61: 52 | AC61: 982.1132075 | AD61: 14044455.83
A62: 00110832 | B62: 0011 | C62: 0832 | D62: 53 | E62: 11 | F62: Ashburnham | G62: 832 | H62: Montachusett | I62: 1332921.052 | J62: 0.08923185527 | K62: 1342043.757 | L62: =IF(K64>0, K62/K64, 0) -> 0.08722216183 | N62: =ROUND(M64*L62,0) -> 627440 | O62: 611914 | P62: =N62-O62 -> 15526 | Q62: 2.537284651 | R62: 64 | S62: 62 | T62: 11 | U62: 832 | V62: 53 | W62: 62 | X62: 1342043.757 | Y62: 53 | Z62: 11 | AA62: 832 | AB62: 53 | AC62: 62 | AD62: 1342043.757
A63: 00110998 | B63: 0011 | C63: 0998 | D63: 54 | E63: 11 | G63: 998 | I63: 0 | J63: 0 | K63: 0 | L63: =IF(K64>0, K63/K64, 0) -> 0 | N63: =ROUND(M64*L63,0) -> 0 | O63: 0 | P63: =N63-O63 -> 0 | Q63: 0 | R63: 0 | S63: 0 | T63: 11 | U63: 998 | V63: 54 | W63: 0 | X63: 0 | Y63: 54 | Z63: 11 | AA63: 998 | AB63: 54 | AC63: 0 | AD63: 0
A64: 00110999 | B64: 0011 | C64: 0999 | D64: 55 | E64: 11 | F64: Ashburnham | G64: 999 | H64: Total | I64: 14937726.53 | J64: 1 | K64: =SUM(K60:K63) -> 15386499.59 | L64: =SUM(L60:L63) -> 1 | M64: =VLOOKUP(E64,town351,24) -> 7193589 | N64: =SUM(N60:N63) -> 7193589 | O64: 6857568 | P64: =SUM(P60:P63) -> 336021 | Q64: 4.90000245 | R64: 1053.869929 | S64: 1044.113208 | T64: 11 | U64: 999 | V64: 55 | W64: 1044.113208 | X64: 15386499.59 | Y64: 55 | Z64: 11 | AA64: 999 | AB64: 55 | AC64: 1044.113208 | AD64: 15386499.59
A65: 00120012 | B65: 0012 | C65: 0012 | D65: 56 | E65: 12 | F65: Ashby | G65: 12 | H65: Ashby | I65: 0 | J65: 0 | K65: =X65 -> 0 | L65: =IF(K69>0, K65/K69, 0) -> 0 | N65: =ROUND(M69*L65,0) -> 0 | O65: 0 | P65: =N65-O65 -> 0 | Q65: 0 | R65: 0 | S65: 0 | T65: 12 | U65: 12 | V65: 56 | W65: 0 | X65: 0 | Y65: 56 | Z65: 12 | AA65: 12 | AB65: 56 | AC65: 0 | AD65: 0
A66: 00120735 | B66: 0012 | C66: 0735 | D66: 57 | E66: 12 | F66: Ashby | G66: 735 | H66: North Middlesex | I66: 5465706.935 | J66: 0.8883003335 | K66: 5167873.484 | L66: =IF(K69>0, K66/K69, 0) -> 0.8785632621 | N66: =ROUND(M69*L66,0) -> 3041718 | O66: 2931213 | P66: =N66-O66 -> 110505 | Q66: 3.769940977 | R66: 389.2687459 | S66: 352.6644737 | T66: 12 | U66: 735 | V66: 57 | W66: 352.6644737 | X66: 5167873.484 | Y66: 57 | Z66: 12 | AA66: 735 | AB66: 57 | AC66: 352.6644737 | AD66: 5167873.484
A67: 00120832 | B67: 0012 | C67: 0832 | D67: 58 | E67: 12 | F67: Ashby | G67: 832 | H67: Montachusett | I67: 687287.4173 | J67: 0.1116996665 | K67: 714313.6126 | L67: =IF(K69>0, K67/K69, 0) -> 0.1214367379 | N67: =ROUND(M69*L67,0) -> 420432 | O67: 368587 | P67: =N67-O67 -> 51845 | Q67: 14.06587861 | R67: 32.99999999 | S67: 32.99999999 | T67: 12 | U67: 832 | V67: 58 | W67: 32.99999999 | X67: 714313.6126 | Y67: 58 | Z67: 12 | AA67: 832 | AB67: 58 | AC67: 32.99999999 | AD67: 714313.6126
A68: 00120998 | B68: 0012 | C68: 0998 | D68: 59 | E68: 12 | G68: 998 | I68: 0 | J68: 0 | K68: 0 | L68: =IF(K69>0, K68/K69, 0) -> 0 | N68: =ROUND(M69*L68,0) -> 0 | O68: 0 | P68: =N68-O68 -> 0 | Q68: 0 | R68: 0 | S68: 0 | T68: 12 | U68: 998 | V68: 59 | W68: 0 | X68: 0 | Y68: 59 | Z68: 12 | AA68: 998 | AB68: 59 | AC68: 0 | AD68: 0
A69: 00120999 | B69: 0012 | C69: 0999 | D69: 60 | E69: 12 | F69: Ashby | G69: 999 | H69: Total | I69: 6152994.353 | J69: 1 | K69: =SUM(K65:K68) -> 5882187.097 | L69: =SUM(L65:L68) -> 1 | M69: =VLOOKUP(E69,town351,24) -> 3462150 | N69: =SUM(N65:N68) -> 3462150 | O69: 3299800 | P69: =SUM(P65:P68) -> 162350 | Q69: 4.919995151 | R69: 422.2687458 | S69: 385.6644737 | T69: 12 | U69: 999 | V69: 60 | W69: 385.6644737 | X69: 5882187.097 | Y69: 60 | Z69: 12 | AA69: 999 | AB69: 60 | AC69: 385.6644737 | AD69: 5882187.097
A70: 00130013 | B70: 0013 | C70: 0013 | D70: 61 | E70: 13 | F70: Ashfield | G70: 13 | H70: Ashfield | I70: 240365.82 | J70: 0.09974518784 | K70: =X70 -> 321996.96 | L70: =IF(K74>0, K70/K74, 0) -> 0.1292025661 | N70: =ROUND(M74*L70,0) -> 252246 | O70: 182183 | P70: =N70-O70 -> 70063 | Q70: 38.45748506 | R70: 12 | S70: 16 | T70: 13 | U70: 13 | V70: 61 | W70: 16 | X70: 321996.96 | Y70: 61 | Z70: 13 | AA70: 13 | AB70: 61 | AC70: 16 | AD70: 321996.96
A71: 00130717 | B71: 0013 | C71: 0717 | D71: 62 | E71: 13 | F71: Ashfield | G71: 717 | H71: Mohawk Trail | I71: 2169432.84 | J71: 0.9002548122 | K71: 2170190.074 | L71: =IF(K74>0, K71/K74, 0) -> 0.8707974339 | N71: =ROUND(M74*L71,0) -> 1700087 | O71: 1644305 | P71: =N71-O71 -> 55782 | Q71: 3.392436318 | R71: 136.3636364 | S71: 131.7272727 | T71: 13 | U71: 717 | V71: 62 | W71: 131.7272727 | X71: 2170190.074 | Y71: 62 | Z71: 13 | AA71: 717 | AB71: 62 | AC71: 131.7272727 | AD71: 2170190.074
A72: 00130998 | B72: 0013 | C72: 0998 | D72: 63 | E72: 13 | G72: 998 | I72: 0 | J72: 0 | K72: 0 | L72: =IF(K74>0, K72/K74, 0) -> 0 | N72: =ROUND(M74*L72,0) -> 0 | O72: 0 | P72: =N72-O72 -> 0 | Q72: 0 | R72: 0 | S72: 0 | T72: 13 | U72: 998 | V72: 63 | W72: 0 | X72: 0 | Y72: 63 | Z72: 13 | AA72: 998 | AB72: 63 | AC72: 0 | AD72: 0
A73: 00130998 | B73: 0013 | C73: 0998 | D73: 64 | E73: 13 | G73: 998 | I73: 0 | J73: 0 | K73: 0 | L73: =IF(K74>0, K73/K74, 0) -> 0 | N73: =ROUND(M74*L73,0) -> 0 | O73: 0 | P73: =N73-O73 -> 0 | Q73: 0 | R73: 0 | S73: 0 | T73: 13 | U73: 998 | V73: 64 | W73: 0 | X73: 0 | Y73: 64 | Z73: 13 | AA73: 998 | AB73: 64 | AC73: 0 | AD73: 0
A74: =B74&C74 -> 00130999 | B74: 0013 | C74: 0999 | D74: 65 | E74: 13 | F74: Ashfield | G74: 999 | H74: Total | I74: 2409798.66 | J74: 1 | K74: =SUM(K70:K73) -> 2492187.034 | L74: =SUM(L70:L73) -> 1 | M74: =VLOOKUP(E74,town351,24) -> 1952333 | N74: =SUM(N70:N73) -> 1952333 | O74: 1826488 | P74: =SUM(P70:P73) -> 125845 | Q74: 6.88999873 | R74: 148.3636364 | S74: 147.7272727 | T74: =VLOOKUP($D74, foundoptions, VLOOKUP($T$6, foundoptcell, 2, FALSE), FALSE) -> 13 | U74: =VLOOKUP($D74, foundoptions, VLOOKUP($T$6, foundoptcell, 2, FALSE)+1, FALSE) -> 999 | V74: =VLOOKUP($D74, foundoptions, VLOOKUP($T$6, foundoptcell, 2, FALSE)+2, FALSE) -> 65 | W74: =VLOOKUP($D74, foundoptions, VLOOKUP($T$6, foundoptcell, 2, FALSE)+3, FALSE) -> 147.7272727 | X74: =VLOOKUP($D74, foundoptions, VLOOKUP($T$6, foundoptcell, 2, FALSE)+4, FALSE) -> 2492187.034 | Y74: 65 | Z74: 13 | AA74: 999 | AB74: 65 | AC74: 147.7272727 | AD74: 2492187.034
A75: 00140014 | B75: 0014 | C75: 0014 | D75: 66 | E75: 14 | F75: Ashland | G75: 14 | H75: Ashland | I75: 39209499.74 | J75: 0.9651292159 | K75: =X75 -> 41080212.26 | L75: =IF(K79>0, K75/K79, 0) -> 0.9559438373 | N75: =ROUND(M79*L75,0) -> 29773789 | O75: 28541470 | P75: =N75-O75 -> 1232319 | Q75: 4.317643765 | R75: 2837 | S75: =W75 -> 2818 | T75: 14 | U75: 14 | V75: 66 | W75: 2818 | X75: 41080212.26 | Y75: =D75 -> 66 | Z75: 14 | AA75: 14 | AB75: 66 | AC75: 2818 | AD75: 41080212.26
A76: 00140829 | B76: 0014 | C76: 0829 | D76: 67 | E76: 14 | F76: Ashland | G76: 829 | H76: South Middlesex | I76: 1416666.262 | J76: 0.03487078406 | K76: 1893245.653 | L76: =IF(K79>0, K76/K79, 0) -> 0.04405616268 | N76: =ROUND(M79*L76,0) -> 1372171 | O76: 1031223 | P76: =N76-O76 -> 340948 | Q76: 33.06248988 | R76: 58.26067416 | S76: 75.24972253 | T76: 14 | U76: 829 | V76: 67 | W76: 75.24972253 | X76: 1893245.653 | Y76: 67 | Z76: 14 | AA76: 829 | AB76: 67 | AC76: 75.24972253 | AD76: 1893245.653
A77: 00140998 | B77: 0014 | C77: 0998 | D77: 68 | E77: 14 | G77: 998 | I77: 0 | J77: 0 | K77: 0 | L77: =IF(K79>0, K77/K79, 0) -> 0 | N77: =ROUND(M79*L77,0) -> 0 | O77: 0 | P77: =N77-O77 -> 0 | Q77: 0 | R77: 0 | S77: 0 | T77: 14 | U77: 998 | V77: 68 | W77: 0 | X77: 0 | Y77: 68 | Z77: 14 | AA77: 998 | AB77: 68 | AC77: 0 | AD77: 0
A78: 00140998 | B78: 0014 | C78: 0998 | D78: 69 | E78: 14 | G78: 998 | I78: 0 | J78: 0 | K78: 0 | L78: =IF(K79>0, K78/K79, 0) -> 0 | N78: =ROUND(M79*L78,0) -> 0 | O78: 0 | P78: =N78-O78 -> 0 | Q78: 0 | R78: 0 | S78: 0 | T78: 14 | U78: 998 | V78: 69 | W78: 0 | X78: 0 | Y78: 69 | Z78: 14 | AA78: 998 | AB78: 69 | AC78: 0 | AD78: 0
A79: 00140999 | B79: 0014 | C79: 0999 | D79: 70 | E79: 14 | F79: Ashland | G79: 999 | H79: Total | I79: 40626166 | J79: 1 | K79: =SUM(K75:K78) -> 42973457.91 | L79: =SUM(L75:L78) -> 1 | M79: =VLOOKUP(E79,town351,24) -> 31145960 | N79: =SUM(N75:N78) -> 31145960 | O79: 29572693 | P79: =SUM(P75:P78) -> 1573267 | Q79: 5.319999095 | R79: 2895.260674 | S79: 2893.249723 | T79: 14 | U79: 999 | V79: 70 | W79: 2893.249723 | X79: 42973457.91 | Y79: 70 | Z79: 14 | AA79: 999 | AB79: 70 | AC79: 2893.249723 | AD79: 42973457.91
A80: 00150015 | B80: 0015 | C80: 0015 | D80: 71 | E80: 15 | F80: Athol | G80: 15 | H80: Athol | I80: 0 | J80: 0 | K80: =X80 -> 0 | L80: =IF(K84>0, K80/K84, 0) -> 0 | N80: =ROUND(M84*L80,0) -> 0 | O80: 0 | P80: =N80-O80 -> 0 | Q80: =IF(O80>0,P80*100/O80,IF(P80>0,100,0)) -> 0 | R80: 0 | S80: 0 | T80: 15 | U80: 15 | V80: 71 | W80: 0 | X80: 0 | Y80: 71 | Z80: 15 | AA80: 15 | AB80: 71 | AC80: 0 | AD80: 0
A81: 00150615 | B81: 0015 | C81: 0615 | D81: 72 | E81: 15 | F81: Athol | G81: 615 | H81: Athol Royalston | I81: 28544905.74 | J81: 0.926330409 | K81: 29707191.69 | L81: =IF(K84>0, K81/K84, 0) -> 0.9283017704 | N81: =ROUND(M84*L81,0) -> 4517866 | O81: 4250280 | P81: =N81-O81 -> 267586 | Q81: =IF(O81>0,P81*100/O81,IF(P81>0,100,0)) -> 6.295726399 | R81: 1674.370756 | S81: 1664.958403 | T81: 15 | U81: 615 | V81: 72 | W81: 1664.958403 | X81: 29707191.69 | Y81: 72 | Z81: 15 | AA81: 615 | AB81: 72 | AC81: 1664.958403 | AD81: 29707191.69
A82: 00150832 | B82: 0015 | C82: 0832 | D82: 73 | E82: 15 | F82: Athol | G82: 832 | H82: Montachusett | I82: 2270131.167 | J82: 0.07366959105 | K82: 2294461.908 | L82: =IF(K84>0, K82/K84, 0) -> 0.07169822962 | N82: =ROUND(M84*L82,0) -> 348942 | O82: 338018 | P82: =N82-O82 -> 10924 | Q82: =IF(O82>0,P82*100/O82,IF(P82>0,100,0)) -> 3.231780556 | R82: 109 | S82: 106 | T82: 15 | U82: 832 | V82: 73 | W82: 106 | X82: 2294461.908 | Y82: 73 | Z82: 15 | AA82: 832 | AB82: 73 | AC82: 106 | AD82: 2294461.908
A83: 00150998 | B83: 0015 | C83: 0998 | D83: 74 | E83: 15 | G83: 998 | I83: 0 | J83: 0 | K83: 0 | L83: =IF(K84>0, K83/K84, 0) -> 0 | N83: =ROUND(M84*L83,0) -> 0 | O83: 0 | P83: =N83-O83 -> 0 | Q83: =IF(O83>0,P83*100/O83,IF(P83>0,100,0)) -> 0 | R83: 0 | S83: 0 | T83: 15 | U83: 998 | V83: 74 | W83: 0 | X83: 0 | Y83: 74 | Z83: 15 | AA83: 998 | AB83: 74 | AC83: 0 | AD83: 0
A84: 00150999 | B84: 0015 | C84: 0999 | D84: 75 | E84: 15 | F84: Athol | G84: 999 | H84: Total | I84: 30815036.9 | J84: 1 | K84: =SUM(K80:K83) -> 32001653.59 | L84: =SUM(L80:L83) -> 1 | M84: =VLOOKUP(E84,town351,24) -> 4866808 | N84: =SUM(N80:N83) -> 4866808 | O84: 4588298 | P84: =SUM(P80:P83) -> 278510 | Q84: =IF(O84>0,P84*100/O84,IF(P84>0,100,0)) -> 6.070006787 | R84: 1783.370756 | S84: 1770.958403 | T84: 15 | U84: 999 | V84: 75 | W84: 1770.958403 | X84: 32001653.59 | Y84: 75 | Z84: 15 | AA84: 999 | AB84: 75 | AC84: 1770.958403 | AD84: 32001653.59
A85: 00160016 | B85: 0016 | C85: 0016 | D85: 76 | E85: 16 | F85: Attleboro | G85: 16 | H85: Attleboro | I85: 110074456.2 | J85: 0.9955991315 | K85: =X85 -> 113893945.4 | L85: =IF(K89>0, K85/K89, 0) -> 0.9952109774 | N85: =ROUND(M89*L85,0) -> 50667309 | O85: 48277999 | P85: =N85-O85 -> 2389310 | Q85: 4.94906593 | R85: 6440 | S85: 6364 | T85: 16 | U85: 16 | V85: 76 | W85: 6364 | X85: 113893945.4 | Y85: 76 | Z85: 16 | AA85: 16 | AB85: 76 | AC85: 6364 | AD85: 113893945.4
A86: 00160910 | B86: 0016 | C86: 0910 | D86: 77 | E86: 16 | F86: Attleboro | G86: 910 | H86: Bristol County | I86: 486564.5112 | J86: 0.004400868482 | K86: 548065.38 | L86: =IF(K89>0, K86/K89, 0) -> 0.004789022634 | N86: =ROUND(M89*L86,0) -> 243815 | O86: 213404 | P86: =N86-O86 -> 30411 | Q86: 14.25043579 | R86: 23 | S86: 25 | T86: 16 | U86: 910 | V86: 77 | W86: 25 | X86: 548065.38 | Y86: 77 | Z86: 16 | AA86: 910 | AB86: 77 | AC86: 25 | AD86: 548065.38
A87: 00160998 | B87: 0016 | C87: 0998 | D87: 78 | E87: 16 | G87: 998 | I87: 0 | J87: 0 | K87: 0 | L87: =IF(K89>0, K87/K89, 0) -> 0 | N87: =ROUND(M89*L87,0) -> 0 | O87: 0 | P87: =N87-O87 -> 0 | Q87: 0 | R87: 0 | S87: 0 | T87: 16 | U87: 998 | V87: 78 | W87: 0 | X87: 0 | Y87: 78 | Z87: 16 | AA87: 998 | AB87: 78 | AC87: 0 | AD87: 0
A88: 00160998 | B88: 0016 | C88: 0998 | D88: 79 | E88: 16 | G88: 998 | I88: 0 | J88: 0 | K88: 0 | L88: =IF(K89>0, K88/K89, 0) -> 0 | N88: =ROUND(M89*L88,0) -> 0 | O88: 0 | P88: =N88-O88 -> 0 | Q88: 0 | R88: 0 | S88: 0 | T88: 16 | U88: 998 | V88: 79 | W88: 0 | X88: 0 | Y88: 79 | Z88: 16 | AA88: 998 | AB88: 79 | AC88: 0 | AD88: 0
A89: 00160999 | B89: 0016 | C89: 0999 | D89: 80 | E89: 16 | F89: Attleboro | G89: 999 | H89: Total | I89: 110561020.7 | J89: 1 | K89: =SUM(K85:K88) -> 114442010.8 | L89: =SUM(L85:L88) -> 1 | M89: =VLOOKUP(E89,town351,24) -> 50911124 | N89: =SUM(N85:N88) -> 50911124 | O89: 48491403 | P89: =SUM(P85:P88) -> 2419721 | Q89: 4.98999998 | R89: 6463 | S89: 6389 | T89: 16 | U89: 999 | V89: 80 | W89: 6389 | X89: 114442010.8 | Y89: 80 | Z89: 16 | AA89: 999 | AB89: 80 | AC89: 6389 | AD89: 114442010.8
A90: 00170017 | B90: 0017 | C90: 0017 | D90: 81 | E90: 17 | F90: Auburn | G90: 17 | H90: Auburn | I90: 34174444.38 | J90: 0.9249049222 | K90: =X90 -> 34749450.58 | L90: =IF(K94>0, K90/K94, 0) -> 0.9160354971 | N90: =ROUND(M94*L90,0) -> 19768081 | O90: 18808409 | P90: =N90-O90 -> 959672 | Q90: 5.102356079 | R90: 2400 | S90: 2346 | T90: 17 | U90: 17 | V90: 81 | W90: 2346 | X90: 34749450.58 | Y90: 81 | Z90: 17 | AA90: 17 | AB90: 81 | AC90: 2346 | AD90: 34749450.58
A91: 00170876 | B91: 0017 | C91: 0876 | D91: 82 | E91: 17 | F91: Auburn | G91: 876 | H91: Southern Worcester | I91: 2774698.78 | J91: 0.07509507779 | K91: 3185160.787 | L91: =IF(K94>0, K91/K94, 0) -> 0.08396450293 | N91: =ROUND(M94*L91,0) -> 1811957 | O91: 1527096 | P91: =N91-O91 -> 284861 | Q91: 18.6537716 | R91: 131 | S91: 144 | T91: 17 | U91: 876 | V91: 82 | W91: 144 | X91: 3185160.787 | Y91: 82 | Z91: 17 | AA91: 876 | AB91: 82 | AC91: 144 | AD91: 3185160.787
A92: 00170998 | B92: 0017 | C92: 0998 | D92: 83 | E92: 17 | G92: 998 | I92: 0 | J92: 0 | K92: 0 | L92: =IF(K94>0, K92/K94, 0) -> 0 | N92: =ROUND(M94*L92,0) -> 0 | O92: 0 | P92: =N92-O92 -> 0 | Q92: 0 | R92: 0 | S92: 0 | T92: 17 | U92: 998 | V92: 83 | W92: 0 | X92: 0 | Y92: 83 | Z92: 17 | AA92: 998 | AB92: 83 | AC92: 0 | AD92: 0
A93: 00170998 | B93: 0017 | C93: 0998 | D93: 84 | E93: 17 | G93: 998 | I93: 0 | J93: 0 | K93: 0 | L93: =IF(K94>0, K93/K94, 0) -> 0 | N93: =ROUND(M94*L93,0) -> 0 | O93: 0 | P93: =N93-O93 -> 0 | Q93: 0 | R93: 0 | S93: 0 | T93: 17 | U93: 998 | V93: 84 | W93: 0 | X93: 0 | Y93: 84 | Z93: 17 | AA93: 998 | AB93: 84 | AC93: 0 | AD93: 0
A94: 00170999 | B94: 0017 | C94: 0999 | D94: 85 | E94: 17 | F94: Auburn | G94: 999 | H94: Total | I94: 36949143.16 | J94: 1 | K94: =SUM(K90:K93) -> 37934611.37 | L94: =SUM(L90:L93) -> 1 | M94: =VLOOKUP(E94,town351,24) -> 21580038 | N94: =SUM(N90:N93) -> 21580038 | O94: 20335505 | P94: =SUM(P90:P93) -> 1244533 | Q94: 6.120000462 | R94: 2531 | S94: 2490 | T94: 17 | U94: 999 | V94: 85 | W94: 2490 | X94: 37934611.37 | Y94: 85 | Z94: 17 | AA94: 999 | AB94: 85 | AC94: 2490 | AD94: 37934611.37
A95: 00180018 | B95: 0018 | C95: 0018 | D95: 86 | E95: 18 | F95: Avon | G95: 18 | H95: Avon | I95: 10349488.58 | J95: 0.8923645784 | K95: =X95 -> 10182039.74 | L95: =IF(K99>0, K95/K99, 0) -> 0.8566818024 | N95: =ROUND(M99*L95,0) -> 5979732 | O95: 5949758 | P95: =N95-O95 -> 29974 | Q95: 0.503785196 | R95: 588 | S95: 552 | T95: 18 | U95: 18 | V95: 86 | W95: 552 | X95: 10182039.74 | Y95: 86 | Z95: 18 | AA95: 18 | AB95: 86 | AC95: 552 | AD95: 10182039.74
A96: 00180806 | B96: 0018 | C96: 0806 | D96: 87 | E96: 18 | F96: Avon | G96: 806 | H96: Blue Hills | I96: 1225553.771 | J96: 0.1056709968 | K96: 1610894.564 | L96: =IF(K99>0, K96/K99, 0) -> 0.1355351279 | N96: =ROUND(M99*L96,0) -> 946050 | O96: 704552 | P96: =N96-O96 -> 241498 | Q96: 34.27681704 | R96: 54 | S96: 67.07258938 | T96: 18 | U96: 806 | V96: 87 | W96: 67.07258938 | X96: 1610894.564 | Y96: 87 | Z96: 18 | AA96: 806 | AB96: 87 | AC96: 67.07258938 | AD96: 1610894.564
A97: 00180915 | B97: 0018 | C97: 0915 | D97: 88 | E97: 18 | F97: Avon | G97: 915 | H97: Norfolk County | I97: 22783.05611 | J97: 0.001964424822 | K97: 92505.204 | L97: =IF(K99>0, K97/K99, 0) -> 0.007783069691 | N97: =ROUND(M99*L97,0) -> 54327 | O97: 13098 | P97: =N97-O97 -> 41229 | Q97: 314.7732478 | R97: 1 | S97: 4 | T97: 18 | U97: 915 | V97: 88 | W97: 4 | X97: 92505.204 | Y97: 88 | Z97: 18 | AA97: 915 | AB97: 88 | AC97: 4 | AD97: 92505.204
A98: 00180998 | B98: 0018 | C98: 0998 | D98: 89 | E98: 18 | G98: 998 | I98: 0 | J98: 0 | K98: 0 | L98: =IF(K99>0, K98/K99, 0) -> 0 | N98: =ROUND(M99*L98,0) -> 0 | O98: 0 | P98: =N98-O98 -> 0 | Q98: 0 | R98: 0 | S98: 0 | T98: 18 | U98: 998 | V98: 89 | W98: 0 | X98: 0 | Y98: 89 | Z98: 18 | AA98: 998 | AB98: 89 | AC98: 0 | AD98: 0
A99: 00180999 | B99: 0018 | C99: 0999 | D99: 90 | E99: 18 | F99: Avon | G99: 999 | H99: Total | I99: 11597825.41 | J99: 1 | K99: =SUM(K95:K98) -> 11885439.51 | L99: =SUM(L95:L98) -> 1 | M99: =VLOOKUP(E99,town351,24) -> 6980108 | N99: =SUM(N95:N98) -> 6980109 | O99: 6667408 | P99: =SUM(P95:P98) -> 312701 | Q99: 4.689993473 | R99: 643 | S99: 623.0725894 | T99: 18 | U99: 999 | V99: 90 | W99: 623.0725894 | X99: 11885439.51 | Y99: 90 | Z99: 18 | AA99: 999 | AB99: 90 | AC99: 623.0725894 | AD99: 11885439.51
A100: 00190019 | B100: 0019 | C100: 0019 | D100: 91 | E100: 19 | F100: Ayer | G100: 19 | H100: Ayer | I100: 0 | J100: 0 | K100: =X100 -> 0 | L100: =IF(K104>0, K100/K104, 0) -> 0 | N100: =ROUND(M104*L100,0) -> 0 | O100: 0 | P100: =N100-O100 -> 0 | Q100: 0 | R100: 0 | S100: 0 | T100: 19 | U100: 19 | V100: 91 | W100: 0 | X100: 0 | Y100: 91 | Z100: 19 | AA100: 19 | AB100: 91 | AC100: 0 | AD100: 0
A101: 00190616 | B101: 0019 | C101: 0616 | D101: 92 | E101: 19 | F101: Ayer | G101: 616 | H101: Ayer Shirley | I101: 15286162.83 | J101: 0.929658566 | K101: 14328146.85 | L101: =IF(K104>0, K101/K104, 0) -> 0.9156953401 | N101: =ROUND(M104*L101,0) -> 11283655 | O101: 10635704 | P101: =N101-O101 -> 647951 | Q101: 6.092224831 | R101: 1040.450992 | S101: 952.9371697 | T101: 19 | U101: 616 | V101: 92 | W101: 952.9371697 | X101: 14328146.85 | Y101: 92 | Z101: 19 | AA101: 616 | AB101: 92 | AC101: 952.9371697 | AD101: 14328146.85
A102: 00190852 | B102: 0019 | C102: 0852 | D102: 93 | E102: 19 | F102: Ayer | G102: 852 | H102: Nashoba Valley | I102: 1156608.085 | J102: 0.070341434 | K102: 1319139.123 | L102: =IF(K104>0, K102/K104, 0) -> 0.08430465992 | N102: =ROUND(M104*L102,0) -> 1038844 | O102: 804737 | P102: =N102-O102 -> 234107 | Q102: 29.09111921 | R102: 55 | S102: 60 | T102: 19 | U102: 852 | V102: 93 | W102: 60 | X102: 1319139.123 | Y102: 93 | Z102: 19 | AA102: 852 | AB102: 93 | AC102: 60 | AD102: 1319139.123
A103: 00190998 | B103: 0019 | C103: 0998 | D103: 94 | E103: 19 | G103: 998 | I103: 0 | J103: 0 | K103: 0 | L103: =IF(K104>0, K103/K104, 0) -> 0 | N103: =ROUND(M104*L103,0) -> 0 | O103: 0 | P103: =N103-O103 -> 0 | Q103: 0 | R103: 0 | S103: 0 | T103: 19 | U103: 998 | V103: 94 | W103: 0 | X103: 0 | Y103: 94 | Z103: 19 | AA103: 998 | AB103: 94 | AC103: 0 | AD103: 0
A104: 00190999 | B104: 0019 | C104: 0999 | D104: 95 | E104: 19 | F104: Ayer | G104: 999 | H104: Total | I104: 16442770.91 | J104: 1 | K104: =SUM(K100:K103) -> 15647285.98 | L104: =SUM(L100:L103) -> 1 | M104: =VLOOKUP(E104,town351,24) -> 12322499 | N104: =SUM(N100:N103) -> 12322499 | O104: 11440441 | P104: =SUM(P100:P103) -> 882058 | Q104: 7.70999999 | R104: 1095.450992 | S104: 1012.93717 | T104: 19 | U104: 999 | V104: 95 | W104: 1012.93717 | X104: 15647285.98 | Y104: 95 | Z104: 19 | AA104: 999 | AB104: 95 | AC104: 1012.93717 | AD104: 15647285.98
A105: 00200020 | B105: 0020 | C105: 0020 | D105: 96 | E105: 20 | F105: Barnstable | G105: 20 | H105: Barnstable | I105: 91282281.55 | J105: 0.9552862917 | K105: =X105 -> 92442313.11 | L105: =IF(K109>0, K105/K109, 0) -> 0.9538210901 | N105: =ROUND(M109*L105,0) -> 71854310 | O105: 68459559 | P105: =N105-O105 -> 3394751 | Q105: 4.958768431 | R105: 5230 | S105: 5038 | T105: 20 | U105: 20 | V105: 96 | W105: 5038 | X105: 92442313.11 | Y105: 96 | Z105: 20 | AA105: 20 | AB105: 96 | AC105: 5038 | AD105: 92442313.11
A106: 00200815 | B106: 0020 | C106: 0815 | D106: 97 | E106: 20 | F106: Barnstable | G106: 815 | H106: Cape Cod | I106: 4272613.715 | J106: 0.04471370831 | K106: 4475561.816 | L106: =IF(K109>0, K106/K109, 0) -> 0.04617890992 | N106: =ROUND(M109*L106,0) -> 3478801 | O106: 3204360 | P106: =N106-O106 -> 274441 | Q106: 8.564611966 | R106: 195 | S106: 199 | T106: 20 | U106: 815 | V106: 97 | W106: 199 | X106: 4475561.816 | Y106: 97 | Z106: 20 | AA106: 815 | AB106: 97 | AC106: 199 | AD106: 4475561.816
A107: 00200998 | B107: 0020 | C107: 0998 | D107: 98 | E107: 20 | G107: 998 | I107: 0 | J107: 0 | K107: 0 | L107: =IF(K109>0, K107/K109, 0) -> 0 | N107: =ROUND(M109*L107,0) -> 0 | O107: 0 | P107: =N107-O107 -> 0 | Q107: 0 | R107: 0 | S107: 0 | T107: 20 | U107: 998 | V107: 98 | W107: 0 | X107: 0 | Y107: 98 | Z107: 20 | AA107: 998 | AB107: 98 | AC107: 0 | AD107: 0
A108: 00200998 | B108: 0020 | C108: 0998 | D108: 99 | E108: 20 | G108: 998 | I108: 0 | J108: 0 | K108: 0 | L108: =IF(K109>0, K108/K109, 0) -> 0 | N108: =ROUND(M109*L108,0) -> 0 | O108: 0 | P108: =N108-O108 -> 0 | Q108: 0 | R108: 0 | S108: 0 | T108: 20 | U108: 998 | V108: 99 | W108: 0 | X108: 0 | Y108: 99 | Z108: 20 | AA108: 998 | AB108: 99 | AC108: 0 | AD108: 0
A109: 00200999 | B109: 0020 | C109: 0999 | D109: 100 | E109: 20 | F109: Barnstable | G109: 999 | H109: Total | I109: 95554895.26 | J109: 1 | K109: =SUM(K105:K108) -> 96917874.93 | L109: =SUM(L105:L108) -> 1 | M109: =VLOOKUP(E109,town351,24) -> 75333111 | N109: =SUM(N105:N108) -> 75333111 | O109: 71663919 | P109: =SUM(P105:P108) -> 3669192 | Q109: 5.119999089 | R109: 5425 | S109: 5237 | T109: 20 | U109: 999 | V109: 100 | W109: 5237 | X109: 96917874.93 | Y109: 100 | Z109: 20 | AA109: 999 | AB109: 100 | AC109: 5237 | AD109: 96917874.93
A110: 00210021 | B110: 0021 | C110: 0021 | D110: 101 | E110: 21 | F110: Barre | G110: 21 | H110: Barre | I110: 0 | J110: 0 | K110: =X110 -> 0 | L110: =IF(K114>0, K110/K114, 0) -> 0 | N110: =ROUND(M114*L110,0) -> 0 | O110: 0 | P110: =N110-O110 -> 0 | Q110: 0 | R110: 0 | S110: 0 | T110: 21 | U110: 21 | V110: 101 | W110: 0 | X110: 0 | Y110: 101 | Z110: 21 | AA110: 21 | AB110: 101 | AC110: 0 | AD110: 0
A111: 00210753 | B111: 0021 | C111: 0753 | D111: 102 | E111: 21 | F111: Barre | G111: 753 | H111: Quabbin | I111: 10666409.63 | J111: 0.9159432455 | K111: 11126553.71 | L111: =IF(K114>0, K111/K114, 0) -> 0.921150727 | N111: =ROUND(M114*L111,0) -> 4441167 | O111: 4210985 | P111: =N111-O111 -> 230182 | Q111: 5.466227023 | R111: 721.303719 | S111: 723.822655 | T111: 21 | U111: 753 | V111: 102 | W111: 723.822655 | X111: 11126553.71 | Y111: 102 | Z111: 21 | AA111: 753 | AB111: 102 | AC111: 723.822655 | AD111: 11126553.71
A112: 00210832 | B112: 0021 | C112: 0832 | D112: 103 | E112: 21 | F112: Barre | G112: 832 | H112: Montachusett | I112: 978863.8977 | J112: 0.08405675451 | K112: 952418.1502 | L112: =IF(K114>0, K112/K114, 0) -> 0.07884927301 | N112: =ROUND(M114*L112,0) -> 380158 | O112: 386445 | P112: =N112-O112 -> -6287 | Q112: -1.626880927 | R112: 47.00000001 | S112: 43.99999999 | T112: 21 | U112: 832 | V112: 103 | W112: 43.99999999 | X112: 952418.1502 | Y112: 103 | Z112: 21 | AA112: 832 | AB112: 103 | AC112: 43.99999999 | AD112: 952418.1502
A113: 00210998 | B113: 0021 | C113: 0998 | D113: 104 | E113: 21 | G113: 998 | I113: 0 | J113: 0 | K113: 0 | L113: =IF(K114>0, K113/K114, 0) -> 0 | N113: =ROUND(M114*L113,0) -> 0 | O113: 0 | P113: =N113-O113 -> 0 | Q113: 0 | R113: 0 | S113: 0 | T113: 21 | U113: 998 | V113: 104 | W113: 0 | X113: 0 | Y113: 104 | Z113: 21 | AA113: 998 | AB113: 104 | AC113: 0 | AD113: 0
A114: 00210999 | B114: 0021 | C114: 0999 | D114: 105 | E114: 21 | F114: Barre | G114: 999 | H114: Total | I114: 11645273.52 | J114: 1 | K114: =SUM(K110:K113) -> 12078971.86 | L114: =SUM(L110:L113) -> 1 | M114: =VLOOKUP(E114,town351,24) -> 4821325 | N114: =SUM(N110:N113) -> 4821325 | O114: 4597430 | P114: =SUM(P110:P113) -> 223895 | Q114: 4.870003458 | R114: 768.303719 | S114: 767.822655 | T114: 21 | U114: 999 | V114: 105 | W114: 767.822655 | X114: 12078971.86 | Y114: 105 | Z114: 21 | AA114: 999 | AB114: 105 | AC114: 767.822655 | AD114: 12078971.86
A115: 00220022 | B115: 0022 | C115: 0022 | D115: 106 | E115: 22 | F115: Becket | G115: 22 | H115: Becket | I115: 361845.85 | J115: 0.1163814296 | K115: =X115 -> 340043.92 | L115: =IF(K119>0, K115/K119, 0) -> 0.1091817582 | N115: =ROUND(M119*L115,0) -> 280536 | O115: 287491 | P115: =N115-O115 -> -6955 | Q115: -2.419206166 | R115: 19 | S115: 17 | T115: 22 | U115: 22 | V115: 106 | W115: 17 | X115: 340043.92 | Y115: 106 | Z115: 22 | AA115: 22 | AB115: 106 | AC115: 17 | AD115: 340043.92
A116: 00220635 | B116: 0022 | C116: 0635 | D116: 107 | E116: 22 | F116: Becket | G116: 635 | H116: Central Berkshire | I116: 2747291.504 | J116: 0.8836185704 | K116: 2774431.662 | L116: =IF(K119>0, K116/K119, 0) -> 0.8908182418 | N116: =ROUND(M119*L116,0) -> 2288906 | O116: 2182755 | P116: =N116-O116 -> 106151 | Q116: 4.863166045 | R116: 177.6657895 | S116: 172.3666211 | T116: 22 | U116: 635 | V116: 107 | W116: 172.3666211 | X116: 2774431.662 | Y116: 107 | Z116: 22 | AA116: 635 | AB116: 107 | AC116: 172.3666211 | AD116: 2774431.662
A117: 00220998 | B117: 0022 | C117: 0998 | D117: 108 | E117: 22 | G117: 998 | I117: 0 | J117: 0 | K117: 0 | L117: =IF(K119>0, K117/K119, 0) -> 0 | N117: =ROUND(M119*L117,0) -> 0 | O117: 0 | P117: =N117-O117 -> 0 | Q117: 0 | R117: 0 | S117: 0 | T117: 22 | U117: 998 | V117: 108 | W117: 0 | X117: 0 | Y117: 108 | Z117: 22 | AA117: 998 | AB117: 108 | AC117: 0 | AD117: 0
A118: 00220998 | B118: 0022 | C118: 0998 | D118: 109 | E118: 22 | G118: 998 | I118: 0 | J118: 0 | K118: 0 | L118: =IF(K119>0, K118/K119, 0) -> 0 | N118: =ROUND(M119*L118,0) -> 0 | O118: 0 | P118: =N118-O118 -> 0 | Q118: 0 | R118: 0 | S118: 0 | T118: 22 | U118: 998 | V118: 109 | W118: 0 | X118: 0 | Y118: 109 | Z118: 22 | AA118: 998 | AB118: 109 | AC118: 0 | AD118: 0
A119: 00220999 | B119: 0022 | C119: 0999 | D119: 110 | E119: 22 | F119: Becket | G119: 999 | H119: Total | I119: 3109137.354 | J119: 1 | K119: =SUM(K115:K118) -> 3114475.582 | L119: =SUM(L115:L118) -> 1 | M119: =VLOOKUP(E119,town351,24) -> 2569442 | N119: =SUM(N115:N118) -> 2569442 | O119: 2470246 | P119: =SUM(P115:P118) -> 99196 | Q119: 4.015632451 | R119: 196.6657895 | S119: 189.3666211 | T119: 22 | U119: 999 | V119: 110 | W119: 189.3666211 | X119: 3114475.582 | Y119: 110 | Z119: 22 | AA119: 999 | AB119: 110 | AC119: 189.3666211 | AD119: 3114475.582
A120: 00230023 | B120: 0023 | C120: 0023 | D120: 111 | E120: 23 | F120: Bedford | G120: 23 | H120: Bedford | I120: 35245066.37 | J120: 0.9745374852 | K120: =X120 -> 35093223.98 | L120: =IF(K124>0, K120/K124, 0) -> 0.9688655529 | N120: =ROUND(M124*L120,0) -> 28951910 | O120: 29077179 | P120: =N120-O120 -> -125269 | Q120: -0.4308155203 | R120: 2528 | S120: 2416 | T120: 23 | U120: 23 | V120: 111 | W120: 2416 | X120: 35093223.98 | Y120: 111 | Z120: 23 | AA120: 23 | AB120: 111 | AC120: 2416 | AD120: 35093223.98
A121: 00230871 | B121: 0023 | C121: 0871 | D121: 112 | E121: 23 | F121: Bedford | G121: 871 | H121: Shawsheen Valley | I121: 920875.8395 | J121: 0.02546251482 | K121: 1127719.033 | L121: =IF(K124>0, K121/K124, 0) -> 0.03113444706 | N121: =ROUND(M124*L121,0) -> 930368 | O121: 759723 | P121: =N121-O121 -> 170645 | Q121: 22.46147609 | R121: 45 | S121: 53 | T121: 23 | U121: 871 | V121: 112 | W121: 53 | X121: 1127719.033 | Y121: 112 | Z121: 23 | AA121: 871 | AB121: 112 | AC121: 53 | AD121: 1127719.033
A122: 00230998 | B122: 0023 | C122: 0998 | D122: 113 | E122: 23 | G122: 998 | I122: 0 | J122: 0 | K122: 0 | L122: =IF(K124>0, K122/K124, 0) -> 0 | N122: =ROUND(M124*L122,0) -> 0 | O122: 0 | P122: =N122-O122 -> 0 | Q122: 0 | R122: 0 | S122: 0 | T122: 23 | U122: 998 | V122: 113 | W122: 0 | X122: 0 | Y122: 113 | Z122: 23 | AA122: 998 | AB122: 113 | AC122: 0 | AD122: 0
A123: 00230998 | B123: 0023 | C123: 0998 | D123: 114 | E123: 23 | G123: 998 | I123: 0 | J123: 0 | K123: 0 | L123: =IF(K124>0, K123/K124, 0) -> 0 | N123: =ROUND(M124*L123,0) -> 0 | O123: 0 | P123: =N123-O123 -> 0 | Q123: 0 | R123: 0 | S123: 0 | T123: 23 | U123: 998 | V123: 114 | W123: 0 | X123: 0 | Y123: 114 | Z123: 23 | AA123: 998 | AB123: 114 | AC123: 0 | AD123: 0
A124: 00230999 | B124: 0023 | C124: 0999 | D124: 115 | E124: 23 | F124: Bedford | G124: 999 | H124: Total | I124: 36165942.21 | J124: 1 | K124: =SUM(K120:K123) -> 36220943.01 | L124: =SUM(L120:L123) -> 1 | M124: =VLOOKUP(E124,town351,24) -> 29882278 | N124: =SUM(N120:N123) -> 29882278 | O124: 29836902 | P124: =SUM(P120:P123) -> 45376 | Q124: 0.1520801322 | R124: 2573 | S124: 2469 | T124: 23 | U124: 999 | V124: 115 | W124: 2469 | X124: 36220943.01 | Y124: 115 | Z124: 23 | AA124: 999 | AB124: 115 | AC124: 2469 | AD124: 36220943.01
A125: 00240024 | B125: 0024 | C125: 0024 | D125: 116 | E125: 24 | F125: Belchertown | G125: 24 | H125: Belchertown | I125: 27957662.77 | J125: 0.9195300779 | K125: =X125 -> 28303896.73 | L125: =IF(K129>0, K125/K129, 0) -> 0.9263636477 | N125: =ROUND(M129*L125,0) -> 15826711 | O125: 15052180 | P125: =N125-O125 -> 774531 | Q125: 5.145640034 | R125: 2043 | S125: 1982 | T125: 24 | U125: 24 | V125: 116 | W125: 1982 | X125: 28303896.73 | Y125: 116 | Z125: 24 | AA125: 24 | AB125: 116 | AC125: 1982 | AD125: 28303896.73
A126: 00240860 | B126: 0024 | C126: 0860 | D126: 117 | E126: 24 | F126: Belchertown | G126: 860 | H126: Pathfinder | I126: 2446631.166 | J126: 0.08046992214 | K126: 2249867.767 | L126: =IF(K129>0, K126/K129, 0) -> 0.07363635232 | N126: =ROUND(M129*L126,0) -> 1258060 | O126: 1317247 | P126: =N126-O126 -> -59187 | Q126: -4.493234754 | R126: 110 | S126: 97 | T126: 24 | U126: 860 | V126: 117 | W126: 97 | X126: 2249867.767 | Y126: 117 | Z126: 24 | AA126: 860 | AB126: 117 | AC126: 97 | AD126: 2249867.767
A127: 00240998 | B127: 0024 | C127: 0998 | D127: 118 | E127: 24 | G127: 998 | I127: 0 | J127: 0 | K127: 0 | L127: =IF(K129>0, K127/K129, 0) -> 0 | N127: =ROUND(M129*L127,0) -> 0 | O127: 0 | P127: =N127-O127 -> 0 | Q127: 0 | R127: 0 | S127: 0 | T127: 24 | U127: 998 | V127: 118 | W127: 0 | X127: 0 | Y127: 118 | Z127: 24 | AA127: 998 | AB127: 118 | AC127: 0 | AD127: 0
A128: 00240998 | B128: 0024 | C128: 0998 | D128: 119 | E128: 24 | G128: 998 | I128: 0 | J128: 0 | K128: 0 | L128: =IF(K129>0, K128/K129, 0) -> 0 | N128: =ROUND(M129*L128,0) -> 0 | O128: 0 | P128: =N128-O128 -> 0 | Q128: 0 | R128: 0 | S128: 0 | T128: 24 | U128: 998 | V128: 119 | W128: 0 | X128: 0 | Y128: 119 | Z128: 24 | AA128: 998 | AB128: 119 | AC128: 0 | AD128: 0
A129: 00240999 | B129: 0024 | C129: 0999 | D129: 120 | E129: 24 | F129: Belchertown | G129: 999 | H129: Total | I129: 30404293.94 | J129: 1 | K129: =SUM(K125:K128) -> 30553764.5 | L129: =SUM(L125:L128) -> 1 | M129: =VLOOKUP(E129,town351,24) -> 17084771 | N129: =SUM(N125:N128) -> 17084771 | O129: 16369427 | P129: =SUM(P125:P128) -> 715344 | Q129: 4.370000245 | R129: 2153 | S129: 2079 | T129: 24 | U129: 999 | V129: 120 | W129: 2079 | X129: 30553764.5 | Y129: 120 | Z129: 24 | AA129: 999 | AB129: 120 | AC129: 2079 | AD129: 30553764.5
A130: 00250025 | B130: 0025 | C130: 0025 | D130: 121 | E130: 25 | F130: Bellingham | G130: 25 | H130: Bellingham | I130: 31820375.34 | J130: 0.9426335114 | K130: =X130 -> 34592550.34 | L130: =IF(K134>0, K130/K134, 0) -> 0.9465121798 | N130: =ROUND(M134*L130,0) -> 23625313 | O130: 22163244 | P130: =N130-O130 -> 1462069 | Q130: 6.596818588 | R130: 2206 | S130: 2237 | T130: 25 | U130: 25 | V130: 121 | W130: 2237 | X130: 34592550.34 | Y130: 121 | Z130: 25 | AA130: 25 | AB130: 121 | AC130: 2237 | AD130: 34592550.34
A131: 00250805 | B131: 0025 | C131: 0805 | D131: 122 | E131: 25 | F131: Bellingham | G131: 805 | H131: Blackstone Valley | I131: 1526419.21 | J131: 0.04521800528 | K131: 1607945.744 | L131: =IF(K134>0, K131/K134, 0) -> 0.04399618461 | N131: =ROUND(M134*L131,0) -> 1098162 | O131: 1063168 | P131: =N131-O131 -> 34994 | Q131: 3.291483566 | R131: 76 | S131: 77 | T131: 25 | U131: 805 | V131: 122 | W131: 77 | X131: 1607945.744 | Y131: 122 | Z131: 25 | AA131: 805 | AB131: 122 | AC131: 77 | AD131: 1607945.744
A132: 00250915 | B132: 0025 | C132: 0915 | D132: 123 | E132: 25 | F132: Bellingham | G132: 915 | H132: Norfolk County | I132: 410095.0099 | J132: 0.01214848332 | K132: 346894.5151 | L132: =IF(K134>0, K132/K134, 0) -> 0.009491635638 | N132: =ROUND(M134*L132,0) -> 236915 | O132: 285636 | P132: =N132-O132 -> -48721 | Q132: -17.05702362 | R132: 18 | S132: 15 | T132: 25 | U132: 915 | V132: 123 | W132: 15 | X132: 346894.5151 | Y132: 123 | Z132: 25 | AA132: 915 | AB132: 123 | AC132: 15 | AD132: 346894.5151
A133: 00250998 | B133: 0025 | C133: 0998 | D133: 124 | E133: 25 | G133: 998 | I133: 0 | J133: 0 | K133: 0 | L133: =IF(K134>0, K133/K134, 0) -> 0 | N133: =ROUND(M134*L133,0) -> 0 | O133: 0 | P133: =N133-O133 -> 0 | Q133: 0 | R133: 0 | S133: 0 | T133: 25 | U133: 998 | V133: 124 | W133: 0 | X133: 0 | Y133: 124 | Z133: 25 | AA133: 998 | AB133: 124 | AC133: 0 | AD133: 0
A134: 00250999 | B134: 0025 | C134: 0999 | D134: 125 | E134: 25 | F134: Bellingham | G134: 999 | H134: Total | I134: 33756889.56 | J134: 1 | K134: =SUM(K130:K133) -> 36547390.6 | L134: =SUM(L130:L133) -> 1 | M134: =VLOOKUP(E134,town351,24) -> 24960390 | N134: =SUM(N130:N133) -> 24960390 | O134: 23512048 | P134: =SUM(P130:P133) -> 1448342 | Q134: 6.159999333 | R134: 2300 | S134: 2329 | T134: 25 | U134: 999 | V134: 125 | W134: 2329 | X134: 36547390.6 | Y134: 125 | Z134: 25 | AA134: 999 | AB134: 125 | AC134: 2329 | AD134: 36547390.6
A135: 00260026 | B135: 0026 | C135: 0026 | D135: 126 | E135: 26 | F135: Belmont | G135: 26 | H135: Belmont | I135: 61875520.81 | J135: 1 | K135: =X135 -> 64651862.96 | L135: =IF(K139>0, K135/K139, 0) -> 1 | N135: =ROUND(M139*L135,0) -> 51418074 | O135: 49876878 | P135: =N135-O135 -> 1541196 | Q135: 3.090000942 | R135: 4538 | S135: 4530 | T135: 26 | U135: 26 | V135: 126 | W135: 4530 | X135: 64651862.96 | Y135: 126 | Z135: 26 | AA135: 26 | AB135: 126 | AC135: 4530 | AD135: 64651862.96
A136: 00260830 | B136: 0026 | C136: 0830 | D136: 127 | E136: 26 | G136: 998 | I136: 0 | J136: 0 | K136: 0 | L136: =IF(K139>0, K136/K139, 0) -> 0 | N136: =ROUND(M139*L136,0) -> 0 | O136: 0 | P136: =N136-O136 -> 0 | Q136: 0 | R136: 0 | S136: 0 | T136: 26 | U136: 998 | V136: 127 | W136: 0 | X136: 0 | Y136: 127 | Z136: 26 | AA136: 998 | AB136: 127 | AC136: 0 | AD136: 0
A137: 00260998 | B137: 0026 | C137: 0998 | D137: 128 | E137: 26 | G137: 998 | I137: 0 | J137: 0 | K137: 0 | L137: =IF(K139>0, K137/K139, 0) -> 0 | N137: =ROUND(M139*L137,0) -> 0 | O137: 0 | P137: =N137-O137 -> 0 | Q137: 0 | R137: 0 | S137: 0 | T137: 26 | U137: 998 | V137: 128 | W137: 0 | X137: 0 | Y137: 128 | Z137: 26 | AA137: 998 | AB137: 128 | AC137: 0 | AD137: 0
A138: =B138&C138 -> 00260998 | B138: 0026 | C138: 0998 | D138: 129 | E138: 26 | G138: 998 | I138: 0 | J138: 0 | K138: 0 | L138: =IF(K139>0, K138/K139, 0) -> 0 | N138: =ROUND(M139*L138,0) -> 0 | O138: 0 | P138: =N138-O138 -> 0 | Q138: 0 | R138: 0 | S138: 0 | T138: =VLOOKUP($D138, foundoptions, VLOOKUP($T$6, foundoptcell, 2, FALSE), FALSE) -> 26 | U138: =VLOOKUP($D138, foundoptions, VLOOKUP($T$6, foundoptcell, 2, FALSE)+1, FALSE) -> 998 | V138: =VLOOKUP($D138, foundoptions, VLOOKUP($T$6, foundoptcell, 2, FALSE)+2, FALSE) -> 129 | W138: =VLOOKUP($D138, foundoptions, VLOOKUP($T$6, foundoptcell, 2, FALSE)+3, FALSE) -> 0 | X138: =VLOOKUP($D138, foundoptions, VLOOKUP($T$6, foundoptcell, 2, FALSE)+4, FALSE) -> 0 | Y138: 129 | Z138: 26 | AA138: 998 | AB138: 129 | AC138: 0 | AD138: 0
A139: 00260999 | B139: 0026 | C139: 0999 | D139: 130 | E139: 26 | F139: Belmont | G139: 999 | H139: Total | I139: 61875520.81 | J139: 1 | K139: =SUM(K135:K138) -> 64651862.96 | L139: =SUM(L135:L138) -> 1 | M139: =VLOOKUP(E139,town351,24) -> 51418074 | N139: =SUM(N135:N138) -> 51418074 | O139: 49876878 | P139: =SUM(P135:P138) -> 1541196 | Q139: 3.090000942 | R139: 4538 | S139: =W139 -> 4530 | T139: 26 | U139: 999 | V139: 130 | W139: 4530 | X139: 64651862.96 | Y139: =D139 -> 130 | Z139: 26 | AA139: 999 | AB139: 130 | AC139: 4530 | AD139: 64651862.96
A140: 00270027 | B140: 0027 | C140: 0027 | D140: 131 | E140: 27 | F140: Berkley | G140: 27 | H140: Berkley | I140: 8738336.55 | J140: 0.5919797195 | K140: =X140 -> 8934075.39 | L140: =IF(K144>0, K140/K144, 0) -> 0.5867055679 | N140: =ROUND(M144*L140,0) -> 5539772 | O140: 5232212 | P140: =N140-O140 -> 307560 | Q140: 5.878202183 | R140: 640 | S140: 599 | T140: 27 | U140: 27 | V140: 131 | W140: 599 | X140: 8934075.39 | Y140: 131 | Z140: 27 | AA140: 27 | AB140: 131 | AC140: 599 | AD140: 8934075.39
A141: 00270763 | B141: 0027 | C141: 0763 | D141: 132 | E141: 27 | F141: Berkley | G141: 763 | H141: Somerset Berkley | I141: 3495358.001 | J141: 0.2367934718 | K141: 3690552.398 | L141: =IF(K144>0, K141/K144, 0) -> 0.2423605741 | N141: =ROUND(M144*L141,0) -> 2288409 | O141: 2092899 | P141: =N141-O141 -> 195510 | Q141: 9.341587912 | R141: 226.5168539 | S141: 229.7727784 | T141: 27 | U141: 763 | V141: 132 | W141: 229.7727784 | X141: 3690552.398 | Y141: 132 | Z141: 27 | AA141: 763 | AB141: 132 | AC141: 229.7727784 | AD141: 3690552.398
A142: 00270810 | B142: 0027 | C142: 0810 | D142: 133 | E142: 27 | F142: Berkley | G142: 810 | H142: Bristol Plymouth | I142: 2167880.125 | J142: 0.1468633144 | K142: 2142525.167 | L142: =IF(K144>0, K142/K144, 0) -> 0.1407007877 | N142: =ROUND(M144*L142,0) -> 1328520 | O142: 1298051 | P142: =N142-O142 -> 30469 | Q142: 2.347288358 | R142: 104.3798393 | S142: 99.2907489 | T142: 27 | U142: 810 | V142: 133 | W142: 99.2907489 | X142: 2142525.167 | Y142: 133 | Z142: 27 | AA142: 810 | AB142: 133 | AC142: 99.2907489 | AD142: 2142525.167
A143: 00270910 | B143: 0027 | C143: 0910 | D143: 134 | E143: 27 | F143: Berkley | G143: 910 | H143: Bristol County | I143: 359634.6388 | J143: 0.02436349428 | K143: 460374.9192 | L143: =IF(K144>0, K143/K144, 0) -> 0.0302330702 | N143: =ROUND(M144*L143,0) -> 285466 | O143: 215337 | P143: =N143-O143 -> 70129 | Q143: 32.56709251 | R143: 17 | S143: 21 | T143: 27 | U143: 910 | V143: 134 | W143: 21 | X143: 460374.9192 | Y143: 134 | Z143: 27 | AA143: 910 | AB143: 134 | AC143: 21 | AD143: 460374.9192
A144: 00270999 | B144: 0027 | C144: 0999 | D144: 135 | E144: 27 | F144: Berkley | G144: 999 | H144: Total | I144: 14761209.32 | J144: 1 | K144: =SUM(K140:K143) -> 15227527.87 | L144: =SUM(L140:L143) -> 1 | M144: =VLOOKUP(E144,town351,24) -> 9442167 | N144: =SUM(N140:N143) -> 9442167 | O144: 8838499 | P144: =SUM(P140:P143) -> 603668 | Q144: =IF(O144>0,P144*100/O144,IF(P144>0,100,0)) -> 6.829983236 | R144: 987.8966932 | S144: 949.0635273 | T144: 27 | U144: 999 | V144: 135 | W144: 949.0635273 | X144: 15227527.87 | Y144: 135 | Z144: 27 | AA144: 999 | AB144: 135 | AC144: 949.0635273 | AD144: 15227527.87
A145: 00280028 | B145: 0028 | C145: 0028 | D145: 136 | E145: 28 | F145: Berlin | G145: 28 | H145: Berlin | I145: 0 | J145: 0 | K145: =X145 -> 0 | L145: =IF(K149>0, K145/K149, 0) -> 0 | N145: =ROUND(M149*L145,0) -> 0 | O145: 0 | P145: =N145-O145 -> 0 | Q145: 0 | R145: 0 | S145: 0 | T145: 28 | U145: 28 | V145: 136 | W145: 0 | X145: 0 | Y145: 136 | Z145: 28 | AA145: 28 | AB145: 136 | AC145: 0 | AD145: 0
A146: 00280620 | B146: 0028 | C146: 0620 | D146: 137 | E146: 28 | F146: Berlin | G146: 620 | H146: Berlin Boylston | I146: 5607166.988 | J146: 0.8416496701 | K146: 5524540.981 | L146: =IF(K149>0, K146/K149, 0) -> 0.8519291029 | N146: =ROUND(M149*L146,0) -> 4199822 | O146: 3932096 | P146: =N146-O146 -> 267726 | Q146: 6.808735087 | R146: 422.001885 | S146: 402.8630394 | T146: 28 | U146: 620 | V146: 137 | W146: 402.8630394 | X146: 5524540.981 | Y146: 137 | Z146: 28 | AA146: 620 | AB146: 137 | AC146: 402.8630394 | AD146: 5524540.981
A147: 00280801 | B147: 0028 | C147: 0801 | D147: 138 | E147: 28 | F147: Berlin | G147: 801 | H147: Assabet Valley | I147: 1054948.126 | J147: 0.1583503299 | K147: 960201.6602 | L147: =IF(K149>0, K147/K149, 0) -> 0.1480708971 | N147: =ROUND(M149*L147,0) -> 729957 | O147: 739795 | P147: =N147-O147 -> -9838 | Q147: -1.329827858 | R147: 44 | S147: 38 | T147: 28 | U147: 801 | V147: 138 | W147: 38 | X147: 960201.6602 | Y147: 138 | Z147: 28 | AA147: 801 | AB147: 138 | AC147: 38 | AD147: 960201.6602
A148: 00280998 | B148: 0028 | C148: 0998 | D148: 139 | E148: 28 | G148: 998 | I148: 0 | J148: 0 | K148: 0 | L148: =IF(K149>0, K148/K149, 0) -> 0 | N148: =ROUND(M149*L148,0) -> 0 | O148: 0 | P148: =N148-O148 -> 0 | Q148: 0 | R148: 0 | S148: 0 | T148: 28 | U148: 998 | V148: 139 | W148: 0 | X148: 0 | Y148: 139 | Z148: 28 | AA148: 998 | AB148: 139 | AC148: 0 | AD148: 0
A149: 00280999 | B149: 0028 | C149: 0999 | D149: 140 | E149: 28 | F149: Berlin | G149: 999 | H149: Total | I149: 6662115.114 | J149: 1 | K149: =SUM(K145:K148) -> 6484742.641 | L149: =SUM(L145:L148) -> 1 | M149: =VLOOKUP(E149,town351,24) -> 4929779 | N149: =SUM(N145:N148) -> 4929779 | O149: 4671891 | P149: =SUM(P145:P148) -> 257888 | Q149: 5.519991798 | R149: 466.001885 | S149: 440.8630394 | T149: 28 | U149: 999 | V149: 140 | W149: 440.8630394 | X149: 6484742.641 | Y149: 140 | Z149: 28 | AA149: 999 | AB149: 140 | AC149: 440.8630394 | AD149: 6484742.641
A150: 00290029 | B150: 0029 | C150: 0029 | D150: 141 | E150: 29 | F150: Bernardston | G150: 29 | H150: Bernardston | I150: 0 | J150: 0 | K150: =X150 -> 0 | L150: =IF(K154>0, K150/K154, 0) -> 0 | N150: =ROUND(M154*L150,0) -> 0 | O150: 0 | P150: =N150-O150 -> 0 | Q150: 0 | R150: 0 | S150: 0 | T150: 29 | U150: 29 | V150: 141 | W150: 0 | X150: 0 | Y150: 141 | Z150: 29 | AA150: 29 | AB150: 141 | AC150: 0 | AD150: 0
A151: 00290750 | B151: 0029 | C151: 0750 | D151: 142 | E151: 29 | F151: Bernardston | G151: 750 | H151: Pioneer | I151: 3212120.316 | J151: 0.8500030656 | K151: 3424454.341 | L151: =IF(K154>0, K151/K154, 0) -> 0.8641774068 | N151: =ROUND(M154*L151,0) -> 1984405 | O151: 1839118 | P151: =N151-O151 -> 145287 | Q151: 7.89981937 | R151: 222 | S151: 229.5585413 | T151: 29 | U151: 750 | V151: 142 | W151: 229.5585413 | X151: 3424454.341 | Y151: 142 | Z151: 29 | AA151: 750 | AB151: 142 | AC151: 229.5585413 | AD151: 3424454.341
A152: 00290818 | B152: 0029 | C152: 0818 | D152: 143 | E152: 29 | F152: Bernardston | G152: 818 | H152: Franklin County | I152: 566831.1324 | J152: 0.1499969344 | K152: 538220.8161 | L152: =IF(K154>0, K152/K154, 0) -> 0.1358225932 | N152: =ROUND(M154*L152,0) -> 311889 | O152: 324543 | P152: =N152-O152 -> -12654 | Q152: -3.899021085 | R152: 25 | S152: 23 | T152: 29 | U152: 818 | V152: 143 | W152: 23 | X152: 538220.8161 | Y152: 143 | Z152: 29 | AA152: 818 | AB152: 143 | AC152: 23 | AD152: 538220.8161
A153: 00290998 | B153: 0029 | C153: 0998 | D153: 144 | E153: 29 | G153: 998 | I153: 0 | J153: 0 | K153: 0 | L153: =IF(K154>0, K153/K154, 0) -> 0 | N153: =ROUND(M154*L153,0) -> 0 | O153: 0 | P153: =N153-O153 -> 0 | Q153: 0 | R153: 0 | S153: 0 | T153: 29 | U153: 998 | V153: 144 | W153: 0 | X153: 0 | Y153: 144 | Z153: 29 | AA153: 998 | AB153: 144 | AC153: 0 | AD153: 0
A154: 00290999 | B154: 0029 | C154: 0999 | D154: 145 | E154: 29 | F154: Bernardston | G154: 999 | H154: Total | I154: 3778951.448 | J154: 1 | K154: =SUM(K150:K153) -> 3962675.158 | L154: =SUM(L150:L153) -> 1 | M154: =VLOOKUP(E154,town351,24) -> 2296294 | N154: =SUM(N150:N153) -> 2296294 | O154: 2163661 | P154: =SUM(P150:P153) -> 132633 | Q154: 6.130026839 | R154: 247 | S154: 252.5585413 | T154: 29 | U154: 999 | V154: 145 | W154: 252.5585413 | X154: 3962675.158 | Y154: 145 | Z154: 29 | AA154: 999 | AB154: 145 | AC154: 252.5585413 | AD154: 3962675.158
A155: 00300030 | B155: 0030 | C155: 0030 | D155: 146 | E155: 30 | F155: Beverly | G155: 30 | H155: Beverly | I155: 64124970 | J155: 0.9368655515 | K155: =X155 -> 67719159.89 | L155: =IF(K159>0, K155/K159, 0) -> 0.9319037151 | N155: =ROUND(M159*L155,0) -> 53954926 | O155: 51585549 | P155: =N155-O155 -> 2369377 | Q155: 4.593102227 | R155: 4437 | S155: 4461 | T155: 30 | U155: 30 | V155: 146 | W155: 4461 | X155: 67719159.89 | Y155: 146 | Z155: 30 | AA155: 30 | AB155: 146 | AC155: 4461 | AD155: 67719159.89
A156: 00300817 | B156: 0030 | C156: 0817 | D156: 147 | E156: 30 | F156: Beverly | G156: 817 | H156: Essex North Shore | I156: 4321318.692 | J156: 0.06313444855 | K156: 4948390.195 | L156: =IF(K159>0, K156/K159, 0) -> 0.06809628492 | N156: =ROUND(M159*L156,0) -> 3942607 | O156: 3476299 | P156: =N156-O156 -> 466308 | Q156: 13.41392095 | R156: 207 | S156: 224 | T156: 30 | U156: 817 | V156: 147 | W156: 224 | X156: 4948390.195 | Y156: 147 | Z156: 30 | AA156: 817 | AB156: 147 | AC156: 224 | AD156: 4948390.195
A157: 00300998 | B157: 0030 | C157: 0998 | D157: 148 | E157: 30 | G157: 998 | I157: 0 | J157: 0 | K157: 0 | L157: =IF(K159>0, K157/K159, 0) -> 0 | N157: =ROUND(M159*L157,0) -> 0 | O157: 0 | P157: =N157-O157 -> 0 | Q157: 0 | R157: 0 | S157: 0 | T157: 30 | U157: 998 | V157: 148 | W157: 0 | X157: 0 | Y157: 148 | Z157: 30 | AA157: 998 | AB157: 148 | AC157: 0 | AD157: 0
A158: 00300998 | B158: 0030 | C158: 0998 | D158: 149 | E158: 30 | G158: 998 | I158: 0 | J158: 0 | K158: 0 | L158: =IF(K159>0, K158/K159, 0) -> 0 | N158: =ROUND(M159*L158,0) -> 0 | O158: 0 | P158: =N158-O158 -> 0 | Q158: 0 | R158: 0 | S158: 0 | T158: 30 | U158: 998 | V158: 149 | W158: 0 | X158: 0 | Y158: 149 | Z158: 30 | AA158: 998 | AB158: 149 | AC158: 0 | AD158: 0
A159: 00300999 | B159: 0030 | C159: 0999 | D159: 150 | E159: 30 | F159: Beverly | G159: 999 | H159: Total | I159: 68446288.69 | J159: 1 | K159: =SUM(K155:K158) -> 72667550.09 | L159: =SUM(L155:L158) -> 1 | M159: =VLOOKUP(E159,town351,24) -> 57897533 | N159: =SUM(N155:N158) -> 57897533 | O159: 55061848 | P159: =SUM(P155:P158) -> 2835685 | Q159: 5.149999688 | R159: 4644 | S159: 4685 | T159: 30 | U159: 999 | V159: 150 | W159: 4685 | X159: 72667550.09 | Y159: 150 | Z159: 30 | AA159: 999 | AB159: 150 | AC159: 4685 | AD159: 72667550.09
A160: 00310031 | B160: 0031 | C160: 0031 | D160: 151 | E160: 31 | F160: Billerica | G160: 31 | H160: Billerica | I160: 68911291.64 | J160: 0.8793562068 | K160: =X160 -> 72151964.44 | L160: =IF(K164>0, K160/K164, 0) -> 0.8764526995 | N160: =ROUND(M164*L160,0) -> 57776251 | O160: 55154759 | P160: =N160-O160 -> 2621492 | Q160: 4.752975169 | R160: 4999 | S160: 4983 | T160: 31 | U160: 31 | V160: 151 | W160: 4983 | X160: 72151964.44 | Y160: 151 | Z160: 31 | AA160: 31 | AB160: 151 | AC160: 4983 | AD160: 72151964.44
A161: 00310871 | B161: 0031 | C161: 0871 | D161: 152 | E161: 31 | F161: Billerica | G161: 871 | H161: Shawsheen Valley | I161: 9454325.285 | J161: 0.1206437932 | K161: 10170749.01 | L161: =IF(K164>0, K161/K164, 0) -> 0.1235473005 | N161: =ROUND(M164*L161,0) -> 8144307 | O161: 7566990 | P161: =N161-O161 -> 577317 | Q161: 7.629414073 | R161: 462 | S161: 478 | T161: 31 | U161: 871 | V161: 152 | W161: 478 | X161: 10170749.01 | Y161: 152 | Z161: 31 | AA161: 871 | AB161: 152 | AC161: 478 | AD161: 10170749.01
A162: 00310998 | B162: 0031 | C162: 0998 | D162: 153 | E162: 31 | G162: 998 | I162: 0 | J162: 0 | K162: 0 | L162: =IF(K164>0, K162/K164, 0) -> 0 | N162: =ROUND(M164*L162,0) -> 0 | O162: 0 | P162: =N162-O162 -> 0 | Q162: 0 | R162: 0 | S162: 0 | T162: 31 | U162: 998 | V162: 153 | W162: 0 | X162: 0 | Y162: 153 | Z162: 31 | AA162: 998 | AB162: 153 | AC162: 0 | AD162: 0
A163: 00310998 | B163: 0031 | C163: 0998 | D163: 154 | E163: 31 | G163: 998 | I163: 0 | J163: 0 | K163: 0 | L163: =IF(K164>0, K163/K164, 0) -> 0 | N163: =ROUND(M164*L163,0) -> 0 | O163: 0 | P163: =N163-O163 -> 0 | Q163: 0 | R163: 0 | S163: 0 | T163: 31 | U163: 998 | V163: 154 | W163: 0 | X163: 0 | Y163: 154 | Z163: 31 | AA163: 998 | AB163: 154 | AC163: 0 | AD163: 0
A164: 00310999 | B164: 0031 | C164: 0999 | D164: 155 | E164: 31 | F164: Billerica | G164: 999 | H164: Total | I164: 78365616.92 | J164: 1 | K164: =SUM(K160:K163) -> 82322713.45 | L164: =SUM(L160:L163) -> 1 | M164: =VLOOKUP(E164,town351,24) -> 65920558 | N164: =SUM(N160:N163) -> 65920558 | O164: 62721749 | P164: =SUM(P160:P163) -> 3198809 | Q164: 5.099999683 | R164: 5461 | S164: 5461 | T164: 31 | U164: 999 | V164: 155 | W164: 5461 | X164: 82322713.45 | Y164: 155 | Z164: 31 | AA164: 999 | AB164: 155 | AC164: 5461 | AD164: 82322713.45
A165: 00320032 | B165: 0032 | C165: 0032 | D165: 156 | E165: 32 | F165: Blackstone | G165: 32 | H165: Blackstone | I165: 240365.82 | J165: 0.01231971532 | K165: =X165 -> 162422.64 | L165: =IF(K169>0, K165/K169, 0) -> 0.008171581138 | N165: =ROUND(M169*L165,0) -> 83894 | O165: 120024 | P165: =N165-O165 -> -36130 | Q165: -30.10231287 | R165: 12 | S165: 9 | T165: 32 | U165: 32 | V165: 156 | W165: 9 | X165: 162422.64 | Y165: 156 | Z165: 32 | AA165: 32 | AB165: 156 | AC165: 9 | AD165: 162422.64
A166: 00320622 | B166: 0032 | C166: 0622 | D166: 157 | E166: 32 | F166: Blackstone | G166: 622 | H166: Blackstone Millville | I166: 17984892.02 | J166: 0.9217980736 | K166: 18461158.02 | L166: =IF(K169>0, K166/K169, 0) -> 0.9287920123 | N166: =ROUND(M169*L166,0) -> 9535478 | O166: 8980523 | P166: =N166-O166 -> 554955 | Q166: 6.179539878 | R166: 1212.743034 | S166: 1195.526616 | T166: 32 | U166: 622 | V166: 157 | W166: 1195.526616 | X166: 18461158.02 | Y166: 157 | Z166: 32 | AA166: 622 | AB166: 157 | AC166: 1195.526616 | AD166: 18461158.02
A167: 00320805 | B167: 0032 | C167: 0805 | D167: 158 | E167: 32 | F167: Blackstone | G167: 805 | H167: Blackstone Valley | I167: 1285405.651 | J167: 0.06588221109 | K167: 1252944.735 | L167: =IF(K169>0, K167/K169, 0) -> 0.06303640654 | N167: =ROUND(M169*L167,0) -> 647166 | O167: 641851 | P167: =N167-O167 -> 5315 | Q167: 0.8280738053 | R167: 64 | S167: 60 | T167: 32 | U167: 805 | V167: 158 | W167: 60 | X167: 1252944.735 | Y167: 158 | Z167: 32 | AA167: 805 | AB167: 158 | AC167: 60 | AD167: 1252944.735
A168: 00320998 | B168: 0032 | C168: 0998 | D168: 159 | E168: 32 | G168: 998 | I168: 0 | J168: 0 | K168: 0 | L168: =IF(K169>0, K168/K169, 0) -> 0 | N168: =ROUND(M169*L168,0) -> 0 | O168: 0 | P168: =N168-O168 -> 0 | Q168: 0 | R168: 0 | S168: 0 | T168: 32 | U168: 998 | V168: 159 | W168: 0 | X168: 0 | Y168: 159 | Z168: 32 | AA168: 998 | AB168: 159 | AC168: 0 | AD168: 0
A169: 00320999 | B169: 0032 | C169: 0999 | D169: 160 | E169: 32 | F169: Blackstone | G169: 999 | H169: Total | I169: 19510663.49 | J169: 1 | K169: =SUM(K165:K168) -> 19876525.39 | L169: =SUM(L165:L168) -> 1 | M169: =VLOOKUP(E169,town351,24) -> 10266538 | N169: =SUM(N165:N168) -> 10266538 | O169: 9742398 | P169: =SUM(P165:P168) -> 524140 | Q169: 5.379989608 | R169: 1288.743034 | S169: 1264.526616 | T169: 32 | U169: 999 | V169: 160 | W169: 1264.526616 | X169: 19876525.39 | Y169: 160 | Z169: 32 | AA169: 999 | AB169: 160 | AC169: 1264.526616 | AD169: 19876525.39
A170: 00330033 | B170: 0033 | C170: 0033 | D170: 161 | E170: 33 | F170: Blandford | G170: 33 | H170: Blandford | I170: 223011.53 | J170: 0.1303668337 | K170: =X170 -> 231762.16 | L170: =IF(K174>0, K170/K174, 0) -> 0.1175079663 | N170: =ROUND(M174*L170,0) -> 158363 | O170: 162784 | P170: =N170-O170 -> -4421 | Q170: -2.715868881 | R170: 11 | S170: 11 | T170: 33 | U170: 33 | V170: 161 | W170: 11 | X170: 231762.16 | Y170: 161 | Z170: 33 | AA170: 33 | AB170: 161 | AC170: 11 | AD170: 231762.16
A171: 00330672 | B171: 0033 | C171: 0672 | D171: 162 | E171: 33 | F171: Blandford | G171: 672 | H171: Gateway | I171: 1487634.68 | J171: 0.8696331663 | K171: 1740548.035 | L171: =IF(K174>0, K171/K174, 0) -> 0.8824920337 | N171: =ROUND(M174*L171,0) -> 1189320 | O171: 1085880 | P171: =N171-O171 -> 103440 | Q171: 9.525914466 | R171: 93.49095608 | S171: 104.1428571 | T171: 33 | U171: 672 | V171: 162 | W171: 104.1428571 | X171: 1740548.035 | Y171: 162 | Z171: 33 | AA171: 672 | AB171: 162 | AC171: 104.1428571 | AD171: 1740548.035
A172: 00330998 | B172: 0033 | C172: 0998 | D172: 163 | E172: 33 | G172: 998 | I172: 0 | J172: 0 | K172: 0 | L172: =IF(K174>0, K172/K174, 0) -> 0 | N172: =ROUND(M174*L172,0) -> 0 | O172: 0 | P172: =N172-O172 -> 0 | Q172: 0 | R172: 0 | S172: 0 | T172: 33 | U172: 998 | V172: 163 | W172: 0 | X172: 0 | Y172: 163 | Z172: 33 | AA172: 998 | AB172: 163 | AC172: 0 | AD172: 0
A173: 00330998 | B173: 0033 | C173: 0998 | D173: 164 | E173: 33 | G173: 998 | I173: 0 | J173: 0 | K173: 0 | L173: =IF(K174>0, K173/K174, 0) -> 0 | N173: =ROUND(M174*L173,0) -> 0 | O173: 0 | P173: =N173-O173 -> 0 | Q173: 0 | R173: 0 | S173: 0 | T173: 33 | U173: 998 | V173: 164 | W173: 0 | X173: 0 | Y173: 164 | Z173: 33 | AA173: 998 | AB173: 164 | AC173: 0 | AD173: 0
A174: 00330999 | B174: 0033 | C174: 0999 | D174: 165 | E174: 33 | F174: Blandford | G174: 999 | H174: Total | I174: 1710646.21 | J174: 1 | K174: =SUM(K170:K173) -> 1972310.195 | L174: =SUM(L170:L173) -> 1 | M174: =VLOOKUP(E174,town351,24) -> 1347683 | N174: =SUM(N170:N173) -> 1347683 | O174: 1248664 | P174: =SUM(P170:P173) -> 99019 | Q174: 7.929995579 | R174: 104.4909561 | S174: 115.1428571 | T174: 33 | U174: 999 | V174: 165 | W174: 115.1428571 | X174: 1972310.195 | Y174: 165 | Z174: 33 | AA174: 999 | AB174: 165 | AC174: 115.1428571 | AD174: 1972310.195
A175: 00340034 | B175: 0034 | C175: 0034 | D175: 166 | E175: 34 | F175: Bolton | G175: 34 | H175: Bolton | I175: 17898.5144 | J175: 0.001255557173 | K175: =X175 -> 18620.18633 | L175: =IF(K179>0, K175/K179, 0) -> 0.001272355959 | N175: =ROUND(M179*L175,0) -> 15073 | O175: 14425 | P175: =N175-O175 -> 648 | Q175: 4.49220104 | R175: 1 | S175: 1 | T175: 34 | U175: 34 | V175: 166 | W175: 1 | X175: 18620.18633 | Y175: 166 | Z175: 34 | AA175: 34 | AB175: 166 | AC175: 1 | AD175: 18620.18633
A176: 00340725 | B176: 0034 | C176: 0725 | D176: 167 | E176: 34 | F176: Bolton | G176: 725 | H176: Nashoba | I176: 13413103.7 | J176: 0.9409115297 | K176: 13914177.27 | L176: =IF(K179>0, K176/K179, 0) -> 0.9507845978 | N176: =ROUND(M179*L176,0) -> 11263144 | O176: 10809995 | P176: =N176-O176 -> 453149 | Q176: 4.191944585 | R176: 1002.330902 | S176: 990.6883333 | T176: 34 | U176: 725 | V176: 167 | W176: 990.6883333 | X176: 13914177.27 | Y176: 167 | Z176: 34 | AA176: 725 | AB176: 167 | AC176: 990.6883333 | AD176: 13914177.27
A177: 00340830 | B177: 0034 | C177: 0830 | D177: 168 | E177: 34 | F177: Bolton | G177: 830 | H177: Minuteman | I177: 824433.3679 | J177: 0.05783291313 | K177: 701618.4795 | L177: =IF(K179>0, K177/K179, 0) -> 0.0479430462 | N177: =ROUND(M179*L177,0) -> 567941 | O177: 664434 | P177: =N177-O177 -> -96493 | Q177: -14.52258614 | R177: 38 | S177: 31 | T177: 34 | U177: 830 | V177: 168 | W177: 31 | X177: 701618.4795 | Y177: 168 | Z177: 34 | AA177: 830 | AB177: 168 | AC177: 31 | AD177: 701618.4795
A178: 00340998 | B178: 0034 | C178: 0998 | D178: 169 | E178: 34 | G178: 998 | I178: 0 | J178: 0 | K178: 0 | L178: =IF(K179>0, K178/K179, 0) -> 0 | N178: =ROUND(M179*L178,0) -> 0 | O178: 0 | P178: =N178-O178 -> 0 | Q178: 0 | R178: 0 | S178: 0 | T178: 34 | U178: 998 | V178: 169 | W178: 0 | X178: 0 | Y178: 169 | Z178: 34 | AA178: 998 | AB178: 169 | AC178: 0 | AD178: 0
A179: 00340999 | B179: 0034 | C179: 0999 | D179: 170 | E179: 34 | F179: Bolton | G179: 999 | H179: Total | I179: 14255435.59 | J179: 1 | K179: =SUM(K175:K178) -> 14634415.94 | L179: =SUM(L175:L178) -> 1 | M179: =VLOOKUP(E179,town351,24) -> 11846157 | N179: =SUM(N175:N178) -> 11846158 | O179: 11488854 | P179: =SUM(P175:P178) -> 357304 | Q179: 3.110005576 | R179: 1041.330902 | S179: 1022.688333 | T179: 34 | U179: 999 | V179: 170 | W179: 1022.688333 | X179: 14634415.94 | Y179: 170 | Z179: 34 | AA179: 999 | AB179: 170 | AC179: 1022.688333 | AD179: 14634415.94
A180: 00350035 | B180: 0035 | C180: 0035 | D180: 171 | E180: 35 | F180: Boston | G180: 35 | H180: Boston | I180: 1220875807 | J180: 1 | K180: =X180 -> 1258580176 | L180: =IF(K184>0, K180/K184, 0) -> 1 | N180: =ROUND(M184*L180,0) -> 1038328645 | O180: 1007222540 | P180: =N180-O180 -> 31106105 | Q180: 3.088305093 | R180: 57616 | S180: 55975 | T180: 35 | U180: 35 | V180: 171 | W180: 55975 | X180: 1258580176 | Y180: 171 | Z180: 35 | AA180: 35 | AB180: 171 | AC180: 55975 | AD180: 1258580176
A181: 00350998 | B181: 0035 | C181: 0998 | D181: 172 | E181: 35 | G181: 998 | I181: 0 | J181: 0 | K181: 0 | L181: =IF(K184>0, K181/K184, 0) -> 0 | N181: =ROUND(M184*L181,0) -> 0 | O181: 0 | P181: =N181-O181 -> 0 | Q181: 0 | R181: 0 | S181: 0 | T181: 35 | U181: 998 | V181: 172 | W181: 0 | X181: 0 | Y181: 172 | Z181: 35 | AA181: 998 | AB181: 172 | AC181: 0 | AD181: 0
A182: 00350998 | B182: 0035 | C182: 0998 | D182: 173 | E182: 35 | G182: 998 | I182: 0 | J182: 0 | K182: 0 | L182: =IF(K184>0, K182/K184, 0) -> 0 | N182: =ROUND(M184*L182,0) -> 0 | O182: 0 | P182: =N182-O182 -> 0 | Q182: 0 | R182: 0 | S182: 0 | T182: 35 | U182: 998 | V182: 173 | W182: 0 | X182: 0 | Y182: 173 | Z182: 35 | AA182: 998 | AB182: 173 | AC182: 0 | AD182: 0
A183: 00350998 | B183: 0035 | C183: 0998 | D183: 174 | E183: 35 | G183: 998 | I183: 0 | J183: 0 | K183: 0 | L183: =IF(K184>0, K183/K184, 0) -> 0 | N183: =ROUND(M184*L183,0) -> 0 | O183: 0 | P183: =N183-O183 -> 0 | Q183: 0 | R183: 0 | S183: 0 | T183: 35 | U183: 998 | V183: 174 | W183: 0 | X183: 0 | Y183: 174 | Z183: 35 | AA183: 998 | AB183: 174 | AC183: 0 | AD183: 0
A184: 00350999 | B184: 0035 | C184: 0999 | D184: 175 | E184: 35 | F184: Boston | G184: 999 | H184: Total | I184: 1220875807 | J184: 1 | K184: =SUM(K180:K183) -> 1258580176 | L184: =SUM(L180:L183) -> 1 | M184: =VLOOKUP(E184,town351,24) -> 1038328645 | N184: =SUM(N180:N183) -> 1038328645 | O184: 1007222540 | P184: =SUM(P180:P183) -> 31106105 | Q184: 3.088305093 | R184: 57616 | S184: 55975 | T184: 35 | U184: 999 | V184: 175 | W184: 55975 | X184: 1258580176 | Y184: 175 | Z184: 35 | AA184: 999 | AB184: 175 | AC184: 55975 | AD184: 1258580176
A185: 00360036 | B185: 0036 | C185: 0036 | D185: 176 | E185: 36 | F185: Bourne | G185: 36 | H185: Bourne | I185: 24040569.22 | J185: 0.8360417376 | K185: =X185 -> 24467743.6 | L185: =IF(K189>0, K185/K189, 0) -> 0.8173219586 | N185: =ROUND(M189*L185,0) -> 20185888 | O185: 19771933 | P185: =N185-O185 -> 413955 | Q185: 2.093649619 | R185: 1624 | S185: 1585 | T185: 36 | U185: 36 | V185: 176 | W185: 1585 | X185: 24467743.6 | Y185: 176 | Z185: 36 | AA185: 36 | AB185: 176 | AC185: 1585 | AD185: 24467743.6
A186: 00360879 | B186: 0036 | C186: 0879 | D186: 177 | E186: 36 | F186: Bourne | G186: 879 | H186: Upper Cape Cod | I186: 4714656.911 | J186: 0.1639582624 | K186: 5468737.785 | L186: =IF(K189>0, K186/K189, 0) -> 0.1826780414 | N186: =ROUND(M189*L186,0) -> 4511709 | O186: 3877524 | P186: =N186-O186 -> 634185 | Q186: 16.35541134 | R186: 214.7404844 | S186: 239.0720721 | T186: 36 | U186: 879 | V186: 177 | W186: 239.0720721 | X186: 5468737.785 | Y186: 177 | Z186: 36 | AA186: 879 | AB186: 177 | AC186: 239.0720721 | AD186: 5468737.785
A187: 00360998 | B187: 0036 | C187: 0998 | D187: 178 | E187: 36 | G187: 998 | I187: 0 | J187: 0 | K187: 0 | L187: =IF(K189>0, K187/K189, 0) -> 0 | N187: =ROUND(M189*L187,0) -> 0 | O187: 0 | P187: =N187-O187 -> 0 | Q187: 0 | R187: 0 | S187: 0 | T187: 36 | U187: 998 | V187: 178 | W187: 0 | X187: 0 | Y187: 178 | Z187: 36 | AA187: 998 | AB187: 178 | AC187: 0 | AD187: 0
A188: 00360998 | B188: 0036 | C188: 0998 | D188: 179 | E188: 36 | G188: 998 | I188: 0 | J188: 0 | K188: 0 | L188: =IF(K189>0, K188/K189, 0) -> 0 | N188: =ROUND(M189*L188,0) -> 0 | O188: 0 | P188: =N188-O188 -> 0 | Q188: 0 | R188: 0 | S188: 0 | T188: 36 | U188: 998 | V188: 179 | W188: 0 | X188: 0 | Y188: 179 | Z188: 36 | AA188: 998 | AB188: 179 | AC188: 0 | AD188: 0
A189: 00360999 | B189: 0036 | C189: 0999 | D189: 180 | E189: 36 | F189: Bourne | G189: 999 | H189: Total | I189: 28755226.13 | J189: 1 | K189: =SUM(K185:K188) -> 29936481.39 | L189: =SUM(L185:L188) -> 1 | M189: =VLOOKUP(E189,town351,24) -> 24697597 | N189: =SUM(N185:N188) -> 24697597 | O189: 23649457 | P189: =SUM(P185:P188) -> 1048140 | Q189: 4.431983364 | R189: 1838.740484 | S189: 1824.072072 | T189: 36 | U189: 999 | V189: 180 | W189: 1824.072072 | X189: 29936481.39 | Y189: 180 | Z189: 36 | AA189: 999 | AB189: 180 | AC189: 1824.072072 | AD189: 29936481.39
A190: 00370037 | B190: 0037 | C190: 0037 | D190: 181 | E190: 37 | F190: Boxborough | G190: 37 | H190: Boxborough | I190: 74532.86936 | J190: 0.006226592813 | K190: =X190 -> 58544.93595 | L190: =IF(K194>0, K190/K194, 0) -> 0.004640740143 | N190: =ROUND(M194*L190,0) -> 45409 | O190: 57871 | P190: =N190-O190 -> -12462 | Q190: -21.53410171 | R190: 4 | S190: 3 | T190: 37 | U190: 37 | V190: 181 | W190: 3 | X190: 58544.93595 | Y190: 181 | Z190: 37 | AA190: 37 | AB190: 181 | AC190: 3 | AD190: 58544.93595
A191: 00370600 | B191: 0037 | C191: 0600 | D191: 182 | E191: 37 | F191: Boxborough | G191: 600 | H191: Acton Boxborough | I191: 11895556.01 | J191: 0.9937734072 | K191: 12556885.82 | L191: =IF(K194>0, K191/K194, 0) -> 0.9953592599 | N191: =ROUND(M194*L191,0) -> 9739459 | O191: 9236267 | P191: =N191-O191 -> 503192 | Q191: 5.448001882 | R191: 865.7771599 | S191: 874.0318382 | T191: 37 | U191: 600 | V191: 182 | W191: 874.0318382 | X191: 12556885.82 | Y191: 182 | Z191: 37 | AA191: 600 | AB191: 182 | AC191: 874.0318382 | AD191: 12556885.82
A192: 00370830 | B192: 0037 | C192: 0830 | D192: 183 | E192: 37 | G192: 998 | I192: 0 | J192: 0 | K192: 0 | L192: =IF(K194>0, K192/K194, 0) -> 0 | N192: =ROUND(M194*L192,0) -> 0 | O192: 0 | P192: =N192-O192 -> 0 | Q192: 0 | R192: 0 | S192: 0 | T192: 37 | U192: 998 | V192: 183 | W192: 0 | X192: 0 | Y192: 183 | Z192: 37 | AA192: 998 | AB192: 183 | AC192: 0 | AD192: 0
A193: 00370998 | B193: 0037 | C193: 0998 | D193: 184 | E193: 37 | G193: 998 | I193: 0 | J193: 0 | K193: 0 | L193: =IF(K194>0, K193/K194, 0) -> 0 | N193: =ROUND(M194*L193,0) -> 0 | O193: 0 | P193: =N193-O193 -> 0 | Q193: 0 | R193: 0 | S193: 0 | T193: 37 | U193: 998 | V193: 184 | W193: 0 | X193: 0 | Y193: 184 | Z193: 37 | AA193: 998 | AB193: 184 | AC193: 0 | AD193: 0
A194: 00370999 | B194: 0037 | C194: 0999 | D194: 185 | E194: 37 | F194: Boxborough | G194: 999 | H194: Total | I194: 11970088.87 | J194: 1 | K194: =SUM(K190:K193) -> 12615430.76 | L194: =SUM(L190:L193) -> 1 | M194: =VLOOKUP(E194,town351,24) -> 9784868 | N194: =SUM(N190:N193) -> 9784868 | O194: 9294138 | P194: =SUM(P190:P193) -> 490730 | Q194: 5.279994767 | R194: 869.7771599 | S194: 877.0318382 | T194: 37 | U194: 999 | V194: 185 | W194: 877.0318382 | X194: 12615430.76 | Y194: 185 | Z194: 37 | AA194: 999 | AB194: 185 | AC194: 877.0318382 | AD194: 12615430.76
A195: 00380038 | B195: 0038 | C195: 0038 | D195: 186 | E195: 38 | F195: Boxford | G195: 38 | H195: Boxford | I195: 9386167.008 | J195: 0.5245138492 | K195: =X195 -> 9544654.414 | L195: =IF(K199>0, K195/K199, 0) -> 0.5150928605 | N195: =ROUND(M199*L195,0) -> 7685047 | O195: 7523174 | P195: =N195-O195 -> 161873 | Q195: 2.151658329 | R195: 749 | S195: 728 | T195: 38 | U195: 38 | V195: 186 | W195: 728 | X195: 9544654.414 | Y195: 186 | Z195: 38 | AA195: 38 | AB195: 186 | AC195: 728 | AD195: 9544654.414
A196: 00380705 | B196: 0038 | C196: 0705 | D196: 187 | E196: 38 | F196: Boxford | G196: 705 | H196: Masconomet | I196: 7799035.309 | J196: 0.4358224211 | K196: 8101672.854 | L196: =IF(K199>0, K196/K199, 0) -> 0.4372200044 | N196: =ROUND(M199*L196,0) -> 6523205 | O196: 6251061 | P196: =N196-O196 -> 272144 | Q196: 4.353564939 | R196: 567.8766578 | S196: 566.1180739 | T196: 38 | U196: 705 | V196: 187 | W196: 566.1180739 | X196: 8101672.854 | Y196: 187 | Z196: 38 | AA196: 705 | AB196: 187 | AC196: 566.1180739 | AD196: 8101672.854
A197: 00380817 | B197: 0038 | C197: 0817 | D197: 188 | E197: 38 | F197: Boxford | G197: 817 | H197: Essex North Shore | I197: 709781.814 | J197: 0.03966372973 | K197: 883641.1062 | L197: =IF(K199>0, K197/K199, 0) -> 0.04768713515 | N197: =ROUND(M199*L197,0) -> 711479 | O197: 568902 | P197: =N197-O197 -> 142577 | Q197: 25.06178569 | R197: 33.99999999 | S197: 40 | T197: 38 | U197: 817 | V197: 188 | W197: 40 | X197: 883641.1062 | Y197: 188 | Z197: 38 | AA197: 817 | AB197: 188 | AC197: 40 | AD197: 883641.1062
A198: 00380998 | B198: 0038 | C198: 0998 | D198: 189 | E198: 38 | G198: 998 | I198: 0 | J198: 0 | K198: 0 | L198: =IF(K199>0, K198/K199, 0) -> 0 | N198: =ROUND(M199*L198,0) -> 0 | O198: 0 | P198: =N198-O198 -> 0 | Q198: 0 | R198: 0 | S198: 0 | T198: 38 | U198: 998 | V198: 189 | W198: 0 | X198: 0 | Y198: 189 | Z198: 38 | AA198: 998 | AB198: 189 | AC198: 0 | AD198: 0
A199: 00380999 | B199: 0038 | C199: 0999 | D199: 190 | E199: 38 | F199: Boxford | G199: 999 | H199: Total | I199: 17894984.13 | J199: 1 | K199: =SUM(K195:K198) -> 18529968.37 | L199: =SUM(L195:L198) -> 1 | M199: =VLOOKUP(E199,town351,24) -> 14919731 | N199: =SUM(N195:N198) -> 14919731 | O199: 14343137 | P199: =SUM(P195:P198) -> 576594 | Q199: 4.019999251 | R199: 1350.876658 | S199: 1334.118074 | T199: 38 | U199: 999 | V199: 190 | W199: 1334.118074 | X199: 18529968.37 | Y199: 190 | Z199: 38 | AA199: 999 | AB199: 190 | AC199: 1334.118074 | AD199: 18529968.37
A200: 00390039 | B200: 0039 | C200: 0039 | D200: 191 | E200: 39 | F200: Boylston | G200: 39 | H200: Boylston | I200: 156188.61 | J200: 0.01820345373 | K200: =X200 -> 54140.88 | L200: =IF(K204>0, K200/K204, 0) -> 0.005945150253 | N200: =ROUND(M204*L200,0) -> 44053 | O200: 128856 | P200: =N200-O200 -> -84803 | Q200: -65.8122245 | R200: 9 | S200: 3 | T200: 39 | U200: 39 | V200: 191 | W200: 3 | X200: 54140.88 | Y200: 191 | Z200: 39 | AA200: 39 | AB200: 191 | AC200: 3 | AD200: 54140.88
... 1565 more rows

Sheet Locked sheet (hidden)
A1: 1
A2: 2
A3: 3
A4: 4
A5: 5

Sheet MoreAboutData
A1: =CYr&" Chapter 70 and Net School Spending Formula" -> FY27 Chapter 70 and Net School Spending Formula | C1: FY18 Chapter 70 and Net School Spending Formula Spreadsheet | D1: FY18 Chapter 70 and Net School Spending Formula Spreadsheet | E1: FY18 Chapter 70 and Net School Spending Formula Spreadsheet | F1: FY18 Chapter 70 and Net School Spending Formula Spreadsheet | G1: Return to Index
A2: More about the data
A3: TABLE OF CONTENTS
A4: Index | G4: Back to the top
A5: Select the district you're interested in from the dropdown list on this sheet.
A6: Foundation Budget | G6: Back to the top
A7: This report displays the foundation enrollment and foundation budget for a single district. A district’s foundation budget is updated each year and it is derived by multiplying the number of pupils in thirteen enrollment categories by cost rates in eleven functional areas.
A9: Key Terms
A10: Foundation Enrollment: A count of the students for whom a school district is financially responsible on October 1st of any given year. Inflation: Foundation budget rates are adjusted each year by a statutorily defined inflationary factor. It affects all districts in the same way. The general inflation rate applied to this file is 2.76%. The GIC inflation rate applied to this file is 8.29%. Wage Adjustment Factor (WAF): Gives a district credit for having higher school costs if it is located in a geographic area where average wages are higher than in other areas of the state. Calculated using the latest available average wage data supplied by the state’s Executive Office of Labor and Workforce Development (EOLWD). Low-Income Group: Determined based on the relative concentration of low-income students served in the district. Corresponds to a foundation budget rate for low-income students.
A11: Municipal Contribution | G11: Back to the top
A12: This report displays the required local contribution for a single municipality. Each municipality has a target local share of its foundation budget, based on local ability to pay. The required local contribution for each municipality is based on the previous year's required contribution, and includes some transition factors so that the shift toward the target levels occurs over a period of several years.
A14: Key Terms
A15: Equalized Valuation (EQV): Calculated by DOR every two years. Full and fair cash value of all taxable property for each municipality. Income: Derived annually by DOR from state income tax returns. Includes all forms of wage, pension, interest, business, investment, and capital gains income. Combined Effort Yield (CEY): Sum of property and income effort. Based on DESE-calculated property and income percentages, which, when applied to all municipalities in the Commonwealth, yields 59% of statewide foundation coming from local revenue. Target Local Contribution/Share: Calculated for each municipality as an equitable share of its foundation budget based on property wealth and income. Municipal Revenue Growth Factor (MRGF): Calculated each year by DOR and quantifies the most recent annual percentage change in each community's local revenues (such as the annual increase in the Proposition 2½ levy limit) that should be available for schools.
A16: Regional Allocation | G16: Back to the top
A17: This report displays the allocation of a municipality's required local contribution across the districts to which it belongs. The municipality's required contribution is allocated in direct proportion to the district's share of the municipality's foundation budget.
A18: Summary | G18: Back to the top
A19: This report displays the Chapter 70 aid calculation for a single district. The aid calculation begins with each district's prior year Chapter 70 amount. The difference between each district's foundation budget and its required contribution equals foundation aid. On the right-hand side, there is a comparison to the prior year.
A20: Key Terms
A21: Foundation Aid: The amount of aid needed by a district to reach its foundation budget, after factoring in this year's required local contribution. Foundation budget - Required Local Contribution = Foundation Aid Minimum Aid: A guaranteed per pupil aid increase over the prior year. Required Net School Spending (NSS): The sum of this year's required local contribution and Chapter 70 aid. A district must spend this amount to be in compliance.
A22: Regional District Members | G22: Back to the top
A23: This report displays relevant data for municipal members of a single regional district.
A24: Key Terms
A25: Foundation Enrollment: Foundation enrollment for the selected district, in total and by member. Required Minimum Contribution: Total required minimum contribution for the selected district, in total and by member.
A26: ="Comparison to "&PYr -> Comparison to FY26 | G26: Back to the top
A27: This report displays prior year and current year foundation enrollment, foundation budget, required local contribution and Chapter 70 aid for all operating districts.
A29: Rates | G29: Back to the top
A30: ="This sheet displays the "&CYr&" foundation budget rates." -> This sheet displays the FY27 foundation budget rates.
A31: Townwide Contributions | G31: Back to the top
A32: ="This sheet calculates the "&CYr&" required local contribution for each municipality" -> This sheet calculates the FY27 required local contribution for each municipality
A33: Aid436 | G33: Back to the top
A34: ="This sheet calculates the "&CYr&" Chapter 70 aid for each district." -> This sheet calculates the FY27 Chapter 70 aid for each district.

Sheet Foundation Budget
A1: Return to Index | U1: More about the data
A2: Massachusetts Department of Elementary and Secondary Education
A3: Office of School Finance
A4: =parameters!B1&" Chapter 70 Foundation Budget" -> FY27 Chapter 70 Foundation Budget
A5: =lea -> 999 | B5: =IF(lea=999,"State total cannot be computed on this page; Please enter an lea code on the index sheet",VLOOKUP(A5,dist915,2)) -> State total cannot be computed on this page; Please enter an lea code on the index sheet
F6: Base Foundation Components | N6: Incremental Costs Above the Base
C7: 1 | D7: 2 | E7: 3 | F7: 4 | G7: 5 | H7: 6 | I7: 7 | K7: 8 | L7: 9 | M7: 10 | N7: 11 | O7: 12 | P7: 13 | Q7: 14
D8: ------ Kindergarten ------ | G8: Junior/ | H8: High | K8: Special Ed | L8: Special Ed | M8: English learners | N8: English learners | O8: English learners
C9: Pre-school | D9: Half-Day | E9: Full-Day | F9: Elementary | G9: Middle | H9: School | I9: Vocational | K9: In-District | L9: Tuitioned-Out | M9: PK-5 | N9: 6-8 | O9: High School/Voc | P9: Low income | Q9: TOTAL
B10: Foundation Enrollment | C10: =IF($A$5<>999,VLOOKUP(lea,dist915,VALUE(C$7)+2),0) -> 0 | D10: 0 | E10: 0 | F10: 0 | G10: 0 | H10: 0 | I10: =IF($A$5<>999,VLOOKUP(lea,dist915,VALUE(I$7)+2),0) -> 0 | K10: =IF($A$5<>999,VLOOKUP(lea,dist915,VALUE(K$7)+2),0) -> 0 | L10: 0 | M10: 0 | N10: 0 | O10: 0 | P10: 0 | Q10: 0
A12: 1 | B12: Administration | C12: =(VLOOKUP(VALUE(C$7),newrates,$A12+2)*C$10*waf) -> 0 | D12: =(VLOOKUP(VALUE(D$7),newrates,$A12+2)*D$10*waf) -> 0 | E12: 0 | F12: 0 | G12: 0 | H12: 0 | I12: 0 | K12: =(VLOOKUP(VALUE(K$7),newrates,$A12+2)*K$10*waf) -> 0 | L12: 0 | M12: 0 | N12: 0 | O12: 0 | P12: =IF(C29=0,0,(VLOOKUP(VALUE(P$7)+$C$29-1, newrates, $A12+2, FALSE))*P$10*waf) -> 0 | Q12: =SUM(C12:P12) -> 0
A13: 2 | B13: Instructional Leadership | C13: 0 | D13: 0 | E13: 0 | F13: 0 | G13: 0 | H13: 0 | I13: 0 | K13: 0 | L13: 0 | M13: 0 | N13: 0 | O13: 0 | P13: =IF(C29=0,0,(VLOOKUP(VALUE(P$7)+$C$29-1, newrates, $A13+2, FALSE))*P$10*waf) -> 0 | Q13: 0
A14: 3 | B14: Classroom & Specialist Teachers | C14: 0 | D14: 0 | E14: 0 | F14: 0 | G14: 0 | H14: 0 | I14: 0 | K14: 0 | L14: 0 | M14: 0 | N14: 0 | O14: 0 | P14: =IF(C29=0,0,(VLOOKUP(VALUE(P$7)+$C$29-1, newrates, $A14+2, FALSE))*P$10*waf) -> 0 | Q14: 0
A15: 4 | B15: Other Teaching Services | C15: 0 | D15: 0 | E15: 0 | F15: 0 | G15: 0 | H15: 0 | I15: 0 | K15: 0 | L15: 0 | M15: 0 | N15: 0 | O15: 0 | P15: =IF(C29=0,0,(VLOOKUP(VALUE(P$7)+$C$29-1, newrates, $A15+2, FALSE))*P$10*waf) -> 0 | Q15: 0
A16: 5 | B16: Professional Development | C16: 0 | D16: 0 | E16: 0 | F16: 0 | G16: 0 | H16: 0 | I16: 0 | K16: 0 | L16: 0 | M16: 0 | N16: 0 | O16: 0 | P16: =IF(C29=0,0,(VLOOKUP(VALUE(P$7)+$C$29-1, newrates, $A16+2, FALSE))*P$10*waf) -> 0 | Q16: 0
A17: 6 | B17: Instructional Materials, Equipment & Technology* | C17: =(VLOOKUP(VALUE(C$7),newrates,$A17+2)*C$10) -> 0 | D17: 0 | E17: 0 | F17: 0 | G17: 0 | H17: 0 | I17: 0 | K17: =(VLOOKUP(VALUE(K$7),newrates,$A17+2)*K$10) -> 0 | L17: =(VLOOKUP(VALUE(L$7),newrates,$A17+2)*L$10) -> 0 | M17: =(VLOOKUP(VALUE(M$7),newrates,$A17+2)*M$10) -> 0 | N17: =(VLOOKUP(VALUE(N$7),newrates,$A17+2)*N$10) -> 0 | O17: =(VLOOKUP(VALUE(O$7),newrates,$A17+2)*O$10) -> 0 | P17: =IF(C29=0,0,(VLOOKUP(VALUE(P$7)+$C$29-1, newrates, $A17+2, FALSE))*P$10) -> 0 | Q17: 0
A18: 7 | B18: Guidance & Psychological Services | C18: =(VLOOKUP(VALUE(C$7),newrates,$A18+2)*C$10*waf) -> 0 | D18: 0 | E18: 0 | F18: 0 | G18: 0 | H18: 0 | I18: 0 | K18: =(VLOOKUP(VALUE(K$7),newrates,$A18+2)*K$10*waf) -> 0 | L18: 0 | M18: 0 | N18: 0 | O18: 0 | P18: =IF(C29=0,0,(VLOOKUP(VALUE(P$7)+$C$29-1, newrates, $A18+2, FALSE))*P$10*waf) -> 0 | Q18: 0
A19: 8 | B19: Pupil Services | C19: 0 | D19: 0 | E19: 0 | F19: 0 | G19: 0 | H19: 0 | I19: 0 | K19: 0 | L19: 0 | M19: 0 | N19: 0 | O19: 0 | P19: =IF(C29=0,0,(VLOOKUP(VALUE(P$7)+$C$29-1, newrates, $A19+2, FALSE))*P$10*waf) -> 0 | Q19: 0
A20: 9 | B20: Operations & Maintenance | C20: 0 | D20: 0 | E20: 0 | F20: 0 | G20: 0 | H20: 0 | I20: 0 | K20: 0 | L20: 0 | M20: 0 | N20: 0 | O20: 0 | P20: =IF(C29=0,0,(VLOOKUP(VALUE(P$7)+$C$29-1, newrates, $A20+2, FALSE))*P$10*waf) -> 0 | Q20: 0
A21: 10 | B21: Employee Benefits/Fixed Charges* | C21: =(VLOOKUP(VALUE(C$7),newrates,$A21+2)*C$10) -> 0 | D21: 0 | E21: 0 | F21: 0 | G21: 0 | H21: 0 | I21: 0 | K21: =(VLOOKUP(VALUE(K$7),newrates,$A21+2)*K$10) -> 0 | L21: =(VLOOKUP(VALUE(L$7),newrates,$A21+2)*L$10) -> 0 | M21: =(VLOOKUP(VALUE(M$7),newrates,$A21+2)*M$10) -> 0 | N21: =(VLOOKUP(VALUE(N$7),newrates,$A21+2)*N$10) -> 0 | O21: =(VLOOKUP(VALUE(O$7),newrates,$A21+2)*O$10) -> 0 | P21: =IF(C29=0,0,(VLOOKUP(VALUE(P$7)+$C$29-1, newrates, $A21+2, FALSE))*P$10) -> 0 | Q21: 0
A22: 11 | B22: Special Education Tuition* | C22: 0 | D22: 0 | E22: 0 | F22: 0 | G22: 0 | H22: 0 | I22: 0 | K22: =(VLOOKUP(VALUE(K$7)-2,newrates,$A22+2)*K$10) -> 0 | L22: =(VLOOKUP(VALUE(L$7),newrates,$A22+2)*L$10) -> 0 | M22: =(VLOOKUP(VALUE(M$7),newrates,$A22+2)*M$10) -> 0 | N22: =(VLOOKUP(VALUE(N$7),newrates,$A22+2)*N$10) -> 0 | O22: =(VLOOKUP(VALUE(O$7)-2,newrates,$A22+2)*O$10) -> 0 | P22: =IF(C29=0,0,(VLOOKUP(VALUE(P$7)+$C$29-1, newrates, $A22+2, FALSE))*P$10) -> 0 | Q22: 0
A24: 12 | B24: Total | C24: =SUM(C12:C22) -> 0 | D24: =SUM(D12:D22) -> 0 | E24: =SUM(E12:E22) -> 0 | F24: 0 | G24: 0 | H24: 0 | I24: =SUM(I12:I22) -> 0 | K24: 0 | L24: 0 | M24: 0 | N24: 0 | O24: 0 | P24: 0 | Q24: =SUM(Q12:Q23) -> 0
A26: 13 | B26: Wage Adjustment Factor | C26: =VLOOKUP(lea,dist915,17) -> 1 | N26: Foundation Budget per Pupil | Q26: =IFERROR(IF(A5<>999,Q24/Q10," "),"") -> 
B27: *The wage adjustment factor is applied to underlying rates in all functions except instructional equipment, benefits and special education tuition.
A28: 14 | B28: Low-income percentage | C28: =VLOOKUP(lea,dist915,19) -> 0 | L28: English learner foundation budget as % total foundation budget | Q28: =IFERROR(IF(A5=999,"",SUM(M24:O24)/Q24),"") -> 
A29: 15 | B29: Low-income group | C29: =VLOOKUP(lea,dist915,18) -> 0 | L29: Low-income foundation budget as % total foundation budget | Q29: =IFERROR(IF(A5=999,"",P24/Q24),"") -> 
B32: Total foundation enrollment (column 14) does not include incremental costs above the base. The pupils are already counted in columns 1 to 7. | K32: Low-income group | L32: Low-income %
B33: Total foundation enrollment assigns pupils in pre-kindergarten and half-time kindergarten an enrollment count of .5. | K33: Group 1 | L33: 0-5.99%
B34: Special education in-district enrollment is an assumed percentage, representing 3.97 percent of K-12 non-vocational enrollment and | K34: Group 2 | L34: 6-11.99%
B35: 4.97 percent of vocational enrollment. | K35: Group 3 | L35: 12-17.99%
B36: Special education tuitioned-out enrollment is also an assumed percentage, representing 1 percent of non-vocational K-12 enrollment. | K36: Group 4 | L36: 18-23.99%
B37: Low-income enrollment is based on: (1) participation in Supplemental Nutrition Assistance Program (SNAP), | K37: Group 5 | L37: 24-29.99%
B38: the Transitional Assistance for Families with Dependent Children (TAFDC), MassHealth (Medicaid), or foster care; | K38: Group 6 | L38: 30-35.99%
B39: (2) homeless designation through the McKinney-Vento Homeless Education Assistance program; | K39: Group 7 | L39: 36-41.99%
B40: or (3) verification as low income through a supplemental data collection process. | K40: Group 8 | L40: 42-47.99%
B41: Low-income and English learner foundation budget increments are based on the number of students attending school in the district | K41: Group 9 | L41: 48-53.99%
B42: or district residents who attend charter schools. | K42: Group 10 | L42: 54-69.99%
B43: The low-income percentage is the ratio of the low-income enrollment to: | K43: Group 11 | L43: 70-79.99%
B44: the total students attending school in the district and the total resident students attending charter schools. | K44: Group 12 | L44: 80%+
B46: Each component of the foundation budget represents the enrollment in row 10 multiplied by the appropriate statewide foundation allotment.
B47: The foundation budget shown on this page may differ from the final number used in the formula, due to rounding error.
B50: Return to Index

Sheet Municipal Contribution
M1: =IF(VLOOKUP(A6,town351,18)>0,"lo","hi") -> hi
A2: Return to Index | G2: More about the data
A3: Massachusetts Department of Elementary and Secondary Education
A4: Office of School Finance
A5: =parameters!B1&" Chapter 70 Determination of City and Town Total Required Contribution" -> FY27 Chapter 70 Determination of City and Town Total Required Contribution
A6: =lea -> 999 | B6: =IF(lea>351, "This lea code does not refer to a city or a town - this table shows municipal data only",VLOOKUP(A6,aidcalc,2)) -> This lea code does not refer to a city or a town - this table shows municipal data only
A8: Effort Goal | E8: =parameters!B1&" Increments Toward Goal" -> FY27 Increments Toward Goal
A10: 1) | B10: 2024 equalized valuation | C10: =IF(A6<352,VLOOKUP($A$6,town351,3)," ") ->  | E10: 13) | F10: =PYr&" required local contribution" -> FY26 required local contribution | G10: =IF(A6<352,VLOOKUP($A$6,town351,14)," ") -> 
A11: 2) | B11: Uniform property percentage | C11: =IF(A6<352,'Townwide Contributions'!D5," ") ->  | E11: 14) | F11: Municipal revenue growth factor (DOR) | G11: =IF(A$6<352,VLOOKUP($A$6,town351,15)," ") -> 
A12: 3) | B12: Local effort from property wealth | C12: =IF(A6<352,VLOOKUP($A$6,town351,4)," ") ->  | E12: 15) | F12: =parameters!B1&" preliminary contribution (13 raised by 14)" -> FY27 preliminary contribution (13 raised by 14) | G12: =IF(A$6<352,VLOOKUP($A$6,town351,16)," ") -> 
E13: 16) | F13: Preliminary contribution pct of foundation (15 / 8) | G13: =IF(A$6<352,VLOOKUP($A$6,town351,17)/100," ") -> 
A14: 4) | B14: 2023 income | C14: =IF(A6<352,VLOOKUP($A$6,town351,5)," ") -> 
A15: 5) | B15: Uniform income percentage | C15: =IF(A6<352,'Townwide Contributions'!F5," ") ->  | E15: If preliminary contribution is above the target share:
A16: 6) | B16: Local effort from income | C16: =IF(A6<352,VLOOKUP($A$6,town351,6)," ") ->  | E16: 17) | F16: Excess local effort (15 - 10) | G16: =IF(AND(A$6<352,M$1="hi"),VLOOKUP($A$6,town351,21)," ") -> 
E17: 18) | F17: =parameters!$C$50&" reduction toward target (17 x "&parameters!$C$50&")" -> 100% reduction toward target (17 x 100%) | G17: =IF(AND(A$6<352,M$1="hi"),VLOOKUP($A$6,town351,22)," ") -> 
A18: 7) | B18: Combined effort yield (3 + 6) | C18: =IF(A6<352,VLOOKUP($A$6,town351,7)," ") ->  | E18: 19) | F18: =parameters!B1&" required local contribution (15 - 18), capped at 90% of foundation" -> FY27 required local contribution (15 - 18), capped at 90% of foundation | G18: =IF(AND(A$6<352,M$1="hi"),VLOOKUP($A$6,town351,24)," ") -> 
E19: 20) | F19: Contribution as percentage of foundation (19 / 8) | G19: =IF(AND(A$6<352,M$1="hi"),VLOOKUP($A$6,town351,25)/100," ") -> 
A20: 8) | B20: =parameters!B1&" Foundation budget" -> FY27 Foundation budget | C20: =IF(A6<352,VLOOKUP($A$6,town351,8)," ") -> 
A21: 9) | B21: Maximum local contribution (82.5% * 8) | C21: =IF(A6<352,VLOOKUP($A$6,town351,10)," ") ->  | E21: If preliminary contribution is below the target share:
E22: 21) | F22: Shortfall from target local share (10 - 15) | G22: =IF(AND(A$6<352,M1="lo"),-1*VLOOKUP($A$6,town351,27)," ") -> 
A23: 10) | B23: Target local contribution (lesser of 7 or 9) | C23: =IF(A6<352,VLOOKUP($A$6,town351,11)," ") ->  | E23: 22) | F23: Shortfall percentage (11 - 16) | G23: =IF(AND(A$6<352,M1="lo"),VLOOKUP($A$6,town351,18)/100," ") -> 
E24: 23) | F24: Added increment toward target (13 x 1% or 2%)* | G24: =IF(AND(A$6<352,M1="lo"),VLOOKUP($A$6,town351,20)," ") -> 
A25: 11) | B25: Target local share (10 as % of 8) | C25: =IF(A6<352,VLOOKUP(lea,town351,12)/100," ") ->  | F25: *1% if shortfall is between 2.5% and 7.5%; 2% if shortfall > 7.5%
A26: 12) | B26: Target aid share (100% minus 11) | C26: =IF(A6<352,VLOOKUP(lea,aidcalc,13)/100," ") ->  | E26: 24) | F26: Special increment toward 82.5% target** | G26: =IF(AND(A$6<352,M1="lo"),VLOOKUP($A$6,town351,23)," ") -> 
F27: **if combined effort yield > 175% foundation
F28: Combined effort yield as % of foundation | G28: =IF(AND(A$6<352,M1="lo"),IF(VLOOKUP($A$6,town351,9)>175%,VLOOKUP($A$6,town351,9)," "),"") -> 
B29: See a listing of all 351 communities | E29: 25) | F29: Shortfall from target after adding increments (10 - 15 - 23 - 24) | G29: =IF(AND(A$6<352,M1="lo"),-1*VLOOKUP($A$6,town351,28)," ") -> 
E30: 26) | F30: =parameters!B1&" required local contribution (15 + 23 + 24)" -> FY27 required local contribution (15 + 23 + 24) | G30: =IF(AND(A$6<352,M1="lo"),VLOOKUP($A$6,town351,24)," ") -> 
E31: 27) | F31: Contribution as percentage of foundation (26 / 8) | G31: =IF(AND(A$6<352,M1="lo"),VLOOKUP($A$6,town351,25)/100," ") -> 

Sheet Regional Allocation
J1: More about the data
D2: Return to Index
D3: Massachusetts Department of Elementary and Secondary Education
D4: Office of School Finance
D5: =CYr& " Chapter 70 Apportionment of Local Contribution Across School Districts" -> FY27 Chapter 70 Apportionment of Local Contribution Across School Districts
E7: 4 | F7: 4 | G7: 3 | H7: 2 | I7: 1
A9: 5 | D9: =lea -> 999 | E9: =IF($D$9>351, "", IF(AND($D$9>0, VLOOKUP($D$9*5-E$7, order1755, $A9)<>0), VLOOKUP($D$9*5-E$7, order1755, $A9), "")) ->  | F9: =IF(OR($D$9="", $D$9>351), "", IF(AND($D$9>0, VLOOKUP($D$9*5-F$7, order1755, $A9)<>0), VLOOKUP($D$9*5-F$7, order1755, $A9), "")) ->  | G9: =IF(OR($D$9="", $D$9>351), "", IF(AND($D$9>0, VLOOKUP($D$9*5-G$7, order1755, $A9)<>0), VLOOKUP($D$9*5-G$7, order1755, $A9), "")) ->  | H9: =IF(OR($D$9="", $D$9>351), "", IF(AND($D$9>0, VLOOKUP($D$9*5-H$7, order1755, $A9)<>0), VLOOKUP($D$9*5-H$7, order1755, $A9), "")) ->  | I9: =IF(OR($D$9="", $D$9>351), "", IF(AND($D$9>0, VLOOKUP($D$9*5-I$7, order1755, $A9)<>0), VLOOKUP($D$9*5-I$7, order1755, $A9), "")) ->  | J9: Combined Total for All Districts
A10: 6
E11: Prior Year Data (for comparison purposes)
A13: 15 | D13: 1 | E13: =parameters!B2&" foundation enrollment" -> FY26 foundation enrollment | F13: =IF(OR($D$9="", $D$9>351), "", IF(AND($D$9>0, VLOOKUP($D$9*5-F$7, order1755, $A13)<>0), VLOOKUP($D$9*5-F$7, order1755, $A13), "")) ->  | J13: =IF(OR($D$9="", $D$9>351), "", VLOOKUP($D$9*5, order1755, $A13)) -> 
A14: 6 | D14: 2 | E14: =parameters!B2&" foundation budget" -> FY26 foundation budget | J14: =IF(OR($D$9="", $D$9>351), "", VLOOKUP($D$9*5, order1755, $A14)) -> 
A15: 7 | D15: 3 | E15: ="Each district's share of municipality's combined "& parameters!B2&" foundation" -> Each district's share of municipality's combined FY26 foundation | J15: =IF(OR($D$9="", $D$9>351), "", VLOOKUP($D$9*5, order1755, $A15)) -> 
A16: 12 | D16: 4 | E16: =parameters!B2&" required contribution" -> FY26 required contribution | J16: =IF(OR($D$9="", $D$9>351), "", VLOOKUP($D$9*5, order1755, $A16)) -> 
E17: =parameters!B1& " apportionment of contribution among community's districts" -> FY27 apportionment of contribution among community's districts
D18: 5 | E18: =parameters!B1&" total unapportioned required contribution ('municipal contribution' tab row 19 or 25)" -> FY27 total unapportioned required contribution ('municipal contribution' tab row 19 or 25) | J18: =IF(OR($D$9="", $D$9>351), "", VLOOKUP($D$9,town351,24)) -> 
A19: 20 | D19: 6 | E19: =parameters!B1&" foundation enrollment" -> FY27 foundation enrollment | F19: =IF(OR($D$9="", $D$9>351), "", IF(AND($D$9>0, VLOOKUP($D$9*5-F$7, order1755, $A19)<>0), VLOOKUP($D$9*5-F$7, order1755, $A19), "")) ->  | J19: =IF(OR($D$9="", $D$9>351), "", VLOOKUP($D$9*5, order1755, $A19)) -> 
A20: 8 | D20: 7 | E20: =parameters!B1&" foundation budget" -> FY27 foundation budget | J20: =IF(OR($D$9="", $D$9>351), "", VLOOKUP($D$9*5, order1755, $A20)) -> 
A21: 9 | D21: 8 | E21: ="Each district's share of municipality's total "& parameters!B1&" foundation " -> Each district's share of municipality's total FY27 foundation | J21: =IF(OR($D$9="", $D$9>351), "", VLOOKUP($D$9*5, order1755, $A21)) -> 
A22: 11 | D22: 9 | E22: =parameters!B1&" Required Contribution" -> FY27 Required Contribution | J22: =VLOOKUP($D$9*5, order1755, $A22) -> 8736823771
A24: 13 | D24: 10 | E24: ="Change "&parameters!B1&" to "&parameters!B2& " (9 - 4)" -> Change FY27 to FY26 (9 - 4) | F24: =IF(OR($D$9="", $D$9>351), "", IF(AND($D$9>0, VLOOKUP($D$9*5-F$7, order1755, $A24)<>0), VLOOKUP($D$9*5-F$7, order1755, $A24), "")) ->  | G24: =IF(OR($D$9="", $D$9>351), "", IF(AND($D$9>0, VLOOKUP($D$9*5-G$7, order1755, $A24)<>0), VLOOKUP($D$9*5-G$7, order1755, $A24), "")) ->  | H24: =IF(OR($D$9="", $D$9>351), "", IF(AND($D$9>0, VLOOKUP($D$9*5-H$7, order1755, $A24)<>0), VLOOKUP($D$9*5-H$7, order1755, $A24), "")) ->  | I24: =IF(OR($D$9="", $D$9>351), "", IF(AND($D$9>0, VLOOKUP($D$9*5-I$7, order1755, $A24)<>0), VLOOKUP($D$9*5-I$7, order1755, $A24), "")) ->  | J24: =IF(OR($D$9="", $D$9>351), "", VLOOKUP($D$9*5, order1755, $A24)) -> 
E26: The combined totals on lines 5 and 9 may differ due to rounding.

Sheet Summary
B1: Return to Index | K1: More about the data
B3: Massachusetts Department of Elementary and Secondary Education
B4: =parameters!B1&" Chapter 70 Summary" -> FY27 Chapter 70 Summary
B6: =lea -> 999 | C6: =PROPER(VLOOKUP(B6,dist915,2)) -> State Total
B8: ="Aid Calculation "&CYr -> Aid Calculation FY27 | F8: ="Comparison to "&PYr -> Comparison to FY26
G10: =PYr -> FY26 | H10: =CYr -> FY27 | I10: Change | J10: Pct Chg | V10: FY06 | W10: FY07 | X10: FY08 | Y10: FY09 | Z10: FY10 | AA10: FY11 | AB10: FY12 | AC10: FY13 | AD10: FY14 | AE10: FY15 | AF10: FY16 | AG10: FY17 | AH10: FY18 | AI10: FY19 | AJ10: FY20 | AK10: FY21 | AL10: FY22 | AM10: FY23 | AN10: FY24 | AO10: FY25 | AP10: FY26 | AQ10: FY27
B11: Prior Year Aid | F11: Enrollment | G11: =VLOOKUP(B6,aidcalc,14) -> 905307 | H11: =VLOOKUP(B6,aidcalc,15) -> 890622 | I11: =H11-G11 -> -14685 | J11: =IF(G11>0, I11/G11, 0) -> -0.01622101674 | U11: Required District Contribution | V11: =VLOOKUP($B$6,disthist,5) -> 4743946672 | W11: =VLOOKUP($B$6,disthist,8) -> 4876428772 | X11: =VLOOKUP($B$6,disthist,11) -> 4997705374 | Y11: =VLOOKUP($B$6,disthist,14) -> 5110365426 | Z11: =VLOOKUP($B$6,disthist,18) -> 5250106061 | AA11: =VLOOKUP($B$6,disthist,22) -> 5302200670 | AB11: =VLOOKUP($B$6,disthist,27) -> 5413602268 | AC11: =VLOOKUP($B$6,disthist,30) -> 5582113529 | AD11: =VLOOKUP($B$6,disthist, 33) -> 5748475145 | AE11: =VLOOKUP($B$6,disthist, 36) -> 5817618237 | AF11: =VLOOKUP($B$6,disthist, 39) -> 5943909029 | AG11: =VLOOKUP($B$6,disthist, 42) -> 5926185567 | AH11: =VLOOKUP($B$6,disthist, 45) -> 6046916786 | AI11: =VLOOKUP($B$6,disthist, 48) -> 6246842886 | AJ11: =VLOOKUP($B$6,disthist, 51) -> 6513607368 | AK11: =VLOOKUP($B$6,disthist, 54) -> 6705321561 | AL11: =VLOOKUP($B$6,disthist, 57) -> 6827673657 | AM11: =VLOOKUP($B$6,disthist, 60) -> 7166744291 | AN11: =VLOOKUP($B$6,disthist, 63) -> 7566302116 | AO11: =VLOOKUP($B$6,disthist, 66) -> 7972055321 | AP11: =VLOOKUP($B$6,disthist,69) -> 8377180548 | AQ11: =VLOOKUP($B$6,aidcalc,10 ) -> 8736823771
B12: 1 | C12: ="Chapter 70 "&PYr -> Chapter 70 FY26 | D12: =VLOOKUP(B6,aidcalc,6) -> 7361555994 | F12: Foundation budget | G12: =VLOOKUP(B6,disthist,68) -> 1.531483416e+10 | H12: =VLOOKUP(B6,aidcalc,9) -> 1.583018151e+10 | I12: =H12-G12 -> 515347355.4 | J12: =IF(G12>0, I12/G12, 0) -> 0.03365020803 | U12: C70 Aid | V12: =VLOOKUP($B$6,disthist,6) -> 3288603062 | W12: =VLOOKUP($B$6,disthist,9) -> 3505192039 | X12: =VLOOKUP($B$6,disthist,12) -> 3725343327 | Y12: =VLOOKUP($B$6,disthist,15)+VLOOKUP($B$6,disthist,16) -> 3948496062 | Z12: =VLOOKUP($B$6,disthist,19)+VLOOKUP($B$6,disthist,20) -> 4043156700 | AA12: =VLOOKUP($B$6,disthist,23)+VLOOKUP($B$6,disthist,24)+VLOOKUP($B$6,disthist,25) -> 4072032853 | AB12: =VLOOKUP($B$6,disthist,28) -> 3990504093 | AC12: =VLOOKUP($B$6,disthist,31) -> 4173223954 | AD12: =VLOOKUP($B$6,disthist,34) -> 4300854366 | AE12: =VLOOKUP($B$6,disthist,37) -> 4400335962 | AF12: =VLOOKUP($B$6,disthist,40) -> 4511521974 | AG12: =VLOOKUP($B$6,disthist,43) -> 4627705061 | AH12: =VLOOKUP($B$6,disthist,46) -> 4745645156 | AI12: =VLOOKUP($B$6,disthist,49) -> 4906614766 | AJ12: =VLOOKUP($B$6,disthist,52) -> 5175694094 | AK12: =VLOOKUP($B$6,disthist,55) -> 5283343073 | AL12: =VLOOKUP($B$6,disthist,58) -> 5502959667 | AM12: =VLOOKUP($B$6,disthist,61) -> 5997901329 | AN12: =VLOOKUP($B$6,disthist,64) -> 6592314528 | AO12: =VLOOKUP($B$6,disthist,67) -> 6901610127 | AP12: =VLOOKUP($B$6,disthist,70) -> 7361555994 | AQ12: =VLOOKUP($B$6,aidcalc,25) -> 7603314535
F13: Required district contribution | G13: =VLOOKUP(B6,disthist,69) -> 8377180548 | H13: =VLOOKUP($B$6, aidcalc, 10) -> 8736823771 | I13: =H13-G13 -> 359643223 | J13: =IF(G13>0, I13/G13, 0) -> 0.04293129663 | U13: Foundation Budget | V13: =VLOOKUP($B$6,disthist,4) -> 7551933454 | W13: =VLOOKUP($B$6,disthist,7) -> 8014672861 | X13: =VLOOKUP($B$6,disthist,10) -> 8406096436 | Y13: =VLOOKUP($B$6,disthist,13) -> 8811314229 | Z13: =VLOOKUP($B$6,disthist,17) -> 9088557473 | AA13: =VLOOKUP($B$6,disthist,21) -> 8921047970 | AB13: =VLOOKUP($B$6,disthist,26) -> 9119340580 | AC13: =VLOOKUP($B$6,disthist,29) -> 9467117141 | AD13: =VLOOKUP($B$6,disthist, 32) -> 9711217585 | AE13: =VLOOKUP($B$6,disthist, 35) -> 9866011313 | AF13: =VLOOKUP($B$6,disthist, 38) -> 1.009017727e+10 | AG13: =VLOOKUP($B$6,disthist, 41) -> 1.012823838e+10 | AH13: =VLOOKUP($B$6,disthist, 44) -> 1.037917384e+10 | AI13: =VLOOKUP($B$6,disthist, 47) -> 1.077758855e+10 | AJ13: =VLOOKUP($B$6,disthist, 50) -> 1.135904851e+10 | AK13: =VLOOKUP($B$6,disthist, 53) -> 1.16265311e+10 | AL13: =VLOOKUP($B$6,disthist, 56) -> 1.192622579e+10 | AM13: =VLOOKUP($B$6,disthist, 59) -> 1.289033588e+10 | AN13: =VLOOKUP($B$6,disthist, 62) -> 1.396338987e+10 | AO13: =VLOOKUP($B$6,disthist, 65) -> 1.45351034e+10 | AP13: =VLOOKUP($B$6,disthist,68) -> 1.531483416e+10 | AQ13: =VLOOKUP($B$6,aidcalc,9 ) -> 1.583018151e+10
B14: Foundation Aid | F14: Chapter 70 aid | G14: =IF(B6=999,VLOOKUP(B6,disthist,70,0)+308558,VLOOKUP(B6,disthist,70,0)) -> 7361864552 | H14: =IF(B6=999,VLOOKUP($B$6,aidcalc,25,0)+308558,VLOOKUP($B$6,aidcalc,25,0)) -> 7603623093 | I14: =H14-G14 -> 241758540.5 | J14: =IF(G14>0, I14/G14, 0) -> 0.03283930841
B15: 2 | C15: ="Foundation budget "&CYr -> Foundation budget FY27 | D15: =VLOOKUP($B$6, aidcalc, 9) -> 1.583018151e+10 | F15: Required net school spending (NSS) | G15: =G13+G14 -> 1.57390451e+10 | H15: =H13+H14 -> 1.634044686e+10 | I15: =H15-G15 -> 601401763.5 | J15: =IF(G15>0, I15/G15, 0) -> 0.03821081646
B16: 3 | C16: ="Required district contribution "& CYr -> Required district contribution FY27 | D16: =VLOOKUP($B$6, aidcalc, 10) -> 8736823771
B17: 4 | C17: Foundation aid (2 -3) | D17: =VLOOKUP($B$6, aidcalc, 11) -> 7093357752 | F17: Target aid share | G17: =VLOOKUP(B$6,disthist,3)/100 -> 0.41 | H17: =VLOOKUP(B6,aidcalc,13)/100 -> 0.41
B18: 5 | C18: ="Increase over " & PYr&" (4 - 1)" -> Increase over FY26 (4 - 1) | D18: =VLOOKUP($B$6, aidcalc, 12) -> 196780108 | F18: C70 % of foundation | G18: =IF(G12>0,G14/G12,IF(G14>0,1,0)) -> 0.4807015522 | H18: =IF(H12>0,H14/H12,IF(H14>0,1,0)) -> 0.4803244414
B20: Minimum Aid | F20: Required NSS % of foundation | G20: =IF(G12>0,G15/G12,IF(G15>0,1,0)) -> 1.027699349 | H20: =IF(H12>0,H15/H12,IF(H15>0,1,0)) -> 1.032233702
B21: 6 | C21: $75 per pupil increase | D21: =IF(B6=999,"",VLOOKUP($B$6,aidcalc,17,0)) -> 
B22: 7 | C22: Minimum aid amount
C23: (if line 6 - line 5 > 0, then line 6 - line 5, otherwise 0) | D23: =VLOOKUP($B$6, aidcalc, 18,0) -> 45190129
B25: Subtotal
B26: 8 | C26: Sum of 1,5,7 | D26: =D12+D18+D23 -> 7603526231
B28: Minimum Aid Adjustment
B29: 9 | C29: Minimum aid adjustment | D29: =IF(B6=999,"",VLOOKUP($B$6, aidcalc, 20)) -> 
B30: 10 | C30: Aid adjustment increment
C31: (if line 9 - line 8 > 0, then line 9 - line 8, otherwise 0) | D31: =VLOOKUP($B$6, aidcalc, 21, FALSE) -> 26908
B33: Non-Operating District Reduction to Foundation
B34: 11 | C34: Reduction to foundation | D34: =VLOOKUP($B$6, aidcalc, 23) -> 238604.4627
B36: Hold Harmless Aid
B37: 12 | C37: Hold harmless aid | D37: =VLOOKUP($B$6, aidcalc, 24) -> 0
B39: =CYr&" Chapter 70 Aid" -> FY27 Chapter 70 Aid
B40: 13 | C40: Sum of 1,5,7,10, 12 minus 11 | D40: =VLOOKUP($B$6, aidcalc, 25) -> 7603314535
C41: =IF(B6=999,"with Devens aid","") -> with Devens aid | D41: =IF(B6=999,D40+308558,"") -> 7603623093
B43: Note on Minimum Aid Adjustment on lines 9 and 10:
B44: The minimum aid adjustment is the sum of (a) the greater of foundation aid or base aid determined based on the FY21 base and incremental rates, inflated to FY27, and (b) foundation enrollment multiplied by $30. The aid adjustment increment (line 10) is the line 9 amount less the line 8 amount if the difference is positive. Otherwise, the increment is zero.

Sheet parameters (hidden)
A1: Cyr | B1: FY27 | C1: 27
A2: Pyr | B2: FY26 | C2: 26
A3: As of | B3: 2026-01-16
A5: Parameters | D5: Base | K5: Analysis of Aggregate Wealth Model Implementation
B6: Which version of foundation budget? | C6: 1 | D6: 1 | G6: FY26 C70 including Devens | H6: 7361864552
B7: Effort reduction | C7: 1 | D7: 0 | K7: Progress Towards Target Local Share
B8: Pct downpayment on target aid share | C8: 0 | D8: 0 | G8: FY26 foundation aid increase | H8: ='Aid436'!L448 -> 196780108
D9: 0 | L9: FY07 | M9: FY08 | N9: FY09 | O9: FY10 | P9: FY11 | Q9: FY12 | R9: FY13 | S9: FY14 | T9: FY15 | U9: FY16 | V9: FY17 | W9: FY18 | X9: FY19 | Y9: FY20 | Z9: FY21 | AA9: FY22 | AB9: FY23 | AC9: FY24 | AD9: FY25 | AE9: FY26 | AF9: =CYr -> FY27
G10: Minimum per pupil aid increase | H10: ='Aid436'!R448 -> 45190129 | K10: excess effort before effort reduction | L10: 621.084157 | M10: 494.058912 | N10: 372.382091 | O10: 228.110232 | P10: 366 | Q10: 293.3 | R10: 229.8 | S10: 234.5 | T10: 307.903014 | U10: 235.358789 | V10: 299.86437 | W10: 151.670894 | X10: 68.664221 | Y10: 21.435137 | Z10: 104.649236 | AA10: 93.814687 | AB10: 3.87058 | AC10: =2463965/1000000 -> 2.463965 | AD10: =35208638/1000000 -> 35.208638 | AE10: 59.095752 | AF10: ='Townwide Contributions'!V361/1000000 -> 77.583273
G11: Min aid adjustment increase | H11: ='Aid436'!U448 -> 26908 | K11: effort reduction | L11: 124.2168314 | M11: 123.514728 | N11: 122.88609 | O11: 34.216535 | P11: 109.8 | Q11: 58.7 | R11: 34.5 | S11: 35.2 | T11: 153.951507 | U11: 117.6793945 | V11: 254.8847145 | W11: 128.9202599 | X11: 68.664221 | Y11: 21.435137 | Z11: 104.649236 | AA11: 93.814687 | AB11: 3.87058 | AC11: =2463965/1000000 -> 2.463965 | AD11: 35.208638 | AE11: 59.095752 | AF11: ='Townwide Contributions'!V361/1000000 -> 77.583273
G12: Non-op reduction | H12: ='Aid436'!W448 -> 238604.4627 | K12: net excess after effort reduction | L12: 496.8673256 | M12: 370.544184 | N12: 249.496001 | O12: 193.893697 | P12: 256.2 | Q12: =Q10-Q11 -> 234.6 | R12: =R10-R11 -> 195.3 | S12: 199.3 | T12: 152.0806983 | U12: 117.4829132 | V12: 44.97879348 | W12: 22.74921402 | X12: 0 | Y12: 0 | Z12: 0 | AA12: 0 | AB12: 0 | AC12: 0 | AD12: =0/1000000 -> 0 | AE12: 0 | AF12: ='Townwide Contributions'!AC361/1000000 -> 0
G13: FY26 Chapter 70 | H13: ='Aid436'!Y448 -> 7603314535 | K13: shortfall below target before increment | L13: -321.452322 | M13: -352.174875 | N13: -359.193563 | O13: -427.2 | P13: -228 | Q13: -211 | R13: -200 | S13: -180.2 | T13: -162.972215 | U13: -132.627218 | V13: -96.928091 | W13: -103.17317 | X13: -117.254713 | Y13: -207.485209 | Z13: -163.71 | AA13: -228.999327 | AB13: -494.818496 | AC13: =-745851507/1000000 -> -745.851507 | AD13: =-662497802/1000000 -> -662.497802 | AE13: -719.61641 | AF13: ='Townwide Contributions'!AA361/1000000 -> -654.702427
B14: Per pupil guaranteed increase | C14: 75 | D14: 0 | G14: Devens | H14: =308558 -> 308558 | K14: additional increments toward target | L14: 0 | M14: -19.739149 | N14: -21.387588 | O14: -121.2 | P14: -10.6 | Q14: -10 | R14: -4.2 | S14: -3.9 | T14: -7.563093 | U14: -5.848739 | V14: -2.474215 | W14: -3.628178 | X14: -5.320349 | Y14: -19.253945 | Z14: -9.378217 | AA14: -20.199768 | AB14: -56.264627 | AC14: =(63801354/1000000*-1)+(9952246/1000000*-1) -> -73.7536 | AD14: -58.842122 | AE14: -61.044796 | AF14: =('Townwide Contributions'!T361/1000000*-1)+('Townwide Contributions'!W361/1000000*-1) -> -51.719105
B15: Which version of mrgf? | C15: 1 | D15: 1 | K15: net shortfall below target after increment | L15: -321.452322 | M15: -332.435726 | N15: -337.805975 | O15: -306 | P15: -217.4 | Q15: -200.9 | R15: -195.7 | S15: -176.3 | T15: -155.409122 | U15: -126.778479 | V15: -94.453876 | W15: -99.544992 | X15: -111.934364 | Y15: -188.231264 | Z15: -154.331783 | AA15: -208.799559 | AB15: -438.553869 | AC15: =-672097907/1000000 -> -672.097907 | AD15: =-603655680/1000000 -> -603.65568 | AE15: -658.571614 | AF15: ='Townwide Contributions'!AB361/1000000 -> -602.983322
B16: Below effort threshold 1 | C16: 2.5 | D16: 2.5 | G16: Change in C70 Appropriation | H16: =H13+H14-H6 -> 241758540.5 | K16: n of municipalities with effort too high | L16: 232 | M16: 218 | N16: 214 | O16: 193 | P16: 282 | Q16: 257 | R16: 249 | S16: 255 | T16: 279 | U16: 278 | V16: 303 | W16: 291 | X16: 0 | Y16: 0 | Z16: 0 | AA16: 0 | AB16: 0 | AC16: 0 | AD16: 0 | AE16: 0 | AF16: ='Townwide Contributions'!AC364 -> 0
B17: Below effort threshold 2 | C17: 7.5 | D17: 7.5 | G17: Percent Change | H17: =H16/H6 -> 0.03283930841
B18: Below effort contribution increment, 5-10% under | C18: 0.01 | D18: 0.01
B19: Below effort contribution increment, >10% under | C19: 0.02 | D19: 0.02 | G19: N of Foundation Aid Districts | H19: ='Aid436'!P448 -> 61
B20: Maximum local contribution pct of foundation | C20: 0.825 | D20: 0.825 | G20: N of Operating Districts with an Aid Increase | H20: ='Comparison to FY26'!N332 -> 319
B21: Statewide target for local contribution % of foundation | C21: 0.59 | D21: 0.59 | G21: Total C70 Including Devens | H21: =H13+H14 -> 7603623093
B22: Cap contributions at fixed percentage of foundation | C22: 0.9 | D22: 0.9
D23: 0
A24: Eqv/income percentages
B26: Target effort | C26: =C21*localcont!K1765 -> 9339807094
B27: Effort based upon following percentages | C27: ='Townwide Contributions'!K361 -> 9339807090
B28: Difference from target | C28: =IF(ABS(C27-C26)<10,0,C27-C26) -> 0
B29: Percentage of EQV | C29: 0.003309337073
B30: Percentage of INCOME | C30: =C29*1/C34 -> 0.01589663447
B32: Total EQV | C32: ='Townwide Contributions'!C361 -> 1955053248000
B33: Total Income | C33: ='Townwide Contributions'!E361 -> 406999997833
B34: State Average % of EQV | C34: =C33/C32 -> 0.208178472
A37: See Progress Towards Targets
K42: Progress Towards Target Aid Share
L44: FY07 | M44: FY08 | N44: FY09 | O44: FY10 | P44: FY11 | Q44: FY12 | R44: FY13 | S44: FY14 | T44: FY15 | U44: FY16 | V44: FY17 | W44: FY18 | X44: FY19 | Y44: FY20 | Z44: FY21 | AA44: FY22 | AB44: FY23 | AC44: FY24 | AD44: FY25 | AE44: FY26 | AF44: =CYr -> FY27
K45: aid above target | L45: 394.9 | M45: 421 | N45: 440.4 | O45: 413.5991456 | P45: 489.2905867 | Q45: 360.5802896 | R45: 372.9139726 | S45: 385.3 | T45: 404.6539336 | U45: 419.0730779 | V45: 488.1362137 | W45: 497.4038449 | X45: 487.8069694 | Y45: 518.4487954 | Z45: 516.4943275 | AA45: 613.17696 | AB45: 712.8031016 | AC45: =867309653/1000000 -> 867.309653 | AD45: 942.2234328 | AE45: 1082.521836 | AF45: ='Aid436'!AE449/1000000 -> 1112.901963
K46: aid below target | L46: -176.3 | M46: -143 | N46: -105.5 | O46: -97.82363262 | P46: -75.73073977 | Q46: -110.4290612 | R46: -84.70629692 | S46: -66.9 | T46: -49.39921427 | U46: -44.48798888 | V46: -13.01302676 | W46: -7.202688836 | X46: -0.01809683687 | Y46: -0.001189981026 | Z46: -0.01283887927 | AA46: -0.001771922842 | AB46: -1.962882748e-06 | AC46: =3/1000000 -> 3e-06 | AD46: -1.045870017e-07 | AE46: -1.274567e-06 | AF46: ='Aid436'!AE450/1000000 -> -9e-08
C50: =TEXT(effortred,"0%") -> 100%

Sheet Regional District Members
E2: Return to Index
F3: Select or type full regional district name below
D4: =VLOOKUP(F4,leas!$E$450:$H$536,4,FALSE) -> 49 | E4: =VLOOKUP(reg_order, regdistricts, 3, FALSE) -> 832 | F4: Montachusett
E6: Massachusetts Department of Elementary and Secondary Education
E7: Office of School Finance
E8: =CYr&" Chapter 70" -> FY27 Chapter 70
E9: Regional District Enrollment and Contributions by Member City or Town
E10: The table below presents the minimum required local contribution for each member to the selected regional district.
E11: Note: A city or town might belong to more than one regional district (e.g., a regional district and a vocational district) and therefore be required to contribute to multiple districts. See the regional allocation tab for a full list of minimum required contributions for each city or town. Foundation enrollments are presented as whole numbers. The change column reflects differences prior to rounding.
B12: =VLOOKUP(E4, leas!D6:G445, 4, FALSE) -> 0832 | D12: 2 | E12: =VLOOKUP(reg_order, regdistricts, 2, FALSE) -> 832 Montachusett
G14: Foundation Enrollment in Regional District | J14: Required Minimum Contribution to Regional District
B16: =VLOOKUP($E$4, regcount, 2, FALSE) -> 18 | E16: LEA | F16: Member | G16: =PYr -> FY26 | H16: =CYr -> FY27 | I16: Change | J16: =PYr -> FY26 | K16: =CYr -> FY27 | L16: Change
F18: Total | G18: =SUM(G20:G67) -> 1488 | H18: =SUM(H20:H67) -> 1465 | I18: =SUM(I20:I67) -> -23.00000003 | J18: =SUM(J20:J67) -> 12227609 | K18: =SUM(K20:K67) -> 12923815 | L18: =SUM(L20:L62) -> 696206
A20: =IF($C20<=$B$16,VLOOKUP(E20,leas!D6:G445,4,FALSE),"") -> 0011 | B20: =$E$4*100+C20 -> 83201 | C20: 1 | E20: =IF($C20<=$B$16, VLOOKUP($B20, regdetail, 5), " ") -> 11 | F20: =IF($C20<=$B$16, VLOOKUP($B20, regdetail, 6), " ") -> Ashburnham | G20: =IF($C20<=$B$16,VLOOKUP(A20&$B$12, localcont!A10:X1764, 18, FALSE), "") -> 64 | H20: =IF($C20<=$B$16,VLOOKUP(A20&$B$12, localcont!$A$10:$X$1764, 23, FALSE), "") -> 62 | I20: =IF($C20<=$B$16, H20-G20, " ") -> -1.999999998 | J20: =IF($C20<=$B$16,VLOOKUP(A20&$B$12, localcont!$A$10:$X$1764, 15, FALSE), "") -> 611914 | K20: =IF($C20<=$B$16,VLOOKUP(A20&$B$12, localcont!$A$10:$X$1764, 14, FALSE),"") -> 627440 | L20: =IF($C20<=$B$16, K20-J20, " ") -> 15526
A21: =IF($C21<=$B$16,VLOOKUP(E21,leas!D7:G446,4,FALSE),"") -> 0012 | B21: =$E$4*100+C21 -> 83202 | C21: 2 | E21: 12 | F21: Ashby | G21: =IF($C21<=$B$16,VLOOKUP(A21&$B$12, localcont!A11:X1765, 18, FALSE), "") -> 32.99999999 | H21: =IF($C21<=$B$16,VLOOKUP(A21&$B$12, localcont!$A$10:$X$1764, 23, FALSE), "") -> 32.99999999 | I21: =IF($C21<=$B$16, H21-G21, " ") -> 1.920000159e-09 | J21: =IF($C21<=$B$16,VLOOKUP(A21&$B$12, localcont!$A$10:$X$1764, 15, FALSE), "") -> 368587 | K21: =IF($C21<=$B$16,VLOOKUP(A21&$B$12, localcont!$A$10:$X$1764, 14, FALSE),"") -> 420432 | L21: =IF($C21<=$B$16, K21-J21, " ") -> 51845
A22: =IF($C22<=$B$16,VLOOKUP(E22,leas!D8:G447,4,FALSE),"") -> 0015 | B22: 83203 | C22: 3 | E22: 15 | F22: Athol | G22: =IF($C22<=$B$16,VLOOKUP(A22&$B$12, localcont!A12:X1766, 18, FALSE), "") -> 109 | H22: =IF($C22<=$B$16,VLOOKUP(A22&$B$12, localcont!$A$10:$X$1764, 23, FALSE), "") -> 106 | I22: -2.999999999 | J22: =IF($C22<=$B$16,VLOOKUP(A22&$B$12, localcont!$A$10:$X$1764, 15, FALSE), "") -> 338018 | K22: =IF($C22<=$B$16,VLOOKUP(A22&$B$12, localcont!$A$10:$X$1764, 14, FALSE),"") -> 348942 | L22: 10924
A23: =IF($C23<=$B$16,VLOOKUP(E23,leas!D9:G448,4,FALSE),"") -> 0021 | B23: 83204 | C23: 4 | E23: 21 | F23: Barre | G23: =IF($C23<=$B$16,VLOOKUP(A23&$B$12, localcont!A13:X1767, 18, FALSE), "") -> 47.00000001 | H23: =IF($C23<=$B$16,VLOOKUP(A23&$B$12, localcont!$A$10:$X$1764, 23, FALSE), "") -> 43.99999999 | I23: -3.000000014 | J23: =IF($C23<=$B$16,VLOOKUP(A23&$B$12, localcont!$A$10:$X$1764, 15, FALSE), "") -> 386445 | K23: =IF($C23<=$B$16,VLOOKUP(A23&$B$12, localcont!$A$10:$X$1764, 14, FALSE),"") -> 380158 | L23: -6287
A24: =IF($C24<=$B$16,VLOOKUP(E24,leas!D10:G449,4,FALSE),"") -> 0097 | B24: 83205 | C24: 5 | E24: 97 | F24: Fitchburg | G24: =IF($C24<=$B$16,VLOOKUP(A24&$B$12, localcont!A14:X1768, 18, FALSE), "") -> 396 | H24: =IF($C24<=$B$16,VLOOKUP(A24&$B$12, localcont!$A$10:$X$1764, 23, FALSE), "") -> 391 | I24: -5.000000007 | J24: =IF($C24<=$B$16,VLOOKUP(A24&$B$12, localcont!$A$10:$X$1764, 15, FALSE), "") -> 1814721 | K24: =IF($C24<=$B$16,VLOOKUP(A24&$B$12, localcont!$A$10:$X$1764, 14, FALSE),"") -> 1845065 | L24: 30344
A25: =IF($C25<=$B$16,VLOOKUP(E25,leas!D11:G450,4,FALSE),"") -> 0103 | B25: 83206 | C25: 6 | E25: 103 | F25: Gardner | G25: =IF($C25<=$B$16,VLOOKUP(A25&$B$12, localcont!A15:X1769, 18, FALSE), "") -> 157 | H25: =IF($C25<=$B$16,VLOOKUP(A25&$B$12, localcont!$A$10:$X$1764, 23, FALSE), "") -> 147 | I25: -9.999999997 | J25: =IF($C25<=$B$16,VLOOKUP(A25&$B$12, localcont!$A$10:$X$1764, 15, FALSE), "") -> 919303 | K25: =IF($C25<=$B$16,VLOOKUP(A25&$B$12, localcont!$A$10:$X$1764, 14, FALSE),"") -> 922790 | L25: 3487
A26: =IF($C26<=$B$16,VLOOKUP(E26,leas!D12:G451,4,FALSE),"") -> 0125 | B26: 83207 | C26: 7 | E26: 125 | F26: Harvard | G26: =IF($C26<=$B$16,VLOOKUP(A26&$B$12, localcont!A16:X1770, 18, FALSE), "") -> 10 | H26: =IF($C26<=$B$16,VLOOKUP(A26&$B$12, localcont!$A$10:$X$1764, 23, FALSE), "") -> 8.999999999 | I26: -1.000000005 | J26: =IF($C26<=$B$16,VLOOKUP(A26&$B$12, localcont!$A$10:$X$1764, 15, FALSE), "") -> 167314 | K26: =IF($C26<=$B$16,VLOOKUP(A26&$B$12, localcont!$A$10:$X$1764, 14, FALSE),"") -> 156974 | L26: -10340
A27: =IF($C27<=$B$16,VLOOKUP(E27,leas!D13:G452,4,FALSE),"") -> 0134 | B27: 83208 | C27: 8 | E27: 134 | F27: Holden | G27: =IF($C27<=$B$16,VLOOKUP(A27&$B$12, localcont!A17:X1771, 18, FALSE), "") -> 158 | H27: =IF($C27<=$B$16,VLOOKUP(A27&$B$12, localcont!$A$10:$X$1764, 23, FALSE), "") -> 170 | I27: 12 | J27: =IF($C27<=$B$16,VLOOKUP(A27&$B$12, localcont!$A$10:$X$1764, 15, FALSE), "") -> 1957220 | K27: =IF($C27<=$B$16,VLOOKUP(A27&$B$12, localcont!$A$10:$X$1764, 14, FALSE),"") -> 2259536 | L27: 302316
A28: =IF($C28<=$B$16,VLOOKUP(E28,leas!D14:G453,4,FALSE),"") -> 0140 | B28: 83209 | C28: 9 | E28: 140 | F28: Hubbardston | G28: =IF($C28<=$B$16,VLOOKUP(A28&$B$12, localcont!A18:X1772, 18, FALSE), "") -> 35.00000001 | H28: =IF($C28<=$B$16,VLOOKUP(A28&$B$12, localcont!$A$10:$X$1764, 23, FALSE), "") -> 34.99999999 | I28: -1.104000091e-08 | J28: =IF($C28<=$B$16,VLOOKUP(A28&$B$12, localcont!$A$10:$X$1764, 15, FALSE), "") -> 396826 | K28: =IF($C28<=$B$16,VLOOKUP(A28&$B$12, localcont!$A$10:$X$1764, 14, FALSE),"") -> 425070 | L28: 28244
A29: =IF($C29<=$B$16,VLOOKUP(E29,leas!D15:G454,4,FALSE),"") -> 0162 | B29: 83210 | C29: 10 | E29: 162 | F29: Lunenburg | G29: =IF($C29<=$B$16,VLOOKUP(A29&$B$12, localcont!A19:X1773, 18, FALSE), "") -> 101 | H29: =IF($C29<=$B$16,VLOOKUP(A29&$B$12, localcont!$A$10:$X$1764, 23, FALSE), "") -> 104 | I29: 2.999999992 | J29: =IF($C29<=$B$16,VLOOKUP(A29&$B$12, localcont!$A$10:$X$1764, 15, FALSE), "") -> 1270711 | K29: =IF($C29<=$B$16,VLOOKUP(A29&$B$12, localcont!$A$10:$X$1764, 14, FALSE),"") -> 1378183 | L29: 107472
A30: =IF($C30<=$B$16,VLOOKUP(E30,leas!D16:G455,4,FALSE),"") -> 0234 | B30: 83211 | C30: 11 | E30: 234 | F30: Petersham | G30: =IF($C30<=$B$16,VLOOKUP(A30&$B$12, localcont!A20:X1774, 18, FALSE), "") -> 11 | H30: =IF($C30<=$B$16,VLOOKUP(A30&$B$12, localcont!$A$10:$X$1764, 23, FALSE), "") -> 7.999999999 | I30: -3.000000004 | J30: =IF($C30<=$B$16,VLOOKUP(A30&$B$12, localcont!$A$10:$X$1764, 15, FALSE), "") -> 121748 | K30: =IF($C30<=$B$16,VLOOKUP(A30&$B$12, localcont!$A$10:$X$1764, 14, FALSE),"") -> 96108 | L30: -25640
A31: =IF($C31<=$B$16,VLOOKUP(E31,leas!D17:G456,4,FALSE),"") -> 0235 | B31: 83212 | C31: 12 | E31: 235 | F31: Phillipston | G31: =IF($C31<=$B$16,VLOOKUP(A31&$B$12, localcont!A21:X1775, 18, FALSE), "") -> 28 | H31: =IF($C31<=$B$16,VLOOKUP(A31&$B$12, localcont!$A$10:$X$1764, 23, FALSE), "") -> 22 | I31: -6.000000002 | J31: =IF($C31<=$B$16,VLOOKUP(A31&$B$12, localcont!$A$10:$X$1764, 15, FALSE), "") -> 303310 | K31: =IF($C31<=$B$16,VLOOKUP(A31&$B$12, localcont!$A$10:$X$1764, 14, FALSE),"") -> 271216 | L31: -32094
A32: =IF($C32<=$B$16,VLOOKUP(E32,leas!D18:G457,4,FALSE),"") -> 0241 | B32: 83213 | C32: 13 | E32: 241 | F32: Princeton | G32: =IF($C32<=$B$16,VLOOKUP(A32&$B$12, localcont!A22:X1776, 18, FALSE), "") -> 27 | H32: =IF($C32<=$B$16,VLOOKUP(A32&$B$12, localcont!$A$10:$X$1764, 23, FALSE), "") -> 28 | I32: 0.999999996 | J32: =IF($C32<=$B$16,VLOOKUP(A32&$B$12, localcont!$A$10:$X$1764, 15, FALSE), "") -> 441216 | K32: =IF($C32<=$B$16,VLOOKUP(A32&$B$12, localcont!$A$10:$X$1764, 14, FALSE),"") -> 458806 | L32: 17590
A33: =IF($C33<=$B$16,VLOOKUP(E33,leas!D19:G458,4,FALSE),"") -> 0255 | B33: 83214 | C33: 14 | E33: 255 | F33: Royalston | G33: =IF($C33<=$B$16,VLOOKUP(A33&$B$12, localcont!A23:X1777, 18, FALSE), "") -> 10 | H33: =IF($C33<=$B$16,VLOOKUP(A33&$B$12, localcont!$A$10:$X$1764, 23, FALSE), "") -> 9.999999998 | I33: -5.280000437e-09 | J33: =IF($C33<=$B$16,VLOOKUP(A33&$B$12, localcont!$A$10:$X$1764, 15, FALSE), "") -> 77616 | K33: =IF($C33<=$B$16,VLOOKUP(A33&$B$12, localcont!$A$10:$X$1764, 14, FALSE),"") -> 88754 | L33: 11138
A34: =IF($C34<=$B$16,VLOOKUP(E34,leas!D20:G459,4,FALSE),"") -> 0282 | B34: 83215 | C34: 15 | E34: 282 | F34: Sterling | G34: =IF($C34<=$B$16,VLOOKUP(A34&$B$12, localcont!A24:X1778, 18, FALSE), "") -> 63 | H34: =IF($C34<=$B$16,VLOOKUP(A34&$B$12, localcont!$A$10:$X$1764, 23, FALSE), "") -> 60.00000001 | I34: -2.999999999 | J34: =IF($C34<=$B$16,VLOOKUP(A34&$B$12, localcont!$A$10:$X$1764, 15, FALSE), "") -> 1082478 | K34: =IF($C34<=$B$16,VLOOKUP(A34&$B$12, localcont!$A$10:$X$1764, 14, FALSE),"") -> 1071470 | L34: -11008
A35: =IF($C35<=$B$16,VLOOKUP(E35,leas!D21:G460,4,FALSE),"") -> 0294 | B35: 83216 | C35: 16 | E35: 294 | F35: Templeton | G35: =IF($C35<=$B$16,VLOOKUP(A35&$B$12, localcont!A25:X1779, 18, FALSE), "") -> 83 | H35: =IF($C35<=$B$16,VLOOKUP(A35&$B$12, localcont!$A$10:$X$1764, 23, FALSE), "") -> 77 | I35: -5.999999994 | J35: =IF($C35<=$B$16,VLOOKUP(A35&$B$12, localcont!$A$10:$X$1764, 15, FALSE), "") -> 583816 | K35: =IF($C35<=$B$16,VLOOKUP(A35&$B$12, localcont!$A$10:$X$1764, 14, FALSE),"") -> 607792 | L35: 23976
A36: =IF($C36<=$B$16,VLOOKUP(E36,leas!D22:G461,4,FALSE),"") -> 0328 | B36: 83217 | C36: 17 | E36: 328 | F36: Westminster | G36: =IF($C36<=$B$16,VLOOKUP(A36&$B$12, localcont!A26:X1780, 18, FALSE), "") -> 70 | H36: =IF($C36<=$B$16,VLOOKUP(A36&$B$12, localcont!$A$10:$X$1764, 23, FALSE), "") -> 79 | I36: 9.000000006 | J36: =IF($C36<=$B$16,VLOOKUP(A36&$B$12, localcont!$A$10:$X$1764, 15, FALSE), "") -> 808812 | K36: =IF($C36<=$B$16,VLOOKUP(A36&$B$12, localcont!$A$10:$X$1764, 14, FALSE),"") -> 976220 | L36: 167408
A37: =IF($C37<=$B$16,VLOOKUP(E37,leas!D23:G462,4,FALSE),"") -> 0343 | B37: 83218 | C37: 18 | E37: 343 | F37: Winchendon | G37: =IF($C37<=$B$16,VLOOKUP(A37&$B$12, localcont!A27:X1781, 18, FALSE), "") -> 85.99999999 | H37: =IF($C37<=$B$16,VLOOKUP(A37&$B$12, localcont!$A$10:$X$1764, 23, FALSE), "") -> 80 | I37: -5.999999991 | J37: =IF($C37<=$B$16,VLOOKUP(A37&$B$12, localcont!$A$10:$X$1764, 15, FALSE), "") -> 577554 | K37: =IF($C37<=$B$16,VLOOKUP(A37&$B$12, localcont!$A$10:$X$1764, 14, FALSE),"") -> 588859 | L37: 11305
A38: =IF($C38<=$B$16,VLOOKUP(E38,leas!D24:G463,4,FALSE),"") ->  | B38: 83219 | C38: 19 | G38: =IF($C38<=$B$16,VLOOKUP(A38&$B$12, localcont!A28:X1782, 18, FALSE), "") ->  | H38: =IF($C38<=$B$16,VLOOKUP(A38&$B$12, localcont!$A$10:$X$1764, 23, FALSE), "") ->  | J38: =IF($C38<=$B$16,VLOOKUP(A38&$B$12, localcont!$A$10:$X$1764, 15, FALSE), "") ->  | K38: =IF($C38<=$B$16,VLOOKUP(A38&$B$12, localcont!$A$10:$X$1764, 14, FALSE),"") -> 
A39: =IF($C39<=$B$16,VLOOKUP(E39,leas!D25:G464,4,FALSE),"") ->  | B39: 83220 | C39: 20 | G39: =IF($C39<=$B$16,VLOOKUP(A39&$B$12, localcont!A29:X1783, 18, FALSE), "") ->  | H39: =IF($C39<=$B$16,VLOOKUP(A39&$B$12, localcont!$A$10:$X$1764, 23, FALSE), "") ->  | J39: =IF($C39<=$B$16,VLOOKUP(A39&$B$12, localcont!$A$10:$X$1764, 15, FALSE), "") ->  | K39: =IF($C39<=$B$16,VLOOKUP(A39&$B$12, localcont!$A$10:$X$1764, 14, FALSE),"") -> 
A40: =IF($C40<=$B$16,VLOOKUP(E40,leas!D26:G465,4,FALSE),"") ->  | B40: 83221 | C40: 21 | G40: =IF($C40<=$B$16,VLOOKUP(A40&$B$12, localcont!A30:X1784, 18, FALSE), "") ->  | H40: =IF($C40<=$B$16,VLOOKUP(A40&$B$12, localcont!$A$10:$X$1764, 23, FALSE), "") ->  | J40: =IF($C40<=$B$16,VLOOKUP(A40&$B$12, localcont!$A$10:$X$1764, 15, FALSE), "") ->  | K40: =IF($C40<=$B$16,VLOOKUP(A40&$B$12, localcont!$A$10:$X$1764, 14, FALSE),"") -> 
A41: =IF($C41<=$B$16,VLOOKUP(E41,leas!D27:G466,4,FALSE),"") ->  | B41: 83222 | C41: 22 | G41: =IF($C41<=$B$16,VLOOKUP(A41&$B$12, localcont!A31:X1785, 18, FALSE), "") ->  | H41: =IF($C41<=$B$16,VLOOKUP(A41&$B$12, localcont!$A$10:$X$1764, 23, FALSE), "") ->  | J41: =IF($C41<=$B$16,VLOOKUP(A41&$B$12, localcont!$A$10:$X$1764, 15, FALSE), "") ->  | K41: =IF($C41<=$B$16,VLOOKUP(A41&$B$12, localcont!$A$10:$X$1764, 14, FALSE),"") -> 
A42: =IF($C42<=$B$16,VLOOKUP(E42,leas!D28:G467,4,FALSE),"") ->  | B42: 83223 | C42: 23 | G42: =IF($C42<=$B$16,VLOOKUP(A42&$B$12, localcont!A32:X1786, 18, FALSE), "") ->  | H42: =IF($C42<=$B$16,VLOOKUP(A42&$B$12, localcont!$A$10:$X$1764, 23, FALSE), "") ->  | J42: =IF($C42<=$B$16,VLOOKUP(A42&$B$12, localcont!$A$10:$X$1764, 15, FALSE), "") ->  | K42: =IF($C42<=$B$16,VLOOKUP(A42&$B$12, localcont!$A$10:$X$1764, 14, FALSE),"") -> 
A43: =IF($C43<=$B$16,VLOOKUP(E43,leas!D29:G468,4,FALSE),"") ->  | B43: 83224 | C43: 24 | G43: =IF($C43<=$B$16,VLOOKUP(A43&$B$12, localcont!A33:X1787, 18, FALSE), "") ->  | H43: =IF($C43<=$B$16,VLOOKUP(A43&$B$12, localcont!$A$10:$X$1764, 23, FALSE), "") ->  | J43: =IF($C43<=$B$16,VLOOKUP(A43&$B$12, localcont!$A$10:$X$1764, 15, FALSE), "") ->  | K43: =IF($C43<=$B$16,VLOOKUP(A43&$B$12, localcont!$A$10:$X$1764, 14, FALSE),"") -> 
A44: =IF($C44<=$B$16,VLOOKUP(E44,leas!D30:G469,4,FALSE),"") ->  | B44: 83225 | C44: 25 | G44: =IF($C44<=$B$16,VLOOKUP(A44&$B$12, localcont!A34:X1788, 18, FALSE), "") ->  | H44: =IF($C44<=$B$16,VLOOKUP(A44&$B$12, localcont!$A$10:$X$1764, 23, FALSE), "") ->  | J44: =IF($C44<=$B$16,VLOOKUP(A44&$B$12, localcont!$A$10:$X$1764, 15, FALSE), "") ->  | K44: =IF($C44<=$B$16,VLOOKUP(A44&$B$12, localcont!$A$10:$X$1764, 14, FALSE),"") -> 
A45: =IF($C45<=$B$16,VLOOKUP(E45,leas!D31:G470,4,FALSE),"") ->  | B45: 83226 | C45: 26 | G45: =IF($C45<=$B$16,VLOOKUP(A45&$B$12, localcont!A35:X1789, 18, FALSE), "") ->  | H45: =IF($C45<=$B$16,VLOOKUP(A45&$B$12, localcont!$A$10:$X$1764, 23, FALSE), "") ->  | J45: =IF($C45<=$B$16,VLOOKUP(A45&$B$12, localcont!$A$10:$X$1764, 15, FALSE), "") ->  | K45: =IF($C45<=$B$16,VLOOKUP(A45&$B$12, localcont!$A$10:$X$1764, 14, FALSE),"") -> 
A46: =IF($C46<=$B$16,VLOOKUP(E46,leas!D32:G471,4,FALSE),"") ->  | B46: 83227 | C46: 27 | G46: =IF($C46<=$B$16,VLOOKUP(A46&$B$12, localcont!A36:X1790, 18, FALSE), "") ->  | H46: =IF($C46<=$B$16,VLOOKUP(A46&$B$12, localcont!$A$10:$X$1764, 23, FALSE), "") ->  | J46: =IF($C46<=$B$16,VLOOKUP(A46&$B$12, localcont!$A$10:$X$1764, 15, FALSE), "") ->  | K46: =IF($C46<=$B$16,VLOOKUP(A46&$B$12, localcont!$A$10:$X$1764, 14, FALSE),"") -> 
A47: =IF($C47<=$B$16,VLOOKUP(E47,leas!D33:G472,4,FALSE),"") ->  | B47: 83228 | C47: 28 | G47: =IF($C47<=$B$16,VLOOKUP(A47&$B$12, localcont!A37:X1791, 18, FALSE), "") ->  | H47: =IF($C47<=$B$16,VLOOKUP(A47&$B$12, localcont!$A$10:$X$1764, 23, FALSE), "") ->  | J47: =IF($C47<=$B$16,VLOOKUP(A47&$B$12, localcont!$A$10:$X$1764, 15, FALSE), "") ->  | K47: =IF($C47<=$B$16,VLOOKUP(A47&$B$12, localcont!$A$10:$X$1764, 14, FALSE),"") -> 
A48: =IF($C48<=$B$16,VLOOKUP(E48,leas!D34:G473,4,FALSE),"") ->  | B48: 83229 | C48: 29 | G48: =IF($C48<=$B$16,VLOOKUP(A48&$B$12, localcont!A38:X1792, 18, FALSE), "") ->  | H48: =IF($C48<=$B$16,VLOOKUP(A48&$B$12, localcont!$A$10:$X$1764, 23, FALSE), "") ->  | J48: =IF($C48<=$B$16,VLOOKUP(A48&$B$12, localcont!$A$10:$X$1764, 15, FALSE), "") ->  | K48: =IF($C48<=$B$16,VLOOKUP(A48&$B$12, localcont!$A$10:$X$1764, 14, FALSE),"") -> 
A49: =IF($C49<=$B$16,VLOOKUP(E49,leas!D35:G474,4,FALSE),"") ->  | B49: 83230 | C49: 30 | G49: =IF($C49<=$B$16,VLOOKUP(A49&$B$12, localcont!A39:X1793, 18, FALSE), "") ->  | H49: =IF($C49<=$B$16,VLOOKUP(A49&$B$12, localcont!$A$10:$X$1764, 23, FALSE), "") ->  | J49: =IF($C49<=$B$16,VLOOKUP(A49&$B$12, localcont!$A$10:$X$1764, 15, FALSE), "") ->  | K49: =IF($C49<=$B$16,VLOOKUP(A49&$B$12, localcont!$A$10:$X$1764, 14, FALSE),"") -> 
A50: =IF($C50<=$B$16,VLOOKUP(E50,leas!D36:G475,4,FALSE),"") ->  | B50: 83231 | C50: 31 | G50: =IF($C50<=$B$16,VLOOKUP(A50&$B$12, localcont!A40:X1794, 18, FALSE), "") ->  | H50: =IF($C50<=$B$16,VLOOKUP(A50&$B$12, localcont!$A$10:$X$1764, 23, FALSE), "") ->  | J50: =IF($C50<=$B$16,VLOOKUP(A50&$B$12, localcont!$A$10:$X$1764, 15, FALSE), "") ->  | K50: =IF($C50<=$B$16,VLOOKUP(A50&$B$12, localcont!$A$10:$X$1764, 14, FALSE),"") -> 
A51: =IF($C51<=$B$16,VLOOKUP(E51,leas!D37:G476,4,FALSE),"") ->  | B51: 83232 | C51: 32 | G51: =IF($C51<=$B$16,VLOOKUP(A51&$B$12, localcont!A41:X1795, 18, FALSE), "") ->  | H51: =IF($C51<=$B$16,VLOOKUP(A51&$B$12, localcont!$A$10:$X$1764, 23, FALSE), "") ->  | J51: =IF($C51<=$B$16,VLOOKUP(A51&$B$12, localcont!$A$10:$X$1764, 15, FALSE), "") ->  | K51: =IF($C51<=$B$16,VLOOKUP(A51&$B$12, localcont!$A$10:$X$1764, 14, FALSE),"") -> 
A52: =IF($C52<=$B$16,VLOOKUP(E52,leas!D38:G477,4,FALSE),"") ->  | B52: 83233 | C52: 33 | F52: =IF($C52<=$B$16, VLOOKUP($B52, regdetail, 6), " ") ->  | G52: =IF($C52<=$B$16,VLOOKUP(A52&$B$12, localcont!A42:X1796, 18, FALSE), "") ->  | H52: =IF($C52<=$B$16,VLOOKUP(A52&$B$12, localcont!$A$10:$X$1764, 23, FALSE), "") ->  | J52: =IF($C52<=$B$16,VLOOKUP(A52&$B$12, localcont!$A$10:$X$1764, 15, FALSE), "") ->  | K52: =IF($C52<=$B$16,VLOOKUP(A52&$B$12, localcont!$A$10:$X$1764, 14, FALSE),"") -> 
A53: =IF($C53<=$B$16,VLOOKUP(E53,leas!D39:G478,4,FALSE),"") ->  | B53: 83234 | C53: 34 | G53: =IF($C53<=$B$16,VLOOKUP(A53&$B$12, localcont!A43:X1797, 18, FALSE), "") ->  | H53: =IF($C53<=$B$16,VLOOKUP(A53&$B$12, localcont!$A$10:$X$1764, 23, FALSE), "") ->  | J53: =IF($C53<=$B$16,VLOOKUP(A53&$B$12, localcont!$A$10:$X$1764, 15, FALSE), "") ->  | K53: =IF($C53<=$B$16,VLOOKUP(A53&$B$12, localcont!$A$10:$X$1764, 14, FALSE),"") -> 
A54: =IF($C54<=$B$16,VLOOKUP(E54,leas!D40:G479,4,FALSE),"") ->  | B54: 83235 | C54: 35 | G54: =IF($C54<=$B$16,VLOOKUP(A54&$B$12, localcont!A44:X1798, 18, FALSE), "") ->  | H54: =IF($C54<=$B$16,VLOOKUP(A54&$B$12, localcont!$A$10:$X$1764, 23, FALSE), "") ->  | J54: =IF($C54<=$B$16,VLOOKUP(A54&$B$12, localcont!$A$10:$X$1764, 15, FALSE), "") ->  | K54: =IF($C54<=$B$16,VLOOKUP(A54&$B$12, localcont!$A$10:$X$1764, 14, FALSE),"") -> 
A55: =IF($C55<=$B$16,VLOOKUP(E55,leas!D41:G480,4,FALSE),"") ->  | B55: 83236 | C55: 36 | G55: =IF($C55<=$B$16,VLOOKUP(A55&$B$12, localcont!A45:X1799, 18, FALSE), "") ->  | H55: =IF($C55<=$B$16,VLOOKUP(A55&$B$12, localcont!$A$10:$X$1764, 23, FALSE), "") ->  | J55: =IF($C55<=$B$16,VLOOKUP(A55&$B$12, localcont!$A$10:$X$1764, 15, FALSE), "") ->  | K55: =IF($C55<=$B$16,VLOOKUP(A55&$B$12, localcont!$A$10:$X$1764, 14, FALSE),"") -> 
A56: =IF($C56<=$B$16,VLOOKUP(E56,leas!D42:G481,4,FALSE),"") ->  | B56: 83237 | C56: 37 | G56: =IF($C56<=$B$16,VLOOKUP(A56&$B$12, localcont!A46:X1800, 18, FALSE), "") ->  | H56: =IF($C56<=$B$16,VLOOKUP(A56&$B$12, localcont!$A$10:$X$1764, 23, FALSE), "") ->  | J56: =IF($C56<=$B$16,VLOOKUP(A56&$B$12, localcont!$A$10:$X$1764, 15, FALSE), "") ->  | K56: =IF($C56<=$B$16,VLOOKUP(A56&$B$12, localcont!$A$10:$X$1764, 14, FALSE),"") -> 
A57: =IF($C57<=$B$16,VLOOKUP(E57,leas!D43:G482,4,FALSE),"") ->  | B57: 83238 | C57: 38 | G57: =IF($C57<=$B$16,VLOOKUP(A57&$B$12, localcont!A47:X1801, 18, FALSE), "") ->  | H57: =IF($C57<=$B$16,VLOOKUP(A57&$B$12, localcont!$A$10:$X$1764, 23, FALSE), "") ->  | J57: =IF($C57<=$B$16,VLOOKUP(A57&$B$12, localcont!$A$10:$X$1764, 15, FALSE), "") ->  | K57: =IF($C57<=$B$16,VLOOKUP(A57&$B$12, localcont!$A$10:$X$1764, 14, FALSE),"") -> 
A58: =IF($C58<=$B$16,VLOOKUP(E58,leas!D44:G483,4,FALSE),"") ->  | B58: 83239 | C58: 39 | G58: =IF($C58<=$B$16,VLOOKUP(A58&$B$12, localcont!A48:X1802, 18, FALSE), "") ->  | H58: =IF($C58<=$B$16,VLOOKUP(A58&$B$12, localcont!$A$10:$X$1764, 23, FALSE), "") ->  | J58: =IF($C58<=$B$16,VLOOKUP(A58&$B$12, localcont!$A$10:$X$1764, 15, FALSE), "") ->  | K58: =IF($C58<=$B$16,VLOOKUP(A58&$B$12, localcont!$A$10:$X$1764, 14, FALSE),"") -> 
A59: =IF($C59<=$B$16,VLOOKUP(E59,leas!D45:G484,4,FALSE),"") ->  | B59: 83240 | C59: 40 | G59: =IF($C59<=$B$16,VLOOKUP(A59&$B$12, localcont!A49:X1803, 18, FALSE), "") ->  | H59: =IF($C59<=$B$16,VLOOKUP(A59&$B$12, localcont!$A$10:$X$1764, 23, FALSE), "") ->  | J59: =IF($C59<=$B$16,VLOOKUP(A59&$B$12, localcont!$A$10:$X$1764, 15, FALSE), "") ->  | K59: =IF($C59<=$B$16,VLOOKUP(A59&$B$12, localcont!$A$10:$X$1764, 14, FALSE),"") -> 
A60: =IF($C60<=$B$16,VLOOKUP(E60,leas!D46:G485,4,FALSE),"") ->  | B60: 83241 | C60: 41 | G60: =IF($C60<=$B$16,VLOOKUP(A60&$B$12, localcont!A50:X1804, 18, FALSE), "") ->  | H60: =IF($C60<=$B$16,VLOOKUP(A60&$B$12, localcont!$A$10:$X$1764, 23, FALSE), "") ->  | J60: =IF($C60<=$B$16,VLOOKUP(A60&$B$12, localcont!$A$10:$X$1764, 15, FALSE), "") ->  | K60: =IF($C60<=$B$16,VLOOKUP(A60&$B$12, localcont!$A$10:$X$1764, 14, FALSE),"") -> 
A61: =IF($C61<=$B$16,VLOOKUP(E61,leas!D47:G486,4,FALSE),"") ->  | B61: 83242 | C61: 42 | G61: =IF($C61<=$B$16,VLOOKUP(A61&$B$12, localcont!A51:X1805, 18, FALSE), "") ->  | H61: =IF($C61<=$B$16,VLOOKUP(A61&$B$12, localcont!$A$10:$X$1764, 23, FALSE), "") ->  | J61: =IF($C61<=$B$16,VLOOKUP(A61&$B$12, localcont!$A$10:$X$1764, 15, FALSE), "") ->  | K61: =IF($C61<=$B$16,VLOOKUP(A61&$B$12, localcont!$A$10:$X$1764, 14, FALSE),"") -> 
A62: =IF($C62<=$B$16,VLOOKUP(E62,leas!D48:G487,4,FALSE),"") ->  | B62: 83243 | C62: 43 | G62: =IF($C62<=$B$16,VLOOKUP(A62&$B$12, localcont!A52:X1806, 18, FALSE), "") ->  | H62: =IF($C62<=$B$16,VLOOKUP(A62&$B$12, localcont!$A$10:$X$1764, 23, FALSE), "") ->  | J62: =IF($C62<=$B$16,VLOOKUP(A62&$B$12, localcont!$A$10:$X$1764, 15, FALSE), "") ->  | K62: =IF($C62<=$B$16,VLOOKUP(A62&$B$12, localcont!$A$10:$X$1764, 14, FALSE),"") -> 
A63: =IF($C63<=$B$16,VLOOKUP(E63,leas!D49:G488,4,FALSE),"") ->  | B63: 83244 | C63: 44 | G63: =IF($C63<=$B$16,VLOOKUP(A63&$B$12, localcont!A53:X1807, 18, FALSE), "") ->  | H63: =IF($C63<=$B$16,VLOOKUP(A63&$B$12, localcont!$A$10:$X$1764, 23, FALSE), "") ->  | J63: =IF($C63<=$B$16,VLOOKUP(A63&$B$12, localcont!$A$10:$X$1764, 15, FALSE), "") ->  | K63: =IF($C63<=$B$16,VLOOKUP(A63&$B$12, localcont!$A$10:$X$1764, 14, FALSE),"") ->  | P63: =IF($C63>$B$16,"",O63*$P$13) -> 
A64: =IF($C64<=$B$16,VLOOKUP(E64,leas!D50:G489,4,FALSE),"") ->  | B64: 83245 | C64: 45 | G64: =IF($C64<=$B$16,VLOOKUP(A64&$B$12, localcont!A54:X1808, 18, FALSE), "") ->  | H64: =IF($C64<=$B$16,VLOOKUP(A64&$B$12, localcont!$A$10:$X$1764, 23, FALSE), "") ->  | J64: =IF($C64<=$B$16,VLOOKUP(A64&$B$12, localcont!$A$10:$X$1764, 15, FALSE), "") ->  | K64: =IF($C64<=$B$16,VLOOKUP(A64&$B$12, localcont!$A$10:$X$1764, 14, FALSE),"") -> 
A65: =IF($C65<=$B$16,VLOOKUP(E65,leas!D51:G490,4,FALSE),"") ->  | B65: 83246 | C65: 46 | G65: =IF($C65<=$B$16,VLOOKUP(A65&$B$12, localcont!A55:X1809, 18, FALSE), "") ->  | H65: =IF($C65<=$B$16,VLOOKUP(A65&$B$12, localcont!$A$10:$X$1764, 23, FALSE), "") ->  | J65: =IF($C65<=$B$16,VLOOKUP(A65&$B$12, localcont!$A$10:$X$1764, 15, FALSE), "") ->  | K65: =IF($C65<=$B$16,VLOOKUP(A65&$B$12, localcont!$A$10:$X$1764, 14, FALSE),"") -> 
A66: =IF($C66<=$B$16,VLOOKUP(E66,leas!D52:G491,4,FALSE),"") ->  | B66: 83247 | C66: 47 | G66: =IF($C66<=$B$16,VLOOKUP(A66&$B$12, localcont!A56:X1810, 18, FALSE), "") ->  | H66: =IF($C66<=$B$16,VLOOKUP(A66&$B$12, localcont!$A$10:$X$1764, 23, FALSE), "") ->  | J66: =IF($C66<=$B$16,VLOOKUP(A66&$B$12, localcont!$A$10:$X$1764, 15, FALSE), "") ->  | K66: =IF($C66<=$B$16,VLOOKUP(A66&$B$12, localcont!$A$10:$X$1764, 14, FALSE),"") -> 
A67: =IF($C67<=$B$16,VLOOKUP(E67,leas!D53:G492,4,FALSE),"") ->  | B67: 83248 | C67: 48 | G67: =IF($C67<=$B$16,VLOOKUP(A67&$B$12, localcont!A57:X1811, 18, FALSE), "") ->  | H67: =IF($C67<=$B$16,VLOOKUP(A67&$B$12, localcont!$A$10:$X$1764, 23, FALSE), "") ->  | J67: =IF($C67<=$B$16,VLOOKUP(A67&$B$12, localcont!$A$10:$X$1764, 15, FALSE), "") ->  | K67: =IF($C67<=$B$16,VLOOKUP(A67&$B$12, localcont!$A$10:$X$1764, 14, FALSE),"") -> 
A68: =IF($C68<=$B$16,VLOOKUP(E68,leas!D54:G493,4,FALSE),"") ->  | B68: 83249 | C68: 49 | G68: =IF($C68<=$B$16,VLOOKUP(A68&$B$12, localcont!A58:X1812, 18, FALSE), "") ->  | H68: =IF($C68<=$B$16,VLOOKUP(A68&$B$12, localcont!$A$10:$X$1764, 23, FALSE), "") ->  | J68: =IF($C68<=$B$16,VLOOKUP(A68&$B$12, localcont!$A$10:$X$1764, 15, FALSE), "") ->  | K68: =IF($C68<=$B$16,VLOOKUP(A68&$B$12, localcont!$A$10:$X$1764, 14, FALSE),"") -> 

Sheet Comparison to FY26
B1: Return to Index | P1: More about the data
A2: Massachusetts Department of Elementary and Secondary Education
A3: =CYr&" Chapter 70 Comparison to "&PYr -> FY27 Chapter 70 Comparison to FY26
C7: =PYr -> FY26 | D7: =CYr -> FY27 | F7: =PYr -> FY26 | G7: =CYr -> FY27 | I7: =PYr -> FY26 | J7: =CYr -> FY27 | L7: =PYr -> FY26 | M7: =CYr -> FY27
B8: Operating | C8: Foundation | D8: Foundation | F8: Foundation | G8: Foundation | I8: Minimum | J8: Minimum | L8: Chapter 70 | M8: Chapter 70
A9: LEA | B9: District name | C9: Enrollment | D9: Enrollment | E9: change | F9: Budget | G9: Budget | H9: change per pupil | I9: Contribution | J9: Contribution | K9: change per pupil | L9: aid | M9: aid | N9: change in aid | O9: change in aid per pupil | P9: % change in aid
A10: 1 | B10: Abington | C10: =VLOOKUP(A10,aidcalc,14,FALSE) -> 2200 | D10: =VLOOKUP(A10,aidcalc,15,FALSE) -> 2199 | E10: =D10-C10 -> -1 | F10: =VLOOKUP(A10,aidcalc,4,FALSE) -> 33501030.56 | G10: =VLOOKUP(A10,aidcalc,9,FALSE) -> 34347724.26 | H10: =(G10-F10)/$D10 -> 385.0357867 | I10: =VLOOKUP(A10,aidcalc,5,FALSE) -> 18800612 | J10: =VLOOKUP(A10,aidcalc,10,FALSE) -> 19908440 | K10: =(J10-I10)/$D10 -> 503.787176 | L10: =VLOOKUP(A10,aidcalc,6,FALSE) -> 14812278 | M10: =VLOOKUP(A10,aidcalc,25,FALSE) -> 14977203 | N10: =M10-L10 -> 164925 | O10: =(M10-L10)/$D10 -> 75 | P10: =ROUND(IF(F10>0,(M10-L10)/L10,100),2) -> 0.01
A11: 3 | B11: Acushnet | C11: 1131 | D11: 1118 | E11: -13 | F11: 15639642.75 | G11: 15971692.03 | H11: 297.0029338 | I11: 9288698 | J11: 9654882 | K11: 327.5348837 | L11: 7461972 | M11: 7545822 | N11: 83850 | O11: 75 | P11: 0.01
A12: 5 | B12: Agawam | C12: 3463 | D12: 3437 | E12: -26 | F12: 55345476.31 | G12: 57507213.81 | H12: 628.9605761 | I12: 28135196 | J12: 29862697 | K12: 502.6188537 | L12: 27210280 | M12: 27644517 | N12: 434237 | O12: 126.3418679 | P12: 0.02
A13: 7 | B13: Amesbury | C13: 1919 | D13: 1953 | E13: 34 | F13: 28109289.03 | G13: 29502412.49 | H13: 713.3248643 | I13: 20286760 | J13: 21809838 | K13: 779.8658474 | L13: 9957529 | M13: 10104004 | N13: 146475 | O13: 75 | P13: 0.01
A14: 8 | B14: Amherst | C14: 1037 | D14: 1033 | E14: -4 | F14: 14981907.18 | G14: 15814005.69 | H14: 805.5164666 | I14: 11896370 | J14: 12488880 | K14: 573.5818006 | L14: 6538659 | M14: 6616134 | N14: 77475 | O14: 75 | P14: 0.01
A15: 9 | B15: Andover | C15: 5464 | D15: 5370 | E15: -94 | F15: 75901319.69 | G15: 77328687.06 | H15: 265.8039807 | I15: 62087646 | J15: 63796166 | K15: 318.160149 | L15: 15338760 | M15: 15741510 | N15: 402750 | O15: 75 | P15: 0.03
A16: 10 | B16: Arlington | C16: 6114 | D16: 6123 | E16: 9 | F16: 81515548.27 | G16: 85724971.74 | H16: 687.4772937 | I16: 61905761 | J16: 65397888 | K16: 570.3294137 | L16: 20246693 | M16: 20705918 | N16: 459225 | O16: 75 | P16: 0.02
A17: 14 | B17: Ashland | C17: 2837 | D17: 2818 | E17: -19 | F17: 39209499.74 | G17: 41080212.26 | H17: 663.8440454 | I17: 28541470 | J17: 29773789 | K17: 437.3026969 | L17: 11996178 | M17: 12207528 | N17: 211350 | O17: 75 | P17: 0.02
A18: 16 | B18: Attleboro | C18: 6440 | D18: 6364 | E18: -76 | F18: 110074456.2 | G18: 113893945.4 | H18: 600.1711581 | I18: 48277999 | J18: 50667309 | K18: 375.4415462 | L18: 61796457 | M18: 63226636 | N18: 1430179 | O18: 224.7295726 | P18: 0.02
A19: 17 | B19: Auburn | C19: 2400 | D19: 2346 | E19: -54 | F19: 34174444.38 | G19: 34749450.58 | H19: 245.100682 | I19: 18808409 | J19: 19768081 | K19: 409.0673487 | L19: 15740489 | M19: 15916439 | N19: 175950 | O19: 75 | P19: 0.01
A20: 18 | B20: Avon | C20: 588 | D20: 552 | E20: -36 | F20: 10349488.58 | G20: 10182039.74 | H20: -303.3493478 | I20: 5949758 | J20: 5979732 | K20: 54.30072464 | L20: 4399731 | M20: 4441131 | N20: 41400 | O20: 75 | P20: 0.01
A21: 20 | B21: Barnstable | C21: 5230 | D21: 5038 | E21: -192 | F21: 91282281.55 | G21: 92442313.11 | H21: 230.2563636 | I21: 68459559 | J21: 71854310 | K21: 673.8290988 | L21: 26088377 | M21: 26466227 | N21: 377850 | O21: 75 | P21: 0.01
A22: 23 | B22: Bedford | C22: 2528 | D22: 2416 | E22: -112 | F22: 35245066.37 | G22: 35093223.98 | H22: -62.84867136 | I22: 29077179 | J22: 28951910 | K22: -51.84975166 | L22: 6667909 | M22: 6849109 | N22: 181200 | O22: 75 | P22: 0.03
A23: 24 | B23: Belchertown | C23: 2043 | D23: 1982 | E23: -61 | F23: 27957662.77 | G23: 28303896.73 | H23: 174.6891826 | I23: 15052180 | J23: 15826711 | K23: 390.7825429 | L23: 14735480 | M23: 14884130 | N23: 148650 | O23: 75 | P23: 0.01
A24: 25 | B24: Bellingham | C24: 2206 | D24: 2237 | E24: 31 | F24: 31820375.34 | G24: 34592550.34 | H24: 1239.237819 | I24: 22163244 | J24: 23625313 | K24: 653.5847117 | L24: 10531532 | M24: 10967237 | N24: 435705 | O24: 194.7720161 | P24: 0.04
A25: 26 | B25: Belmont | C25: 4538 | D25: 4530 | E25: -8 | F25: 61875520.81 | G25: 64651862.96 | H25: 612.8790616 | I25: 49876878 | J25: 51418074 | K25: 340.2198675 | L25: 12935419 | M25: 13275169 | N25: 339750 | O25: 75 | P25: 0.03
A26: 27 | B26: Berkley | C26: 640 | D26: 599 | E26: -41 | F26: 8738336.55 | G26: 8934075.39 | H26: 326.7760267 | I26: 5232212 | J26: 5539772 | K26: 513.4557596 | L26: 4318848 | M26: 4363773 | N26: 44925 | O26: 75 | P26: 0.01
A27: 30 | B27: Beverly | C27: 4437 | D27: 4461 | E27: 24 | F27: 64124970 | G27: 67719159.89 | H27: 805.6915243 | I27: 51585549 | J27: 53954926 | K27: 531.1313607 | L27: 15674495 | M27: 16009070 | N27: 334575 | O27: 75 | P27: 0.02
A28: 31 | B28: Billerica | C28: 4999 | D28: 4983 | E28: -16 | F28: 68911291.64 | G28: 72151964.44 | H28: 650.3457355 | I28: 55154759 | J28: 57776251 | K28: 526.0870961 | L28: 21331984 | M28: 21705709 | N28: 373725 | O28: 75 | P28: 0.02
A29: 35 | B29: Boston | C29: 57616 | D29: 55975 | E29: -1641 | F29: 1220875807 | G29: 1258580176 | H29: 673.5930241 | I29: 1007222540 | J29: 1038328645 | K29: 555.7142474 | L29: 245309561 | M29: 249507686 | N29: 4198125 | O29: 75 | P29: 0.02
A30: 36 | B30: Bourne | C30: 1624 | D30: 1585 | E30: -39 | F30: 24040569.22 | G30: 24467743.6 | H30: 269.5106498 | I30: 19771933 | J30: 20185888 | K30: 261.170347 | L30: 5892775 | M30: 6011650 | N30: 118875 | O30: 75 | P30: 0.02
A31: 38 | B31: Boxford | C31: 749 | D31: 728 | E31: -21 | F31: 9386167.008 | G31: 9544654.414 | H31: 217.7024803 | I31: 7523174 | J31: 7685047 | K31: 222.353022 | L31: 2044923 | M31: 2099523 | N31: 54600 | O31: 75 | P31: 0.03
A32: 40 | B32: Braintree | C32: 5121 | D32: 4970 | E32: -151 | F32: 75740827.68 | G32: 76951750.13 | H32: 243.6463683 | I32: 57604796 | J32: 60143288 | K32: 510.7629779 | L32: 21959550 | M32: 22332300 | N32: 372750 | O32: 75 | P32: 0.02
A33: 41 | B33: Brewster | C33: 419 | D33: 394 | E33: -25 | F33: 6081078.08 | G33: 5944818.44 | H33: -345.8366497 | I33: 5016889 | J33: 4904475 | K33: -285.3147208 | L33: 1484085 | M33: 1513635 | N33: 29550 | O33: 75 | P33: 0.02
A34: 43 | B34: Brimfield | C34: 251 | D34: 252 | E34: 1 | F34: 3424747.86 | G34: 3601518.54 | H34: 701.4709524 | I34: 1917011 | J34: 2018377 | K34: 402.2460317 | L34: 1791067 | M34: 1809967 | N34: 18900 | O34: 75 | P34: 0.01
A35: 44 | B35: Brockton | C35: 17203 | D35: 16574 | E35: -629 | F35: 344720845.5 | G35: 352935379.1 | H35: 495.6277066 | I35: 62646528 | J35: 64908788 | K35: 136.4945095 | L35: 282074317 | M35: 288026591 | N35: 5952274 | O35: 359.1332207 | P35: 0.02
A36: 45 | B36: Brookfield | C36: 221 | D36: 213 | E36: -8 | F36: 3273863.38 | G36: 3203866.48 | H36: -328.6239437 | I36: 1445613 | J36: 1520945 | K36: 353.6713615 | L36: 1968286 | M36: 1984261 | N36: 15975 | O36: 75 | P36: 0.01
A37: 46 | B37: Brookline | C37: 6881 | D37: 6822 | E37: -59 | F37: 95312162.89 | G37: 98953992.46 | H37: 533.8360552 | I37: 78632534 | J37: 81637044 | K37: 440.4148344 | L37: 17784893 | M37: 18296543 | N37: 511650 | O37: 75 | P37: 0.03
A38: 48 | B38: Burlington | C38: 3523 | D38: 3477 | E38: -46 | F38: 50997674.38 | G38: 52951493.56 | H38: 561.9267141 | I38: 41124446 | J38: 42983788 | K38: 534.7546736 | L38: 10503556 | M38: 10764331 | N38: 260775 | O38: 75 | P38: 0.02
A39: 49 | B39: Cambridge | C39: 7446 | D39: 7397 | E39: -49 | F39: 129510666.7 | G39: 130485995.8 | H39: 131.854687 | I39: 106846300 | J39: 107650947 | K39: 108.7801812 | L39: 22664367 | M39: 23219142 | N39: 554775 | O39: 75 | P39: 0.02
A40: 50 | B40: Canton | C40: 3301 | D40: 3324 | E40: 23 | F40: 47358582.6 | G40: 49640688.38 | H40: 686.5540868 | I40: 38091394 | J40: 39968834 | K40: 564.8134777 | L40: 9502600 | M40: 9751900 | N40: 249300 | O40: 75 | P40: 0.03
A41: 51 | B41: Carlisle | C41: 576 | D41: 571 | E41: -5 | F41: 7237676.12 | G41: 7493326.185 | H41: 447.7234058 | I41: 5971083 | J41: 6103524 | K41: 231.9457093 | L41: 1533774 | M41: 1576599 | N41: 42825 | O41: 75 | P41: 0.03
A42: 52 | B42: Carver | C42: 1467 | D42: 1424 | E42: -43 | F42: 21388080.56 | G42: 21694607.7 | H42: 215.2578222 | I42: 11861024 | J42: 12833218 | K42: 682.7205056 | L42: 10839443 | M42: 10946243 | N42: 106800 | O42: 75 | P42: 0.01
A43: 56 | B43: Chelmsford | C43: 5132 | D43: 5175 | E43: 43 | F43: 68619087.45 | G43: 72340954.5 | H43: 719.2013623 | I43: 55152965 | J43: 57928714 | K43: 536.3766184 | L43: 15450424 | M43: 15838549 | N43: 388125 | O43: 75 | P43: 0.03
A44: 57 | B44: Chelsea | C44: 7029 | D44: 6708 | E44: -321 | F44: 155824471.3 | G44: 158213129.3 | H44: 356.0909298 | I44: 25069966 | J44: 26862562 | K44: 267.2325581 | L44: 130754505 | M44: 131350567 | N44: 596062 | O44: 88.85837806 | P44: 0
A45: 61 | B45: Chicopee | C45: 7198 | D45: 7057 | E45: -141 | F45: 136705068.7 | G45: 136875016.7 | H45: 24.08219215 | I45: 36463911 | J45: 38338156 | K45: 265.5866516 | L45: 100241158 | M45: 100770433 | N45: 529275 | O45: 75 | P45: 0.01
A46: 63 | B46: Clarksburg | C46: 201 | D46: 196 | E46: -5 | F46: 2998078.92 | G46: 3011061.51 | H46: 66.23770408 | I46: 793818 | J46: 853595 | K46: 304.9846939 | L46: 2204261 | M46: 2218961 | N46: 14700 | O46: 75 | P46: 0.01
A47: 64 | B47: Clinton | C47: 2129 | D47: 2137 | E47: 8 | F47: 36558782.02 | G47: 38523372.39 | H47: 919.3216518 | I47: 14710647 | J47: 15572690 | K47: 403.3893308 | L47: 21848135 | M47: 22950682 | N47: 1102547 | O47: 515.9321479 | P47: 0.05
A48: 65 | B48: Cohasset | C48: 1408 | D48: 1396 | E48: -12 | F48: 18191220.13 | G48: 18899522.73 | H48: 507.3800871 | I48: 15007757 | J48: 15592106 | K48: 418.5881089 | L48: 3333035 | M48: 3437735 | N48: 104700 | O48: 75 | P48: 0.03
A49: 67 | B49: Concord | C49: 1892 | D49: 1837 | E49: -55 | F49: 24461959.49 | G49: 24593938.52 | H49: 71.84487249 | I49: 20181116 | J49: 20289999 | K49: 59.27218291 | L49: 4524105 | M49: 4661880 | N49: 137775 | O49: 75 | P49: 0.03
A50: 68 | B50: Conway | C50: 83 | D50: 78 | E50: -5 | F50: 1196505.07 | G50: 1135501.81 | H50: -782.0930769 | I50: 987117 | J50: 936789 | K50: -645.2307692 | L50: 656966 | M50: 662816 | N50: 5850 | O50: 75 | P50: 0.01
A51: 71 | B51: Danvers | C51: 3313 | D51: 3197 | E51: -116 | F51: 46476053.4 | G51: 45833930.9 | H51: -200.8515796 | I51: 36728197 | J51: 37812993 | K51: 339.3168596 | L51: 10137350 | M51: 10377125 | N51: 239775 | O51: 75 | P51: 0.02
A52: 72 | B52: Dartmouth | C52: 3203 | D52: 3181 | E52: -22 | F52: 45395663.05 | G52: 47009657.39 | H52: 507.3858346 | I52: 37451422 | J52: 38782967 | K52: 418.5932097 | L52: 11271317 | M52: 11509892 | N52: 238575 | O52: 75 | P52: 0.02
A53: 73 | B53: Dedham | C53: 2707 | D53: 2566 | E53: -141 | F53: 40094755.54 | G53: 38674910.38 | H53: -553.3301467 | I53: 30840581 | J53: 31906801 | K53: 415.5183164 | L53: 10145563 | M53: 10338013 | N53: 192450 | O53: 75 | P53: 0.02
A54: 74 | B54: Deerfield | C54: 261 | D54: 254 | E54: -7 | F54: 3493016.69 | G54: 3599915.77 | H54: 420.8625197 | I54: 2881739 | J54: 2969931 | K54: 347.2125984 | L54: 1225219 | M54: 1244269 | N54: 19050 | O54: 75 | P54: 0.02
A55: 77 | B55: Douglas | C55: 1041 | D55: 1022 | E55: -19 | F55: 14294446.85 | G55: 14629344.89 | H55: 327.6888845 | I55: 9322034 | J55: 9866311 | K55: 532.5606654 | L55: 9195163 | M55: 9271813 | N55: 76650 | O55: 75 | P55: 0.01
A56: 78 | B56: Dover | C56: 474 | D56: 454 | E56: -20 | F56: 6012595.309 | G56: 6029124.489 | H56: 36.40788511 | I56: 4960391 | J56: 4974028 | K56: 30.03744493 | L56: 1154911 | M56: 1188961 | N56: 34050 | O56: 75 | P56: 0.03
A57: 79 | B57: Dracut | C57: 3775 | D57: 3730 | E57: -45 | F57: 55951048.69 | G57: 58046318.31 | H57: 561.7344826 | I57: 28785919 | J57: 30656645 | K57: 501.5351206 | L57: 28136689 | M57: 28416439 | N57: 279750 | O57: 75 | P57: 0.01
A58: 82 | B58: Duxbury | C58: 2693 | D58: 2572 | E58: -121 | F58: 35054190.46 | G58: 35156207.32 | H58: 39.66441024 | I58: 28849041 | J58: 29003871 | K58: 60.19828927 | L58: 7351890 | M58: 7544790 | N58: 192900 | O58: 75 | P58: 0.03
A59: 83 | B59: East Bridgewater | C59: 1956 | D59: 1918 | E59: -38 | F59: 27680260.6 | G59: 28408134.67 | H59: 379.4963869 | I59: 15476590 | J59: 16296001 | K59: 427.221585 | L59: 13370869 | M59: 13514719 | N59: 143850 | O59: 75 | P59: 0.01
A60: 85 | B60: Eastham | C60: 195 | D60: 197 | E60: 2 | F60: 2811123.1 | G60: 3056888.32 | H60: 1247.539188 | I60: 2319176 | J60: 2521933 | K60: 1029.22335 | L60: 556679 | M60: 571454 | N60: 14775 | O60: 75 | P60: 0.03
A61: 86 | B61: Easthampton | C61: 1565 | D61: 1533 | E61: -32 | F61: 23886649.57 | G61: 23938957.65 | H61: 34.12138291 | I61: 15814907 | J61: 16827061 | K61: 660.2439661 | L61: 9063542 | M61: 9178517 | N61: 114975 | O61: 75 | P61: 0.01
A62: 87 | B62: East Longmeadow | C62: 2468 | D62: 2355 | E62: -113 | F62: 34975334.98 | G62: 34286215.83 | H62: -292.6195966 | I62: 20638923 | J62: 21652294 | K62: 430.3061571 | L62: 15669936 | M62: 15846561 | N62: 176625 | O62: 75 | P62: 0.01
A63: 88 | B63: Easton | C63: 3349 | D63: 3286 | E63: -63 | F63: 45287684.26 | G63: 46300939.71 | H63: 308.35528 | I63: 36311272 | J63: 38111434 | K63: 547.8277541 | L63: 11511787 | M63: 11758237 | N63: 246450 | O63: 75 | P63: 0.02
A64: 89 | B64: Edgartown | C64: 393 | D64: 384 | E64: -9 | F64: 6271711.71 | G64: 6499194.09 | H64: 592.4020312 | I64: 5174162 | J64: 5361835 | K64: 488.7317708 | L64: 1269737 | M64: 1298537 | N64: 28800 | O64: 75 | P64: 0.02
A65: 91 | B65: Erving | C65: 175 | D65: 165 | E65: -10 | F65: 2485223.59 | G65: 2479188.07 | H65: -36.57890909 | I65: 2050310 | J65: 2045330 | K65: -30.18181818 | L65: 603466 | M65: 615841 | N65: 12375 | O65: 75 | P65: 0.02
A66: 93 | B66: Everett | C66: 8009 | D66: 7670 | E66: -339 | F66: 172711734.6 | G66: 174880352.4 | H66: 282.7402576 | I66: 45846412 | J66: 47849900 | K66: 261.2109518 | L66: 126865323 | M66: 127440573 | N66: 575250 | O66: 75 | P66: 0
A67: 94 | B67: Fairhaven | C67: 1590 | D67: 1558 | E67: -32 | F67: 24525650.53 | G67: 25249369.25 | H67: 464.517792 | I67: 15860855 | J67: 16358510 | K67: 319.4191271 | L67: 10036083 | M67: 10152933 | N67: 116850 | O67: 75 | P67: 0.01
A68: 95 | B68: Fall River | C68: 13106 | D68: 13241 | E68: 135 | F68: 273966514.1 | G68: 297582870.1 | H68: 1783.577981 | I68: 43178238 | J68: 47033824 | K68: 291.185409 | L68: 230788276 | M68: 250549046 | N68: 19760770 | O68: 1492.392569 | P68: 0.09
A69: 96 | B69: Falmouth | C69: 2810 | D69: 2721 | E69: -89 | F69: 43846641.97 | G69: 43356186.71 | H69: -180.2481661 | I69: 36173479 | J69: 35768854 | K69: -148.7045204 | L69: 10042889 | M69: 10246964 | N69: 204075 | O69: 75 | P69: 0.02
A70: 97 | B70: Fitchburg | C70: 5791 | D70: 5826 | E70: 35 | F70: 110532274.9 | G70: 118652851.6 | H70: 1393.85114 | I70: 24320887 | J70: 25866520 | K70: 265.2991761 | L70: 86211388 | M70: 92786332 | N70: 6574944 | O70: 1128.552008 | P70: 0.08
A71: 98 | B71: Florida | C71: 47 | D71: 45 | E71: -2 | F71: 767290.66 | G71: 762027.87 | H71: -116.9508889 | I71: 449313 | J71: 502830 | K71: 1189.266667 | L71: 572487 | M71: 575862 | N71: 3375 | O71: 75 | P71: 0.01
A72: 99 | B72: Foxborough | C72: 2580 | D72: 2518 | E72: -62 | F72: 37172001.84 | G72: 37565196.07 | H72: 156.1533887 | I72: 29764062 | J72: 30991287 | K72: 487.3808578 | L72: 10082632 | M72: 10271482 | N72: 188850 | O72: 75 | P72: 0.02
A73: 100 | B73: Framingham | C73: 9532 | D73: 8948 | E73: -584 | F73: 173968070 | G73: 171534104.1 | H73: -272.0122871 | I73: 81468888 | J73: 85137964 | K73: 410.0442557 | L73: 92499182 | M73: 93170282 | N73: 671100 | O73: 75 | P73: 0.01
A74: 101 | B74: Franklin | C74: =VLOOKUP(A74,aidcalc,14,FALSE) -> 4951 | D74: =VLOOKUP(A74,aidcalc,15,FALSE) -> 4734 | E74: =D74-C74 -> -217 | F74: =VLOOKUP(A74,aidcalc,4,FALSE) -> 68009481.34 | G74: =VLOOKUP(A74,aidcalc,9,FALSE) -> 68032792.42 | H74: =(G74-F74)/$D74 -> 4.924180503 | I74: =VLOOKUP(A74,aidcalc,5,FALSE) -> 52439022 | J74: =VLOOKUP(A74,aidcalc,10,FALSE) -> 54507737 | K74: =(J74-I74)/$D74 -> 436.9909168 | L74: =VLOOKUP(A74,aidcalc,6,FALSE) -> 30460643 | M74: =VLOOKUP(A74,aidcalc,25,FALSE) -> 30815693 | N74: =M74-L74 -> 355050 | O74: =(M74-L74)/$D74 -> 75 | P74: =ROUND(IF(F74>0,(M74-L74)/L74,100),2) -> 0.01
A75: 103 | B75: Gardner | C75: 2500 | D75: 2465 | E75: -35 | F75: 45038410.02 | G75: 46507130.32 | H75: 595.8297363 | I75: 12662453 | J75: 13487454 | K75: 334.6860041 | L75: 32375957 | M75: 33019676 | N75: 643719 | O75: 261.1436105 | P75: 0.02
A76: 105 | B76: Georgetown | C76: 1157 | D76: 1114 | E76: -43 | F76: 15021753.37 | G76: 15137073.93 | H76: 103.5193537 | I76: 12206104 | J76: 12426278 | K76: 197.6427289 | L76: 6011432 | M76: 6094982 | N76: 83550 | O76: 75 | P76: 0.01
A77: 107 | B77: Gloucester | C77: 3009 | D77: 2952 | E77: -57 | F77: 50710044.2 | G77: 52844391.7 | H77: 723.0174471 | I77: 39344590 | J77: 41501767 | K77: 730.7510163 | L77: 12161741 | M77: 12383141 | N77: 221400 | O77: 75 | P77: 0.02
A78: 110 | B78: Grafton | C78: 2956 | D78: 2971 | E78: 15 | F78: 39402336.33 | G78: 41546834.43 | H78: 721.8101986 | I78: 27625677 | J78: 29482229 | K78: 624.8912824 | L78: 13539728 | M78: 13762553 | N78: 222825 | O78: 75 | P78: 0.02
A79: 111 | B79: Granby | C79: 641 | D79: 626 | E79: -15 | F79: 9473831.24 | G79: 9405693.32 | H79: -108.8465176 | I79: 6338906 | J79: 6621887 | K79: 452.0463259 | L79: 4929700 | M79: 4976650 | N79: 46950 | O79: 75 | P79: 0.01
A80: 114 | B80: Greenfield | C80: 1686 | D80: 1631 | E80: -55 | F80: 28110844.75 | G80: 28107599.75 | H80: -1.989576947 | I80: 11981726 | J80: 12549723 | K80: 348.2507664 | L80: 16748064 | M80: 16870389 | N80: 122325 | O80: 75 | P80: 0.01
A81: 117 | B81: Hadley | C81: 435 | D81: 415 | E81: -20 | F81: 6594207.05 | G81: 6534075.61 | H81: -144.8950361 | I81: 5374427 | J81: 5390612 | K81: 39 | L81: 1462046 | M81: 1493171 | N81: 31125 | O81: 75 | P81: 0.02
A82: 118 | B82: Halifax | C82: 543 | D82: 538 | E82: -5 | F82: 7476145.688 | G82: 7659877.793 | H82: 341.5094895 | I82: 4173331 | J82: 4407182 | K82: 434.6672862 | L82: 3649183 | M82: 3689533 | N82: 40350 | O82: 75 | P82: 0.01
A83: 121 | B83: Hancock | C83: 86 | D83: 79 | E83: -7 | F83: 1251017 | G83: 1236469.67 | H83: -184.1434177 | I83: 855049 | J83: 894467 | K83: 498.9620253 | L83: 463156 | M83: 469081 | N83: 5925 | O83: 75 | P83: 0.01
A84: 122 | B84: Hanover | C84: 2472 | D84: 2366 | E84: -106 | F84: 32549060.69 | G84: 32396385.68 | H84: -64.52874415 | I84: 25651759 | J84: 26727018 | K84: 454.4628064 | L84: 8088931 | M84: 8266381 | N84: 177450 | O84: 75 | P84: 0.02
A85: 125 | B85: Harvard | C85: 868 | D85: 855 | E85: -13 | F85: 11305864.01 | G85: 11655609.1 | H85: 409.0585848 | I85: 9082614 | J85: 9391727 | K85: 361.5356725 | L85: 2418691 | M85: 2482816 | N85: 64125 | O85: 75 | P85: 0.03
A86: 127 | B86: Hatfield | C86: 278 | D86: 271 | E86: -7 | F86: 3981919.64 | G86: 4069015.53 | H86: 321.387048 | I86: 3285084 | J86: 3356938 | K86: 265.1439114 | L86: 969096 | M86: 989421 | N86: 20325 | O86: 75 | P86: 0.02
A87: 128 | B87: Haverhill | C87: 8435 | D87: 8240 | E87: -195 | F87: 149713124.7 | G87: 154969203.8 | H87: 637.8736772 | I87: 55493490 | J87: 58542162 | K87: 369.984466 | L87: 94219635 | M87: 96427042 | N87: 2207407 | O87: 267.889199 | P87: 0.02
A88: 131 | B88: Hingham | C88: 3528 | D88: 3481 | E88: -47 | F88: 46634192.57 | G88: 48104960.02 | H88: 422.5129145 | I88: 38473209 | J88: 39686592 | K88: 348.5731112 | L88: 9439417 | M88: 9700492 | N88: 261075 | O88: 75 | P88: 0.03
A89: 133 | B89: Holbrook | C89: 1394 | D89: 1383 | E89: -11 | F89: 23413602.23 | G89: 24189420.93 | H89: 560.9679674 | I89: 10616613 | J89: 11032723 | K89: 300.8749096 | L89: 12796989 | M89: 13156698 | N89: 359709 | O89: 260.0932755 | P89: 0.03
A90: 135 | B90: Holland | C90: 153 | D90: 175 | E90: 22 | F90: 2321784.99 | G90: 2645254.84 | H90: 1848.399143 | I90: 1507847 | J90: 1609921 | K90: 583.28 | L90: 1052634 | M90: 1065759 | N90: 13125 | O90: 75 | P90: 0.01
A91: 136 | B91: Holliston | C91: 2577 | D91: 2542 | E91: -35 | F91: 33988555.89 | G91: 35077456.98 | H91: 428.363924 | I91: 26548599 | J91: 27908236 | K91: 534.8690008 | L91: 9575140 | M91: 9765790 | N91: 190650 | O91: 75 | P91: 0.02
A92: 137 | B92: Holyoke | C92: 5804 | D92: 5620 | E92: -184 | F92: 120721754.3 | G92: 125376814.9 | H92: 828.3025943 | I92: 13957634 | J92: 14778343 | K92: 146.0336299 | L92: 106764120 | M92: 110598472 | N92: 3834352 | O92: 682.2690391 | P92: 0.04
A93: 138 | B93: Hopedale | C93: 883 | D93: 885 | E93: 2 | F93: 12503191.36 | G93: 13165360.09 | H93: 748.2132595 | I93: 7211367 | J93: 7772067 | K93: 633.559322 | L93: 6443660 | M93: 6510035 | N93: 66375 | O93: 75 | P93: 0.01
A94: 139 | B94: Hopkinton | C94: 4208 | D94: 4228 | E94: 20 | F94: 55425077.17 | G94: 58274271.76 | H94: 673.887083 | I94: 45725689 | J94: 47107356 | K94: 326.7897351 | L94: 10864019 | M94: 11181119 | N94: 317100 | O94: 75 | P94: 0.03
A95: 141 | B95: Hudson | C95: 2414 | D95: 2346 | E95: -68 | F95: 37349315.83 | G95: 37694133.73 | H95: 146.9812033 | I95: 23481576 | J95: 24750368 | K95: 540.8320546 | L95: 13867740 | M95: 14043690 | N95: 175950 | O95: 75 | P95: 0.01
A96: 142 | B96: Hull | C96: 700 | D96: 675 | E96: -25 | F96: 10469817.63 | G96: 10380828.73 | H96: -131.835416 | I96: 8637600 | J96: 8564184 | K96: -108.7644444 | L96: 4180024 | M96: 4230649 | N96: 50625 | O96: 75 | P96: 0.01
A97: 144 | B97: Ipswich | C97: 1534 | D97: 1486 | E97: -48 | F97: 21484399.09 | G97: 21735094.24 | H97: 168.7046754 | I97: 17724629 | J97: 17931453 | K97: 139.1816958 | L97: 4538746 | M97: 4650196 | N97: 111450 | O97: 75 | P97: 0.02
A98: 145 | B98: Kingston | C98: 1202 | D98: 1139 | E98: -63 | F98: 16585038.48 | G98: 16109128.87 | H98: -417.8310876 | I98: 10539421 | J98: 10977022 | K98: 384.1975417 | L98: 6045617 | M98: 6131042 | N98: 85425 | O98: 75 | P98: 0.01
A99: 149 | B99: Lawrence | C99: 15214 | D99: 14894 | E99: -320 | F99: 333930425.1 | G99: 349301506.9 | H99: 1032.031812 | I99: 16318715 | J99: 17109259 | K99: 53.07801799 | L99: 317611710 | M99: 332192248 | N99: 14580538 | O99: 978.9538069 | P99: 0.05
A100: 150 | B100: Lee | C100: 537 | D100: 531 | E100: -6 | F100: 8801759.27 | G100: 9200604.07 | H100: 751.1201507 | I100: 7261451 | J100: 7560623 | K100: 563.4124294 | L100: 2307885 | M100: 2347710 | N100: 39825 | O100: 75 | P100: 0.02
A101: 151 | B101: Leicester | C101: 1360 | D101: 1356 | E101: -4 | F101: 21685353.44 | G101: 23075674.88 | H101: 1025.310796 | I101: 11866934 | J101: 12302450 | K101: 321.1769912 | L101: 11448367 | M101: 11550067 | N101: 101700 | O101: 75 | P101: 0.01
A102: 152 | B102: Lenox | C102: 441 | D102: 452 | E102: 11 | F102: 6520538.45 | G102: 6819131.93 | H102: 660.6050442 | I102: 5379444 | J102: 5625784 | K102: 545 | L102: 1461523 | M102: 1495423 | N102: 33900 | O102: 75 | P102: 0.02
A103: 153 | B103: Leominster | C103: 6122 | D103: 6098 | E103: -24 | F103: 111313888 | G103: 116573692.5 | H103: 862.5458298 | I103: 38590697 | J103: 40416037 | K103: 299.3342079 | L103: 72723191 | M103: 76157655 | N103: 3434464 | O103: 563.2115448 | P103: 0.05
A104: 154 | B104: Leverett | C104: 96 | D104: 95 | E104: -1 | F104: 1304428.15 | G104: 1363486.12 | H104: 621.6628421 | I104: 1076153 | J104: 1088545 | K104: 130.4421053 | L104: 422288 | M104: 429413 | N104: 7125 | O104: 75 | P104: 0.02
A105: 155 | B105: Lexington | C105: 6816 | D105: 6594 | E105: -222 | F105: 94617837.14 | G105: 95900340.86 | H105: 194.4955599 | I105: 78059716 | J105: 79117781 | K105: 160.4587504 | L105: 19344035 | M105: 19838585 | N105: 494550 | O105: 75 | P105: 0.03
A106: 157 | B106: Lincoln | C106: 610 | D106: 557 | E106: -53 | F106: 8265928.551 | G106: 7681767.127 | H106: -1048.763778 | I106: 6819391 | J106: 6337458 | K106: -865.2298025 | L106: 1446538 | M106: 1488313 | N106: 41775 | O106: 75 | P106: 0.03
A107: 158 | B107: Littleton | C107: 1601 | D107: 1579 | E107: -22 | F107: 20480046 | G107: 21209266.97 | H107: 461.8245535 | I107: 16667629 | J107: 17477691 | K107: 513.0221659 | L107: 5259250 | M107: 5377675 | N107: 118425 | O107: 75 | P107: 0.02
A108: 159 | B108: Longmeadow | C108: 2729 | D108: 2678 | E108: -51 | F108: 35588989.33 | G108: 36519529.63 | H108: 347.4758402 | I108: 28680259 | J108: 29526327 | K108: 315.9327857 | L108: 7791911 | M108: 7992761 | N108: 200850 | O108: 75 | P108: 0.03
A109: 160 | B109: Lowell | C109: 16836 | D109: 16778 | E109: -58 | F109: 330445792.4 | G109: 349052320.8 | H109: 1108.983689 | I109: 68956678 | J109: 73085908 | K109: 246.1097866 | L109: 261489114 | M109: 275966413 | N109: 14477299 | O109: 862.8739421 | P109: 0.06
A110: 161 | B110: Ludlow | C110: 2201 | D110: 2186 | E110: -15 | F110: 34386677.93 | G110: 35222182.71 | H110: 382.2071272 | I110: 19968467 | J110: 21458115 | K110: 681.4492223 | L110: 15020153 | M110: 15184103 | N110: 163950 | O110: 75 | P110: 0.01
A111: 162 | B111: Lunenburg | C111: 1603 | D111: 1599 | E111: -4 | F111: 22073945.75 | G111: 23089579.62 | H111: 635.1681488 | I111: 13334631 | J111: 14135611 | K111: 500.9255785 | L111: 9229410 | M111: 9349335 | N111: 119925 | O111: 75 | P111: 0.01
A112: 163 | B112: Lynn | C112: 18512 | D112: 18077 | E112: -435 | F112: 384629298.8 | G112: 398807328.3 | H112: 784.3131853 | I112: 67502992 | J112: 71472168 | K112: 219.570504 | L112: 317126307 | M112: 327335160 | N112: 10208853 | O112: 564.7426564 | P112: 0.03
A113: 164 | B113: Lynnfield | C113: 2196 | D113: 2174 | E113: -22 | F113: 28903113.11 | G113: 30099223.85 | H113: 550.1889338 | I113: 23204609 | J113: 24071411 | K113: 398.7129715 | L113: 6502690 | M113: 6665740 | N113: 163050 | O113: 75 | P113: 0.03
A114: 165 | B114: Malden | C114: 6927 | D114: 6680 | E114: -247 | F114: 130437793.4 | G114: 132410256.2 | H114: 295.2788619 | I114: 60667748 | J114: 64123681 | K114: 517.3552395 | L114: 69770045 | M114: 70271045 | N114: 501000 | O114: 75 | P114: 0.01
A115: 167 | B115: Mansfield | C115: 3272 | D115: 3237 | E115: -35 | F115: 45824586.93 | G115: 47441613.83 | H115: 499.544919 | I115: 36857964 | J115: 38096357 | K115: 382.5742972 | L115: 20336797 | M115: 20579572 | N115: 242775 | O115: 75 | P115: 0.01
A116: 168 | B116: Marblehead | C116: 2552 | D116: 2401 | E116: -151 | F116: 33445073.46 | G116: 33000504.55 | H116: -185.1598959 | I116: 27592185 | J116: 27225417 | K116: -152.7563515 | L116: 7006279 | M116: 7186354 | N116: 180075 | O116: 75 | P116: 0.03
A117: 169 | B117: Marion | C117: 372 | D117: 344 | E117: -28 | F117: 5064172.85 | G117: 4924376.2 | H117: -406.3856105 | I117: 4004960 | J117: 4062611 | K117: 167.5901163 | L117: 1250902 | M117: 1276702 | N117: 25800 | O117: 75 | P117: 0.02
A118: 170 | B118: Marlborough | C118: 5378 | D118: 5041 | E118: -337 | F118: 97477474.84 | G118: 95710135.49 | H118: -350.5930065 | I118: 45576532 | J118: 47097956 | K118: 301.8099583 | L118: 51900943 | M118: 52279018 | N118: 378075 | O118: 75 | P118: 0.01
A119: 171 | B119: Marshfield | C119: 3620 | D119: 3545 | E119: -75 | F119: 51268162.59 | G119: 50998622.84 | H119: -76.03378016 | I119: 41905509 | J119: 42073864 | K119: 47.49083216 | L119: 16133973 | M119: 16399848 | N119: 265875 | O119: 75 | P119: 0.02
A120: 172 | B120: Mashpee | C120: 1405 | D120: 1367 | E120: -38 | F120: 21964764.18 | G120: 22069624.38 | H120: 76.70826628 | I120: 18120931 | J120: 18207440 | K120: 63.28383321 | L120: 5216280 | M120: 5318805 | N120: 102525 | O120: 75 | P120: 0.02
A121: 173 | B121: Mattapoisett | C121: 364 | D121: 345 | E121: -19 | F121: 4742122.1 | G121: 4665496.24 | H121: -222.103942 | I121: 3912251 | J121: 3849034 | K121: -183.2376812 | L121: 1099653 | M121: 1125528 | N121: 25875 | O121: 75 | P121: 0.02
A122: 174 | B122: Maynard | C122: 1265 | D122: 1265 | E122: 0 | F122: 18638398.79 | G122: 19485079.49 | H122: 669.3128024 | I122: 13605109 | J122: 14387405 | K122: 618.4158103 | L122: 5983800 | M122: 6078675 | N122: 94875 | O122: 75 | P122: 0.02
A123: 175 | B123: Medfield | C123: 2374 | D123: 2340 | E123: -34 | F123: 31077353.33 | G123: 31890716.88 | H123: 347.5912619 | I123: 25638817 | J123: 26309842 | K123: 286.7628205 | L123: 7255778 | M123: 7431278 | N123: 175500 | O123: 75 | P123: 0.02
A124: 176 | B124: Medford | C124: 4511 | D124: 4486 | E124: -25 | F124: 76664491.98 | G124: 80126099.61 | H124: 771.6468192 | I124: 60826753 | J124: 64178308 | K124: 747.1143558 | L124: 18554446 | M124: 18890896 | N124: 336450 | O124: 75 | P124: 0.02
A125: 177 | B125: Medway | C125: 2145 | D125: 2121 | E125: -24 | F125: 29200155.63 | G125: 30303728.3 | H125: 520.3077171 | I125: 21596243 | J125: 22827269 | K125: 580.3988685 | L125: 11364627 | M125: 11523702 | N125: 159075 | O125: 75 | P125: 0.01
A126: 178 | B126: Melrose | C126: 3985 | D126: 3908 | E126: -77 | F126: 54259488.06 | G126: 56067589.01 | H126: 462.6665689 | I126: 43224298 | J126: 45191733 | K126: 503.4378199 | L126: 13285756 | M126: 13578856 | N126: 293100 | O126: 75 | P126: 0.02
A127: 181 | B127: Methuen | C127: 6767 | D127: 6553 | E127: -214 | F127: 120570223.2 | G127: 124723583.6 | H127: 633.8105387 | I127: 49535858 | J127: 52046906 | K127: 383.1905997 | L127: 71034365 | M127: 72676678 | N127: 1642313 | O127: 250.6200214 | P127: 0.02
A128: 182 | B128: Middleborough | C128: 3000 | D128: 3022 | E128: 22 | F128: 45765962.31 | G128: 48396103.46 | H128: 870.3312872 | I128: 25060283 | J128: 26329701 | K128: 420.0589014 | L128: 23101805 | M128: 23328455 | N128: 226650 | O128: 75 | P128: 0.01
A129: 184 | B129: Middleton | C129: 678 | D129: 643 | E129: -35 | F129: 8953831.114 | G129: 8820111.659 | H129: -207.9618276 | I129: 7386911 | J129: 7276592 | K129: -171.5692068 | L129: 1943879 | M129: 1992104 | N129: 48225 | O129: 75 | P129: 0.02
A130: 185 | B130: Milford | C130: 4791 | D130: 4585 | E130: -206 | F130: 86368278.71 | G130: 86403728.09 | H130: 7.73159945 | I130: 31831621 | J130: 33581632 | K130: 381.6817884 | L130: 54536658 | M130: 54880533 | N130: 343875 | O130: 75 | P130: 0.01
A131: 186 | B131: Millbury | C131: 1583 | D131: 1574 | E131: -9 | F131: 23480532.76 | G131: 24323216.77 | H131: 535.3773888 | I131: 15188966 | J131: 16403273 | K131: 771.478399 | L131: 9261393 | M131: 9379443 | N131: 118050 | O131: 75 | P131: 0.01
A132: 187 | B132: Millis | C132: 1081 | D132: 1091 | E132: 10 | F132: 14821764.16 | G132: 15646696.54 | H132: 756.1250086 | I132: 12227955 | J132: 12908525 | K132: 623.8038497 | L132: 5267116 | M132: 5348941 | N132: 81825 | O132: 75 | P132: 0.02
A133: 189 | B133: Milton | C133: 4355 | D133: 4354 | E133: -1 | F133: 58361210.54 | G133: 61112912.35 | H133: 631.9939853 | I133: 46814490 | J133: 48893991 | K133: 477.607028 | L133: 12776644 | M133: 13103194 | N133: 326550 | O133: 75 | P133: 0.03
A134: 191 | B134: Monson | C134: 775 | D134: 779 | E134: 4 | F134: 11784464.36 | G134: 12112206.46 | H134: 420.7215661 | I134: 6807381 | J134: 7025493 | K134: 279.9897304 | L134: 7867879 | M134: 7926304 | N134: 58425 | O134: 75 | P134: 0.01
A135: 196 | B135: Nahant | C135: 245 | D135: 252 | E135: 7 | F135: 3159072.39 | G135: 3413694.24 | H135: 1010.404167 | I135: 2606235 | J135: 2816297 | K135: 833.5793651 | L135: 622905 | M135: 641805 | N135: 18900 | O135: 75 | P135: 0.03
A136: 197 | B136: Nantucket | C136: 1701 | D136: 1627 | E136: -74 | F136: 27110453.82 | G136: 27241613.43 | H136: 80.61438844 | I136: 22366124 | J136: 22474331 | K136: 66.50706822 | L136: 4838877 | M136: 4960902 | N136: 122025 | O136: 75 | P136: 0.03
A137: 198 | B137: Natick | C137: 5287 | D137: 5218 | E137: -69 | F137: 70521736.72 | G137: 72661462.08 | H137: 410.0661868 | I137: 56626783 | J137: 59488956 | K137: 548.5191644 | L137: 14509257 | M137: 14900607 | N137: 391350 | O137: 75 | P137: 0.03
A138: 199 | B138: Needham | C138: =VLOOKUP(A138,aidcalc,14,FALSE) -> 5523 | D138: =VLOOKUP(A138,aidcalc,15,FALSE) -> 5465 | E138: =D138-C138 -> -58 | F138: =VLOOKUP(A138,aidcalc,4,FALSE) -> 74618544.11 | G138: =VLOOKUP(A138,aidcalc,9,FALSE) -> 77008161.46 | H138: =(G138-F138)/$D138 -> 437.2584349 | I138: =VLOOKUP(A138,aidcalc,5,FALSE) -> 61560299 | J138: =VLOOKUP(A138,aidcalc,10,FALSE) -> 63531733 | K138: =(J138-I138)/$D138 -> 360.7381519 | L138: =VLOOKUP(A138,aidcalc,6,FALSE) -> 14721434 | M138: =VLOOKUP(A138,aidcalc,25,FALSE) -> 15131309 | N138: =M138-L138 -> 409875 | O138: =(M138-L138)/$D138 -> 75 | P138: =ROUND(IF(F138>0,(M138-L138)/L138,100),2) -> 0.03
A139: 201 | B139: New Bedford | C139: 14156 | D139: 14160 | E139: 4 | F139: 295054094.8 | G139: 314496325.4 | H139: 1373.038886 | I139: 40756053 | J139: 43254588 | K139: 176.4502119 | L139: 254298042 | M139: 271241737 | N139: 16943695 | O139: 1196.58863 | P139: 0.07
A140: 204 | B140: Newburyport | C140: 2037 | D140: 1985 | E140: -52 | F140: 26732481.83 | G140: 27238492.66 | H140: 254.9172947 | I140: 22054297 | J140: 22471756 | K140: 210.306801 | L140: 6192935 | M140: 6341810 | N140: 148875 | O140: 75 | P140: 0.02
A141: 207 | B141: Newton | C141: 11630 | D141: 11468 | E141: -162 | F141: 163854442.6 | G141: 169131329.1 | H141: 460.1400898 | I141: 135179915 | J141: 139533347 | K141: 379.6156261 | L141: 30401034 | M141: 31261134 | N141: 860100 | O141: 75 | P141: 0.03
A142: 208 | B142: Norfolk | C142: 1029 | D142: 1004 | E142: -25 | F142: 13116177.87 | G142: 13448983.69 | H142: 331.4798936 | I142: 10294403 | J142: 10764396 | K142: 468.1205179 | L142: 3873979 | M142: 3949279 | N142: 75300 | O142: 75 | P142: 0.02
A143: 209 | B143: North Adams | C143: 1254 | D143: 1192 | E143: -62 | F143: 22791831.23 | G143: 22873270.94 | H143: 68.32190436 | I143: 6084549 | J143: 6331531 | K143: 207.1996644 | L143: 16707282 | M143: 16796682 | N143: 89400 | O143: 75 | P143: 0.01
A144: 210 | B144: Northampton | C144: 2602 | D144: 2499 | E144: -103 | F144: 37433634.75 | G144: 37355374.6 | H144: -31.31658663 | I144: 30204769 | J144: 30818184 | K144: 245.4641857 | L144: 8619389 | M144: 8806814 | N144: 187425 | O144: 75 | P144: 0.02
A145: 211 | B145: North Andover | C145: 4433 | D145: 4403 | E145: -30 | F145: 61037819.24 | G145: 63468657.77 | H145: 552.0868794 | I145: 49916865 | J145: 52361642 | K145: 555.2525551 | L145: 13071489 | M145: 13401714 | N145: 330225 | O145: 75 | P145: 0.03
A146: 212 | B146: North Attleborough | C146: 3838 | D146: 3719 | E146: -119 | F146: 52893827.05 | G146: 53752172.83 | H146: 230.800156 | I146: 36308302 | J146: 38296559 | K146: 534.6214036 | L146: 22282527 | M146: 22561452 | N146: 278925 | O146: 75 | P146: 0.01
A147: 213 | B147: Northborough | C147: 1587 | D147: 1623 | E147: 36 | F147: 20570416.46 | G147: 22109021.61 | H147: 948.0007086 | I147: 16970593 | J147: 17861692 | K147: 549.0443623 | L147: 4644408 | M147: 4766133 | N147: 121725 | O147: 75 | P147: 0.03
A148: 214 | B148: Northbridge | C148: 1900 | D148: 1886 | E148: -14 | F148: 28797160.49 | G148: 29934557.59 | H148: 603.073754 | I148: 16088295 | J148: 16963175 | K148: 463.8812301 | L148: 16390353 | M148: 16531803 | N148: 141450 | O148: 75 | P148: 0.01
A149: 215 | B149: North Brookfield | C149: 551 | D149: 561 | E149: 10 | F149: 8296193.11 | G149: 9042500.35 | H149: 1330.315936 | I149: 3734618 | J149: 4010247 | K149: 491.3172906 | L149: 5046966 | M149: 5089041 | N149: 42075 | O149: 75 | P149: 0.01
A150: 217 | B150: North Reading | C150: 2262 | D150: 2271 | E150: 9 | F150: 30731201.13 | G150: 32523143.82 | H150: 789.0544664 | I150: 24625659 | J150: 26732590 | K150: 927.7547336 | L150: 8066587 | M150: 8236912 | N150: 170325 | O150: 75 | P150: 0.02
A151: 218 | B151: Norton | C151: 2143 | D151: 2104 | E151: -39 | F151: 30090005.92 | G151: 30928801.83 | H151: 398.6672576 | I151: 23659419 | J151: 24826897 | K151: 554.884981 | L151: 13707982 | M151: 13865782 | N151: 157800 | O151: 75 | P151: 0.01
A152: 219 | B152: Norwell | C152: 2115 | D152: 2083 | E152: -32 | F152: 27721329.64 | G152: 28540632.83 | H152: 393.3284613 | I152: 22870097 | J152: 23546022 | K152: 324.4959193 | L152: 5549338 | M152: 5705563 | N152: 156225 | O152: 75 | P152: 0.03
A153: 220 | B153: Norwood | C153: 3637 | D153: 3540 | E153: -97 | F153: 59825304.49 | G153: 60923118.74 | H153: 310.1170187 | I153: 41305173 | J153: 43524945 | K153: 627.0542373 | L153: 18520131 | M153: 18785631 | N153: 265500 | O153: 75 | P153: 0.01
A154: 221 | B154: Oak Bluffs | C154: 390 | D154: 383 | E154: -7 | F154: 6005152.34 | G154: 6199181.62 | H154: 506.6038642 | I154: 4954251 | J154: 5114325 | K154: 417.9477807 | L154: 2053849 | M154: 2082574 | N154: 28725 | O154: 75 | P154: 0.01
A155: 223 | B155: Orange | C155: 511 | D155: 523 | E155: 12 | F155: 9107782.01 | G155: 9347133.21 | H155: 457.650478 | I155: 2457008 | J155: 2507516 | K155: 96.57361377 | L155: 7047875 | M155: 7087100 | N155: 39225 | O155: 75 | P155: 0.01
A156: 224 | B156: Orleans | C156: 150 | D156: 154 | E156: 4 | F156: 2277162.91 | G156: 2343511.6 | H156: 430.8356494 | I156: 1878659 | J156: 1933397 | K156: 355.4415584 | L156: 492134 | M156: 503684 | N156: 11550 | O156: 75 | P156: 0.02
A157: 226 | B157: Oxford | C157: 1523 | D157: 1457 | E157: -66 | F157: 24166880.36 | G157: 23801612.04 | H157: -250.6989156 | I157: 12243821 | J157: 12917509 | K157: 462.3802334 | L157: 12453663 | M157: 12562938 | N157: 109275 | O157: 75 | P157: 0.01
A158: 227 | B158: Palmer | C158: 1219 | D158: 1177 | E158: -42 | F158: 20132069.31 | G158: 20520407.92 | H158: 329.9393458 | I158: 7960370 | J158: 8448110 | K158: 414.3925234 | L158: 12171699 | M158: 12259974 | N158: 88275 | O158: 75 | P158: 0.01
A159: 229 | B159: Peabody | C159: 5850 | D159: 5746 | E159: -104 | F159: 98600551.81 | G159: 101220183.8 | H159: 455.9053272 | I159: 60475751 | J159: 62683035 | K159: 384.142708 | L159: 38124801 | M159: 38555751 | N159: 430950 | O159: 75 | P159: 0.01
A160: 230 | B160: Pelham | C160: 65 | D160: 66 | E160: 1 | F160: 994542.49 | G160: 1100951.86 | H160: 1612.263182 | I160: 701943 | J160: 742739 | K160: 618.1212121 | L160: 292599 | M160: 358213 | N160: 65614 | O160: 994.1515152 | P160: 0.22
A161: 231 | B161: Pembroke | C161: 2437 | D161: 2387 | E161: -50 | F161: 33498160.49 | G161: 34261298.37 | H161: 319.7058582 | I161: 26492804 | J161: 27714122 | K161: 511.6539589 | L161: 14632674 | M161: 14811699 | N161: 179025 | O161: 75 | P161: 0.01
A162: 234 | B162: Petersham | C162: 100 | D162: 83 | E162: -17 | F162: 1523839.14 | G162: 1303394.22 | H162: -2655.962892 | I162: 809811 | J162: 723389 | K162: -1041.228916 | L162: 714028 | M162: 720253 | N162: 6225 | O162: 75 | P162: 0.01
A163: 236 | B163: Pittsfield | C163: 5576 | D163: 5396 | E163: -180 | F163: 104024895.3 | G163: 102927841 | H163: -203.3087973 | I163: 35574534 | J163: 37502673 | K163: 357.3274648 | L163: 68450361 | M163: 68855061 | N163: 404700 | O163: 75 | P163: 0.01
A164: 238 | B164: Plainville | C164: 650 | D164: 634 | E164: -16 | F164: 9318021.79 | G164: 9110344.22 | H164: -327.5671451 | I164: 7105163 | J164: 7467644 | K164: 571.7365931 | L164: 3190373 | M164: 3237923 | N164: 47550 | O164: 75 | P164: 0.01
A165: 239 | B165: Plymouth | C165: 7381 | D165: 7247 | E165: -134 | F165: 115252249.9 | G165: 116667017 | H165: 195.2210771 | I165: 92866994 | J165: 96250289 | K165: 466.8545605 | L165: 30162897 | M165: 30706422 | N165: 543525 | O165: 75 | P165: 0.02
A166: 240 | B166: Plympton | C166: 258 | D166: 264 | E166: 6 | F166: 3562008.988 | G166: 3832357.277 | H166: 1024.046549 | I166: 2543035 | J166: 2617477 | K166: 281.9772727 | L166: 1145742 | M166: 1239922 | N166: 94180 | O166: 356.7424242 | P166: 0.08
A167: 242 | B167: Provincetown | C167: 94 | D167: 79 | E167: -15 | F167: 1658443.61 | G167: 1493180.93 | H167: -2091.932658 | I167: 1368216 | J167: 1231874 | K167: -1725.848101 | L167: 328599 | M167: 334524 | N167: 5925 | O167: 75 | P167: 0.02
A168: 243 | B168: Quincy | C168: 9851 | D168: 9674 | E168: -177 | F168: 177359599.8 | G168: 183203446.1 | H168: 604.0775584 | I168: 135165569 | J168: 143434414 | K168: 854.7493281 | L168: 47604553 | M168: 48330103 | N168: 725550 | O168: 75 | P168: 0.02
A169: 244 | B169: Randolph | C169: 3265 | D169: 3218 | E169: -47 | F169: 60202189.73 | G169: 63464836.43 | H169: 1013.874054 | I169: 29584825 | J169: 31461041 | K169: 583.0379117 | L169: 30617365 | M169: 32003795 | N169: 1386430 | O169: 430.8359229 | P169: 0.05
A170: 246 | B170: Reading | C170: 3663 | D170: 3783 | E170: 120 | F170: 48771409.24 | G170: 52462148.05 | H170: 975.6116333 | I170: 40236412 | J170: 42173548 | K170: 512.0634417 | L170: 12326033 | M170: 12609758 | N170: 283725 | O170: 75 | P170: 0.02
A171: 248 | B171: Revere | C171: 7962 | D171: 7639 | E171: -323 | F171: 159415532.2 | G171: 161211763.6 | H171: 235.1396019 | I171: 52200934 | J171: 55820962 | K171: 473.8876816 | L171: 107214598 | M171: 107787523 | N171: 572925 | O171: 75 | P171: 0.01
A172: 249 | B172: Richmond | C172: 123 | D172: 123 | E172: 0 | F172: 1789484.88 | G172: 1875388.28 | H172: 698.401626 | I172: 1476325 | J172: 1547195 | K172: 576.1788618 | L172: 553593 | M172: 562818 | N172: 9225 | O172: 75 | P172: 0.02
A173: 250 | B173: Rochester | C173: 473 | D173: 452 | E173: -21 | F173: 6154033.37 | G173: 6139467.45 | H173: -32.22548673 | I173: 4242497 | J173: 4486494 | K173: 539.8163717 | L173: 2537232 | M173: 2571132 | N173: 33900 | O173: 75 | P173: 0.01
A174: 251 | B174: Rockland | C174: 2203 | D174: 2178 | E174: -25 | F174: 37854417.12 | G174: 39192538.38 | H174: 614.3807406 | I174: 17961039 | J174: 18983640 | K174: 469.5137741 | L174: 19893378 | M174: 20208898 | N174: 315520 | O174: 144.8668503 | P174: 0.02
A175: 252 | B175: Rockport | C175: 520 | D175: 516 | E175: -4 | F175: 7625722.318 | G175: 7744376.138 | H175: 229.9492636 | I175: 6291221 | J175: 6389110 | K175: 189.7073643 | L175: 1726466 | M175: 1765166 | N175: 38700 | O175: 75 | P175: 0.02
A176: 253 | B176: Rowe | C176: 41 | D176: 38 | E176: -3 | F176: 704404.78 | G176: 750141.88 | H176: 1203.607895 | I176: 581134 | J176: 618867 | K176: 992.9736842 | L176: 156995 | M176: 159845 | N176: 2850 | O176: 75 | P176: 0.02
A177: 258 | B177: Salem | C177: 4278 | D177: 4335 | E177: 57 | F177: 79288061.76 | G177: 84299912.02 | H177: 1156.136161 | I177: 48249759 | J177: 51401175 | K177: 726.9702422 | L177: 31038303 | M177: 32898737 | N177: 1860434 | O177: 429.1658593 | P177: 0.06
A178: 261 | B178: Sandwich | C178: 2162 | D178: 2124 | E178: -38 | F178: 29672861.21 | G178: 30358178.61 | H178: 322.6541431 | I178: 24480111 | J178: 25045497 | K178: 266.1892655 | L178: 8063976 | M178: 8223276 | N178: 159300 | O178: 75 | P178: 0.02
A179: 262 | B179: Saugus | C179: 3018 | D179: 2943 | E179: -75 | F179: 50782365.64 | G179: 50951259.57 | H179: 57.38835542 | I179: 34611764 | J179: 36868897 | K179: 766.9497112 | L179: 16170602 | M179: 16391327 | N179: 220725 | O179: 75 | P179: 0.01
A180: 263 | B180: Savoy | C180: 36 | D180: 37 | E180: 1 | F180: 599224.79 | G180: 550415.8 | H180: -1319.161892 | I180: 419808 | J180: 403867 | K180: -430.8378378 | L180: 531339 | M180: 534114 | N180: 2775 | O180: 75 | P180: 0.01
A181: 264 | B181: Scituate | C181: 2716 | D181: 2697 | E181: -19 | F181: 35753574.68 | G181: 37004547.38 | H181: 463.8385975 | I181: 29496699 | J181: 30528751 | K181: 382.6666667 | L181: 7234435 | M181: 7436710 | N181: 202275 | O181: 75 | P181: 0.03
A182: 265 | B182: Seekonk | C182: 2040 | D182: 2018 | E182: -22 | F182: 27170412.23 | G182: 28113390.65 | H182: 467.2836571 | I182: 20374751 | J182: 21373614 | K182: 494.9767096 | L182: 8276778 | M182: 8428128 | N182: 151350 | O182: 75 | P182: 0.02
A183: 266 | B183: Sharon | C183: 3420 | D183: 3348 | E183: -72 | F183: 46223465.28 | G183: 47116523.2 | H183: 266.7437031 | I183: 36996923 | J183: 38337600 | K183: 400.4411589 | L183: 11377366 | M183: 11628466 | N183: 251100 | O183: 75 | P183: 0.02
A184: 269 | B184: Sherborn | C184: 398 | D184: 393 | E184: -5 | F184: 5048450.201 | G184: 5207058.594 | H184: 403.583697 | I184: 4164971 | J184: 4295823 | K184: 332.956743 | L184: 948465 | M184: 977940 | N184: 29475 | O184: 75 | P184: 0.03
A185: 271 | B185: Shrewsbury | C185: 5945 | D185: 5837 | E185: -108 | F185: 80350322.88 | G185: 82737349.68 | H185: 408.9475415 | I185: 64461566 | J185: 67575060 | K185: 533.4065445 | L185: 22487010 | M185: 22924785 | N185: 437775 | O185: 75 | P185: 0.02
A186: 272 | B186: Shutesbury | C186: 106 | D186: 101 | E186: -5 | F186: 1485214.67 | G186: 1425997.22 | H186: -586.3113861 | I186: 941768 | J186: 961885 | K186: 199.1782178 | L186: 672182 | M186: 679757 | N186: 7575 | O186: 75 | P186: 0.01
A187: 273 | B187: Somerset | C187: 1606 | D187: 1502 | E187: -104 | F187: 22010520.12 | G187: 21569616.31 | H187: -293.5444807 | I187: 11879285 | J187: 12247874 | K187: 245.3988016 | L187: 11039877 | M187: 11152527 | N187: 112650 | O187: 75 | P187: 0.01
A188: 274 | B188: Somerville | C188: 5155 | D188: 5080 | E188: -75 | F188: 95463549.59 | G188: 98699357.77 | H188: 636.9701142 | I188: 78757428 | J188: 81426970 | K188: 525.5003937 | L188: 22553482 | M188: 22934482 | N188: 381000 | O188: 75 | P188: 0.02
A189: 275 | B189: Southampton | C189: 476 | D189: 479 | E189: 3 | F189: 6438163.62 | G189: 6669767.9 | H189: 483.5162422 | I189: 4736509 | J189: 4991288 | K189: 531.8977035 | L189: 2742798 | M189: 2778723 | N189: 35925 | O189: 75 | P189: 0.01
A190: 276 | B190: Southborough | C190: 1218 | D190: 1241 | E190: 23 | F190: 15401749.17 | G190: 16436576.66 | H190: 833.8658239 | I190: 12482147 | J190: 13084365 | K190: 485.268332 | L190: 3473063 | M190: 3566138 | N190: 93075 | O190: 75 | P190: 0.03
A191: 277 | B191: Southbridge | C191: 2242 | D191: 2221 | E191: -21 | F191: 44392355.59 | G191: 47044351.42 | H191: 1194.054854 | I191: 10094448 | J191: 10602631 | K191: 228.8081945 | L191: 34297908 | M191: 36441720 | N191: 2143812 | O191: 965.2462855 | P191: 0.06
A192: 278 | B192: South Hadley | C192: 1798 | D192: 1751 | E192: -47 | F192: 26607493.2 | G192: 26750270.85 | H192: 81.54063392 | I192: 16689854 | J192: 17487629 | K192: 455.6110794 | L192: 11136899 | M192: 11268224 | N192: 131325 | O192: 75 | P192: 0.01
A193: 281 | B193: Springfield | C193: 28380 | D193: 28270 | E193: -110 | F193: 600170350.4 | G193: 640504628.1 | H193: 1426.751952 | I193: 54330699 | J193: 57346053 | K193: 106.6626813 | L193: 545839651 | M193: 583158575 | N193: 37318924 | O193: 1320.089282 | P193: 0.07
A194: 284 | B194: Stoneham | C194: 2511 | D194: 2498 | E194: -13 | F194: 35320286.73 | G194: 36759959.44 | H194: 576.3301461 | I194: 27572799 | J194: 28768336 | K194: 478.5976781 | L194: 7891703 | M194: 8079053 | N194: 187350 | O194: 75 | P194: 0.02
A195: 285 | B195: Stoughton | C195: 3860 | D195: 3656 | E195: -204 | F195: 65412011.17 | G195: 64112449.85 | H195: -355.4598791 | I195: 33998047 | J195: 36135976 | K195: 584.7727024 | L195: 31413964 | M195: 31688164 | N195: 274200 | O195: 75 | P195: 0.01
A196: 287 | B196: Sturbridge | C196: 827 | D196: 793 | E196: -34 | F196: 10928183.49 | G196: 10921745.06 | H196: -8.119079445 | I196: 6377304 | J196: 6692501 | K196: 397.4741488 | L196: 5304154 | M196: 5363629 | N196: 59475 | O196: 75 | P196: 0.01
A197: 288 | B197: Sudbury | C197: 2492 | D197: 2507 | E197: 15 | F197: 30743352.29 | G197: 32224355.79 | H197: 590.7473088 | I197: 24941706 | J197: 26585094 | K197: 655.5197447 | L197: 6192244 | M197: 6380269 | N197: 188025 | O197: 75 | P197: 0.03
A198: 289 | B198: Sunderland | C198: 142 | D198: 145 | E198: 3 | F198: 2093428.05 | G198: 2272880.01 | H198: 1237.599724 | I198: 1712476 | J198: 1805015 | K198: 638.2 | L198: 931556 | M198: 942431 | N198: 10875 | O198: 75 | P198: 0.01
A199: 290 | B199: Sutton | C199: 1280 | D199: 1245 | E199: -35 | F199: 17087859.71 | G199: 17294423.28 | H199: 165.9145141 | I199: 14097484 | J199: 14267899 | K199: 136.8795181 | L199: 5997981 | M199: 6091356 | N199: 93375 | O199: 75 | P199: 0.02
A200: 291 | B200: Swampscott | C200: 2055 | D200: 2036 | E200: -19 | F200: 28287967.39 | G200: 28972097.42 | H200: 336.0167141 | I200: 22504337 | J200: 23020797 | K200: 253.6640472 | L200: 5783630 | M200: 5951300 | N200: 167670 | O200: 82.35265226 | P200: 0.03
A201: 292 | B201: Swansea | C201: 1999 | D201: 1961 | E201: -38 | F201: 27821964.43 | G201: 28217787.7 | H201: 201.8476645 | I201: 18113997 | J201: 19146600 | K201: 526.5696073 | L201: 11323738 | M201: 11470813 | N201: 147075 | O201: 75 | P201: 0.01
A202: 293 | B202: Taunton | C202: =VLOOKUP(A202,aidcalc,14,FALSE) -> 8457 | D202: =VLOOKUP(A202,aidcalc,15,FALSE) -> 8364 | E202: =D202-C202 -> -93 | F202: =VLOOKUP(A202,aidcalc,4,FALSE) -> 153498975.2 | G202: =VLOOKUP(A202,aidcalc,9,FALSE) -> 160533555.9 | H202: =(G202-F202)/$D202 -> 841.0546055 | I202: =VLOOKUP(A202,aidcalc,5,FALSE) -> 48056845 | J202: =VLOOKUP(A202,aidcalc,10,FALSE) -> 50916140 | K202: =(J202-I202)/$D202 -> 341.8573649 | L202: =VLOOKUP(A202,aidcalc,6,FALSE) -> 105442130 | M202: =VLOOKUP(A202,aidcalc,25,FALSE) -> 109617416 | N202: =M202-L202 -> 4175286 | O202: =(M202-L202)/$D202 -> 499.197274 | P202: =ROUND(IF(F202>0,(M202-L202)/L202,100),2) -> 0.04
A203: 295 | B203: Tewksbury | C203: 3274 | D203: 3316 | E203: 42 | F203: 44323386.89 | G203: 46625859.06 | H203: 694.3522829 | I203: 35797036 | J203: 37685831 | K203: 569.6004222 | L203: 14642447 | M203: 14891147 | N203: 248700 | O203: 75 | P203: 0.02
... 129 more rows

Sheet Aid436
D1: c70fy26 | E1: c70fy26 | F1: c70fy26 | N1: c70fy26
B3: 2 | C3: 3 | D3: 4 | E3: 5 | F3: 6 | G3: 7 | H3: 8 | I3: 9 | J3: 10 | K3: 11 | L3: 12 | M3: 13 | N3: 14 | O3: 15 | P3: 16 | Q3: 17 | R3: 18 | S3: 19 | T3: 20 | U3: 21 | V3: 22 | W3: 23 | X3: 24 | Y3: 25 | Z3: 26 | AA3: 27 | AB3: 28 | AC3: 29 | AD3: 30 | AE3: 31 | AF3: 32 | AG3: 33 | AH3: 34 | AI3: 35 | AJ3: 36 | AK3: 37 | AL3: 38 | AM3: 39 | AN3: 40 | AO3: 41 | AQ3: 42 | AR3: 43 | AS3: 44
A4: Return to Index | C4: nonop | H4: priorc70 | I4: found | J4: prelcont436 | K4: foundaid | L4: foundinc | O4: enro | R4: minaid | W4: rednonop | X4: holdharmlessaid | Y4: chapter70
A5: More about the data | G5: =COUNTIF(G10:G447,"<>0") -> 0 | H5: Base Aid | J5: Foundation Aid Calculation | Q5: Minimum Aid Calculation | S5: Minimum Aid Adjustment | X5: =COUNTIF(X10:X447,"<>0") -> 0 | AE5: Analysis | AM5: SUMMARY FOR EXPORT (reads from columns to the left)
Q6: 75
D7: foundation | E7: required | I7: foundation | J7: required | M7: district | N7: foundation | O7: foundation | P7: operating dist | V7: c70 prior | AB7: nss | AP7: =O7 -> foundation | AQ7: =I7 -> foundation | AR7: =J7 -> required
D8: budget | E8: contribution | F8: chapter 70 | G8: base aid | I8: budget | J8: contribution | K8: foundation | L8: foundation | M8: target aid | N8: enrollment | O8: enrollment | P8: foundation | Q8: Min Aid | R8: Addl Aid | S8: Aid from | U8: Increment | V8: to non-op | W8: non-op | X8: hold | Y8: Chapter 70 | Z8: c70 pct of | AA8: =CYr -> FY27 | AB8: percent of | AE8: Aid Comp'd | AF8: Distance from | AG8: Foundation | AK8: per pupil | AM8: =A9 -> LEA | AN8: =B9 -> District | AO8: =C9 -> Non-Op | AP8: =O8 -> enrollment | AQ8: budget | AR8: contribution | AS8: =Y8 -> Chapter 70
A9: LEA | B9: District | C9: Non-Op | D9: =PYr -> FY26 | E9: =PYr -> FY26 | F9: =PYr -> FY26 | G9: adjusement | H9: base aid | I9: =CYr -> FY27 | J9: =CYr -> FY27 | K9: aid | L9: aid increase | M9: percentage | N9: =PYr -> FY26 | O9: =CYr -> FY27 | P9: aid? | Q9: Per Pupil | R9: to Reach Min | S9: MinAidAdj Formula | T9: plus $30/pupil | U9: above min aid | V9: reduction | W9: reduction | X9: harmless aid | Y9: =CYr -> FY27 | Z9: foundation | AA9: Required NSS | AB9: foundation | AC9: ∆ in Foundation Budget | AD9: ∆ in Aid | AE9: to Target | AF9: Aid Target | AG9: Budget PP | AH9: blank | AI9: blank | AJ9: blank | AK9: ∆ in Aid | AL9: blank | AM9: =CYr -> FY27 | AN9: =CYr -> FY27 | AO9: =CYr -> FY27 | AP9: FY27 | AQ9: FY27 | AR9: FY27 | AS9: FY27
A10: 1 | B10: Abington | C10: 1 | D10: 33501030.56 | E10: 18800612 | F10: 14812278 | G10: 0 | H10: =F10+G10 -> 14812278 | I10: =SUMIF(dist1755,A10,found1755) -> 34347724.26 | J10: =SUMIF(dist1755,A10,prelcont1755) -> 19908440 | K10: =ROUND(MAX(found-prelcont436,0),0) -> 14439284 | L10: =IF(foundaid>priorc70,foundaid-priorc70,0) -> 0 | M10: =ROUND(100-'Townwide Contributions'!L10,2) -> 35.77 | N10: 2200 | O10: =SUMIF(dist1755,A10,enro1755) -> 2199 | P10: =IF(AND(C10=1,L10>0),1,0) -> 0 | Q10: =IF(nonop=1,enro*$Q$6,0) -> 164925 | R10: =IF((foundinc)<Q10,Q10-(foundinc),0) -> 164925 | S10: 14812278 | T10: =S10+30*enro -> 14878248 | U10: =IF(AND(T10-priorc70-foundinc-minaid>0,nonop=1), T10-priorc70-foundinc-minaid,0) -> 0 | V10: =priorc70+ foundinc+minaidadjincrement+minaid -> 14977203 | W10: =IF(AND(C10=0,V10>found),V10-found,0) -> 0 | X10: 0 | Y10: =priorc70+foundinc+minaidadjincrement+minaid-rednonop+holdharmlessaid -> 14977203 | Z10: =IF(C10=1, Y10/I10*100, 0) -> 43.60464434 | AA10: =prelcont436+chapter70 -> 34885643 | AB10: =IF(found>0,AA10*100/found,0) -> 101.5660972 | AC10: =I10-D10 -> 846693.695 | AD10: =Y10-F10 -> 164925 | AE10: =Y10-((M10/100)*I10) -> 2691022.034 | AF10: =IF(C10=1, (Y10/I10*100)-M10, "") -> 7.834644338 | AG10: =IFERROR(ROUND(I10/O10, 2), 0) -> 15619.7 | AK10: =IFERROR(AD10/O10, 0) -> 75 | AM10: =A10 -> 1 | AN10: =B10 -> Abington | AO10: =C10 -> 1 | AP10: =O10 -> 2199 | AQ10: =I10 -> 34347724.26 | AR10: =J10 -> 19908440 | AS10: =Y10 -> 14977203
A11: 2 | B11: Acton | C11: 0 | D11: 0 | E11: 0 | F11: 0 | G11: 0 | H11: =F11+G11 -> 0 | I11: 0 | J11: =SUMIF(dist1755,A11,prelcont1755) -> 0 | K11: =ROUND(MAX(found-prelcont436,0),0) -> 0 | L11: =IF(foundaid>priorc70,foundaid-priorc70,0) -> 0 | M11: =ROUND(100-'Townwide Contributions'!L11,2) -> 17.5 | N11: 0 | O11: 0 | P11: 0 | Q11: 0 | R11: =IF((foundinc)<Q11,Q11-(foundinc),0) -> 0 | S11: 0 | T11: 0 | U11: 0 | V11: 0 | W11: 0 | X11: 0 | Y11: =priorc70+foundinc+minaidadjincrement+minaid-rednonop+holdharmlessaid -> 0 | Z11: 0 | AA11: 0 | AB11: 0 | AC11: 0 | AD11: 0 | AE11: =Y11-((M11/100)*I11) -> 0 | AF11: =IF(C11=1, (Y11/I11*100)-M11, "") ->  | AG11: 0 | AK11: 0 | AM11: 2 | AN11: Acton | AO11: 0 | AP11: =O11 -> 0 | AQ11: 0 | AR11: 0 | AS11: 0
A12: 3 | B12: Acushnet | C12: 1 | D12: 15639642.75 | E12: 9288698 | F12: 7461972 | G12: 0 | H12: 7461972 | I12: 15971692.03 | J12: 9654882 | K12: 6316810 | L12: 0 | M12: =ROUND(100-'Townwide Contributions'!L12,2) -> 32.84 | N12: 1131 | O12: 1118 | P12: 0 | Q12: 83850 | R12: 83850 | S12: 7461972 | T12: =S12+30*enro -> 7495512 | U12: 0 | V12: 7545822 | W12: 0 | X12: 0 | Y12: 7545822 | Z12: 47.24497558 | AA12: 17200704 | AB12: 107.6949391 | AC12: 332049.28 | AD12: 83850 | AE12: 2300718.337 | AF12: 14.40497558 | AG12: 14285.95 | AK12: 75 | AM12: 3 | AN12: Acushnet | AO12: 1 | AP12: 1118 | AQ12: 15971692.03 | AR12: 9654882 | AS12: 7545822
A13: 4 | B13: Adams | C13: 0 | D13: 0 | E13: 0 | F13: 0 | G13: 0 | H13: 0 | I13: 18046.96 | J13: 5654 | K13: 12393 | L13: 12393 | M13: =ROUND(100-'Townwide Contributions'!L13,2) -> 64.12 | N13: 0 | O13: 1 | P13: 0 | Q13: 0 | R13: 0 | S13: 11306 | T13: 11336 | U13: 0 | V13: 12393 | W13: 0 | X13: 0 | Y13: 12393 | Z13: 0 | AA13: 18047 | AB13: 100.0002216 | AC13: 18046.96 | AD13: 12393 | AE13: 821.289248 | AG13: 18046.96 | AK13: 12393 | AM13: 4 | AN13: Adams | AO13: 0 | AP13: 1 | AQ13: 18046.96 | AR13: 5654 | AS13: 12393
A14: 5 | B14: Agawam | C14: 1 | D14: 55345476.31 | E14: 28135196 | F14: 27210280 | G14: 0 | H14: 27210280 | I14: 57507213.81 | J14: 29862697 | K14: 27644517 | L14: 434237 | M14: =ROUND(100-'Townwide Contributions'!L14,2) -> 45.9 | N14: 3463 | O14: 3437 | P14: 1 | Q14: 257775 | R14: 0 | S14: 27210280 | T14: 27313390 | U14: 0 | V14: 27644517 | W14: 0 | X14: 0 | Y14: 27644517 | Z14: 48.07138995 | AA14: 57507214 | AB14: 100.0000003 | AC14: 2161737.5 | AD14: 434237 | AE14: 1248705.861 | AF14: 2.17138995 | AG14: 16731.81 | AK14: 126.3418679 | AM14: 5 | AN14: Agawam | AO14: 1 | AP14: 3437 | AQ14: 57507213.81 | AR14: 29862697 | AS14: 27644517
A15: 6 | B15: Alford | C15: 0 | D15: 0 | E15: 0 | F15: 0 | G15: 0 | H15: 0 | I15: 0 | J15: 0 | K15: 0 | L15: 0 | M15: =ROUND(100-'Townwide Contributions'!L15,2) -> 17.5 | N15: 0 | O15: 0 | P15: 0 | Q15: 0 | R15: 0 | S15: 0 | T15: 0 | U15: 0 | V15: 0 | W15: 0 | X15: 0 | Y15: 0 | Z15: 0 | AA15: 0 | AB15: 0 | AC15: 0 | AD15: 0 | AE15: 0 | AG15: 0 | AK15: 0 | AM15: 6 | AN15: Alford | AO15: 0 | AP15: 0 | AQ15: 0 | AR15: 0 | AS15: 0
A16: 7 | B16: Amesbury | C16: 1 | D16: 28109289.03 | E16: 20286760 | F16: 9957529 | G16: 0 | H16: 9957529 | I16: 29502412.49 | J16: 21809838 | K16: 7692574 | L16: 0 | M16: =ROUND(100-'Townwide Contributions'!L16,2) -> 17.5 | N16: 1919 | O16: 1953 | P16: 0 | Q16: 146475 | R16: 146475 | S16: 9957529 | T16: 10016119 | U16: 0 | V16: 10104004 | W16: 0 | X16: 0 | Y16: 10104004 | Z16: 34.24806023 | AA16: 31913842 | AB16: 108.1736689 | AC16: 1393123.46 | AD16: 146475 | AE16: 4941081.814 | AF16: 16.74806023 | AG16: 15106.2 | AK16: 75 | AM16: 7 | AN16: Amesbury | AO16: 1 | AP16: 1953 | AQ16: 29502412.49 | AR16: 21809838 | AS16: 10104004
A17: 8 | B17: Amherst | C17: 1 | D17: 14981907.18 | E17: 11896370 | F17: 6538659 | G17: 0 | H17: 6538659 | I17: 15814005.69 | J17: 12488880 | K17: 3325126 | L17: 0 | M17: =ROUND(100-'Townwide Contributions'!L17,2) -> 17.5 | N17: 1037 | O17: 1033 | P17: 0 | Q17: 77475 | R17: 77475 | S17: 6538659 | T17: 6569649 | U17: 0 | V17: 6616134 | W17: 0 | X17: 0 | Y17: 6616134 | Z17: 41.83717984 | AA17: 19105014 | AB17: 120.8107191 | AC17: 832098.51 | AD17: 77475 | AE17: 3848683.004 | AF17: 24.33717984 | AG17: 15308.81 | AK17: 75 | AM17: 8 | AN17: Amherst | AO17: 1 | AP17: 1033 | AQ17: 15814005.69 | AR17: 12488880 | AS17: 6616134
A18: 9 | B18: Andover | C18: 1 | D18: 75901319.69 | E18: 62087646 | F18: 15338760 | G18: 0 | H18: 15338760 | I18: 77328687.06 | J18: 63796166 | K18: 13532521 | L18: 0 | M18: =ROUND(100-'Townwide Contributions'!L18,2) -> 17.5 | N18: 5464 | O18: 5370 | P18: 0 | Q18: 402750 | R18: 402750 | S18: 15338760 | T18: 15499860 | U18: 0 | V18: 15741510 | W18: 0 | X18: 0 | Y18: 15741510 | Z18: 20.35662391 | AA18: 79537676 | AB18: 102.8566228 | AC18: 1427367.376 | AD18: 402750 | AE18: 2208989.764 | AF18: 2.85662391 | AG18: 14400.13 | AK18: 75 | AM18: 9 | AN18: Andover | AO18: 1 | AP18: 5370 | AQ18: 77328687.06 | AR18: 63796166 | AS18: 15741510
A19: 10 | B19: Arlington | C19: 1 | D19: 81515548.27 | E19: 61905761 | F19: 20246693 | G19: 0 | H19: 20246693 | I19: 85724971.74 | J19: 65397888 | K19: 20327084 | L19: 80391 | M19: =ROUND(100-'Townwide Contributions'!L19,2) -> 17.5 | N19: 6114 | O19: 6123 | P19: 1 | Q19: 459225 | R19: 378834 | S19: 20246693 | T19: 20430383 | U19: 0 | V19: 20705918 | W19: 0 | X19: 0 | Y19: 20705918 | Z19: 24.15389306 | AA19: =prelcont436+chapter70 -> 86103806 | AB19: 100.4419182 | AC19: 4209423.47 | AD19: 459225 | AE19: 5704047.945 | AF19: 6.65389306 | AG19: 14000.49 | AK19: 75 | AM19: 10 | AN19: Arlington | AO19: 1 | AP19: 6123 | AQ19: 85724971.74 | AR19: 65397888 | AS19: 20705918
A20: 11 | B20: Ashburnham | C20: 0 | D20: 0 | E20: 0 | F20: 0 | G20: 0 | H20: 0 | I20: 0 | J20: 0 | K20: 0 | L20: 0 | M20: =ROUND(100-'Townwide Contributions'!L20,2) -> 47.2 | N20: 0 | O20: 0 | P20: 0 | Q20: 0 | R20: 0 | S20: 0 | T20: 0 | U20: 0 | V20: 0 | W20: 0 | X20: 0 | Y20: 0 | Z20: 0 | AA20: 0 | AB20: 0 | AC20: 0 | AD20: 0 | AE20: 0 | AG20: 0 | AK20: 0 | AM20: 11 | AN20: Ashburnham | AO20: 0 | AP20: 0 | AQ20: 0 | AR20: 0 | AS20: 0
A21: 12 | B21: Ashby | C21: 0 | D21: 0 | E21: 0 | F21: 0 | G21: 0 | H21: 0 | I21: 0 | J21: 0 | K21: 0 | L21: 0 | M21: =ROUND(100-'Townwide Contributions'!L21,2) -> 34.02 | N21: 0 | O21: 0 | P21: 0 | Q21: 0 | R21: 0 | S21: 0 | T21: 0 | U21: 0 | V21: 0 | W21: 0 | X21: 0 | Y21: 0 | Z21: 0 | AA21: 0 | AB21: 0 | AC21: 0 | AD21: 0 | AE21: 0 | AG21: 0 | AK21: 0 | AM21: 12 | AN21: Ashby | AO21: 0 | AP21: 0 | AQ21: 0 | AR21: 0 | AS21: 0
A22: 13 | B22: Ashfield | C22: 0 | D22: 240365.82 | E22: 182183 | F22: 93683 | G22: 0 | H22: 93683 | I22: 321996.96 | J22: 252246 | K22: 69751 | L22: 0 | M22: =ROUND(100-'Townwide Contributions'!L22,2) -> 17.5 | N22: 12 | O22: 16 | P22: 0 | Q22: 0 | R22: 0 | S22: 93683 | T22: 94163 | U22: 0 | V22: 93683 | W22: 0 | X22: 0 | Y22: 93683 | Z22: 0 | AA22: 345929 | AB22: 107.4323807 | AC22: 81631.14 | AD22: 0 | AE22: 37333.532 | AG22: 20124.81 | AK22: 0 | AM22: 13 | AN22: Ashfield | AO22: 0 | AP22: 16 | AQ22: 321996.96 | AR22: 252246 | AS22: 93683
A23: 14 | B23: Ashland | C23: 1 | D23: 39209499.74 | E23: 28541470 | F23: 11996178 | G23: 0 | H23: 11996178 | I23: 41080212.26 | J23: 29773789 | K23: 11306423 | L23: 0 | M23: =ROUND(100-'Townwide Contributions'!L23,2) -> 18.24 | N23: 2837 | O23: 2818 | P23: 0 | Q23: 211350 | R23: 211350 | S23: 11996178 | T23: 12080718 | U23: 0 | V23: 12207528 | W23: 0 | X23: 0 | Y23: 12207528 | Z23: 29.71632163 | AA23: 41981317 | AB23: 102.193525 | AC23: 1870712.52 | AD23: 211350 | AE23: 4714497.284 | AF23: 11.47632163 | AG23: 14577.79 | AK23: 75 | AM23: 14 | AN23: Ashland | AO23: 1 | AP23: 2818 | AQ23: 41080212.26 | AR23: 29773789 | AS23: 12207528
A24: 15 | B24: Athol | C24: 0 | D24: 0 | E24: 0 | F24: 0 | G24: 0 | H24: 0 | I24: 0 | J24: 0 | K24: 0 | L24: 0 | M24: =ROUND(100-'Townwide Contributions'!L24,2) -> 68.83 | N24: 0 | O24: 0 | P24: 0 | Q24: 0 | R24: 0 | S24: 0 | T24: 0 | U24: 0 | V24: 0 | W24: 0 | X24: 0 | Y24: 0 | Z24: 0 | AA24: 0 | AB24: 0 | AC24: 0 | AD24: 0 | AE24: 0 | AG24: 0 | AK24: 0 | AM24: 15 | AN24: Athol | AO24: 0 | AP24: 0 | AQ24: 0 | AR24: 0 | AS24: 0
A25: 16 | B25: Attleboro | C25: 1 | D25: 110074456.2 | E25: 48277999 | F25: 61796457 | G25: 0 | H25: 61796457 | I25: 113893945.4 | J25: 50667309 | K25: 63226636 | L25: 1430179 | M25: =ROUND(100-'Townwide Contributions'!L25,2) -> 50.71 | N25: 6440 | O25: 6364 | P25: 1 | Q25: 477300 | R25: 0 | S25: 61796457 | T25: 61987377 | U25: 0 | V25: 63226636 | W25: 0 | X25: 0 | Y25: 63226636 | Z25: 55.5136059 | AA25: 113893945 | AB25: 99.99999963 | AC25: 3819489.25 | AD25: 1430179 | AE25: 5471016.278 | AF25: 4.803605896 | AG25: 17896.6 | AK25: 224.7295726 | AM25: 16 | AN25: Attleboro | AO25: 1 | AP25: 6364 | AQ25: 113893945.4 | AR25: 50667309 | AS25: 63226636
A26: 17 | B26: Auburn | C26: 1 | D26: 34174444.38 | E26: 18808409 | F26: 15740489 | G26: 0 | H26: 15740489 | I26: 34749450.58 | J26: 19768081 | K26: 14981370 | L26: 0 | M26: =ROUND(100-'Townwide Contributions'!L26,2) -> 39.19 | N26: 2400 | O26: 2346 | P26: 0 | Q26: 175950 | R26: 175950 | S26: 15740489 | T26: 15810869 | U26: 0 | V26: 15916439 | W26: 0 | X26: 0 | Y26: 15916439 | Z26: 45.80342634 | AA26: 35684520 | AB26: 102.6908898 | AC26: 575006.2 | AD26: 175950 | AE26: 2298129.318 | AF26: 6.61342634 | AG26: 14812.21 | AK26: 75 | AM26: 17 | AN26: Auburn | AO26: 1 | AP26: 2346 | AQ26: 34749450.58 | AR26: 19768081 | AS26: 15916439
A27: 18 | B27: Avon | C27: 1 | D27: 10349488.58 | E27: 5949758 | F27: 4399731 | G27: 0 | H27: 4399731 | I27: 10182039.74 | J27: 5979732 | K27: 4202308 | L27: 0 | M27: =ROUND(100-'Townwide Contributions'!L27,2) -> 36.75 | N27: 588 | O27: 552 | P27: 0 | Q27: 41400 | R27: 41400 | S27: 4399731 | T27: 4416291 | U27: 0 | V27: 4441131 | W27: 0 | X27: 0 | Y27: 4441131 | Z27: 43.61730177 | AA27: 10420863 | AB27: 102.3455346 | AC27: -167448.84 | AD27: 41400 | AE27: 699231.3956 | AF27: 6.867301773 | AG27: 18445.72 | AK27: 75 | AM27: 18 | AN27: Avon | AO27: 1 | AP27: 552 | AQ27: 10182039.74 | AR27: 5979732 | AS27: 4441131
A28: 19 | B28: Ayer | C28: 0 | D28: 0 | E28: 0 | F28: 0 | G28: 0 | H28: 0 | I28: 0 | J28: 0 | K28: 0 | L28: 0 | M28: =ROUND(100-'Townwide Contributions'!L28,2) -> 17.5 | N28: 0 | O28: 0 | P28: 0 | Q28: 0 | R28: 0 | S28: 0 | T28: 0 | U28: 0 | V28: 0 | W28: 0 | X28: 0 | Y28: 0 | Z28: 0 | AA28: 0 | AB28: 0 | AC28: 0 | AD28: 0 | AE28: 0 | AG28: 0 | AK28: 0 | AM28: 19 | AN28: Ayer | AO28: 0 | AP28: 0 | AQ28: 0 | AR28: 0 | AS28: 0
A29: 20 | B29: Barnstable | C29: 1 | D29: 91282281.55 | E29: 68459559 | F29: 26088377 | G29: 0 | H29: 26088377 | I29: 92442313.11 | J29: 71854310 | K29: 20588003 | L29: 0 | M29: =ROUND(100-'Townwide Contributions'!L29,2) -> 17.5 | N29: 5230 | O29: 5038 | P29: 0 | Q29: 377850 | R29: 377850 | S29: 26088377 | T29: 26239517 | U29: 0 | V29: 26466227 | W29: 0 | X29: 0 | Y29: 26466227 | Z29: 28.62999216 | AA29: 98320537 | AB29: 106.3588023 | AC29: 1160031.56 | AD29: 377850 | AE29: 10288822.21 | AF29: 11.12999216 | AG29: 18349.01 | AK29: 75 | AM29: 20 | AN29: Barnstable | AO29: 1 | AP29: 5038 | AQ29: 92442313.11 | AR29: 71854310 | AS29: 26466227
A30: 21 | B30: Barre | C30: 0 | D30: 0 | E30: 0 | F30: 0 | G30: 0 | H30: 0 | I30: 0 | J30: 0 | K30: 0 | L30: 0 | M30: =ROUND(100-'Townwide Contributions'!L30,2) -> 53.41 | N30: 0 | O30: 0 | P30: 0 | Q30: 0 | R30: 0 | S30: 0 | T30: 0 | U30: 0 | V30: 0 | W30: 0 | X30: 0 | Y30: 0 | Z30: 0 | AA30: 0 | AB30: 0 | AC30: 0 | AD30: 0 | AE30: 0 | AG30: 0 | AK30: 0 | AM30: 21 | AN30: Barre | AO30: 0 | AP30: 0 | AQ30: 0 | AR30: 0 | AS30: 0
A31: 22 | B31: Becket | C31: 0 | D31: 361845.85 | E31: 287491 | F31: 76923 | G31: 0 | H31: 76923 | I31: 340043.92 | J31: 280536 | K31: 59508 | L31: 0 | M31: =ROUND(100-'Townwide Contributions'!L31,2) -> 17.5 | N31: 19 | O31: 17 | P31: 0 | Q31: 0 | R31: 0 | S31: 76923 | T31: 77433 | U31: 0 | V31: 76923 | W31: 0 | X31: 0 | Y31: 76923 | Z31: 0 | AA31: 357459 | AB31: 105.1214208 | AC31: -21801.93 | AD31: 0 | AE31: 17415.314 | AG31: 20002.58 | AK31: 0 | AM31: 22 | AN31: Becket | AO31: 0 | AP31: 17 | AQ31: 340043.92 | AR31: 280536 | AS31: 76923
A32: 23 | B32: Bedford | C32: 1 | D32: 35245066.37 | E32: 29077179 | F32: 6667909 | G32: 0 | H32: 6667909 | I32: 35093223.98 | J32: 28951910 | K32: 6141314 | L32: 0 | M32: =ROUND(100-'Townwide Contributions'!L32,2) -> 17.5 | N32: 2528 | O32: 2416 | P32: 0 | Q32: 181200 | R32: 181200 | S32: 6667909 | T32: 6740389 | U32: 0 | V32: 6849109 | W32: 0 | X32: 0 | Y32: 6849109 | Z32: 19.51689877 | AA32: 35801019 | AB32: 102.0168994 | AC32: -151842.39 | AD32: 181200 | AE32: 707794.8036 | AF32: 2.016898772 | AG32: 14525.34 | AK32: 75 | AM32: 23 | AN32: Bedford | AO32: 1 | AP32: 2416 | AQ32: 35093223.98 | AR32: 28951910 | AS32: 6849109
A33: 24 | B33: Belchertown | C33: 1 | D33: 27957662.77 | E33: 15052180 | F33: 14735480 | G33: 0 | H33: 14735480 | I33: 28303896.73 | J33: 15826711 | K33: 12477186 | L33: 0 | M33: =ROUND(100-'Townwide Contributions'!L33,2) -> 37.28 | N33: 2043 | O33: 1982 | P33: 0 | Q33: 148650 | R33: 148650 | S33: 14735480 | T33: 14794940 | U33: 0 | V33: 14884130 | W33: 0 | X33: 0 | Y33: 14884130 | Z33: 52.58685806 | AA33: 30710841 | AB33: 108.5039325 | AC33: 346233.96 | AD33: 148650 | AE33: 4332437.299 | AF33: 15.30685806 | AG33: 14280.47 | AK33: 75 | AM33: 24 | AN33: Belchertown | AO33: 1 | AP33: 1982 | AQ33: 28303896.73 | AR33: 15826711 | AS33: 14884130
A34: 25 | B34: Bellingham | C34: 1 | D34: 31820375.34 | E34: 22163244 | F34: 10531532 | G34: 0 | H34: 10531532 | I34: 34592550.34 | J34: 23625313 | K34: 10967237 | L34: 435705 | M34: =ROUND(100-'Townwide Contributions'!L34,2) -> 27.23 | N34: 2206 | O34: 2237 | P34: 1 | Q34: 167775 | R34: 0 | S34: 10531532 | T34: 10598642 | U34: 0 | V34: 10967237 | W34: 0 | X34: 0 | Y34: 10967237 | Z34: 31.7040429 | AA34: 34592550 | AB34: 99.99999902 | AC34: 2772175 | AD34: 435705 | AE34: 1547685.542 | AF34: 4.4740429 | AG34: 15463.81 | AK34: 194.7720161 | AM34: 25 | AN34: Bellingham | AO34: 1 | AP34: 2237 | AQ34: 34592550.34 | AR34: 23625313 | AS34: 10967237
A35: 26 | B35: Belmont | C35: 1 | D35: 61875520.81 | E35: 49876878 | F35: 12935419 | G35: 0 | H35: 12935419 | I35: 64651862.96 | J35: 51418074 | K35: 13233789 | L35: 298370 | M35: =ROUND(100-'Townwide Contributions'!L35,2) -> 17.5 | N35: 4538 | O35: 4530 | P35: 1 | Q35: 339750 | R35: 41380 | S35: 12935419 | T35: 13071319 | U35: 0 | V35: 13275169 | W35: 0 | X35: 0 | Y35: 13275169 | Z35: 20.53331241 | AA35: 64693243 | AB35: 100.0640044 | AC35: 2776342.149 | AD35: 339750 | AE35: 1961092.982 | AF35: 3.033312408 | AG35: 14271.93 | AK35: 75 | AM35: 26 | AN35: Belmont | AO35: 1 | AP35: 4530 | AQ35: 64651862.96 | AR35: 51418074 | AS35: 13275169
A36: 27 | B36: Berkley | C36: 1 | D36: 8738336.55 | E36: 5232212 | F36: 4318848 | G36: 0 | H36: 4318848 | I36: 8934075.39 | J36: 5539772 | K36: 3394303 | L36: 0 | M36: =ROUND(100-'Townwide Contributions'!L36,2) -> 33.8 | N36: 640 | O36: 599 | P36: 0 | Q36: 44925 | R36: 44925 | S36: 4318848 | T36: 4336818 | U36: 0 | V36: 4363773 | W36: 0 | X36: 0 | Y36: 4363773 | Z36: 48.84414793 | AA36: 9903545 | AB36: 110.8513704 | AC36: 195738.84 | AD36: 44925 | AE36: 1344055.518 | AF36: 15.04414793 | AG36: 14914.98 | AK36: 75 | AM36: 27 | AN36: Berkley | AO36: 1 | AP36: 599 | AQ36: 8934075.39 | AR36: 5539772 | AS36: 4363773
A37: 28 | B37: Berlin | C37: 0 | D37: 0 | E37: 0 | F37: 0 | G37: 0 | H37: 0 | I37: 0 | J37: 0 | K37: 0 | L37: 0 | M37: =ROUND(100-'Townwide Contributions'!L37,2) -> 17.5 | N37: 0 | O37: 0 | P37: 0 | Q37: 0 | R37: 0 | S37: 0 | T37: 0 | U37: 0 | V37: 0 | W37: 0 | X37: 0 | Y37: 0 | Z37: 0 | AA37: 0 | AB37: 0 | AC37: 0 | AD37: 0 | AE37: 0 | AG37: 0 | AK37: 0 | AM37: 28 | AN37: Berlin | AO37: 0 | AP37: 0 | AQ37: 0 | AR37: 0 | AS37: 0
A38: 29 | B38: Bernardston | C38: 0 | D38: 0 | E38: 0 | F38: 0 | G38: 0 | H38: 0 | I38: 0 | J38: 0 | K38: 0 | L38: 0 | M38: =ROUND(100-'Townwide Contributions'!L38,2) -> 38.86 | N38: 0 | O38: 0 | P38: 0 | Q38: 0 | R38: 0 | S38: 0 | T38: 0 | U38: 0 | V38: 0 | W38: 0 | X38: 0 | Y38: 0 | Z38: 0 | AA38: 0 | AB38: 0 | AC38: 0 | AD38: 0 | AE38: 0 | AG38: 0 | AK38: 0 | AM38: 29 | AN38: Bernardston | AO38: 0 | AP38: 0 | AQ38: 0 | AR38: 0 | AS38: 0
A39: 30 | B39: Beverly | C39: 1 | D39: 64124970 | E39: 51585549 | F39: 15674495 | G39: 0 | H39: 15674495 | I39: 67719159.89 | J39: 53954926 | K39: 13764234 | L39: 0 | M39: =ROUND(100-'Townwide Contributions'!L39,2) -> 17.5 | N39: 4437 | O39: 4461 | P39: 0 | Q39: 334575 | R39: 334575 | S39: 15674495 | T39: 15808325 | U39: 0 | V39: 16009070 | W39: 0 | X39: 0 | Y39: 16009070 | Z39: 23.64038483 | AA39: 69963996 | AB39: 103.3149202 | AC39: 3594189.89 | AD39: 334575 | AE39: 4158217.019 | AF39: 6.140384828 | AG39: 15180.26 | AK39: 75 | AM39: 30 | AN39: Beverly | AO39: 1 | AP39: 4461 | AQ39: 67719159.89 | AR39: 53954926 | AS39: 16009070
A40: 31 | B40: Billerica | C40: 1 | D40: 68911291.64 | E40: 55154759 | F40: 21331984 | G40: 0 | H40: 21331984 | I40: 72151964.44 | J40: 57776251 | K40: 14375713 | L40: 0 | M40: =ROUND(100-'Townwide Contributions'!L40,2) -> 17.5 | N40: 4999 | O40: 4983 | P40: 0 | Q40: 373725 | R40: 373725 | S40: 21331984 | T40: 21481474 | U40: 0 | V40: 21705709 | W40: 0 | X40: 0 | Y40: 21705709 | Z40: 30.08332367 | AA40: 79481960 | AB40: 110.1591074 | AC40: 3240672.8 | AD40: 373725 | AE40: 9079115.223 | AF40: 12.58332367 | AG40: 14479.62 | AK40: 75 | AM40: 31 | AN40: Billerica | AO40: 1 | AP40: 4983 | AQ40: 72151964.44 | AR40: 57776251 | AS40: 21705709
A41: 32 | B41: Blackstone | C41: 0 | D41: 240365.82 | E41: 120024 | F41: 234189 | G41: 0 | H41: 234189 | I41: 162422.64 | J41: 83894 | K41: 78529 | L41: 0 | M41: =ROUND(100-'Townwide Contributions'!L41,2) -> 44.54 | N41: 12 | O41: 9 | P41: 0 | Q41: 0 | R41: 0 | S41: 155087.01 | T41: 155357.01 | U41: 0 | V41: 234189 | W41: 71766.36 | X41: 0 | Y41: 162422.64 | Z41: 0 | AA41: 246316.64 | AB41: 151.6516663 | AC41: -77943.18 | AD41: -71766.36 | AE41: 90079.59614 | AG41: 18046.96 | AK41: -7974.04 | AM41: 32 | AN41: Blackstone | AO41: 0 | AP41: 9 | AQ41: 162422.64 | AR41: 83894 | AS41: 162422.64
A42: 33 | B42: Blandford | C42: 0 | D42: 223011.53 | E42: 162784 | F42: 77586 | G42: 0 | H42: 77586 | I42: 231762.16 | J42: 158363 | K42: 73399 | L42: 0 | M42: =ROUND(100-'Townwide Contributions'!L42,2) -> 17.5 | N42: 11 | O42: 11 | P42: 0 | Q42: 0 | R42: 0 | S42: 77586 | T42: 77916 | U42: 0 | V42: 77586 | W42: 0 | X42: 0 | Y42: 77586 | Z42: 0 | AA42: 235949 | AB42: 101.8065244 | AC42: 8750.63 | AD42: 0 | AE42: 37027.622 | AG42: 21069.29 | AK42: 0 | AM42: 33 | AN42: Blandford | AO42: 0 | AP42: 11 | AQ42: 231762.16 | AR42: 158363 | AS42: 77586
A43: 34 | B43: Bolton | C43: 0 | D43: 17898.5144 | E43: 14425 | F43: 3474 | G43: 0 | H43: 3474 | I43: 18620.18633 | J43: 15073 | K43: 3547 | L43: 73 | M43: =ROUND(100-'Townwide Contributions'!L43,2) -> 17.5 | N43: 1 | O43: 1 | P43: 0 | Q43: 0 | R43: 0 | S43: 3474 | T43: 3504 | U43: 0 | V43: 3547 | W43: 0 | X43: 0 | Y43: 3547 | Z43: 0 | AA43: 18620 | AB43: 99.99899931 | AC43: 721.67193 | AD43: 73 | AE43: 288.4673923 | AG43: 18620.19 | AK43: 73 | AM43: 34 | AN43: Bolton | AO43: 0 | AP43: 1 | AQ43: 18620.18633 | AR43: 15073 | AS43: 3547
A44: 35 | B44: Boston | C44: 1 | D44: 1220875807 | E44: 1007222540 | F44: 245309561 | G44: 0 | H44: 245309561 | I44: 1258580176 | J44: 1038328645 | K44: 220251531 | L44: 0 | M44: =ROUND(100-'Townwide Contributions'!L44,2) -> 17.5 | N44: 57616 | O44: 55975 | P44: 0 | Q44: 4198125 | R44: 4198125 | S44: 245309561 | T44: 246988811 | U44: 0 | V44: 249507686 | W44: 0 | X44: 0 | Y44: 249507686 | Z44: 19.82453647 | AA44: 1287836331 | AB44: 102.3245364 | AC44: 37704369.52 | AD44: 4198125 | AE44: 29256155.19 | AF44: 2.324536469 | AG44: 22484.68 | AK44: 75 | AM44: 35 | AN44: Boston | AO44: 1 | AP44: 55975 | AQ44: 1258580176 | AR44: 1038328645 | AS44: 249507686
A45: 36 | B45: Bourne | C45: 1 | D45: 24040569.22 | E45: 19771933 | F45: 5892775 | G45: 0 | H45: 5892775 | I45: 24467743.6 | J45: 20185888 | K45: 4281856 | L45: 0 | M45: =ROUND(100-'Townwide Contributions'!L45,2) -> 17.5 | N45: 1624 | O45: 1585 | P45: 0 | Q45: 118875 | R45: 118875 | S45: 5892775 | T45: 5940325 | U45: 0 | V45: 6011650 | W45: 0 | X45: 0 | Y45: 6011650 | Z45: 24.5696951 | AA45: 26197538 | AB45: 107.0696932 | AC45: 427174.38 | AD45: 118875 | AE45: 1729794.87 | AF45: 7.069695098 | AG45: 15437.06 | AK45: 75 | AM45: 36 | AN45: Bourne | AO45: 1 | AP45: 1585 | AQ45: 24467743.6 | AR45: 20185888 | AS45: 6011650
A46: 37 | B46: Boxborough | C46: 0 | D46: 74532.86936 | E46: 57871 | F46: 32909 | G46: 0 | H46: 32909 | I46: 58544.93595 | J46: 45409 | K46: 13136 | L46: 0 | M46: =ROUND(100-'Townwide Contributions'!L46,2) -> 17.5 | N46: 4 | O46: 3 | P46: 0 | Q46: 0 | R46: 0 | S46: 32909 | T46: 32999 | U46: 0 | V46: 32909 | W46: 0 | X46: 0 | Y46: 32909 | Z46: 0 | AA46: 78318 | AB46: 133.7741663 | AC46: -15987.93341 | AD46: 0 | AE46: 22663.63621 | AG46: 19514.98 | AK46: 0 | AM46: 37 | AN46: Boxborough | AO46: 0 | AP46: 3 | AQ46: 58544.93595 | AR46: 45409 | AS46: 32909
A47: 38 | B47: Boxford | C47: 1 | D47: 9386167.008 | E47: 7523174 | F47: 2044923 | G47: 0 | H47: 2044923 | I47: 9544654.414 | J47: 7685047 | K47: 1859607 | L47: 0 | M47: =ROUND(100-'Townwide Contributions'!L47,2) -> 17.5 | N47: 749 | O47: 728 | P47: 0 | Q47: 54600 | R47: 54600 | S47: 2044923 | T47: 2066763 | U47: 0 | V47: 2099523 | W47: 0 | X47: 0 | Y47: 2099523 | Z47: 21.99684671 | AA47: 9784570 | AB47: 102.5136121 | AC47: 158487.4057 | AD47: 54600 | AE47: 429208.4776 | AF47: 4.496846706 | AG47: 13110.79 | AK47: 75 | AM47: 38 | AN47: Boxford | AO47: 1 | AP47: 728 | AQ47: 9544654.414 | AR47: 7685047 | AS47: 2099523
A48: 39 | B48: Boylston | C48: 0 | D48: 156188.61 | E48: 128856 | F48: 113472 | G48: 0 | H48: 113472 | I48: 54140.88 | J48: 44053 | K48: 10088 | L48: 0 | M48: =ROUND(100-'Townwide Contributions'!L48,2) -> 17.5 | N48: 9 | O48: 3 | P48: 0 | Q48: 0 | R48: 0 | S48: 51695.67 | T48: 51785.67 | U48: 0 | V48: 113472 | W48: 59331.12 | X48: 0 | Y48: 54140.88 | Z48: 0 | AA48: 98193.88 | AB48: 181.3673513 | AC48: -102047.73 | AD48: -59331.12 | AE48: 44666.226 | AG48: 18046.96 | AK48: -19777.04 | AM48: 39 | AN48: Boylston | AO48: 0 | AP48: 3 | AQ48: 54140.88 | AR48: 44053 | AS48: 54140.88
A49: 40 | B49: Braintree | C49: 1 | D49: 75740827.68 | E49: 57604796 | F49: 21959550 | G49: 0 | H49: 21959550 | I49: 76951750.13 | J49: 60143288 | K49: 16808462 | L49: 0 | M49: =ROUND(100-'Townwide Contributions'!L49,2) -> 17.5 | N49: 5121 | O49: 4970 | P49: 0 | Q49: 372750 | R49: 372750 | S49: 21959550 | T49: 22108650 | U49: 0 | V49: 22332300 | W49: 0 | X49: 0 | Y49: 22332300 | Z49: 29.02117231 | AA49: 82475588 | AB49: 107.1783135 | AC49: 1210922.45 | AD49: 372750 | AE49: 8865743.727 | AF49: 11.52117231 | AG49: 15483.25 | AK49: 75 | AM49: 40 | AN49: Braintree | AO49: 1 | AP49: 4970 | AQ49: 76951750.13 | AR49: 60143288 | AS49: 22332300
A50: 41 | B50: Brewster | C50: 1 | D50: 6081078.08 | E50: 5016889 | F50: 1484085 | G50: 0 | H50: 1484085 | I50: 5944818.44 | J50: 4904475 | K50: 1040343 | L50: 0 | M50: =ROUND(100-'Townwide Contributions'!L50,2) -> 17.5 | N50: 419 | O50: 394 | P50: 0 | Q50: 29550 | R50: 29550 | S50: 1484085 | T50: 1495905 | U50: 0 | V50: 1513635 | W50: 0 | X50: 0 | Y50: 1513635 | Z50: 25.46141678 | AA50: 6418110 | AB50: 107.9614132 | AC50: -136259.64 | AD50: 29550 | AE50: 473291.773 | AF50: 7.961416783 | AG50: 15088.37 | AK50: 75 | AM50: 41 | AN50: Brewster | AO50: 1 | AP50: 394 | AQ50: 5944818.44 | AR50: 4904475 | AS50: 1513635
A51: 42 | B51: Bridgewater | C51: 0 | D51: 448617.3 | E51: 258421 | F51: 190196 | G51: 0 | H51: 190196 | I51: 430278.72 | J51: 257942 | K51: 172337 | L51: 0 | M51: =ROUND(100-'Townwide Contributions'!L51,2) -> 33.19 | N51: 24 | O51: 22 | P51: 0 | Q51: 0 | R51: 0 | S51: 190196 | T51: 190856 | U51: 0 | V51: 190196 | W51: 0 | X51: 0 | Y51: 190196 | Z51: 0 | AA51: 448138 | AB51: 104.1506305 | AC51: -18338.58 | AD51: 0 | AE51: 47386.49283 | AG51: 19558.12 | AK51: 0 | AM51: 42 | AN51: Bridgewater | AO51: 0 | AP51: 22 | AQ51: 430278.72 | AR51: 257942 | AS51: 190196
A52: 43 | B52: Brimfield | C52: 1 | D52: 3424747.86 | E52: 1917011 | F52: 1791067 | G52: 0 | H52: 1791067 | I52: 3601518.54 | J52: 2018377 | K52: 1583142 | L52: 0 | M52: =ROUND(100-'Townwide Contributions'!L52,2) -> 39.64 | N52: 251 | O52: 252 | P52: 0 | Q52: 18900 | R52: 18900 | S52: 1791067 | T52: 1798627 | U52: 0 | V52: 1809967 | W52: 0 | X52: 0 | Y52: 1809967 | Z52: 50.25566244 | AA52: 3828344 | AB52: 106.2980506 | AC52: 176770.68 | AD52: 18900 | AE52: 382325.0507 | AF52: 10.61566244 | AG52: 14291.74 | AK52: 75 | AM52: 43 | AN52: Brimfield | AO52: 1 | AP52: 252 | AQ52: 3601518.54 | AR52: 2018377 | AS52: 1809967
A53: 44 | B53: Brockton | C53: 1 | D53: 344720845.5 | E53: 62646528 | F53: 282074317 | G53: 0 | H53: 282074317 | I53: 352935379.1 | J53: 64908788 | K53: 288026591 | L53: 5952274 | M53: =ROUND(100-'Townwide Contributions'!L53,2) -> 76.36 | N53: 17203 | O53: 16574 | P53: 1 | Q53: 1243050 | R53: 0 | S53: 282074317 | T53: 282571537 | U53: 0 | V53: 288026591 | W53: 0 | X53: 0 | Y53: 288026591 | Z53: 81.60887461 | AA53: 352935379 | AB53: 99.99999997 | AC53: 8214533.61 | AD53: 5952274 | AE53: 18525135.52 | AF53: 5.248874615 | AG53: 21294.52 | AK53: 359.1332207 | AM53: 44 | AN53: Brockton | AO53: 1 | AP53: 16574 | AQ53: 352935379.1 | AR53: 64908788 | AS53: 288026591
A54: 45 | B54: Brookfield | C54: 1 | D54: 3273863.38 | E54: 1445613 | F54: 1968286 | G54: 0 | H54: 1968286 | I54: 3203866.48 | J54: 1520945 | K54: 1682921 | L54: 0 | M54: =ROUND(100-'Townwide Contributions'!L54,2) -> 47.49 | N54: 221 | O54: 213 | P54: 0 | Q54: 15975 | R54: 15975 | S54: 1968286 | T54: 1974676 | U54: 0 | V54: 1984261 | W54: 0 | X54: 0 | Y54: 1984261 | Z54: 61.93332376 | AA54: 3505206 | AB54: 109.4054956 | AC54: -69996.9 | AD54: 15975 | AE54: 462744.8086 | AF54: 14.44332376 | AG54: 15041.63 | AK54: 75 | AM54: 45 | AN54: Brookfield | AO54: 1 | AP54: 213 | AQ54: 3203866.48 | AR54: 1520945 | AS54: 1984261
A55: 46 | B55: Brookline | C55: 1 | D55: 95312162.89 | E55: 78632534 | F55: 17784893 | G55: 0 | H55: 17784893 | I55: 98953992.46 | J55: 81637044 | K55: 17316948 | L55: 0 | M55: =ROUND(100-'Townwide Contributions'!L55,2) -> 17.5 | N55: 6881 | O55: 6822 | P55: 0 | Q55: 511650 | R55: 511650 | S55: 17784893 | T55: 17989553 | U55: 0 | V55: 18296543 | W55: 0 | X55: 0 | Y55: 18296543 | Z55: 18.48994926 | AA55: 99933587 | AB55: 100.9899495 | AC55: 3641829.569 | AD55: 511650 | AE55: 979594.3197 | AF55: 0.9899492636 | AG55: 14505.13 | AK55: 75 | AM55: 46 | AN55: Brookline | AO55: 1 | AP55: 6822 | AQ55: 98953992.46 | AR55: 81637044 | AS55: 18296543
A56: 47 | B56: Buckland | C56: 0 | D56: 0 | E56: 0 | F56: 0 | G56: 0 | H56: 0 | I56: 18046.96 | J56: 10370 | K56: 7677 | L56: 7677 | M56: =ROUND(100-'Townwide Contributions'!L56,2) -> 40.5 | N56: 0 | O56: 1 | P56: 0 | Q56: 0 | R56: 0 | S56: 7621 | T56: 7651 | U56: 0 | V56: 7677 | W56: 0 | X56: 0 | Y56: 7677 | Z56: 0 | AA56: 18047 | AB56: 100.0002216 | AC56: 18046.96 | AD56: 7677 | AE56: 367.9812 | AG56: 18046.96 | AK56: 7677 | AM56: 47 | AN56: Buckland | AO56: 0 | AP56: 1 | AQ56: 18046.96 | AR56: 10370 | AS56: 7677
A57: 48 | B57: Burlington | C57: 1 | D57: 50997674.38 | E57: 41124446 | F57: 10503556 | G57: 0 | H57: 10503556 | I57: 52951493.56 | J57: 42983788 | K57: 9967706 | L57: 0 | M57: =ROUND(100-'Townwide Contributions'!L57,2) -> 17.5 | N57: 3523 | O57: 3477 | P57: 0 | Q57: 260775 | R57: 260775 | S57: 10503556 | T57: 10607866 | U57: 0 | V57: 10764331 | W57: 0 | X57: 0 | Y57: 10764331 | Z57: 20.3286636 | AA57: 53748119 | AB57: 101.5044438 | AC57: 1953819.185 | AD57: 260775 | AE57: 1497819.627 | AF57: 2.828663605 | AG57: 15229.07 | AK57: 75 | AM57: 48 | AN57: Burlington | AO57: 1 | AP57: 3477 | AQ57: 52951493.56 | AR57: 42983788 | AS57: 10764331
A58: 49 | B58: Cambridge | C58: 1 | D58: 129510666.7 | E58: 106846300 | F58: 22664367 | G58: 0 | H58: 22664367 | I58: 130485995.8 | J58: 107650947 | K58: 22835049 | L58: 170682 | M58: =ROUND(100-'Townwide Contributions'!L58,2) -> 17.5 | N58: 7446 | O58: 7397 | P58: 1 | Q58: 554775 | R58: 384093 | S58: 22664367 | T58: 22886277 | U58: 0 | V58: 23219142 | W58: 0 | X58: 0 | Y58: 23219142 | Z58: 17.79435552 | AA58: 130870089 | AB58: 100.2943559 | AC58: 975329.1196 | AD58: 554775 | AE58: 384092.7378 | AF58: 0.2943555249 | AG58: 17640.39 | AK58: 75 | AM58: 49 | AN58: Cambridge | AO58: 1 | AP58: 7397 | AQ58: 130485995.8 | AR58: 107650947 | AS58: 23219142
A59: 50 | B59: Canton | C59: 1 | D59: 47358582.6 | E59: 38091394 | F59: 9502600 | G59: 0 | H59: 9502600 | I59: 49640688.38 | J59: 39968834 | K59: 9671854 | L59: 169254 | M59: =ROUND(100-'Townwide Contributions'!L59,2) -> 17.5 | N59: 3301 | O59: 3324 | P59: 1 | Q59: 249300 | R59: 80046 | S59: 9502600 | T59: 9602320 | U59: 0 | V59: 9751900 | W59: 0 | X59: 0 | Y59: 9751900 | Z59: 19.64497334 | AA59: 49720734 | AB59: 100.16125 | AC59: 2282105.785 | AD59: 249300 | AE59: 1064779.533 | AF59: 2.144973342 | AG59: 14934.02 | AK59: 75 | AM59: 50 | AN59: Canton | AO59: 1 | AP59: 3324 | AQ59: 49640688.38 | AR59: 39968834 | AS59: 9751900
A60: 51 | B60: Carlisle | C60: 1 | D60: 7237676.12 | E60: 5971083 | F60: 1533774 | G60: 0 | H60: 1533774 | I60: 7493326.185 | J60: 6103524 | K60: 1389802 | L60: 0 | M60: =ROUND(100-'Townwide Contributions'!L60,2) -> 17.5 | N60: 576 | O60: 571 | P60: 0 | Q60: 42825 | R60: 42825 | S60: 1533774 | T60: 1550904 | U60: 0 | V60: 1576599 | W60: 0 | X60: 0 | Y60: 1576599 | Z60: 21.04004231 | AA60: 7680123 | AB60: 102.4928424 | AC60: 255650.0647 | AD60: 42825 | AE60: 265266.9177 | AF60: 3.540042314 | AG60: 13123.16 | AK60: 75 | AM60: 51 | AN60: Carlisle | AO60: 1 | AP60: 571 | AQ60: 7493326.185 | AR60: 6103524 | AS60: 1576599
A61: 52 | B61: Carver | C61: 1 | D61: 21388080.56 | E61: 11861024 | F61: 10839443 | G61: 0 | H61: 10839443 | I61: 21694607.7 | J61: 12833218 | K61: 8861390 | L61: 0 | M61: =ROUND(100-'Townwide Contributions'!L61,2) -> 37.12 | N61: 1467 | O61: 1424 | P61: 0 | Q61: 106800 | R61: 106800 | S61: 10839443 | T61: 10882163 | U61: 0 | V61: 10946243 | W61: 0 | X61: 0 | Y61: 10946243 | Z61: 50.45605411 | AA61: 23779461 | AB61: 109.6100069 | AC61: 306527.1388 | AD61: 106800 | AE61: 2893204.621 | AF61: 13.33605411 | AG61: 15234.98 | AK61: 75 | AM61: 52 | AN61: Carver | AO61: 1 | AP61: 1424 | AQ61: 21694607.7 | AR61: 12833218 | AS61: 10946243
A62: 53 | B62: Charlemont | C62: 0 | D62: 240365.82 | E62: 133498 | F62: 106868 | G62: 0 | H62: 106868 | I62: 303950 | J62: 183419 | K62: 120531 | L62: 13663 | M62: =ROUND(100-'Townwide Contributions'!L62,2) -> 30.39 | N62: 12 | O62: 15 | P62: 0 | Q62: 0 | R62: 0 | S62: 106868 | T62: 107318 | U62: 0 | V62: 120531 | W62: 0 | X62: 0 | Y62: 120531 | Z62: 0 | AA62: 303950 | AB62: 100 | AC62: 63584.18 | AD62: 13663 | AE62: 28160.595 | AG62: 20263.33 | AK62: 910.8666667 | AM62: 53 | AN62: Charlemont | AO62: 0 | AP62: 15 | AQ62: 303950 | AR62: 183419 | AS62: 120531
A63: 54 | B63: Charlton | C63: 0 | D63: 0 | E63: 0 | F63: 0 | G63: 0 | H63: 0 | I63: 0 | J63: 0 | K63: 0 | L63: 0 | M63: =ROUND(100-'Townwide Contributions'!L63,2) -> 32.16 | N63: 0 | O63: 0 | P63: 0 | Q63: 0 | R63: 0 | S63: 0 | T63: 0 | U63: 0 | V63: 0 | W63: 0 | X63: 0 | Y63: 0 | Z63: 0 | AA63: 0 | AB63: 0 | AC63: 0 | AD63: 0 | AE63: 0 | AG63: 0 | AK63: 0 | AM63: 54 | AN63: Charlton | AO63: 0 | AP63: 0 | AQ63: 0 | AR63: 0 | AS63: 0
A64: 55 | B64: Chatham | C64: 0 | D64: 0 | E64: 0 | F64: 0 | G64: 0 | H64: 0 | I64: 0 | J64: 0 | K64: 0 | L64: 0 | M64: =ROUND(100-'Townwide Contributions'!L64,2) -> 17.5 | N64: 0 | O64: 0 | P64: 0 | Q64: 0 | R64: 0 | S64: 0 | T64: 0 | U64: 0 | V64: 0 | W64: 0 | X64: 0 | Y64: 0 | Z64: 0 | AA64: 0 | AB64: 0 | AC64: 0 | AD64: 0 | AE64: 0 | AG64: 0 | AK64: 0 | AM64: 55 | AN64: Chatham | AO64: 0 | AP64: 0 | AQ64: 0 | AR64: 0 | AS64: 0
A65: 56 | B65: Chelmsford | C65: 1 | D65: 68619087.45 | E65: 55152965 | F65: 15450424 | G65: 0 | H65: 15450424 | I65: 72340954.5 | J65: 57928714 | K65: 14412241 | L65: 0 | M65: =ROUND(100-'Townwide Contributions'!L65,2) -> 17.5 | N65: 5132 | O65: 5175 | P65: 0 | Q65: 388125 | R65: 388125 | S65: 15450424 | T65: 15605674 | U65: 0 | V65: 15838549 | W65: 0 | X65: 0 | Y65: 15838549 | Z65: 21.8943047 | AA65: 73767263 | AB65: 101.9716473 | AC65: 3721867.05 | AD65: 388125 | AE65: 3178881.963 | AF65: 4.394304698 | AG65: 13978.93 | AK65: 75 | AM65: 56 | AN65: Chelmsford | AO65: 1 | AP65: 5175 | AQ65: 72340954.5 | AR65: 57928714 | AS65: 15838549
A66: 57 | B66: Chelsea | C66: 1 | D66: 155824471.3 | E66: 25069966 | F66: 130754505 | G66: 0 | H66: 130754505 | I66: 158213129.3 | J66: 26862562 | K66: 131350567 | L66: 596062 | M66: =ROUND(100-'Townwide Contributions'!L66,2) -> 76.41 | N66: 7029 | O66: 6708 | P66: 1 | Q66: 503100 | R66: 0 | S66: 130754505 | T66: 130955745 | U66: 0 | V66: 131350567 | W66: 0 | X66: 0 | Y66: 131350567 | Z66: 83.02128122 | AA66: 158213129 | AB66: 99.99999982 | AC66: 2388657.957 | AD66: 596062 | AE66: 10459914.91 | AF66: 6.611281224 | AG66: 23585.74 | AK66: 88.85837806 | AM66: 57 | AN66: Chelsea | AO66: 1 | AP66: 6708 | AQ66: 158213129.3 | AR66: 26862562 | AS66: 131350567
A67: 58 | B67: Cheshire | C67: 0 | D67: 17354.29 | E67: 8633 | F67: 16351 | G67: 0 | H67: 16351 | I67: 0 | J67: 0 | K67: 0 | L67: 0 | M67: =ROUND(100-'Townwide Contributions'!L67,2) -> 46.8 | N67: 1 | O67: 0 | P67: 0 | Q67: 0 | R67: 0 | S67: 0 | T67: 0 | U67: 0 | V67: 16351 | W67: 16351 | X67: 0 | Y67: 0 | Z67: 0 | AA67: 0 | AB67: 0 | AC67: -17354.29 | AD67: -16351 | AE67: 0 | AG67: 0 | AK67: 0 | AM67: 58 | AN67: Cheshire | AO67: 0 | AP67: 0 | AQ67: 0 | AR67: 0 | AS67: 0
A68: 59 | B68: Chester | C68: 0 | D68: 156188.61 | E68: 76907 | F68: 79282 | G68: 0 | H68: 79282 | I68: 231762.16 | J68: 116039 | K68: 115723 | L68: 36441 | M68: =ROUND(100-'Townwide Contributions'!L68,2) -> 45.76 | N68: 9 | O68: 11 | P68: 0 | Q68: 0 | R68: 0 | S68: 109685 | T68: 110015 | U68: 0 | V68: 115723 | W68: 0 | X68: 0 | Y68: 115723 | Z68: 0 | AA68: 231762 | AB68: 99.99993096 | AC68: 75573.55 | AD68: 36441 | AE68: 9668.635584 | AG68: 21069.29 | AK68: 3312.818182 | AM68: 59 | AN68: Chester | AO68: 0 | AP68: 11 | AQ68: 231762.16 | AR68: 116039 | AS68: 115723
A69: 60 | B69: Chesterfield | C69: 0 | D69: 292428.69 | E69: 227046 | F69: 133594 | G69: 0 | H69: 133594 | I69: 108281.76 | J69: 86457 | K69: 21825 | L69: 0 | M69: =ROUND(100-'Townwide Contributions'!L69,2) -> 17.5 | N69: 15 | O69: 6 | P69: 0 | Q69: 0 | R69: 0 | S69: 103391.34 | T69: 103571.34 | U69: 0 | V69: 133594 | W69: 25312.24 | X69: 0 | Y69: 108281.76 | Z69: 0 | AA69: 194738.76 | AB69: 179.8444724 | AC69: -184146.93 | AD69: -25312.24 | AE69: 89332.452 | AG69: 18046.96 | AK69: -4218.706667 | AM69: 60 | AN69: Chesterfield | AO69: 0 | AP69: 6 | AQ69: 108281.76 | AR69: 86457 | AS69: 108281.76
A70: 61 | B70: Chicopee | C70: 1 | D70: 136705068.7 | E70: 36463911 | F70: 100241158 | G70: 0 | H70: 100241158 | I70: 136875016.7 | J70: 38338156 | K70: 98536861 | L70: 0 | M70: =ROUND(100-'Townwide Contributions'!L70,2) -> 69.14 | N70: 7198 | O70: 7057 | P70: 0 | Q70: 529275 | R70: 529275 | S70: 100241158 | T70: 100452868 | U70: 0 | V70: 100770433 | W70: 0 | X70: 0 | Y70: 100770433 | Z70: 73.62222518 | AA70: 139108589 | AB70: 101.6318335 | AC70: 169948.03 | AD70: 529275 | AE70: 6135046.461 | AF70: 4.482225178 | AG70: 19395.64 | AK70: 75 | AM70: 61 | AN70: Chicopee | AO70: 1 | AP70: 7057 | AQ70: 136875016.7 | AR70: 38338156 | AS70: 100770433
A71: 62 | B71: Chilmark | C71: 0 | D71: 0 | E71: 0 | F71: 0 | G71: 0 | H71: 0 | I71: 0 | J71: 0 | K71: 0 | L71: 0 | M71: =ROUND(100-'Townwide Contributions'!L71,2) -> 17.5 | N71: 0 | O71: 0 | P71: 0 | Q71: 0 | R71: 0 | S71: 0 | T71: 0 | U71: 0 | V71: 0 | W71: 0 | X71: 0 | Y71: 0 | Z71: 0 | AA71: 0 | AB71: 0 | AC71: 0 | AD71: 0 | AE71: 0 | AG71: 0 | AK71: 0 | AM71: 62 | AN71: Chilmark | AO71: 0 | AP71: 0 | AQ71: 0 | AR71: 0 | AS71: 0
A72: 63 | B72: Clarksburg | C72: 1 | D72: 2998078.92 | E72: 793818 | F72: 2204261 | G72: 0 | H72: 2204261 | I72: 3011061.51 | J72: 853595 | K72: 2157467 | L72: 0 | M72: =ROUND(100-'Townwide Contributions'!L72,2) -> 67.89 | N72: 201 | O72: 196 | P72: 0 | Q72: 14700 | R72: 14700 | S72: 2204261 | T72: 2210141 | U72: 0 | V72: 2218961 | W72: 0 | X72: 0 | Y72: 2218961 | Z72: 73.69364567 | AA72: 3072556 | AB72: 102.0422861 | AC72: 12982.59 | AD72: 14700 | AE72: 174751.3409 | AF72: 5.803645667 | AG72: 15362.56 | AK72: 75 | AM72: 63 | AN72: Clarksburg | AO72: 1 | AP72: 196 | AQ72: 3011061.51 | AR72: 853595 | AS72: 2218961
A73: 64 | B73: Clinton | C73: 1 | D73: 36558782.02 | E73: 14710647 | F73: 21848135 | G73: 0 | H73: 21848135 | I73: 38523372.39 | J73: 15572690 | K73: 22950682 | L73: 1102547 | M73: =ROUND(100-'Townwide Contributions'!L73,2) -> 55.33 | N73: 2129 | O73: 2137 | P73: 1 | Q73: 160275 | R73: 0 | S73: 21848135 | T73: 21912245 | U73: 0 | V73: 22950682 | W73: 0 | X73: 0 | Y73: 22950682 | Z73: 59.57599394 | AA73: 38523372 | AB73: 99.99999899 | AC73: 1964590.37 | AD73: 1102547 | AE73: 1635700.057 | AF73: 4.245993939 | AG73: 18026.85 | AK73: 515.9321479 | AM73: 64 | AN73: Clinton | AO73: 1 | AP73: 2137 | AQ73: 38523372.39 | AR73: 15572690 | AS73: 22950682
A74: 65 | B74: Cohasset | C74: 1 | D74: 18191220.13 | E74: 15007757 | F74: 3333035 | G74: 0 | H74: 3333035 | I74: =SUMIF(dist1755,A74,found1755) -> 18899522.73 | J74: =SUMIF(dist1755,A74,prelcont1755) -> 15592106 | K74: =ROUND(MAX(found-prelcont436,0),0) -> 3307417 | L74: =IF(foundaid>priorc70,foundaid-priorc70,0) -> 0 | M74: =ROUND(100-'Townwide Contributions'!L74,2) -> 17.5 | N74: 1408 | O74: =SUMIF(dist1755,A74,enro1755) -> 1396 | P74: =IF(AND(C74=1,L74>0),1,0) -> 0 | Q74: =IF(nonop=1,enro*$Q$6,0) -> 104700 | R74: =IF((foundinc)<Q74,Q74-(foundinc),0) -> 104700 | S74: 3333035 | T74: =S74+30*enro -> 3374915 | U74: =IF(AND(T74-priorc70-foundinc-minaid>0,nonop=1), T74-priorc70-foundinc-minaid,0) -> 0 | V74: =priorc70+ foundinc+minaidadjincrement+minaid -> 3437735 | W74: =IF(AND(C74=0,V74>found),V74-found,0) -> 0 | X74: 0 | Y74: =priorc70+foundinc+minaidadjincrement+minaid-rednonop+holdharmlessaid -> 3437735 | Z74: =IF(C74=1, Y74/I74*100, 0) -> 18.18953341 | AA74: =prelcont436+chapter70 -> 19029841 | AB74: =IF(found>0,AA74*100/found,0) -> 100.6895321 | AC74: =I74-D74 -> 708302.6016 | AD74: =Y74-F74 -> 104700 | AE74: =Y74-((M74/100)*I74) -> 130318.5227 | AF74: =IF(C74=1, (Y74/I74*100)-M74, "") -> 0.6895334057 | AG74: =IFERROR(ROUND(I74/O74, 2), 0) -> 13538.34 | AK74: =IFERROR(AD74/O74, 0) -> 75 | AM74: =A74 -> 65 | AN74: =B74 -> Cohasset | AO74: =C74 -> 1 | AP74: 1396 | AQ74: =I74 -> 18899522.73 | AR74: =J74 -> 15592106 | AS74: =Y74 -> 3437735
A75: 66 | B75: Colrain | C75: 0 | D75: 0 | E75: 0 | F75: 0 | G75: 0 | H75: =F75+G75 -> 0 | I75: 18046.96 | J75: 9287 | K75: 8760 | L75: 8760 | M75: =ROUND(100-'Townwide Contributions'!L75,2) -> 46.5 | N75: 0 | O75: 1 | P75: 0 | Q75: 0 | R75: 0 | S75: 8611 | T75: 8641 | U75: 0 | V75: 8760 | W75: 0 | X75: 0 | Y75: 8760 | Z75: 0 | AA75: 18047 | AB75: 100.0002216 | AC75: 18046.96 | AD75: 8760 | AE75: 368.1636 | AG75: 18046.96 | AK75: 8760 | AM75: 66 | AN75: Colrain | AO75: 0 | AP75: =O75 -> 1 | AQ75: 18046.96 | AR75: 9287 | AS75: 8760
A76: 67 | B76: Concord | C76: 1 | D76: 24461959.49 | E76: 20181116 | F76: 4524105 | G76: 0 | H76: 4524105 | I76: 24593938.52 | J76: 20289999 | K76: 4303940 | L76: 0 | M76: =ROUND(100-'Townwide Contributions'!L76,2) -> 17.5 | N76: 1892 | O76: 1837 | P76: 0 | Q76: 137775 | R76: 137775 | S76: 4524105 | T76: 4579215 | U76: 0 | V76: 4661880 | W76: 0 | X76: 0 | Y76: 4661880 | Z76: 18.95540235 | AA76: 24951879 | AB76: 101.4554012 | AC76: 131979.0308 | AD76: 137775 | AE76: 357940.7588 | AF76: 1.455402348 | AG76: 13388.1 | AK76: 75 | AM76: 67 | AN76: Concord | AO76: 1 | AP76: 1837 | AQ76: 24593938.52 | AR76: 20289999 | AS76: 4661880
A77: 68 | B77: Conway | C77: 1 | D77: 1196505.07 | E77: 987117 | F77: 656966 | G77: 0 | H77: 656966 | I77: 1135501.81 | J77: 936789 | K77: 198713 | L77: 0 | M77: =ROUND(100-'Townwide Contributions'!L77,2) -> 17.5 | N77: 83 | O77: 78 | P77: 0 | Q77: 5850 | R77: 5850 | S77: 656966 | T77: 659306 | U77: 0 | V77: 662816 | W77: 0 | X77: 0 | Y77: 662816 | Z77: 58.3720778 | AA77: 1599605 | AB77: 140.8720784 | AC77: -61003.26 | AD77: 5850 | AE77: 464103.1833 | AF77: 40.8720778 | AG77: 14557.72 | AK77: 75 | AM77: 68 | AN77: Conway | AO77: 1 | AP77: 78 | AQ77: 1135501.81 | AR77: 936789 | AS77: 662816
A78: 69 | B78: Cummington | C78: 0 | D78: 86771.45 | E78: 71586 | F78: 59811.12 | G78: 0 | H78: 59811.12 | I78: 126328.72 | J78: 90358 | K78: 35971 | L78: 0 | M78: =ROUND(100-'Townwide Contributions'!L78,2) -> 17.5 | N78: 5 | O78: 7 | P78: 0 | Q78: 0 | R78: 0 | S78: 59811.12 | T78: 60021.12 | U78: 0 | V78: 59811.12 | W78: 0 | X78: 0 | Y78: 59811.12 | Z78: 0 | AA78: 150169.12 | AB78: 118.8717182 | AC78: 39557.27 | AD78: 0 | AE78: 37703.594 | AG78: 18046.96 | AK78: 0 | AM78: 69 | AN78: Cummington | AO78: 0 | AP78: 7 | AQ78: 126328.72 | AR78: 90358 | AS78: 59811.12
A79: 70 | B79: Dalton | C79: 0 | D79: 483325.88 | E79: 221639 | F79: 261687 | G79: 0 | H79: 261687 | I79: 643993.92 | J79: 306208 | K79: 337786 | L79: 76099 | M79: =ROUND(100-'Townwide Contributions'!L79,2) -> 48.61 | N79: 26 | O79: 32 | P79: 0 | Q79: 0 | R79: 0 | S79: 322697 | T79: 323657 | U79: 0 | V79: 337786 | W79: 0 | X79: 0 | Y79: 337786 | Z79: 0 | AA79: 643994 | AB79: 100.0000124 | AC79: 160668.04 | AD79: 76099 | AE79: 24740.55549 | AG79: 20124.81 | AK79: 2378.09375 | AM79: 70 | AN79: Dalton | AO79: 0 | AP79: 32 | AQ79: 643993.92 | AR79: 306208 | AS79: 337786
A80: 71 | B80: Danvers | C80: 1 | D80: 46476053.4 | E80: 36728197 | F80: 10137350 | G80: 0 | H80: 10137350 | I80: 45833930.9 | J80: 37812993 | K80: 8020938 | L80: 0 | M80: =ROUND(100-'Townwide Contributions'!L80,2) -> 17.5 | N80: 3313 | O80: 3197 | P80: 0 | Q80: 239775 | R80: 239775 | S80: 10137350 | T80: 10233260 | U80: 0 | V80: 10377125 | W80: 0 | X80: 0 | Y80: 10377125 | Z80: 22.64070481 | AA80: 48190118 | AB80: 105.1407048 | AC80: -642122.5 | AD80: 239775 | AE80: 2356187.093 | AF80: 5.140704815 | AG80: 14336.54 | AK80: 75 | AM80: 71 | AN80: Danvers | AO80: 1 | AP80: 3197 | AQ80: 45833930.9 | AR80: 37812993 | AS80: 10377125
A81: 72 | B81: Dartmouth | C81: 1 | D81: 45395663.05 | E81: 37451422 | F81: 11271317 | G81: 0 | H81: 11271317 | I81: 47009657.39 | J81: 38782967 | K81: 8226690 | L81: 0 | M81: =ROUND(100-'Townwide Contributions'!L81,2) -> 17.5 | N81: 3203 | O81: 3181 | P81: 0 | Q81: 238575 | R81: 238575 | S81: 11271317 | T81: 11366747 | U81: 0 | V81: 11509892 | W81: 0 | X81: 0 | Y81: 11509892 | Z81: 24.48410101 | AA81: 50292859 | AB81: 106.9841003 | AC81: 1613994.34 | AD81: 238575 | AE81: 3283201.957 | AF81: 6.98410101 | AG81: 14778.26 | AK81: 75 | AM81: 72 | AN81: Dartmouth | AO81: 1 | AP81: 3181 | AQ81: 47009657.39 | AR81: 38782967 | AS81: 11509892
A82: 73 | B82: Dedham | C82: 1 | D82: 40094755.54 | E82: 30840581 | F82: 10145563 | G82: 0 | H82: 10145563 | I82: 38674910.38 | J82: 31906801 | K82: 6768109 | L82: 0 | M82: =ROUND(100-'Townwide Contributions'!L82,2) -> 17.5 | N82: 2707 | O82: 2566 | P82: 0 | Q82: 192450 | R82: 192450 | S82: 10145563 | T82: 10222543 | U82: 0 | V82: 10338013 | W82: 0 | X82: 0 | Y82: 10338013 | Z82: 26.73054158 | AA82: 42244814 | AB82: 109.2305414 | AC82: -1419845.156 | AD82: 192450 | AE82: 3569903.683 | AF82: 9.230541578 | AG82: 15072.06 | AK82: 75 | AM82: 73 | AN82: Dedham | AO82: 1 | AP82: 2566 | AQ82: 38674910.38 | AR82: 31906801 | AS82: 10338013
A83: 74 | B83: Deerfield | C83: 1 | D83: 3493016.69 | E83: 2881739 | F83: 1225219 | G83: 0 | H83: 1225219 | I83: 3599915.77 | J83: 2969931 | K83: 629985 | L83: 0 | M83: =ROUND(100-'Townwide Contributions'!L83,2) -> 17.5 | N83: 261 | O83: 254 | P83: 0 | Q83: 19050 | R83: 19050 | S83: 1225219 | T83: 1232839 | U83: 0 | V83: 1244269 | W83: 0 | X83: 0 | Y83: 1244269 | Z83: 34.56383648 | AA83: 4214200 | AB83: 117.0638501 | AC83: 106899.08 | AD83: 19050 | AE83: 614283.7403 | AF83: 17.06383648 | AG83: 14172.9 | AK83: 75 | AM83: 74 | AN83: Deerfield | AO83: 1 | AP83: 254 | AQ83: 3599915.77 | AR83: 2969931 | AS83: 1244269
A84: 75 | B84: Dennis | C84: 0 | D84: 0 | E84: 0 | F84: 0 | G84: 0 | H84: 0 | I84: 0 | J84: 0 | K84: 0 | L84: 0 | M84: =ROUND(100-'Townwide Contributions'!L84,2) -> 17.5 | N84: 0 | O84: 0 | P84: 0 | Q84: 0 | R84: 0 | S84: 0 | T84: 0 | U84: 0 | V84: 0 | W84: 0 | X84: 0 | Y84: 0 | Z84: 0 | AA84: 0 | AB84: 0 | AC84: 0 | AD84: 0 | AE84: 0 | AG84: 0 | AK84: 0 | AM84: 75 | AN84: Dennis | AO84: 0 | AP84: 0 | AQ84: 0 | AR84: 0 | AS84: 0
A85: 76 | B85: Dighton | C85: 0 | D85: 17354.29 | E85: 9474 | F85: 8253 | G85: 0 | H85: 8253 | I85: 0 | J85: 0 | K85: 0 | L85: 0 | M85: =ROUND(100-'Townwide Contributions'!L85,2) -> 40.22 | N85: 1 | O85: 0 | P85: 0 | Q85: 0 | R85: 0 | S85: 0 | T85: 0 | U85: 0 | V85: 8253 | W85: 8253 | X85: 0 | Y85: 0 | Z85: 0 | AA85: 0 | AB85: 0 | AC85: -17354.29 | AD85: -8253 | AE85: 0 | AG85: 0 | AK85: 0 | AM85: 76 | AN85: Dighton | AO85: 0 | AP85: 0 | AQ85: 0 | AR85: 0 | AS85: 0
A86: 77 | B86: Douglas | C86: 1 | D86: 14294446.85 | E86: 9322034 | F86: 9195163 | G86: 0 | H86: 9195163 | I86: 14629344.89 | J86: 9866311 | K86: 4763034 | L86: 0 | M86: =ROUND(100-'Townwide Contributions'!L86,2) -> 23.78 | N86: 1041 | O86: 1022 | P86: 0 | Q86: 76650 | R86: 76650 | S86: 9195163 | T86: 9225823 | U86: 0 | V86: 9271813 | W86: 0 | X86: 0 | Y86: 9271813 | Z86: 63.37818316 | AA86: 19138124 | AB86: 130.8201026 | AC86: 334898.04 | AD86: 76650 | AE86: 5792954.785 | AF86: 39.59818316 | AG86: 14314.43 | AK86: 75 | AM86: 77 | AN86: Douglas | AO86: 1 | AP86: 1022 | AQ86: 14629344.89 | AR86: 9866311 | AS86: 9271813
A87: 78 | B87: Dover | C87: 1 | D87: 6012595.309 | E87: 4960391 | F87: 1154911 | G87: 0 | H87: 1154911 | I87: 6029124.489 | J87: 4974028 | K87: 1055096 | L87: 0 | M87: =ROUND(100-'Townwide Contributions'!L87,2) -> 17.5 | N87: 474 | O87: 454 | P87: 0 | Q87: 34050 | R87: 34050 | S87: 1154911 | T87: 1168531 | U87: 0 | V87: 1188961 | W87: 0 | X87: 0 | Y87: 1188961 | Z87: 19.72029276 | AA87: 6162989 | AB87: 102.2202977 | AC87: 16529.17984 | AD87: 34050 | AE87: 133864.2145 | AF87: 2.22029276 | AG87: 13280.01 | AK87: 75 | AM87: 78 | AN87: Dover | AO87: 1 | AP87: 454 | AQ87: 6029124.489 | AR87: 4974028 | AS87: 1188961
A88: 79 | B88: Dracut | C88: 1 | D88: 55951048.69 | E88: 28785919 | F88: 28136689 | G88: 0 | H88: 28136689 | I88: 58046318.31 | J88: 30656645 | K88: 27389673 | L88: 0 | M88: =ROUND(100-'Townwide Contributions'!L88,2) -> 38.68 | N88: 3775 | O88: 3730 | P88: 0 | Q88: 279750 | R88: 279750 | S88: 28136689 | T88: 28248589 | U88: 0 | V88: 28416439 | W88: 0 | X88: 0 | Y88: 28416439 | Z88: 48.95476548 | AA88: 59073084 | AB88: 101.7688731 | AC88: 2095269.62 | AD88: 279750 | AE88: 5964123.078 | AF88: 10.27476548 | AG88: 15562.02 | AK88: 75 | AM88: 79 | AN88: Dracut | AO88: 1 | AP88: 3730 | AQ88: 58046318.31 | AR88: 30656645 | AS88: 28416439
A89: 80 | B89: Dudley | C89: 0 | D89: 17354.29 | E89: 6371 | F89: 10983 | G89: 0 | H89: 10983 | I89: 18046.96 | J89: 7007 | K89: 11040 | L89: 57 | M89: =ROUND(100-'Townwide Contributions'!L89,2) -> 51 | N89: 1 | O89: 1 | P89: 0 | Q89: 0 | R89: 0 | S89: 10983 | T89: 11013 | U89: 0 | V89: 11040 | W89: 0 | X89: 0 | Y89: 11040 | Z89: 0 | AA89: 18047 | AB89: 100.0002216 | AC89: 692.67 | AD89: 57 | AE89: 1836.0504 | AG89: 18046.96 | AK89: 57 | AM89: 80 | AN89: Dudley | AO89: 0 | AP89: 1 | AQ89: 18046.96 | AR89: 7007 | AS89: 11040
A90: 81 | B90: Dunstable | C90: 0 | D90: 0 | E90: 0 | F90: 0 | G90: 0 | H90: 0 | I90: 0 | J90: 0 | K90: 0 | L90: 0 | M90: =ROUND(100-'Townwide Contributions'!L90,2) -> 17.5 | N90: 0 | O90: 0 | P90: 0 | Q90: 0 | R90: 0 | S90: 0 | T90: 0 | U90: 0 | V90: 0 | W90: 0 | X90: 0 | Y90: 0 | Z90: 0 | AA90: 0 | AB90: 0 | AC90: 0 | AD90: 0 | AE90: 0 | AG90: 0 | AK90: 0 | AM90: 81 | AN90: Dunstable | AO90: 0 | AP90: 0 | AQ90: 0 | AR90: 0 | AS90: 0
A91: 82 | B91: Duxbury | C91: 1 | D91: 35054190.46 | E91: 28849041 | F91: 7351890 | G91: 0 | H91: 7351890 | I91: 35156207.32 | J91: 29003871 | K91: 6152336 | L91: 0 | M91: =ROUND(100-'Townwide Contributions'!L91,2) -> 17.5 | N91: 2693 | O91: 2572 | P91: 0 | Q91: 192900 | R91: 192900 | S91: 7351890 | T91: 7429050 | U91: 0 | V91: 7544790 | W91: 0 | X91: 0 | Y91: 7544790 | Z91: 21.46076205 | AA91: 36548661 | AB91: 103.9607619 | AC91: 102016.8631 | AD91: 192900 | AE91: 1392453.719 | AF91: 3.960762053 | AG91: 13668.82 | AK91: 75 | AM91: 82 | AN91: Duxbury | AO91: 1 | AP91: 2572 | AQ91: 35156207.32 | AR91: 29003871 | AS91: 7544790
A92: 83 | B92: East Bridgewater | C92: 1 | D92: 27680260.6 | E92: 15476590 | F92: 13370869 | G92: 0 | H92: 13370869 | I92: 28408134.67 | J92: 16296001 | K92: 12112134 | L92: 0 | M92: =ROUND(100-'Townwide Contributions'!L92,2) -> 36.43 | N92: 1956 | O92: 1918 | P92: 0 | Q92: 143850 | R92: 143850 | S92: 13370869 | T92: 13428409 | U92: 0 | V92: 13514719 | W92: 0 | X92: 0 | Y92: 13514719 | Z92: 47.57341218 | AA92: 29810720 | AB92: 104.9372665 | AC92: 727874.07 | AD92: 143850 | AE92: 3165635.54 | AF92: 11.14341218 | AG92: 14811.33 | AK92: 75 | AM92: 83 | AN92: East Bridgewater | AO92: 1 | AP92: 1918 | AQ92: 28408134.67 | AR92: 16296001 | AS92: 13514719
A93: 84 | B93: East Brookfield | C93: 0 | D93: 448617.3 | E93: 227537 | F93: 221080 | G93: 0 | H93: 221080 | I93: 412231.76 | J93: 212357 | K93: 199875 | L93: 0 | M93: =ROUND(100-'Townwide Contributions'!L93,2) -> 43.19 | N93: 24 | O93: 21 | P93: 0 | Q93: 0 | R93: 0 | S93: 221080 | T93: 221710 | U93: 0 | V93: 221080 | W93: 0 | X93: 0 | Y93: 221080 | Z93: 0 | AA93: 433437 | AB93: 105.1440093 | AC93: -36385.54 | AD93: 0 | AE93: 43037.10286 | AG93: 19630.08 | AK93: 0 | AM93: 84 | AN93: East Brookfield | AO93: 0 | AP93: 21 | AQ93: 412231.76 | AR93: 212357 | AS93: 221080
A94: 85 | B94: Eastham | C94: 1 | D94: 2811123.1 | E94: 2319176 | F94: 556679 | G94: 0 | H94: 556679 | I94: 3056888.32 | J94: 2521933 | K94: 534955 | L94: 0 | M94: =ROUND(100-'Townwide Contributions'!L94,2) -> 17.5 | N94: 195 | O94: 197 | P94: 0 | Q94: 14775 | R94: 14775 | S94: 556679 | T94: 562589 | U94: 0 | V94: 571454 | W94: 0 | X94: 0 | Y94: 571454 | Z94: 18.69397702 | AA94: 3093387 | AB94: 101.1939815 | AC94: 245765.22 | AD94: 14775 | AE94: 36498.544 | AF94: 1.193977018 | AG94: 15517.2 | AK94: 75 | AM94: 85 | AN94: Eastham | AO94: 1 | AP94: 197 | AQ94: 3056888.32 | AR94: 2521933 | AS94: 571454
A95: 86 | B95: Easthampton | C95: 1 | D95: 23886649.57 | E95: 15814907 | F95: 9063542 | G95: 0 | H95: 9063542 | I95: 23938957.65 | J95: 16827061 | K95: 7111897 | L95: 0 | M95: =ROUND(100-'Townwide Contributions'!L95,2) -> 23.95 | N95: 1565 | O95: 1533 | P95: 0 | Q95: 114975 | R95: 114975 | S95: 9063542 | T95: 9109532 | U95: 0 | V95: 9178517 | W95: 0 | X95: 0 | Y95: 9178517 | Z95: 38.34133939 | AA95: 26005578 | AB95: 108.6328752 | AC95: 52308.08 | AD95: 114975 | AE95: 3445136.643 | AF95: 14.39133939 | AG95: 15615.76 | AK95: 75 | AM95: 86 | AN95: Easthampton | AO95: 1 | AP95: 1533 | AQ95: 23938957.65 | AR95: 16827061 | AS95: 9178517
A96: 87 | B96: East Longmeadow | C96: 1 | D96: 34975334.98 | E96: 20638923 | F96: 15669936 | G96: 0 | H96: 15669936 | I96: 34286215.83 | J96: 21652294 | K96: 12633922 | L96: 0 | M96: =ROUND(100-'Townwide Contributions'!L96,2) -> 31.47 | N96: 2468 | O96: 2355 | P96: 0 | Q96: 176625 | R96: 176625 | S96: 15669936 | T96: 15740586 | U96: 0 | V96: 15846561 | W96: 0 | X96: 0 | Y96: 15846561 | Z96: 46.21846015 | AA96: 37498855 | AB96: 109.3700605 | AC96: -689119.15 | AD96: 176625 | AE96: 5056688.878 | AF96: 14.74846015 | AG96: 14558.9 | AK96: 75 | AM96: 87 | AN96: East Longmeadow | AO96: 1 | AP96: 2355 | AQ96: 34286215.83 | AR96: 21652294 | AS96: 15846561
A97: 88 | B97: Easton | C97: 1 | D97: 45287684.26 | E97: 36311272 | F97: 11511787 | G97: 0 | H97: 11511787 | I97: 46300939.71 | J97: 38111434 | K97: 8189506 | L97: 0 | M97: =ROUND(100-'Townwide Contributions'!L97,2) -> 17.5 | N97: 3349 | O97: 3286 | P97: 0 | Q97: 246450 | R97: 246450 | S97: 11511787 | T97: 11610367 | U97: 0 | V97: 11758237 | W97: 0 | X97: 0 | Y97: 11758237 | Z97: 25.39524483 | AA97: 49869671 | AB97: 107.7076865 | AC97: 1013255.45 | AD97: 246450 | AE97: 3655572.551 | AF97: 7.895244834 | AG97: 14090.37 | AK97: 75 | AM97: 88 | AN97: Easton | AO97: 1 | AP97: 3286 | AQ97: 46300939.71 | AR97: 38111434 | AS97: 11758237
A98: 89 | B98: Edgartown | C98: 1 | D98: 6271711.71 | E98: 5174162 | F98: 1269737 | G98: 0 | H98: 1269737 | I98: 6499194.09 | J98: 5361835 | K98: 1137359 | L98: 0 | M98: =ROUND(100-'Townwide Contributions'!L98,2) -> 17.5 | N98: 393 | O98: 384 | P98: 0 | Q98: 28800 | R98: 28800 | S98: 1269737 | T98: 1281257 | U98: 0 | V98: 1298537 | W98: 0 | X98: 0 | Y98: 1298537 | Z98: 19.97996955 | AA98: 6660372 | AB98: 102.4799676 | AC98: 227482.38 | AD98: 28800 | AE98: 161178.0343 | AF98: 2.479969547 | AG98: 16924.98 | AK98: 75 | AM98: 89 | AN98: Edgartown | AO98: 1 | AP98: 384 | AQ98: 6499194.09 | AR98: 5361835 | AS98: 1298537
A99: 90 | B99: Egremont | C99: 0 | D99: 0 | E99: 0 | F99: 0 | G99: 0 | H99: 0 | I99: 0 | J99: 0 | K99: 0 | L99: 0 | M99: =ROUND(100-'Townwide Contributions'!L99,2) -> 17.5 | N99: 0 | O99: 0 | P99: 0 | Q99: 0 | R99: 0 | S99: 0 | T99: 0 | U99: 0 | V99: 0 | W99: 0 | X99: 0 | Y99: 0 | Z99: 0 | AA99: 0 | AB99: 0 | AC99: 0 | AD99: 0 | AE99: 0 | AG99: 0 | AK99: 0 | AM99: 90 | AN99: Egremont | AO99: 0 | AP99: 0 | AQ99: 0 | AR99: 0 | AS99: 0
A100: 91 | B100: Erving | C100: 1 | D100: 2485223.59 | E100: 2050310 | F100: 603466 | G100: 0 | H100: 603466 | I100: 2479188.07 | J100: 2045330 | K100: 433858 | L100: 0 | M100: =ROUND(100-'Townwide Contributions'!L100,2) -> 17.5 | N100: 175 | O100: 165 | P100: 0 | Q100: 12375 | R100: 12375 | S100: 603466 | T100: 608416 | U100: 0 | V100: 615841 | W100: 0 | X100: 0 | Y100: 615841 | Z100: 24.84043092 | AA100: 2661171 | AB100: 107.3404246 | AC100: -6035.52 | AD100: 12375 | AE100: 181983.0878 | AF100: 7.340430924 | AG100: 15025.38 | AK100: 75 | AM100: 91 | AN100: Erving | AO100: 1 | AP100: 165 | AQ100: 2479188.07 | AR100: 2045330 | AS100: 615841
A101: 92 | B101: Essex | C101: 0 | D101: 0 | E101: 0 | F101: 0 | G101: 0 | H101: 0 | I101: 0 | J101: 0 | K101: 0 | L101: 0 | M101: =ROUND(100-'Townwide Contributions'!L101,2) -> 17.5 | N101: 0 | O101: 0 | P101: 0 | Q101: 0 | R101: 0 | S101: 0 | T101: 0 | U101: 0 | V101: 0 | W101: 0 | X101: 0 | Y101: 0 | Z101: 0 | AA101: 0 | AB101: 0 | AC101: 0 | AD101: 0 | AE101: 0 | AG101: 0 | AK101: 0 | AM101: 92 | AN101: Essex | AO101: 0 | AP101: 0 | AQ101: 0 | AR101: 0 | AS101: 0
A102: 93 | B102: Everett | C102: 1 | D102: 172711734.6 | E102: 45846412 | F102: 126865323 | G102: 0 | H102: 126865323 | I102: 174880352.4 | J102: 47849900 | K102: 127030452 | L102: 165129 | M102: =ROUND(100-'Townwide Contributions'!L102,2) -> 70.83 | N102: 8009 | O102: 7670 | P102: 1 | Q102: 575250 | R102: 410121 | S102: 126865323 | T102: 127095423 | U102: 0 | V102: 127440573 | W102: 0 | X102: 0 | Y102: 127440573 | Z102: 72.87300791 | AA102: 175290473 | AB102: 100.234515 | AC102: 2168617.776 | AD102: 575250 | AE102: 3572819.425 | AF102: 2.043007906 | AG102: 22800.57 | AK102: 75 | AM102: 93 | AN102: Everett | AO102: 1 | AP102: 7670 | AQ102: 174880352.4 | AR102: 47849900 | AS102: 127440573
A103: 94 | B103: Fairhaven | C103: 1 | D103: 24525650.53 | E103: 15860855 | F103: 10036083 | G103: 0 | H103: 10036083 | I103: 25249369.25 | J103: 16358510 | K103: 8890859 | L103: 0 | M103: =ROUND(100-'Townwide Contributions'!L103,2) -> 28.92 | N103: 1590 | O103: 1558 | P103: 0 | Q103: 116850 | R103: 116850 | S103: 10036083 | T103: 10082823 | U103: 0 | V103: 10152933 | W103: 0 | X103: 0 | Y103: 10152933 | Z103: 40.21064011 | AA103: 26511443 | AB103: 104.9984367 | AC103: 723718.72 | AD103: 116850 | AE103: 2850815.413 | AF103: 11.29064011 | AG103: 16206.27 | AK103: 75 | AM103: 94 | AN103: Fairhaven | AO103: 1 | AP103: 1558 | AQ103: 25249369.25 | AR103: 16358510 | AS103: 10152933
A104: 95 | B104: Fall River | C104: 1 | D104: 273966514.1 | E104: 43178238 | F104: 230788276 | G104: 0 | H104: 230788276 | I104: 297582870.1 | J104: 47033824 | K104: 250549046 | L104: 19760770 | M104: =ROUND(100-'Townwide Contributions'!L104,2) -> 78.77 | N104: 13106 | O104: 13241 | P104: 1 | Q104: 993075 | R104: 0 | S104: 230788276 | T104: 231185506 | U104: 0 | V104: 250549046 | W104: 0 | X104: 0 | Y104: 250549046 | Z104: 84.19471386 | AA104: 297582870 | AB104: 99.99999996 | AC104: 23616356.05 | AD104: 19760770 | AE104: 16143019.21 | AF104: 5.424713865 | AG104: 22474.35 | AK104: 1492.392569 | AM104: 95 | AN104: Fall River | AO104: 1 | AP104: 13241 | AQ104: 297582870.1 | AR104: 47033824 | AS104: 250549046
A105: 96 | B105: Falmouth | C105: 1 | D105: 43846641.97 | E105: 36173479 | F105: 10042889 | G105: 0 | H105: 10042889 | I105: 43356186.71 | J105: 35768854 | K105: 7587333 | L105: 0 | M105: =ROUND(100-'Townwide Contributions'!L105,2) -> 17.5 | N105: 2810 | O105: 2721 | P105: 0 | Q105: 204075 | R105: 204075 | S105: 10042889 | T105: 10124519 | U105: 0 | V105: 10246964 | W105: 0 | X105: 0 | Y105: 10246964 | Z105: 23.63437557 | AA105: 46015818 | AB105: 106.1343755 | AC105: -490455.26 | AD105: 204075 | AE105: 2659631.326 | AF105: 6.13437557 | AG105: 15933.92 | AK105: 75 | AM105: 96 | AN105: Falmouth | AO105: 1 | AP105: 2721 | AQ105: 43356186.71 | AR105: 35768854 | AS105: 10246964
A106: 97 | B106: Fitchburg | C106: 1 | D106: 110532274.9 | E106: 24320887 | F106: 86211388 | G106: 0 | H106: 86211388 | I106: 118652851.6 | J106: 25866520 | K106: 92786332 | L106: 6574944 | M106: =ROUND(100-'Townwide Contributions'!L106,2) -> 73.03 | N106: 5791 | O106: 5826 | P106: 1 | Q106: 436950 | R106: 0 | S106: 86211388 | T106: 86386168 | U106: 0 | V106: 92786332 | W106: 0 | X106: 0 | Y106: 92786332 | Z106: 78.19983316 | AA106: 118652852 | AB106: 100.0000003 | AC106: 8120576.74 | AD106: 6574944 | AE106: 6134154.469 | AF106: 5.169833161 | AG106: 20366.09 | AK106: 1128.552008 | AM106: 97 | AN106: Fitchburg | AO106: 1 | AP106: 5826 | AQ106: 118652851.6 | AR106: 25866520 | AS106: 92786332
A107: 98 | B107: Florida | C107: 1 | D107: 767290.66 | E107: 449313 | F107: 572487 | G107: 0 | H107: 572487 | I107: 762027.87 | J107: 502830 | K107: 259198 | L107: 0 | M107: =ROUND(100-'Townwide Contributions'!L107,2) -> 29.88 | N107: 47 | O107: 45 | P107: 0 | Q107: 3375 | R107: 3375 | S107: 572487 | T107: 573837 | U107: 0 | V107: 575862 | W107: 0 | X107: 0 | Y107: 575862 | Z107: 75.569677 | AA107: 1078692 | AB107: 141.5554526 | AC107: -5262.79 | AD107: 3375 | AE107: 348168.0724 | AF107: 45.689677 | AG107: 16933.95 | AK107: 75 | AM107: 98 | AN107: Florida | AO107: 1 | AP107: 45 | AQ107: 762027.87 | AR107: 502830 | AS107: 575862
A108: 99 | B108: Foxborough | C108: 1 | D108: 37172001.84 | E108: 29764062 | F108: 10082632 | G108: 0 | H108: 10082632 | I108: 37565196.07 | J108: 30991287 | K108: 6573909 | L108: 0 | M108: =ROUND(100-'Townwide Contributions'!L108,2) -> 17.5 | N108: 2580 | O108: 2518 | P108: 0 | Q108: 188850 | R108: 188850 | S108: 10082632 | T108: 10158172 | U108: 0 | V108: 10271482 | W108: 0 | X108: 0 | Y108: 10271482 | Z108: 27.34308103 | AA108: 41262769 | AB108: 109.8430817 | AC108: 393194.2328 | AD108: 188850 | AE108: 3697572.687 | AF108: 9.843081025 | AG108: 14918.66 | AK108: 75 | AM108: 99 | AN108: Foxborough | AO108: 1 | AP108: 2518 | AQ108: 37565196.07 | AR108: 30991287 | AS108: 10271482
A109: 100 | B109: Framingham | C109: 1 | D109: 173968070 | E109: 81468888 | F109: 92499182 | G109: 0 | H109: 92499182 | I109: 171534104.1 | J109: 85137964 | K109: 86396140 | L109: 0 | M109: =ROUND(100-'Townwide Contributions'!L109,2) -> 44.17 | N109: 9532 | O109: 8948 | P109: 0 | Q109: 671100 | R109: 671100 | S109: 92499182 | T109: 92767622 | U109: 0 | V109: 93170282 | W109: 0 | X109: 0 | Y109: 93170282 | Z109: 54.31589391 | AA109: 178308246 | AB109: 103.9491517 | AC109: -2433965.945 | AD109: 671100 | AE109: 17403668.23 | AF109: 10.14589391 | AG109: 19170.11 | AK109: 75 | AM109: 100 | AN109: Framingham | AO109: 1 | AP109: 8948 | AQ109: 171534104.1 | AR109: 85137964 | AS109: 93170282
A110: 101 | B110: Franklin | C110: 1 | D110: 68009481.34 | E110: 52439022 | F110: 30460643 | G110: 0 | H110: 30460643 | I110: 68032792.42 | J110: 54507737 | K110: 13525055 | L110: 0 | M110: =ROUND(100-'Townwide Contributions'!L110,2) -> 17.5 | N110: 4951 | O110: 4734 | P110: 0 | Q110: 355050 | R110: 355050 | S110: 30460643 | T110: 30602663 | U110: 0 | V110: 30815693 | W110: 0 | X110: 0 | Y110: 30815693 | Z110: 45.29535229 | AA110: 85323430 | AB110: 125.415152 | AC110: 23311.0705 | AD110: 355050 | AE110: 18909954.33 | AF110: 27.79535229 | AG110: 14371.1 | AK110: 75 | AM110: 101 | AN110: Franklin | AO110: 1 | AP110: 4734 | AQ110: 68032792.42 | AR110: 54507737 | AS110: 30815693
A111: 102 | B111: Freetown | C111: 0 | D111: 17354.29 | E111: 13171 | F111: 16860.33 | G111: 0 | H111: 16860.33 | I111: 18046.96 | J111: 13223 | K111: 4824 | L111: 0 | M111: =ROUND(100-'Townwide Contributions'!L111,2) -> 21.87 | N111: 1 | O111: 1 | P111: 0 | Q111: 0 | R111: 0 | S111: 16860.33 | T111: 16890.33 | U111: 0 | V111: 16860.33 | W111: 0 | X111: 0 | Y111: 16860.33 | Z111: 0 | AA111: 30083.33 | AB111: 166.6947231 | AC111: 692.67 | AD111: 0 | AE111: 12913.45985 | AG111: 18046.96 | AK111: 0 | AM111: 102 | AN111: Freetown | AO111: 0 | AP111: 1 | AQ111: 18046.96 | AR111: 13223 | AS111: 16860.33
A112: 103 | B112: Gardner | C112: 1 | D112: 45038410.02 | E112: 12662453 | F112: 32375957 | G112: 0 | H112: 32375957 | I112: 46507130.32 | J112: 13487454 | K112: 33019676 | L112: 643719 | M112: =ROUND(100-'Townwide Contributions'!L112,2) -> 65.88 | N112: 2500 | O112: 2465 | P112: 1 | Q112: 184875 | R112: 0 | S112: 32375957 | T112: 32449907 | U112: 0 | V112: 33019676 | W112: 0 | X112: 0 | Y112: 33019676 | Z112: 70.99916889 | AA112: 46507130 | AB112: 99.99999931 | AC112: 1468720.3 | AD112: 643719 | AE112: 2380778.545 | AF112: 5.119168886 | AG112: 18866.99 | AK112: 261.1436105 | AM112: 103 | AN112: Gardner | AO112: 1 | AP112: 2465 | AQ112: 46507130.32 | AR112: 13487454 | AS112: 33019676
A113: 104 | B113: Aquinnah | C113: 0 | D113: 0 | E113: 0 | F113: 0 | G113: 0 | H113: 0 | I113: 0 | J113: 0 | K113: 0 | L113: 0 | M113: =ROUND(100-'Townwide Contributions'!L113,2) -> 17.5 | N113: 0 | O113: 0 | P113: 0 | Q113: 0 | R113: 0 | S113: 0 | T113: 0 | U113: 0 | V113: 0 | W113: 0 | X113: 0 | Y113: 0 | Z113: 0 | AA113: 0 | AB113: 0 | AC113: 0 | AD113: 0 | AE113: 0 | AG113: 0 | AK113: 0 | AM113: 104 | AN113: Aquinnah | AO113: 0 | AP113: 0 | AQ113: 0 | AR113: 0 | AS113: 0
A114: 105 | B114: Georgetown | C114: 1 | D114: 15021753.37 | E114: 12206104 | F114: 6011432 | G114: 0 | H114: 6011432 | I114: 15137073.93 | J114: 12426278 | K114: 2710796 | L114: 0 | M114: =ROUND(100-'Townwide Contributions'!L114,2) -> 17.5 | N114: 1157 | O114: 1114 | P114: 0 | Q114: 83550 | R114: 83550 | S114: 6011432 | T114: 6044852 | U114: 0 | V114: 6094982 | W114: 0 | X114: 0 | Y114: 6094982 | Z114: 40.26525885 | AA114: 18521260 | AB114: 122.3569369 | AC114: 115320.56 | AD114: 83550 | AE114: 3445994.062 | AF114: 22.76525885 | AG114: 13588.04 | AK114: 75 | AM114: 105 | AN114: Georgetown | AO114: 1 | AP114: 1114 | AQ114: 15137073.93 | AR114: 12426278 | AS114: 6094982
A115: 106 | B115: Gill | C115: 0 | D115: 0 | E115: 0 | F115: 0 | G115: 0 | H115: 0 | I115: 0 | J115: 0 | K115: 0 | L115: 0 | M115: =ROUND(100-'Townwide Contributions'!L115,2) -> 39.73 | N115: 0 | O115: 0 | P115: 0 | Q115: 0 | R115: 0 | S115: 0 | T115: 0 | U115: 0 | V115: 0 | W115: 0 | X115: 0 | Y115: 0 | Z115: 0 | AA115: 0 | AB115: 0 | AC115: 0 | AD115: 0 | AE115: 0 | AG115: 0 | AK115: 0 | AM115: 106 | AN115: Gill | AO115: 0 | AP115: 0 | AQ115: 0 | AR115: 0 | AS115: 0
A116: 107 | B116: Gloucester | C116: 1 | D116: 50710044.2 | E116: 39344590 | F116: 12161741 | G116: 0 | H116: 12161741 | I116: 52844391.7 | J116: 41501767 | K116: 11342625 | L116: 0 | M116: =ROUND(100-'Townwide Contributions'!L116,2) -> 17.5 | N116: 3009 | O116: 2952 | P116: 0 | Q116: 221400 | R116: 221400 | S116: 12161741 | T116: 12250301 | U116: 0 | V116: 12383141 | W116: 0 | X116: 0 | Y116: 12383141 | Z116: 23.43321704 | AA116: 53884908 | AB116: 101.9690194 | AC116: 2134347.504 | AD116: 221400 | AE116: 3135372.452 | AF116: 5.933217039 | AG116: 17901.22 | AK116: 75 | AM116: 107 | AN116: Gloucester | AO116: 1 | AP116: 2952 | AQ116: 52844391.7 | AR116: 41501767 | AS116: 12383141
A117: 108 | B117: Goshen | C117: 0 | D117: 240365.82 | E117: 155850 | F117: 96381 | G117: 0 | H117: 96381 | I117: 303950 | J117: 192480 | K117: 111470 | L117: 15089 | M117: =ROUND(100-'Townwide Contributions'!L117,2) -> 34.88 | N117: 12 | O117: 15 | P117: 0 | Q117: 0 | R117: 0 | S117: 122996 | T117: 123446 | U117: 0 | V117: 111470 | W117: 0 | X117: 0 | Y117: 111470 | Z117: 0 | AA117: 303950 | AB117: 100 | AC117: 63584.18 | AD117: 15089 | AE117: 5452.24 | AG117: 20263.33 | AK117: 1005.933333 | AM117: 108 | AN117: Goshen | AO117: 0 | AP117: 15 | AQ117: 303950 | AR117: 192480 | AS117: 111470
A118: 109 | B118: Gosnold | C118: 0 | D118: 0 | E118: 0 | F118: 0 | G118: 0 | H118: 0 | I118: 0 | J118: 0 | K118: 0 | L118: 0 | M118: =ROUND(100-'Townwide Contributions'!L118,2) -> 100 | N118: 0 | O118: 0 | P118: 0 | Q118: 0 | R118: 0 | S118: 0 | T118: 0 | U118: 0 | V118: 0 | W118: 0 | X118: 0 | Y118: 0 | Z118: 0 | AA118: 0 | AB118: 0 | AC118: 0 | AD118: 0 | AE118: 0 | AG118: 0 | AK118: 0 | AM118: 109 | AN118: Gosnold | AO118: 0 | AP118: 0 | AQ118: 0 | AR118: 0 | AS118: 0
A119: 110 | B119: Grafton | C119: 1 | D119: 39402336.33 | E119: 27625677 | F119: 13539728 | G119: 0 | H119: 13539728 | I119: 41546834.43 | J119: 29482229 | K119: 12064605 | L119: 0 | M119: =ROUND(100-'Townwide Contributions'!L119,2) -> 20.18 | N119: 2956 | O119: 2971 | P119: 0 | Q119: 222825 | R119: 222825 | S119: 13539728 | T119: 13628858 | U119: 0 | V119: 13762553 | W119: 0 | X119: 0 | Y119: 13762553 | Z119: 33.12539496 | AA119: 43244782 | AB119: 104.0868278 | AC119: 2144498.1 | AD119: 222825 | AE119: 5378401.812 | AF119: 12.94539496 | AG119: 13984.12 | AK119: 75 | AM119: 110 | AN119: Grafton | AO119: 1 | AP119: 2971 | AQ119: 41546834.43 | AR119: 29482229 | AS119: 13762553
A120: 111 | B120: Granby | C120: 1 | D120: 9473831.24 | E120: 6338906 | F120: 4929700 | G120: 0 | H120: 4929700 | I120: 9405693.32 | J120: 6621887 | K120: 2783806 | L120: 0 | M120: =ROUND(100-'Townwide Contributions'!L120,2) -> 23.24 | N120: 641 | O120: 626 | P120: 0 | Q120: 46950 | R120: 46950 | S120: 4929700 | T120: 4948480 | U120: 0 | V120: 4976650 | W120: 0 | X120: 0 | Y120: 4976650 | Z120: 52.91103835 | AA120: 11598537 | AB120: 123.3140036 | AC120: -68137.92 | AD120: 46950 | AE120: 2790766.872 | AF120: 29.67103835 | AG120: 15025.07 | AK120: 75 | AM120: 111 | AN120: Granby | AO120: 1 | AP120: 626 | AQ120: 9405693.32 | AR120: 6621887 | AS120: 4976650
A121: 112 | B121: Granville | C121: 0 | D121: 465971.59 | E121: 326452 | F121: 139520 | G121: 0 | H121: 139520 | I121: 430278.72 | J121: 295997 | K121: 134282 | L121: 0 | M121: =ROUND(100-'Townwide Contributions'!L121,2) -> 26.86 | N121: 25 | O121: 22 | P121: 0 | Q121: 0 | R121: 0 | S121: 140319 | T121: 140979 | U121: 0 | V121: 139520 | W121: 0 | X121: 0 | Y121: 139520 | Z121: 0 | AA121: 435517 | AB121: 101.2174155 | AC121: -35692.87 | AD121: 0 | AE121: 23947.13581 | AG121: 19558.12 | AK121: 0 | AM121: 112 | AN121: Granville | AO121: 0 | AP121: 22 | AQ121: 430278.72 | AR121: 295997 | AS121: 139520
A122: 113 | B122: Great Barrington | C122: 0 | D122: 0 | E122: 0 | F122: 0 | G122: 0 | H122: 0 | I122: 0 | J122: 0 | K122: 0 | L122: 0 | M122: =ROUND(100-'Townwide Contributions'!L122,2) -> 17.5 | N122: 0 | O122: 0 | P122: 0 | Q122: 0 | R122: 0 | S122: 0 | T122: 0 | U122: 0 | V122: 0 | W122: 0 | X122: 0 | Y122: 0 | Z122: 0 | AA122: 0 | AB122: 0 | AC122: 0 | AD122: 0 | AE122: 0 | AG122: 0 | AK122: 0 | AM122: 113 | AN122: Great Barrington | AO122: 0 | AP122: 0 | AQ122: 0 | AR122: 0 | AS122: 0
A123: 114 | B123: Greenfield | C123: 1 | D123: 28110844.75 | E123: 11981726 | F123: 16748064 | G123: 0 | H123: 16748064 | I123: 28107599.75 | J123: 12549723 | K123: 15557877 | L123: 0 | M123: =ROUND(100-'Townwide Contributions'!L123,2) -> 51.44 | N123: 1686 | O123: 1631 | P123: 0 | Q123: 122325 | R123: 122325 | S123: 16748064 | T123: 16796994 | U123: 0 | V123: 16870389 | W123: 0 | X123: 0 | Y123: 16870389 | Z123: 60.0207387 | AA123: 29420112 | AB123: 104.6695992 | AC123: -3245 | AD123: 122325 | AE123: 2411839.689 | AF123: 8.580738697 | AG123: 17233.35 | AK123: 75 | AM123: 114 | AN123: Greenfield | AO123: 1 | AP123: 1631 | AQ123: 28107599.75 | AR123: 12549723 | AS123: 16870389
A124: 115 | B124: Groton | C124: 0 | D124: 0 | E124: 0 | F124: 0 | G124: 0 | H124: 0 | I124: 0 | J124: 0 | K124: 0 | L124: 0 | M124: =ROUND(100-'Townwide Contributions'!L124,2) -> 17.5 | N124: 0 | O124: 0 | P124: 0 | Q124: 0 | R124: 0 | S124: 0 | T124: 0 | U124: 0 | V124: 0 | W124: 0 | X124: 0 | Y124: 0 | Z124: 0 | AA124: 0 | AB124: 0 | AC124: 0 | AD124: 0 | AE124: 0 | AG124: 0 | AK124: 0 | AM124: 115 | AN124: Groton | AO124: 0 | AP124: 0 | AQ124: 0 | AR124: 0 | AS124: 0
A125: 116 | B125: Groveland | C125: 0 | D125: 138834.32 | E125: 101705 | F125: 65470 | G125: 0 | H125: 65470 | I125: 126328.72 | J125: 94383 | K125: 31946 | L125: 0 | M125: =ROUND(100-'Townwide Contributions'!L125,2) -> 17.5 | N125: 8 | O125: 7 | P125: 0 | Q125: 0 | R125: 0 | S125: 65470 | T125: 65680 | U125: 0 | V125: 65470 | W125: 0 | X125: 0 | Y125: 65470 | Z125: 0 | AA125: 159853 | AB125: 126.5373385 | AC125: -12505.6 | AD125: 0 | AE125: 43362.474 | AG125: 18046.96 | AK125: 0 | AM125: 116 | AN125: Groveland | AO125: 0 | AP125: 7 | AQ125: 126328.72 | AR125: 94383 | AS125: 65470
A126: 117 | B126: Hadley | C126: 1 | D126: 6594207.05 | E126: 5374427 | F126: 1462046 | G126: 0 | H126: 1462046 | I126: 6534075.61 | J126: 5390612 | K126: 1143464 | L126: 0 | M126: =ROUND(100-'Townwide Contributions'!L126,2) -> 17.5 | N126: 435 | O126: 415 | P126: 0 | Q126: 31125 | R126: 31125 | S126: 1462046 | T126: 1474496 | U126: 0 | V126: 1493171 | W126: 0 | X126: 0 | Y126: 1493171 | Z126: 22.85206185 | AA126: 6883783 | AB126: 105.3520561 | AC126: -60131.44 | AD126: 31125 | AE126: 349707.7682 | AF126: 5.352061854 | AG126: 15744.76 | AK126: 75 | AM126: 117 | AN126: Hadley | AO126: 1 | AP126: 415 | AQ126: 6534075.61 | AR126: 5390612 | AS126: 1493171
A127: 118 | B127: Halifax | C127: 1 | D127: 7476145.688 | E127: 4173331 | F127: 3649183 | G127: 0 | H127: 3649183 | I127: 7659877.793 | J127: 4407182 | K127: 3252696 | L127: 0 | M127: =ROUND(100-'Townwide Contributions'!L127,2) -> 35.39 | N127: 543 | O127: 538 | P127: 0 | Q127: 40350 | R127: 40350 | S127: 3649183 | T127: 3665323 | U127: 0 | V127: 3689533 | W127: 0 | X127: 0 | Y127: 3689533 | Z127: 48.1669956 | AA127: 8096715 | AB127: 105.7029266 | AC127: 183732.1054 | AD127: 40350 | AE127: 978702.249 | AF127: 12.7769956 | AG127: 14237.69 | AK127: 75 | AM127: 118 | AN127: Halifax | AO127: 1 | AP127: 538 | AQ127: 7659877.793 | AR127: 4407182 | AS127: 3689533
A128: 119 | B128: Hamilton | C128: 0 | D128: 0 | E128: 0 | F128: 0 | G128: 0 | H128: 0 | I128: 0 | J128: 0 | K128: 0 | L128: 0 | M128: =ROUND(100-'Townwide Contributions'!L128,2) -> 17.5 | N128: 0 | O128: 0 | P128: 0 | Q128: 0 | R128: 0 | S128: 0 | T128: 0 | U128: 0 | V128: 0 | W128: 0 | X128: 0 | Y128: 0 | Z128: 0 | AA128: 0 | AB128: 0 | AC128: 0 | AD128: 0 | AE128: 0 | AG128: 0 | AK128: 0 | AM128: 119 | AN128: Hamilton | AO128: 0 | AP128: 0 | AQ128: 0 | AR128: 0 | AS128: 0
A129: 120 | B129: Hampden | C129: 0 | D129: 0 | E129: 0 | F129: 0 | G129: 0 | H129: 0 | I129: 0 | J129: 0 | K129: 0 | L129: 0 | M129: =ROUND(100-'Townwide Contributions'!L129,2) -> 17.5 | N129: 0 | O129: 0 | P129: 0 | Q129: 0 | R129: 0 | S129: 0 | T129: 0 | U129: 0 | V129: 0 | W129: 0 | X129: 0 | Y129: 0 | Z129: 0 | AA129: 0 | AB129: 0 | AC129: 0 | AD129: 0 | AE129: 0 | AG129: 0 | AK129: 0 | AM129: 120 | AN129: Hampden | AO129: 0 | AP129: 0 | AQ129: 0 | AR129: 0 | AS129: 0
A130: 121 | B130: Hancock | C130: 1 | D130: 1251017 | E130: 855049 | F130: 463156 | G130: 0 | H130: 463156 | I130: 1236469.67 | J130: 894467 | K130: 342003 | L130: 0 | M130: =ROUND(100-'Townwide Contributions'!L130,2) -> 17.5 | N130: 86 | O130: 79 | P130: 0 | Q130: 5925 | R130: 5925 | S130: 463156 | T130: 465526 | U130: 0 | V130: 469081 | W130: 0 | X130: 0 | Y130: 469081 | Z130: 37.93712142 | AA130: 1363548 | AB130: 110.2775129 | AC130: -14547.33 | AD130: 5925 | AE130: 252698.8078 | AF130: 20.43712142 | AG130: 15651.51 | AK130: 75 | AM130: 121 | AN130: Hancock | AO130: 1 | AP130: 79 | AQ130: 1236469.67 | AR130: 894467 | AS130: 469081
A131: 122 | B131: Hanover | C131: 1 | D131: 32549060.69 | E131: 25651759 | F131: 8088931 | G131: 0 | H131: 8088931 | I131: 32396385.68 | J131: 26727018 | K131: 5669368 | L131: 0 | M131: =ROUND(100-'Townwide Contributions'!L131,2) -> 17.5 | N131: 2472 | O131: 2366 | P131: 0 | Q131: 177450 | R131: 177450 | S131: 8088931 | T131: 8159911 | U131: 0 | V131: 8266381 | W131: 0 | X131: 0 | Y131: 8266381 | Z131: 25.51636804 | AA131: 34993399 | AB131: 108.0163675 | AC131: -152675.0087 | AD131: 177450 | AE131: 2597013.506 | AF131: 8.016368037 | AG131: 13692.47 | AK131: 75 | AM131: 122 | AN131: Hanover | AO131: 1 | AP131: 2366 | AQ131: 32396385.68 | AR131: 26727018 | AS131: 8266381
A132: 123 | B132: Hanson | C132: 0 | D132: 86771.45 | E132: 54413 | F132: 40519 | G132: 0 | H132: 40519 | I132: 90234.8 | J132: 57838 | K132: 32397 | L132: 0 | M132: =ROUND(100-'Townwide Contributions'!L132,2) -> 28.97 | N132: 5 | O132: 5 | P132: 0 | Q132: 0 | R132: 0 | S132: 40519 | T132: 40669 | U132: 0 | V132: 40519 | W132: 0 | X132: 0 | Y132: 40519 | Z132: 0 | AA132: 98357 | AB132: 109.0011836 | AC132: 3463.35 | AD132: 0 | AE132: 14377.97844 | AG132: 18046.96 | AK132: 0 | AM132: 123 | AN132: Hanson | AO132: 0 | AP132: 5 | AQ132: 90234.8 | AR132: 57838 | AS132: 40519
A133: 124 | B133: Hardwick | C133: 0 | D133: 0 | E133: 0 | F133: 0 | G133: 0 | H133: 0 | I133: 18046.96 | J133: 7547 | K133: 10500 | L133: 10500 | M133: =ROUND(100-'Townwide Contributions'!L133,2) -> 50.75 | N133: 0 | O133: 1 | P133: 0 | Q133: 0 | R133: 0 | S133: 9492 | T133: 9522 | U133: 0 | V133: 10500 | W133: 0 | X133: 0 | Y133: 10500 | Z133: 0 | AA133: 18047 | AB133: 100.0002216 | AC133: 18046.96 | AD133: 10500 | AE133: 1341.1678 | AG133: 18046.96 | AK133: 10500 | AM133: 124 | AN133: Hardwick | AO133: 0 | AP133: 1 | AQ133: 18046.96 | AR133: 7547 | AS133: 10500
A134: 125 | B134: Harvard | C134: 1 | D134: 11305864.01 | E134: 9082614 | F134: 2418691 | G134: 0 | H134: 2418691 | I134: 11655609.1 | J134: 9391727 | K134: 2263882 | L134: 0 | M134: =ROUND(100-'Townwide Contributions'!L134,2) -> 17.5 | N134: 868 | O134: 855 | P134: 0 | Q134: 64125 | R134: 64125 | S134: 2418691 | T134: 2444341 | U134: 0 | V134: 2482816 | W134: 0 | X134: 0 | Y134: 2482816 | Z134: 21.30146935 | AA134: 11874543 | AB134: 101.8783566 | AC134: 349745.09 | AD134: 64125 | AE134: 443084.4075 | AF134: 3.80146935 | AG134: 13632.29 | AK134: 75 | AM134: 125 | AN134: Harvard | AO134: 1 | AP134: 855 | AQ134: 11655609.1 | AR134: 9391727 | AS134: 2482816
A135: 126 | B135: Harwich | C135: 0 | D135: 0 | E135: 0 | F135: 0 | G135: 0 | H135: 0 | I135: 0 | J135: 0 | K135: 0 | L135: 0 | M135: =ROUND(100-'Townwide Contributions'!L135,2) -> 17.5 | N135: 0 | O135: 0 | P135: 0 | Q135: 0 | R135: 0 | S135: 0 | T135: 0 | U135: 0 | V135: 0 | W135: 0 | X135: 0 | Y135: 0 | Z135: 0 | AA135: 0 | AB135: 0 | AC135: 0 | AD135: 0 | AE135: 0 | AG135: 0 | AK135: 0 | AM135: 126 | AN135: Harwich | AO135: 0 | AP135: 0 | AQ135: 0 | AR135: 0 | AS135: 0
A136: 127 | B136: Hatfield | C136: 1 | D136: 3981919.64 | E136: 3285084 | F136: 969096 | G136: 0 | H136: 969096 | I136: 4069015.53 | J136: 3356938 | K136: 712078 | L136: 0 | M136: =ROUND(100-'Townwide Contributions'!L136,2) -> 17.5 | N136: 278 | O136: 271 | P136: 0 | Q136: 20325 | R136: 20325 | S136: 969096 | T136: 977226 | U136: 0 | V136: 989421 | W136: 0 | X136: 0 | Y136: 989421 | Z136: 24.31597994 | AA136: 4346359 | AB136: 106.8159846 | AC136: 87095.89 | AD136: 20325 | AE136: 277343.2823 | AF136: 6.815979939 | AG136: 15014.82 | AK136: 75 | AM136: 127 | AN136: Hatfield | AO136: 1 | AP136: 271 | AQ136: 4069015.53 | AR136: 3356938 | AS136: 989421
A137: 128 | B137: Haverhill | C137: 1 | D137: 149713124.7 | E137: 55493490 | F137: 94219635 | G137: 0 | H137: 94219635 | I137: 154969203.8 | J137: 58542162 | K137: 96427042 | L137: 2207407 | M137: =ROUND(100-'Townwide Contributions'!L137,2) -> 55.3 | N137: 8435 | O137: 8240 | P137: 1 | Q137: 618000 | R137: 0 | S137: 94219635 | T137: 94466835 | U137: 0 | V137: 96427042 | W137: 0 | X137: 0 | Y137: 96427042 | Z137: 62.22335772 | AA137: 154969204 | AB137: 100.0000002 | AC137: 5256079.1 | AD137: 2207407 | AE137: 10729072.33 | AF137: 6.923357717 | AG137: 18806.94 | AK137: 267.889199 | AM137: 128 | AN137: Haverhill | AO137: 1 | AP137: 8240 | AQ137: 154969203.8 | AR137: 58542162 | AS137: 96427042
A138: 129 | B138: Hawley | C138: 0 | D138: 34708.58 | E138: 28635 | F138: 13300 | G138: 0 | H138: 13300 | I138: =SUMIF(dist1755,A138,found1755) -> 108281.76 | J138: =SUMIF(dist1755,A138,prelcont1755) -> 76034 | K138: =ROUND(MAX(found-prelcont436,0),0) -> 32248 | L138: =IF(foundaid>priorc70,foundaid-priorc70,0) -> 18948 | M138: =ROUND(100-'Townwide Contributions'!L138,2) -> 21.8 | N138: 2 | O138: =SUMIF(dist1755,A138,enro1755) -> 6 | P138: =IF(AND(C138=1,L138>0),1,0) -> 0 | Q138: =IF(nonop=1,enro*$Q$6,0) -> 0 | R138: =IF((foundinc)<Q138,Q138-(foundinc),0) -> 0 | S138: 28079 | T138: =S138+30*enro -> 28259 | U138: =IF(AND(T138-priorc70-foundinc-minaid>0,nonop=1), T138-priorc70-foundinc-minaid,0) -> 0 | V138: =priorc70+ foundinc+minaidadjincrement+minaid -> 32248 | W138: =IF(AND(C138=0,V138>found),V138-found,0) -> 0 | X138: 0 | Y138: =priorc70+foundinc+minaidadjincrement+minaid-rednonop+holdharmlessaid -> 32248 | Z138: =IF(C138=1, Y138/I138*100, 0) -> 0 | AA138: =prelcont436+chapter70 -> 108282 | AB138: =IF(found>0,AA138*100/found,0) -> 100.0002216 | AC138: =I138-D138 -> 73573.18 | AD138: =Y138-F138 -> 18948 | AE138: =Y138-((M138/100)*I138) -> 8642.57632 | AF138: =IF(C138=1, (Y138/I138*100)-M138, "") ->  | AG138: =IFERROR(ROUND(I138/O138, 2), 0) -> 18046.96 | AK138: =IFERROR(AD138/O138, 0) -> 3158 | AM138: =A138 -> 129 | AN138: =B138 -> Hawley | AO138: =C138 -> 0 | AP138: 6 | AQ138: =I138 -> 108281.76 | AR138: =J138 -> 76034 | AS138: =Y138 -> 32248
A139: 130 | B139: Heath | C139: 0 | D139: 0 | E139: 0 | F139: 0 | G139: 0 | H139: =F139+G139 -> 0 | I139: 0 | J139: 0 | K139: 0 | L139: 0 | M139: =ROUND(100-'Townwide Contributions'!L139,2) -> 62.41 | N139: 0 | O139: 0 | P139: 0 | Q139: 0 | R139: 0 | S139: 0 | T139: 0 | U139: 0 | V139: 0 | W139: 0 | X139: 0 | Y139: 0 | Z139: 0 | AA139: 0 | AB139: 0 | AC139: 0 | AD139: 0 | AE139: 0 | AG139: 0 | AK139: 0 | AM139: 130 | AN139: Heath | AO139: 0 | AP139: =O139 -> 0 | AQ139: 0 | AR139: 0 | AS139: 0
A140: 131 | B140: Hingham | C140: 1 | D140: 46634192.57 | E140: 38473209 | F140: 9439417 | G140: 0 | H140: 9439417 | I140: 48104960.02 | J140: 39686592 | K140: 8418368 | L140: 0 | M140: =ROUND(100-'Townwide Contributions'!L140,2) -> 17.5 | N140: 3528 | O140: 3481 | P140: 0 | Q140: 261075 | R140: 261075 | S140: 9439417 | T140: 9543847 | U140: 0 | V140: 9700492 | W140: 0 | X140: 0 | Y140: 9700492 | Z140: 20.16526361 | AA140: 49387084 | AB140: 102.6652636 | AC140: 1470767.455 | AD140: 261075 | AE140: 1282123.996 | AF140: 2.665263615 | AG140: 13819.29 | AK140: 75 | AM140: 131 | AN140: Hingham | AO140: 1 | AP140: 3481 | AQ140: 48104960.02 | AR140: 39686592 | AS140: 9700492
A141: 132 | B141: Hinsdale | C141: 0 | D141: 173542.9 | E141: 123025 | F141: 104923 | G141: 0 | H141: 104923 | I141: 126328.72 | J141: 90223 | K141: 36106 | L141: 0 | M141: =ROUND(100-'Townwide Contributions'!L141,2) -> 17.5 | N141: 10 | O141: 7 | P141: 0 | Q141: 0 | R141: 0 | S141: 104923 | T141: 105133 | U141: 0 | V141: 104923 | W141: 0 | X141: 0 | Y141: 104923 | Z141: 0 | AA141: 195146 | AB141: 154.4747703 | AC141: -47214.18 | AD141: 0 | AE141: 82815.474 | AG141: 18046.96 | AK141: 0 | AM141: 132 | AN141: Hinsdale | AO141: 0 | AP141: 7 | AQ141: 126328.72 | AR141: 90223 | AS141: 104923
A142: 133 | B142: Holbrook | C142: 1 | D142: 23413602.23 | E142: 10616613 | F142: 12796989 | G142: 0 | H142: 12796989 | I142: 24189420.93 | J142: 11032723 | K142: 13156698 | L142: 359709 | M142: =ROUND(100-'Townwide Contributions'!L142,2) -> 47.47 | N142: 1394 | O142: 1383 | P142: 1 | Q142: 103725 | R142: 0 | S142: 12796989 | T142: 12838479 | U142: 0 | V142: 13156698 | W142: 0 | X142: 0 | Y142: 13156698 | Z142: 54.39029748 | AA142: 24189421 | AB142: 100.0000003 | AC142: 775818.6988 | AD142: 359709 | AE142: 1673979.887 | AF142: 6.92029748 | AG142: 17490.54 | AK142: 260.0932755 | AM142: 133 | AN142: Holbrook | AO142: 1 | AP142: 1383 | AQ142: 24189420.93 | AR142: 11032723 | AS142: 13156698
A143: 134 | B143: Holden | C143: 0 | D143: 17354.29 | E143: 10322 | F143: 14521 | G143: 0 | H143: 14521 | I143: 18046.96 | J143: 11082 | K143: 6965 | L143: 0 | M143: =ROUND(100-'Townwide Contributions'!L143,2) -> 32.72 | N143: 1 | O143: 1 | P143: 0 | Q143: 0 | R143: 0 | S143: 14521 | T143: 14551 | U143: 0 | V143: 14521 | W143: 0 | X143: 0 | Y143: 14521 | Z143: 0 | AA143: 25603 | AB143: 141.868769 | AC143: 692.67 | AD143: 0 | AE143: 8616.034688 | AG143: 18046.96 | AK143: 0 | AM143: 134 | AN143: Holden | AO143: 0 | AP143: 1 | AQ143: 18046.96 | AR143: 11082 | AS143: 14521
A144: 135 | B144: Holland | C144: 1 | D144: 2321784.99 | E144: 1507847 | F144: 1052634 | G144: 0 | H144: 1052634 | I144: 2645254.84 | J144: 1609921 | K144: 1035334 | L144: 0 | M144: =ROUND(100-'Townwide Contributions'!L144,2) -> 33.46 | N144: 153 | O144: 175 | P144: 0 | Q144: 13125 | R144: 13125 | S144: 1052634 | T144: 1057884 | U144: 0 | V144: 1065759 | W144: 0 | X144: 0 | Y144: 1065759 | Z144: 40.28946413 | AA144: 2675680 | AB144: 101.1501788 | AC144: 323469.85 | AD144: 13125 | AE144: 180656.7305 | AF144: 6.829464133 | AG144: 15115.74 | AK144: 75 | AM144: 135 | AN144: Holland | AO144: 1 | AP144: 175 | AQ144: 2645254.84 | AR144: 1609921 | AS144: 1065759
A145: 136 | B145: Holliston | C145: 1 | D145: 33988555.89 | E145: 26548599 | F145: 9575140 | G145: 0 | H145: 9575140 | I145: 35077456.98 | J145: 27908236 | K145: 7169221 | L145: 0 | M145: =ROUND(100-'Townwide Contributions'!L145,2) -> 17.5 | N145: 2577 | O145: 2542 | P145: 0 | Q145: 190650 | R145: 190650 | S145: 9575140 | T145: 9651400 | U145: 0 | V145: 9765790 | W145: 0 | X145: 0 | Y145: 9765790 | Z145: 27.84064422 | AA145: 37674026 | AB145: 107.4023867 | AC145: 1088901.095 | AD145: 190650 | AE145: 3627235.028 | AF145: 10.34064422 | AG145: 13799.16 | AK145: 75 | AM145: 136 | AN145: Holliston | AO145: 1 | AP145: 2542 | AQ145: 35077456.98 | AR145: 27908236 | AS145: 9765790
A146: 137 | B146: Holyoke | C146: 1 | D146: 120721754.3 | E146: 13957634 | F146: 106764120 | G146: 0 | H146: 106764120 | I146: 125376814.9 | J146: 14778343 | K146: 110598472 | L146: 3834352 | M146: =ROUND(100-'Townwide Contributions'!L146,2) -> 81.1 | N146: 5804 | O146: 5620 | P146: 1 | Q146: 421500 | R146: 0 | S146: 106764120 | T146: 106932720 | U146: 0 | V146: 110598472 | W146: 0 | X146: 0 | Y146: 110598472 | Z146: 88.21285823 | AA146: 125376815 | AB146: 100.0000001 | AC146: 4655060.58 | AD146: 3834352 | AE146: 8917875.1 | AF146: 7.112858231 | AG146: 22309.04 | AK146: 682.2690391 | AM146: 137 | AN146: Holyoke | AO146: 1 | AP146: 5620 | AQ146: 125376814.9 | AR146: 14778343 | AS146: 110598472
A147: 138 | B147: Hopedale | C147: 1 | D147: 12503191.36 | E147: 7211367 | F147: 6443660 | G147: 0 | H147: 6443660 | I147: 13165360.09 | J147: 7772067 | K147: 5393293 | L147: 0 | M147: =ROUND(100-'Townwide Contributions'!L147,2) -> 38.35 | N147: 883 | O147: 885 | P147: 0 | Q147: 66375 | R147: 66375 | S147: 6443660 | T147: 6470210 | U147: 0 | V147: 6510035 | W147: 0 | X147: 0 | Y147: 6510035 | Z147: 49.44821072 | AA147: 14282102 | AB147: 108.4824259 | AC147: 662168.7347 | AD147: 66375 | AE147: 1461119.405 | AF147: 11.09821072 | AG147: 14876.11 | AK147: 75 | AM147: 138 | AN147: Hopedale | AO147: 1 | AP147: 885 | AQ147: 13165360.09 | AR147: 7772067 | AS147: 6510035
A148: 139 | B148: Hopkinton | C148: 1 | D148: 55425077.17 | E148: 45725689 | F148: 10864019 | G148: 0 | H148: 10864019 | I148: 58274271.76 | J148: 47107356 | K148: 11166916 | L148: 302897 | M148: =ROUND(100-'Townwide Contributions'!L148,2) -> 17.5 | N148: 4208 | O148: 4228 | P148: 1 | Q148: 317100 | R148: 14203 | S148: 10864019 | T148: 10990859 | U148: 0 | V148: 11181119 | W148: 0 | X148: 0 | Y148: 11181119 | Z148: 19.18705916 | AA148: 58288475 | AB148: 100.0243731 | AC148: 2849194.587 | AD148: 317100 | AE148: 983121.442 | AF148: 1.687059164 | AG148: 13782.94 | AK148: 75 | AM148: 139 | AN148: Hopkinton | AO148: 1 | AP148: 4228 | AQ148: 58274271.76 | AR148: 47107356 | AS148: 11181119
A149: 140 | B149: Hubbardston | C149: 0 | D149: 0 | E149: 0 | F149: 0 | G149: 0 | H149: 0 | I149: 0 | J149: 0 | K149: 0 | L149: 0 | M149: =ROUND(100-'Townwide Contributions'!L149,2) -> 37.26 | N149: 0 | O149: 0 | P149: 0 | Q149: 0 | R149: 0 | S149: 0 | T149: 0 | U149: 0 | V149: 0 | W149: 0 | X149: 0 | Y149: 0 | Z149: 0 | AA149: 0 | AB149: 0 | AC149: 0 | AD149: 0 | AE149: 0 | AG149: 0 | AK149: 0 | AM149: 140 | AN149: Hubbardston | AO149: 0 | AP149: 0 | AQ149: 0 | AR149: 0 | AS149: 0
A150: 141 | B150: Hudson | C150: 1 | D150: 37349315.83 | E150: 23481576 | F150: 13867740 | G150: 0 | H150: 13867740 | I150: 37694133.73 | J150: 24750368 | K150: 12943766 | L150: 0 | M150: =ROUND(100-'Townwide Contributions'!L150,2) -> 28.69 | N150: 2414 | O150: 2346 | P150: 0 | Q150: 175950 | R150: 175950 | S150: 13867740 | T150: 13938120 | U150: 0 | V150: 14043690 | W150: 0 | X150: 0 | Y150: 14043690 | Z150: 37.25696444 | AA150: 38794058 | AB150: 102.9180251 | AC150: 344817.9029 | AD150: 175950 | AE150: 3229243.033 | AF150: 8.56696444 | AG150: 16067.41 | AK150: 75 | AM150: 141 | AN150: Hudson | AO150: 1 | AP150: 2346 | AQ150: 37694133.73 | AR150: 24750368 | AS150: 14043690
